Workbook

Sheet START
A1: j

Sheet Instructions
D2: 2020
X4: Yes
X5: No
W7: Type of Entities Range:
X8: Parent Municipality
X9: Consolidated Information
F14: START
F15: Instructions
F16: Template names
F17: Lookup and lists | W17: MTREF Range: | X17: 2013
F18: Org structure | X18: 2014
F19: Contacts | X19: 2015
F20: A1-Sum | X20: 2016
F21: A2-FinPerf SC | X21: 2017
F22: A2A | X22: 2018
F23: A3-FinPerf V | X23: 2019
F24: A3A | X24: 2020
F25: A4-FinPerf RE | X25: 2021
F26: A5-Capex | X26: 2022
F27: A5A | X27: 2023
F28: A6-FinPos | X28: 2024
F29: A7-CFlow | X29: 2025
F30: A8-ResRecon | X30: 2026
F31: A9-Asset | X31: 2027
F32: A10-SerDel | X32: 2028
F33: SA1 | W33: MTREF Linked: | X33: 13
F34: SA2 | W34: MTREF: | X34: =INDEX(X17:X31,X33,1) -> 2025
F35: SA3
F36: SA4 | W36: Fin Year: | X36: =MTREF&"/"&RIGHT(MTREF,2)+1 -> 2025/26
F37: SA5
F38: SA6
F39: SA7
F40: SA8
F41: SA9
F42: SA10
F43: SA11
F44: SA12a
F45: SA12b
F46: SA13a
F47: SA13b
F48: SA14
F49: SA15
F50: SA16
F51: SA17
F52: SA18
F53: SA19
F54: SA20
F55: SA21
F56: SA22
F57: SA23
F58: SA24
F59: SA25
F60: SA26
F61: SA27
F62: SA28
F63: SA29
F64: SA30
F65: SA31
F66: SA32
F67: SA33
F68: SA34a
F69: SA34b
F70: SA34c
F71: SA34d
F72: SA34e
F73: SA35
F74: SA36
F75: SA37
F76: SA38
F77: LGDB_EXPORT

Sheet Template names
A1: Common sheet headings
A2: Head1 | B2: =HLOOKUP(MTREF,Headings,2) -> 2023/24 | C2: Prior year -1
A3: Head1A | B3: =HLOOKUP(MTREF,Headings,3) -> 2022/23 | C3: Prior year -2
A4: Head1B | B4: =HLOOKUP(MTREF,Headings,4) -> 2021/22 | C4: Prior year -3
A5: Head2 | B5: =HLOOKUP(MTREF,Headings,5) -> Current Year 2024/25 | C5: Year in which budget is being prepared
A6: Head2A | B6: =HLOOKUP(MTREF,Headings,6) -> 2024/25 | C6: Year in which budget is being prepared
A7: Head3 | B7: =HLOOKUP(MTREF,Headings,7) -> 2025/26 Medium Term Revenue & Expenditure Framework | C7: MTREF name
A8: Head4 | B8: LTFS | C8: Long term financial strategy
A9: Head5 | B9: Audited Outcome
A10: Head5A | B10: Outcome
A11: Head5B | B11: Pre-audit outcome
A12: Head6 | B12: Original Budget
A13: Head7 | B13: Adjusted Budget
A14: Head8 | B14: Full Year Forecast
A15: Head9 | B15: =HLOOKUP(MTREF,Headings,8) -> Budget Year 2025/26 | C15: 1st year of MTREF | D15: Year1
A16: Head10 | B16: =HLOOKUP(MTREF,Headings,9) -> Budget Year +1 2026/27 | C16: 2nd year of MTREF | D16: Year2
A17: Head11 | B17: =HLOOKUP(MTREF,Headings,10) -> Budget Year +2 2027/28 | C17: 3rd year of MTREF | D17: Year3
A18: Head12 | B18: =HLOOKUP(MTREF,Headings,11) -> Forecast 2028/29 | C18: 1st yr of long term forecast | D18: Year4
A19: Head13 | B19: =HLOOKUP(MTREF,Headings,12) -> Forecast 2029/30 | C19: Next yr of long term forecast | D19: Year5
A20: Head14 | B20: =HLOOKUP(MTREF,Headings,13) -> Forecast 2030/31 | C20: Next yr of long term forecast | D20: Year6
A21: Head15 | B21: =HLOOKUP(MTREF,Headings,14) -> Forecast 2031/32 | C21: Next yr of long term forecast | D21: Year7
A22: Head16 | B22: =HLOOKUP(MTREF,Headings,15) -> Forecast 2032/33 | C22: Next yr of long term forecast | D22: Year8
A23: Head17 | B23: =HLOOKUP(MTREF,Headings,16) -> Forecast 2033/34 | C23: Next yr of long term forecast | D23: Year9
A24: Head18 | B24: =HLOOKUP(MTREF,Headings,17) -> Forecast 2034/35 | C24: Next yr of long term forecast | D24: Year10
A25: Head19 | B25: =HLOOKUP(MTREF,Headings,18) -> Forecast 2035/36 | C25: Next yr of long term forecast | D25: Year11
A26: Head20 | B26: =HLOOKUP(MTREF,Headings,19) -> Forecast 2036/37 | C26: Next yr of long term forecast | D26: Year12
A27: Head21 | B27: =HLOOKUP(MTREF,Headings,20) -> Forecast 2037/38 | C27: Next yr of long term forecast | D27: Year13
A28: Head22 | B28: =HLOOKUP(MTREF,Headings,21) -> Forecast 2038/39 | C28: Next yr of long term forecast | D28: Year14
A29: Head23 | B29: =HLOOKUP(MTREF,Headings,22) -> Forecast 2039/40 | C29: Next yr of long term forecast | D29: Year15
A30: Head24 | B30: Description
A31: Head25
A32: Head26 | B32: Vote Description
A33: Head27 | B33: Ref
A34: Head27a | B34: References
A35: Head28 | B35: Surplus/(Deficit) for the year | D35: Result
A36: Head29 | B36: =HLOOKUP(MTREF,Headings,23) -> Annual target 2025/26
A37: Head30 | B37: =HLOOKUP(MTREF,Headings,24) -> Revised target 2025/26
A38: Head31 | B38: Quarter ended 30 September
A39: Head32 | B39: Quarter ended 31 December
A40: Head33 | B40: Quarter ended 31 March
A41: Head34 | B41: Quarter ended 30 June
A42: Head35 | B42: Variance explanation
A43: Head36 | B43: YTD Actual 31 Dec
A44: Head37 | B44: YTD Budget 31 Dec
A45: Head38 | B45: Monthly actual
A46: Head39 | B46: YTD actual
A47: Head40 | B47: YTD budget
A48: Head41 | B48: YTD variance
A49: Head42 | B49: Surplus/ (Deficit) for the yr/period
A50: Head43 | B50: =Head3&" Summary" -> 2025/26 Medium Term Revenue & Expenditure Framework Summary
A51: Head44 | B51: 2001 Census
A52: Head45 | B52: 2011 Census
A53: Head46 | B53: - Adjustments Budget - January 2007
A54: Head47 | B54: Previous target year to complete
A55: Head48 | B55: Present value
A56: Head49
A57: Head50 | B57: Other Adjusts.
A58: Head51 | B58: Accum. Funds
A59: Head52 | B59: Multi-year capital
A60: Head53 | B60: Unfore. Unavoid.
A61: Head54 | B61: Prior Adjusted
A62: Head55 | B62: Nat. or Prov. Govt
A63: Head56 | B63: Total Adjusts.
A64: SFPerf1 | B64: Budgeted Financial Performance
A65: SFPerf2 | B65: Forecast Financial Performance
A66: SFPos1 | B66: Budgeted Financial Position
A67: SFPos2 | B67: Forecast Financial Position
A68: Cash1 | B68: Budget Cash Flow
A69: Cash2 | B69: Forecast Cash Flow
A70: RandM | B70: Expenditure includes repairs & maintenance of R'000
A71: Depart1 | B71: Department 1 - | D71: DEP1
A72: Depart2 | B72: Department 2 - | D72: DEP2
A73: Depart3 | B73: Department 3 - | D73: DEP3
A74: Depart4 | B74: Department 4 - | D74: DEP4
A75: Depart5 | B75: Department 5 - | D75: DEP5
A76: Depart6 | B76: Department 6 - | D76: DEP6
A77: Depart7 | B77: Department 7 - | D77: DEP7
A78: Depart8 | B78: Department 8 - | D78: DEP8
A79: Depart9 | B79: Department 9 - | D79: DEP9
A80: Depart10 | B80: Department 10 - | D80: DEP10
A81: Depart11 | B81: Department 11 - | D81: DEP11
A82: Depart12 | B82: Department 12 - | D82: DEP12
A83: Depart13 | B83: Department 13 - | D83: DEP13
A84: Depart14 | B84: Department 14 - | D84: DEP14
A87: Base year of forecast column selection names
A88: Choose | B88: ACT
B89: APP
B90: ADJ
A92: Standard nomenclature
A93: Muni | B93: ='Lookup and lists'!B28 -> Choose name from list
A94: Municipal Entities | B94: 2 | C94: Type of report: | D94: 2
A95: =IF((MuniEntities=1)*(MuniType=2),"YES","NO") -> NO | B95: Does this municipality have entities (consolidated budget and entity budgets required)? YES/NO
A96: Entity 1 | B96: (Pty) Ltd Example 1 - Municipal entity - | D96: Ent1
A97: Entity 2 | B97: (Pty) Ltd Example 2 - Municipal entity - | D97: Ent2
A98: Entity 3 | B98: Municipal Entity Example 3 | D98: Ent3
A99: Budget approval tables | C99: Chart x-ref | D99: Sch/Tab/Ch | E99: Alternative for municipalities without entities | F99: Alternative for municipalities without entities
B100: =IF(Consolques="YES",E100,F100) -> Table A1 Budget Summary | D100: Table A1 | E100: =D100&"Consolidated Budget Summary" -> Table A1 Consolidated Budget Summary | F100: =D100&"Budget Summary" -> Table A1 Budget Summary
B101: Table A2 Budgeted Financial Performance (revenue and expenditure by functional classification) | C101: Charts 5, 6 | D101: Table A2 | E101: =D101&"Consolidated Budgeted Financial Performance (revenue and expenditure by functional classification)" -> Table A2 Consolidated Budgeted Financial Performance (revenue and expenditure by functional classification) | F101: =D101&"Budgeted Financial Performance (revenue and expenditure by functional classification)" -> Table A2 Budgeted Financial Performance (revenue and expenditure by functional classification)
B102: Table A3 Budgeted Financial Performance (revenue and expenditure by municipal vote) | D102: Table A3 | E102: =D102&"Consolidated Budgeted Financial Performance (revenue and expenditure by municipal vote)" -> Table A3 Consolidated Budgeted Financial Performance (revenue and expenditure by municipal vote) | F102: =D102&"Budgeted Financial Performance (revenue and expenditure by municipal vote)" -> Table A3 Budgeted Financial Performance (revenue and expenditure by municipal vote)
B103: Table A4 Budgeted Financial Performance (revenue and expenditure) | C103: Charts 1, 2, 3, 4 | D103: Table A4 | E103: =D103&"Consolidated Budgeted Financial Performance (revenue and expenditure)" -> Table A4 Consolidated Budgeted Financial Performance (revenue and expenditure) | F103: =D103&"Budgeted Financial Performance (revenue and expenditure)" -> Table A4 Budgeted Financial Performance (revenue and expenditure)
B104: Table A5 Budgeted Capital Expenditure by vote, functional classification and funding | C104: Charts 7, 8, 9, 10, 20 | D104: Table A5 | E104: =D104&"Consolidated Budgeted Capital Expenditure by vote, functional classification and funding" -> Table A5 Consolidated Budgeted Capital Expenditure by vote, functional classification and funding | F104: =D104&"Budgeted Capital Expenditure by vote, functional classification and funding" -> Table A5 Budgeted Capital Expenditure by vote, functional classification and funding
B105: Table A6 Budgeted Financial Position | D105: Table A6 | E105: =D105&"Consolidated Budgeted Financial Position" -> Table A6 Consolidated Budgeted Financial Position | F105: =D105&"Budgeted Financial Position" -> Table A6 Budgeted Financial Position
B106: Table A7 Budgeted Cash Flows | D106: Table A7 | E106: =D106&"Consolidated Budgeted Cash Flows" -> Table A7 Consolidated Budgeted Cash Flows | F106: =D106&"Budgeted Cash Flows" -> Table A7 Budgeted Cash Flows
B107: Table A8 Cash backed reserves/accumulated surplus reconciliation | D107: Table A8 | E107: =D107&"Consolidated Cash backed reserves/accumulated surplus reconciliation" -> Table A8 Consolidated Cash backed reserves/accumulated surplus reconciliation | F107: =D107&"Cash backed reserves/accumulated surplus reconciliation" -> Table A8 Cash backed reserves/accumulated surplus reconciliation
B108: Table A9 Asset Management | D108: Table A9 | E108: =D108&"Consolidated Asset Management" -> Table A9 Consolidated Asset Management | F108: =D108&"Asset Management" -> Table A9 Asset Management
B109: Table A10 Basic service delivery measurement | D109: Table A10 | E109: =D109&"Consolidated basic service delivery measurement" -> Table A10 Consolidated basic service delivery measurement | F109: =D109&"Basic service delivery measurement" -> Table A10 Basic service delivery measurement
A110: Supportinging Tables to the Budget Approval Tables | C110: =$C$99 -> Chart x-ref | D110: =$D$99 -> Sch/Tab/Ch
A111: Supporting Table SA1 | B111: =A111&" Supportinging detail to 'Budgeted Financial Performance'" -> Supporting Table SA1 Supportinging detail to 'Budgeted Financial Performance'
A112: Supporting Table SA2 | B112: =IF(Consolques="YES",E112,F112) -> Supporting Table SA2 Matrix Financial Performance Budget (revenue source/expenditure type and dept.) | E112: =A112&"Consolidated Matrix Financial Performance Budget (revenue source/expenditure type & dept.)" -> Supporting Table SA2 Consolidated Matrix Financial Performance Budget (revenue source/expenditure type & dept.) | F112: =A112&"Matrix Financial Performance Budget (revenue source/expenditure type and dept.)" -> Supporting Table SA2 Matrix Financial Performance Budget (revenue source/expenditure type and dept.)
A113: Supporting Table SA3 | B113: =A113&"Supportinging detail to 'Budgeted Financial Position'" -> Supporting Table SA3 Supportinging detail to 'Budgeted Financial Position'
A114: Supporting Table SA4 | B114: =A114&"Reconciliation of IDP strategic objectives and budget (revenue)" -> Supporting Table SA4 Reconciliation of IDP strategic objectives and budget (revenue) | C114: Chart 11
A115: Supporting Table SA5 | B115: =A115&"Reconciliation of IDP strategic objectives and budget (operating expenditure)" -> Supporting Table SA5 Reconciliation of IDP strategic objectives and budget (operating expenditure) | C115: Chart 12
A116: Supporting Table SA6 | B116: =A116&"Reconciliation of IDP strategic objectives and budget (capital expenditure)" -> Supporting Table SA6 Reconciliation of IDP strategic objectives and budget (capital expenditure) | C116: Chart 13
A117: Supporting Table SA7 | B117: =A117&" Measureable performance objectives" -> Supporting Table SA7 Measureable performance objectives
A118: Supporting Table SA8 | B118: =A118&" Performance indicators and benchmarks" -> Supporting Table SA8 Performance indicators and benchmarks | C118: Chts 15-19
A119: Supporting Table SA9 | B119: =A119&" Social, economic and demographic statistics and assumptions" -> Supporting Table SA9 Social, economic and demographic statistics and assumptions
A120: Supporting Table SA10 | B120: =A120&" Funding measurement" -> Supporting Table SA10 Funding measurement | C120: Chart 14
A121: Supporting Table SA11 | B121: =A121&" Property rates summary" -> Supporting Table SA11 Property rates summary
A122: Supporting Table SA12a | B122: =A122&" Property rates by category (current year)" -> Supporting Table SA12a Property rates by category (current year)
A123: Supporting Table SA12b | B123: =A123&" Property rates by category (budget year)" -> Supporting Table SA12b Property rates by category (budget year)
A124: Supporting Table SA13a | B124: =A124&" Service Tariffs by category" -> Supporting Table SA13a Service Tariffs by category
A125: Supporting Table SA13b | B125: =A125&" Service Tariffs by category - explanatory" -> Supporting Table SA13b Service Tariffs by category - explanatory
A126: Supporting Table SA14 | B126: =A126&" Household bills" -> Supporting Table SA14 Household bills
A127: Supporting Table SA15 | B127: =A127&" Investment particulars by type" -> Supporting Table SA15 Investment particulars by type
A128: Supporting Table SA16 | B128: =A128&" Investment particulars by maturity" -> Supporting Table SA16 Investment particulars by maturity
A129: Supporting Table SA17 | B129: =A129&" Borrowing" -> Supporting Table SA17 Borrowing
A130: Supporting Table SA18 | B130: =A130&" Transfers and grant receipts" -> Supporting Table SA18 Transfers and grant receipts
A131: Supporting Table SA19 | B131: =A131&" Expenditure on transfers and grant programme" -> Supporting Table SA19 Expenditure on transfers and grant programme
A132: Supporting Table SA20 | B132: =A132&" Reconciliation of transfers, grant receipts and unspent funds" -> Supporting Table SA20 Reconciliation of transfers, grant receipts and unspent funds
A133: Supporting Table SA21 | B133: =A133&" Transfers and grants made by the municipality" -> Supporting Table SA21 Transfers and grants made by the municipality
A134: Supporting Table SA22 | B134: =A134&" Summary councillor and staff benefits" -> Supporting Table SA22 Summary councillor and staff benefits
A135: Supporting Table SA23 | B135: =A135&" Salaries, allowances & benefits (political office bearers/councillors/senior managers)" -> Supporting Table SA23 Salaries, allowances & benefits (political office bearers/councillors/senior managers)
A136: Supporting Table SA24 | B136: =A136&" Summary of personnel numbers" -> Supporting Table SA24 Summary of personnel numbers
A137: Supporting Table SA25 | B137: =IF(Consolques="YES",E137,F137) -> Supporting Table SA25 Budgeted monthly revenue and expenditure | E137: =A137&" Consolidated budgeted monthly revenue and expenditure" -> Supporting Table SA25 Consolidated budgeted monthly revenue and expenditure | F137: =A137&" Budgeted monthly revenue and expenditure" -> Supporting Table SA25 Budgeted monthly revenue and expenditure
A138: Supporting Table SA26 | B138: Supporting Table SA26 Budgeted monthly revenue and expenditure (municipal vote) | E138: =A138&" Consolidated budgeted monthly revenue and expenditure (municipal vote)" -> Supporting Table SA26 Consolidated budgeted monthly revenue and expenditure (municipal vote) | F138: =A138&" Budgeted monthly revenue and expenditure (municipal vote)" -> Supporting Table SA26 Budgeted monthly revenue and expenditure (municipal vote)
A139: Supporting Table SA27 | B139: Supporting Table SA27 Budgeted monthly revenue and expenditure (functional classification) | E139: =A139&" Consolidated budgeted monthly revenue and expenditure (functional classification)" -> Supporting Table SA27 Consolidated budgeted monthly revenue and expenditure (functional classification) | F139: =A139&" Budgeted monthly revenue and expenditure (functional classification)" -> Supporting Table SA27 Budgeted monthly revenue and expenditure (functional classification)
A140: Supporting Table SA28 | B140: Supporting Table SA28 Budgeted monthly capital expenditure (municipal vote) | E140: =A140&" Consolidated budgeted monthly capital expenditure (municipal vote)" -> Supporting Table SA28 Consolidated budgeted monthly capital expenditure (municipal vote) | F140: =A140&" Budgeted monthly capital expenditure (municipal vote)" -> Supporting Table SA28 Budgeted monthly capital expenditure (municipal vote)
A141: Supporting Table SA29 | B141: Supporting Table SA29 Budgeted monthly capital expenditure (functional classification) | E141: =A141&" Consolidated budgeted monthly capital expenditure (functional classification)" -> Supporting Table SA29 Consolidated budgeted monthly capital expenditure (functional classification) | F141: =A141&" Budgeted monthly capital expenditure (functional classification)" -> Supporting Table SA29 Budgeted monthly capital expenditure (functional classification)
A142: Supporting Table SA30 | B142: Supporting Table SA30 Budgeted monthly cash flow | E142: =A142&" Consolidated budgeted monthly cash flow" -> Supporting Table SA30 Consolidated budgeted monthly cash flow | F142: =A142&" Budgeted monthly cash flow" -> Supporting Table SA30 Budgeted monthly cash flow
A143: Supporting Table SA31 | B143: NOT REQUIRED - municipality does not have entities | E143: =A143&" Aggregated entity budget" -> Supporting Table SA31 Aggregated entity budget | F143: NOT REQUIRED - municipality does not have entities
A144: Supporting Table SA32 | B144: =A144&" List of external mechanisms" -> Supporting Table SA32 List of external mechanisms
A145: Supporting Table SA33 | B145: =A145&" Contracts having future budgetary implications" -> Supporting Table SA33 Contracts having future budgetary implications
A146: Supporting Table SA34a | B146: =IF(Consolques="YES",E146,F146) -> Supporting Table SA34a Capital expenditure on new assets by asset class | E146: =A146&" Consolidated capital expenditure on new assets by asset class" -> Supporting Table SA34a Consolidated capital expenditure on new assets by asset class | F146: =A146&" Capital expenditure on new assets by asset class" -> Supporting Table SA34a Capital expenditure on new assets by asset class
A147: Supporting Table SA34b | B147: Supporting Table SA34b Capital expenditure on the renewal of existing assets by asset class | E147: =A147&" Consolidated capital expenditure on the renewal of existing assets by asset class" -> Supporting Table SA34b Consolidated capital expenditure on the renewal of existing assets by asset class | F147: =A147&" Capital expenditure on the renewal of existing assets by asset class" -> Supporting Table SA34b Capital expenditure on the renewal of existing assets by asset class
A148: Supporting Table SA34c | B148: Supporting Table SA34c Repairs and maintenance expenditure by asset class | E148: =A148&" Consolidated repairs and maintenance by asset class" -> Supporting Table SA34c Consolidated repairs and maintenance by asset class | F148: =A148&" Repairs and maintenance expenditure by asset class" -> Supporting Table SA34c Repairs and maintenance expenditure by asset class
A149: Supporting Table SA34d | B149: =IF(Consolques="YES",E149,F149) -> Supporting Table SA34d Depreciation by asset class | E149: =A149&" Consolidated Depreciation by asset class" -> Supporting Table SA34d Consolidated Depreciation by asset class | F149: =A149&" Depreciation by asset class" -> Supporting Table SA34d Depreciation by asset class
A150: Supporting Table SA34e | B150: =IF(Consolques="YES",E150,F150) -> Supporting Table SA34e Capital expenditure on the upgrading of existing assets by asset class | E150: =A150&" Consolidated capital expenditure on the upgrading of existing assets by asset class" -> Supporting Table SA34e Consolidated capital expenditure on the upgrading of existing assets by asset class | F150: =A150&" Capital expenditure on the upgrading of existing assets by asset class" -> Supporting Table SA34e Capital expenditure on the upgrading of existing assets by asset class
A151: Supporting Table SA35 | B151: Supporting Table SA35 Future financial implications of the capital budget | E151: =A151&" Consolidated future financial implications of the capital budget" -> Supporting Table SA35 Consolidated future financial implications of the capital budget | F151: =A151& " Future financial implications of the capital budget" -> Supporting Table SA35 Future financial implications of the capital budget
A152: Supporting Table SA36 | B152: Supporting Table SA36 Detailed capital budget | E152: =A152&" Consolidated detailed capital budget" -> Supporting Table SA36 Consolidated detailed capital budget | F152: =A152& " Detailed capital budget" -> Supporting Table SA36 Detailed capital budget
A153: Supporting Table SA37 | B153: Supporting Table SA37 Projects delayed from previous financial year/s | E153: =A153&" Consolidated projects delayed from previous financial year/s" -> Supporting Table SA37 Consolidated projects delayed from previous financial year/s | F153: =A153& " Projects delayed from previous financial year/s" -> Supporting Table SA37 Projects delayed from previous financial year/s
A154: Supporting Table SA38 | B154: =IF(Consolques="YES",E154,F154) -> Supporting Table SA38 Detailed operational projects | E154: =A154&" Consolidated detailed operational projects" -> Supporting Table SA38 Consolidated detailed operational projects | F154: =A154& " Detailed operational projects" -> Supporting Table SA38 Detailed operational projects
A156: Budget Charts | B156: Charts | C156: Cross reference
A157: Chart A1 | B157: =A157&"Revenue by Municipal Vote" -> Chart A1 Revenue by Municipal Vote
A158: Chart A2 | B158: =A158&"Expenditure by Municipal Vote" -> Chart A2 Expenditure by Municipal Vote
A159: Chart A3 | B159: =A159&"Revenue by Standard Classification" -> Chart A3 Revenue by Standard Classification | C159: A2
A160: Chart A4 | B160: =A160&"Expenditure by Standard Classification" -> Chart A4 Expenditure by Standard Classification | C160: A2
A161: Chart A5 | B161: =A161&"Revenue by Major Source (refer 'Minor' source for 'Other Revenue' allocation" -> Chart A5 Revenue by Major Source (refer 'Minor' source for 'Other Revenue' allocation | C161: A3
A162: Chart A6 | B162: =A162&"Revenue by Minor Source (Other)" -> Chart A6 Revenue by Minor Source (Other) | C162: A3
A163: Chart A7 | B163: =A163&"Expenditure by Major Type" -> Chart A7 Expenditure by Major Type | C163: A3
A164: Chart A8 | B164: =A164&"Expenditure by Minor Type (Other)" -> Chart A8 Expenditure by Minor Type (Other) | C164: A3
A165: Chart A9 | B165: =A165&"Capital Expenditure by Municipal Vote/Appropriation (Major)" -> Chart A9 Capital Expenditure by Municipal Vote/Appropriation (Major) | C165: A5
A166: Chart A10 | B166: =A166&"Capital Expenditure by Municipal Vote/Appropriation (Minor)" -> Chart A10 Capital Expenditure by Municipal Vote/Appropriation (Minor) | C166: A5
A167: Chart A11 | B167: =A166&"Capital Expenditure by Standard Classification" -> Chart A10 Capital Expenditure by Standard Classification | C167: A5
A168: Chart A12 | B168: =A168&"Capital expenditure performance trend" -> Chart A12 Capital expenditure performance trend | C168: A5
A169: Chart A13 | B169: =A169&"Capital funding by Source" -> Chart A13 Capital funding by Source | C169: A5
A170: Chart A14 | B170: =A170&"Cash flow trend" -> Chart A14 Cash flow trend | C170: A7
A171: Chart A15 | B171: =A171&"IDP Strategic Objective - Revenue" -> Chart A15 IDP Strategic Objective - Revenue | C171: Table A4
A172: Chart A16 | B172: =A172&"IDP Strategic Objective - Expenditure" -> Chart A16 IDP Strategic Objective - Expenditure | C172: Table A5
A173: Chart A17 | B173: =A173&"IDP Strategic Objective - Capital Expenditure" -> Chart A17 IDP Strategic Objective - Capital Expenditure | C173: Table A6
A174: Chart A18 | B174: =A174&"Debt (borrowing to Total Revenue)" -> Chart A18 Debt (borrowing to Total Revenue) | C174: Table A8
A175: Chart A19 | B175: =A175&"Debtors' trend analysis" -> Chart A19 Debtors' trend analysis | C175: Table A8
A176: Chart A20 | B176: =A176&"Distribution losses" -> Chart A20 Distribution losses | C176: Table A8
A177: Chart A21 | B177: =A177&"Borrowed funding of capital expenditure" -> Chart A21 Borrowed funding of capital expenditure | C177: Table A8
A178: Chart A22 | B178: =A178&"Expenditure analysis (% of Revenue)" -> Chart A22 Expenditure analysis (% of Revenue) | C178: Table A8
A179: Chart A23 | B179: =A179&"Increases in service charges" -> Chart A23 Increases in service charges | C179: Table A10

Sheet Lookup and lists
A1: Description | B1: 2013 | C1: 2014 | D1: 2015 | E1: 2016 | F1: 2017 | G1: 2018 | H1: 2019 | I1: 2020 | J1: 2021 | K1: 2022 | L1: 2023 | M1: 2024 | N1: 2025 | O1: 2026 | Q1: Lists | Y1: Grants: | Z1: National - opex | AA1: Provincial - opex | AB1: National - capex | AC1: Provincial - capex
A2: ='Template names'!C2 -> Prior year -1 | B2: =B1-2&"/"&RIGHT(B1,2)-1 -> 2011/12 | C2: 2012/13 | D2: 2013/14 | E2: 2014/15 | F2: 2015/16 | G2: 2016/17 | H2: 2017/18 | I2: 2018/19 | J2: =J1-2&"/"&RIGHT(J1,2)-1 -> 2019/20 | K2: 2020/21 | L2: 2021/22 | M2: 2022/23 | N2: 2023/24 | O2: 2024/25 | Q2: Yes | R2: <1 | S2: <4 | T2: Market | U2: Land & impr. | V2: Yes | W2: Uniform | X2: Yrs | Z2: Local Government Equitable Share | AA2: Health subsidy | AB2: Municipal Infrastructure Grant (MIG) | AC2: Agriculture
A3: ='Template names'!C3 -> Prior year -2 | B3: =B1-3&"/"&RIGHT(B1,2)-2 -> 2010/11 | C3: 2011/12 | D3: 2012/13 | E3: 2013/14 | F3: 2014/15 | G3: 2015/16 | H3: 2016/17 | I3: 2017/18 | J3: =J1-3&"/"&RIGHT(J1,2)-2 -> 2018/19 | K3: 2019/20 | L3: 2020/21 | M3: 2021/22 | N3: 2022/23 | O3: 2023/24 | Q3: No | R3: 1 | S3: 4 | T3: Dep.Replace | U3: Land only | V3: No | W3: Variable | X3: Mths | Z3: RSC Levy Replacement | AA3: Ambulance subsidy | AB3: Public Transport and Systems | AC3: Education
A4: ='Template names'!C4 -> Prior year -3 | B4: =B1-4&"/"&RIGHT(B1,2)-3 -> 2009/10 | C4: 2010/11 | D4: 2011/12 | E4: 2012/13 | F4: 2013/14 | G4: 2014/15 | H4: 2015/16 | I4: 2016/17 | J4: =J1-4&"/"&RIGHT(J1,2)-3 -> 2017/18 | K4: 2018/19 | L4: 2019/20 | M4: 2020/21 | N4: 2021/22 | O4: 2022/23 | R4: 2 | S4: 5 | T4: Other | U4: Other | Z4: Finance Management | AA4: Housing | AB4: Rural Transport Services and Infrastructure | AC4: Health
A5: ='Template names'!C5 -> Year in which budget is being prepared | B5: ="Current Year "& B1-1&"/"&RIGHT(B1,2) -> Current Year 2012/13 | C5: Current Year 2013/14 | D5: Current Year 2014/15 | E5: Current Year 2015/16 | F5: Current Year 2016/17 | G5: Current Year 2017/18 | H5: Current Year 2018/19 | I5: Current Year 2019/20 | J5: ="Current Year "& J1-1&"/"&RIGHT(J1,2) -> Current Year 2020/21 | K5: Current Year 2021/22 | L5: Current Year 2022/23 | M5: Current Year 2023/24 | N5: Current Year 2024/25 | O5: Current Year 2025/26 | R5: 3 | S5: 6 | Z5: Municipal Systems Improvement | AA5: Sport and Recreation | AB5: Regional Bulk Infrastructure | AC5: Housing and Local Government
A6: ='Template names'!C6 -> Year in which budget is being prepared | B6: =B1-1&"/"&RIGHT(B1,2) -> 2012/13 | C6: 2013/14 | D6: 2014/15 | E6: 2015/16 | F6: 2016/17 | G6: 2017/18 | H6: 2018/19 | I6: 2019/20 | J6: =J1-1&"/"&RIGHT(J1,2) -> 2020/21 | K6: 2021/22 | L6: 2022/23 | M6: 2023/24 | N6: 2024/25 | O6: 2025/26 | R6: 4 | S6: 6-10 | Z6: Water Services Operating Subsidy | AB6: Rural Households Infrastructure | AC6: Other Departments
A7: ='Template names'!C7 -> MTREF name | B7: =B1&"/"&RIGHT(B1,2)+1&" Medium Term Revenue & Expenditure Framework" -> 2013/14 Medium Term Revenue & Expenditure Framework | C7: 2014/15 Medium Term Revenue & Expenditure Framework | D7: 2015/16 Medium Term Revenue & Expenditure Framework | E7: 2016/17 Medium Term Revenue & Expenditure Framework | F7: 2017/18 Medium Term Revenue & Expenditure Framework | G7: 2018/19 Medium Term Revenue & Expenditure Framework | H7: 2019/20 Medium Term Revenue & Expenditure Framework | I7: 2020/21 Medium Term Revenue & Expenditure Framework | J7: =J1&"/"&RIGHT(J1,2)+1&" Medium Term Revenue & Expenditure Framework" -> 2021/22 Medium Term Revenue & Expenditure Framework | K7: 2022/23 Medium Term Revenue & Expenditure Framework | L7: 2023/24 Medium Term Revenue & Expenditure Framework | M7: 2024/25 Medium Term Revenue & Expenditure Framework | N7: 2025/26 Medium Term Revenue & Expenditure Framework | O7: 2026/27 Medium Term Revenue & Expenditure Framework | R7: 5 | S7: >10 | Z7: Energy Efficiency and Demand Management | AB7: Neighbourhood Development Partnership | AC7: Public Works, Roads, Transport
A8: ='Template names'!C15 -> 1st year of MTREF | B8: ="Budget Year "&B1&"/"&RIGHT(B1,2)+1 -> Budget Year 2013/14 | C8: Budget Year 2014/15 | D8: Budget Year 2015/16 | E8: Budget Year 2016/17 | F8: Budget Year 2017/18 | G8: Budget Year 2018/19 | H8: Budget Year 2019/20 | I8: Budget Year 2020/21 | J8: ="Budget Year "&J1&"/"&RIGHT(J1,2)+1 -> Budget Year 2021/22 | K8: Budget Year 2022/23 | L8: Budget Year 2023/24 | M8: Budget Year 2024/25 | N8: Budget Year 2025/26 | O8: Budget Year 2026/27 | R8: >5 | Z8: Integrated National Electrification Programme | AB8: 2010 FIFA World Cup Stadiums Development | AC8: Sport and Recreation
A9: ='Template names'!C16 -> 2nd year of MTREF | B9: ="Budget Year +1 "&B1+1&"/"&RIGHT(B1,2)+2 -> Budget Year +1 2014/15 | C9: Budget Year +1 2015/16 | D9: Budget Year +1 2016/17 | E9: Budget Year +1 2017/18 | F9: Budget Year +1 2018/19 | G9: Budget Year +1 2019/20 | H9: Budget Year +1 2020/21 | I9: Budget Year +1 2021/22 | J9: ="Budget Year +1 "&J1+1&"/"&RIGHT(J1,2)+2 -> Budget Year +1 2022/23 | K9: Budget Year +1 2023/24 | L9: Budget Year +1 2024/25 | M9: Budget Year +1 2025/26 | N9: Budget Year +1 2026/27 | O9: Budget Year +1 2027/28 | Z9: Municipal Drought Relief
A10: ='Template names'!C17 -> 3rd year of MTREF | B10: ="Budget Year +2 "&B1+2&"/"&RIGHT(B1,2)+3 -> Budget Year +2 2015/16 | C10: Budget Year +2 2016/17 | D10: Budget Year +2 2017/18 | E10: Budget Year +2 2018/19 | F10: Budget Year +2 2019/20 | G10: Budget Year +2 2020/21 | H10: Budget Year +2 2021/22 | I10: Budget Year +2 2022/23 | J10: ="Budget Year +2 "&J1+2&"/"&RIGHT(J1,2)+3 -> Budget Year +2 2023/24 | K10: Budget Year +2 2024/25 | L10: Budget Year +2 2025/26 | M10: Budget Year +2 2026/27 | N10: Budget Year +2 2027/28 | O10: Budget Year +2 2028/29 | Z10: 2010 FIFA World Cup Operating
A11: ='Template names'!C18 -> 1st yr of long term forecast | B11: ="Forecast "&B1+3&"/"&RIGHT(B1,2)+4 -> Forecast 2016/17 | C11: Forecast 2017/18 | D11: Forecast 2018/19 | E11: Forecast 2019/20 | F11: Forecast 2020/21 | G11: Forecast 2021/22 | H11: Forecast 2022/23 | I11: Forecast 2023/24 | J11: ="Forecast "&J1+3&"/"&RIGHT(J1,2)+4 -> Forecast 2024/25 | K11: Forecast 2025/26 | L11: Forecast 2026/27 | M11: Forecast 2027/28 | N11: Forecast 2028/29 | O11: Forecast 2029/30 | Z11: Electricity Demand Side Management
A12: ='Template names'!C19 -> Next yr of long term forecast | B12: ="Forecast "&B1+4&"/"&RIGHT(B1,2)+5 -> Forecast 2017/18 | C12: Forecast 2018/19 | D12: Forecast 2019/20 | E12: Forecast 2020/21 | F12: Forecast 2021/22 | G12: Forecast 2022/23 | H12: Forecast 2023/24 | I12: Forecast 2024/25 | J12: ="Forecast "&J1+4&"/"&RIGHT(J1,2)+5 -> Forecast 2025/26 | K12: Forecast 2026/27 | L12: Forecast 2027/28 | M12: Forecast 2028/29 | N12: Forecast 2029/30 | O12: Forecast 2030/31 | Z12: EPWP Incentive
A13: ='Template names'!C20 -> Next yr of long term forecast | B13: ="Forecast "&B1+5&"/"&RIGHT(B1,2)+6 -> Forecast 2018/19 | C13: Forecast 2019/20 | D13: Forecast 2020/21 | E13: Forecast 2021/22 | F13: Forecast 2022/23 | G13: Forecast 2023/24 | H13: Forecast 2024/25 | I13: Forecast 2025/26 | J13: ="Forecast "&J1+5&"/"&RIGHT(J1,2)+6 -> Forecast 2026/27 | K13: Forecast 2027/28 | L13: Forecast 2028/29 | M13: Forecast 2029/30 | N13: Forecast 2030/31 | O13: Forecast 2031/32
A14: ='Template names'!C21 -> Next yr of long term forecast | B14: ="Forecast "&B1+6&"/"&RIGHT(B1,2)+7 -> Forecast 2019/20 | C14: Forecast 2020/21 | D14: Forecast 2021/22 | E14: Forecast 2022/23 | F14: Forecast 2023/24 | G14: Forecast 2024/25 | H14: Forecast 2025/26 | I14: Forecast 2026/27 | J14: ="Forecast "&J1+6&"/"&RIGHT(J1,2)+7 -> Forecast 2027/28 | K14: Forecast 2028/29 | L14: Forecast 2029/30 | M14: Forecast 2030/31 | N14: Forecast 2031/32 | O14: Forecast 2032/33 | Z14: Asset Class | AA14: Asset sub-class old | AB14: Asset sub-class | AC14: IUDF | AD14: MTSF
A15: ='Template names'!C22 -> Next yr of long term forecast | B15: ="Forecast "&B1+7&"/"&RIGHT(B1,2)+8 -> Forecast 2020/21 | C15: Forecast 2021/22 | D15: Forecast 2022/23 | E15: Forecast 2023/24 | F15: Forecast 2024/25 | G15: Forecast 2025/26 | H15: Forecast 2026/27 | I15: Forecast 2027/28 | J15: ="Forecast "&J1+7&"/"&RIGHT(J1,2)+8 -> Forecast 2028/29 | K15: Forecast 2029/30 | L15: Forecast 2030/31 | M15: Forecast 2031/32 | N15: Forecast 2032/33 | O15: Forecast 2033/34
A16: ='Template names'!C23 -> Next yr of long term forecast | B16: ="Forecast "&B1+8&"/"&RIGHT(B1,2)+9 -> Forecast 2021/22 | C16: Forecast 2022/23 | D16: Forecast 2023/24 | E16: Forecast 2024/25 | F16: Forecast 2025/26 | G16: Forecast 2026/27 | H16: Forecast 2027/28 | I16: Forecast 2028/29 | J16: ="Forecast "&J1+8&"/"&RIGHT(J1,2)+9 -> Forecast 2029/30 | K16: Forecast 2030/31 | L16: Forecast 2031/32 | M16: Forecast 2032/33 | N16: Forecast 2033/34 | O16: Forecast 2034/35 | Z16: Roads Infrastructure | AA16: Roads, Pavements & Bridges | AB16: Roads | AC16: Spatial integration | AD16: Quality basic education
A17: ='Template names'!C24 -> Next yr of long term forecast | B17: ="Forecast "&B1+9&"/"&RIGHT(B1,2)+10 -> Forecast 2022/23 | C17: Forecast 2023/24 | D17: Forecast 2024/25 | E17: Forecast 2025/26 | F17: Forecast 2026/27 | G17: Forecast 2027/28 | H17: Forecast 2028/29 | I17: Forecast 2029/30 | J17: ="Forecast "&J1+9&"/"&RIGHT(J1,2)+10 -> Forecast 2030/31 | K17: Forecast 2031/32 | L17: Forecast 2032/33 | M17: Forecast 2033/34 | N17: Forecast 2034/35 | O17: Forecast 2035/36 | Z17: Storm water Infrastructure | AA17: Storm water | AB17: Road Structures | AC17: Inclusion and access | AD17: A long and healthy life for all South Africans
A18: ='Template names'!C25 -> Next yr of long term forecast | B18: ="Forecast "&B1+10&"/"&RIGHT(B1,2)+11 -> Forecast 2023/24 | C18: Forecast 2024/25 | D18: Forecast 2025/26 | E18: Forecast 2026/27 | F18: Forecast 2027/28 | G18: Forecast 2028/29 | H18: Forecast 2029/30 | I18: Forecast 2030/31 | J18: ="Forecast "&J1+10&"/"&RIGHT(J1,2)+11 -> Forecast 2031/32 | K18: Forecast 2032/33 | L18: Forecast 2033/34 | M18: Forecast 2034/35 | N18: Forecast 2035/36 | O18: Forecast 2036/37 | Z18: Electrical Infrastructure | AA18: Generation | AB18: Road Furniture | AC18: Growth | AD18: All people in South Africa are and feel safe
A19: ='Template names'!C26 -> Next yr of long term forecast | B19: ="Forecast "&B1+11&"/"&RIGHT(B1,2)+12 -> Forecast 2024/25 | C19: Forecast 2025/26 | D19: Forecast 2026/27 | E19: Forecast 2027/28 | F19: Forecast 2028/29 | G19: Forecast 2029/30 | H19: Forecast 2030/31 | I19: Forecast 2031/32 | J19: ="Forecast "&J1+11&"/"&RIGHT(J1,2)+12 -> Forecast 2032/33 | K19: Forecast 2033/34 | L19: Forecast 2034/35 | M19: Forecast 2035/36 | N19: Forecast 2036/37 | O19: Forecast 2037/38 | Z19: Water Supply Infrastructure | AA19: Transmission & Reticulation | AB19: Capital Spares | AC19: Governance | AD19: Decent employment through inclusive growth
A20: ='Template names'!C27 -> Next yr of long term forecast | B20: ="Forecast "&B1+12&"/"&RIGHT(B1,2)+13 -> Forecast 2025/26 | C20: Forecast 2026/27 | D20: Forecast 2027/28 | E20: Forecast 2028/29 | F20: Forecast 2029/30 | G20: Forecast 2030/31 | H20: Forecast 2031/32 | I20: Forecast 2032/33 | J20: ="Forecast "&J1+12&"/"&RIGHT(J1,2)+13 -> Forecast 2033/34 | K20: Forecast 2034/35 | L20: Forecast 2035/36 | M20: Forecast 2036/37 | N20: Forecast 2037/38 | O20: Forecast 2038/39 | Z20: Sanitation Infrastructure | AA20: Street Lighting | AB20: Drainage Collection | AD20: A skilled and capable workforce to support an inclusive growth path
A21: ='Template names'!C28 -> Next yr of long term forecast | B21: ="Forecast "&B1+13&"/"&RIGHT(B1,2)+14 -> Forecast 2026/27 | C21: Forecast 2027/28 | D21: Forecast 2028/29 | E21: Forecast 2029/30 | F21: Forecast 2030/31 | G21: Forecast 2031/32 | H21: Forecast 2032/33 | I21: Forecast 2033/34 | J21: ="Forecast "&J1+13&"/"&RIGHT(J1,2)+14 -> Forecast 2034/35 | K21: Forecast 2035/36 | L21: Forecast 2036/37 | M21: Forecast 2037/38 | N21: Forecast 2038/39 | O21: Forecast 2039/40 | Z21: Solid Waste Infrastructure | AA21: Dams & Reservoirs | AB21: Storm water Conveyance | AD21: An efficient, competitive and responsive economic infrastructure network
A22: ='Template names'!C29 -> Next yr of long term forecast | B22: ="Forecast "&B1+14&"/"&RIGHT(B1,2)+15 -> Forecast 2027/28 | C22: Forecast 2028/29 | D22: Forecast 2029/30 | E22: Forecast 2030/31 | F22: Forecast 2031/32 | G22: Forecast 2032/33 | H22: Forecast 2033/34 | I22: Forecast 2034/35 | J22: ="Forecast "&J1+14&"/"&RIGHT(J1,2)+15 -> Forecast 2035/36 | K22: Forecast 2036/37 | L22: Forecast 2037/38 | M22: Forecast 2038/39 | N22: Forecast 2039/40 | O22: Forecast 2040/41 | Z22: Rail Infrastructure | AA22: Water purification | AB22: Attenuation | AD22: Vibrant, equitable, sustainable rural communities contributing towards food security for all
A23: Adjustments Budget | B23: ="Annual target " & B1&"/"&RIGHT(B1,2)+1 -> Annual target 2013/14 | C23: Annual target 2014/15 | D23: Annual target 2015/16 | E23: Annual target 2016/17 | F23: Annual target 2017/18 | G23: Annual target 2018/19 | H23: Annual target 2019/20 | I23: Annual target 2020/21 | J23: ="Annual target " & J1&"/"&RIGHT(J1,2)+1 -> Annual target 2021/22 | K23: Annual target 2022/23 | L23: Annual target 2023/24 | M23: Annual target 2024/25 | N23: Annual target 2025/26 | O23: Annual target 2026/27 | Z23: Coastal Infrastructure | AA23: Reticulation | AB23: Power Plants | AD23: Sustainable human settlements and improved quality of household life
A24: =A23 -> Adjustments Budget | B24: ="Revised target "& B1&"/"&RIGHT(B1,2)+1 -> Revised target 2013/14 | C24: Revised target 2014/15 | D24: Revised target 2015/16 | E24: Revised target 2016/17 | F24: Revised target 2017/18 | G24: Revised target 2018/19 | H24: Revised target 2019/20 | I24: Revised target 2020/21 | J24: ="Revised target "& J1&"/"&RIGHT(J1,2)+1 -> Revised target 2021/22 | K24: Revised target 2022/23 | L24: Revised target 2023/24 | M24: Revised target 2024/25 | N24: Revised target 2025/26 | O24: Revised target 2026/27 | Z24: Information and Communication Infrastructure | AA24: Sewerage purification | AB24: HV Substations | AD24: Responsive, accountable, effective and efficient local government
A25: NOTE: This sheet should not be directly amended - select headings from sheet 'S' | Z25: Community Facilities | AA25: Waste Management | AB25: HV Switching Station | AD25: Protect and enhance our environmental assets and natural resources
Z26: Sport and Recreation Facilities | AA26: Transportation | AB26: HV Transmission Conductors | AD26: Create a better South Africa and contribute to a better Africa and a better world
A27: Name link | B27: 1 | Z27: Heritage assets | AA27: Gas | AB27: MV Substations | AD27: An efficient, effective and development-oriented public service
A28: Name of Muni | B28: =INDEX(B29:B307,B27,1) -> Choose name from list | Z28: Revenue Generating | AA28: Parks & gardens | AB28: MV Switching Stations | AD28: A comprehensive, responsive and sustainable social protection system
B29: Choose name from list | C29: Set name on 'Instructions' sheet | Z29: Non-revenue Generating | AA29: Sportsfields & stadia | AB29: MV Networks | AD29: A diverse, socially cohesive society with a common national identity
B30: BUF Buffalo City | C30: EC EASTERN CAPE | Z30: Operational Buildings | AA30: Swimming pools | AB30: LV Networks
B31: NMA Nelson Mandela Bay | C31: EC EASTERN CAPE | Z31: Housing | AA31: Community halls | AB31: Capital Spares
B32: EC101 Dr Beyers Naude | C32: EC EASTERN CAPE | Z32: Biological or Cultivated Assets | AA32: Libraries | AB32: Dams and Weirs
B33: EC102 Blue Crane Route | C33: EC EASTERN CAPE | Z33: Servitudes | AA33: Recreational facilities | AB33: Boreholes
B34: EC104 Makana | C34: EC EASTERN CAPE | Z34: Licences and Rights | AA34: Fire, safety & emergency | AB34: Reservoirs
B35: EC105 Ndlambe | C35: EC EASTERN CAPE | Z35: Computer Equipment | AA35: Security and policing | AB35: Pump Stations
B36: EC106 Sundays River Valley | C36: EC EASTERN CAPE | Z36: Furniture and Office Equipment | AA36: Buses | AB36: Water Treatment Works
B37: EC108 Kouga | C37: EC EASTERN CAPE | Z37: Machinery and Equipment | AA37: Clinics | AB37: Bulk Mains
B38: EC109 Kou-Kamma | C38: EC EASTERN CAPE | Z38: Transport Assets | AA38: Museums & Art Galleries | AB38: Distribution
B39: DC10 Sarah Baartman | C39: EC EASTERN CAPE | Z39: Land | AA39: Cemeteries | AB39: Distribution Points
B40: EC121 Mbhashe | C40: EC EASTERN CAPE | Z40: Zoo's, Marine and Non-biological Animals | AA40: Social rental housing | AB40: PRV Stations
B41: EC122 Mnquma | C41: EC EASTERN CAPE | AA41: Buildings | AB41: Capital Spares
B42: EC123 Great Kei | C42: EC EASTERN CAPE | AA42: Housing development | AB42: Pump Station
B43: EC124 Amahlathi | C43: EC EASTERN CAPE | AA43: General vehicles | AB43: Reticulation
B44: EC126 Ngqushwa | C44: EC EASTERN CAPE | AA44: Specialised vehicles - Refuse | AB44: Waste Water Treatment Works
B45: EC129 Raymond Mhlaba | C45: EC EASTERN CAPE | AA45: Specialised vehicles - Fire | AB45: Outfall Sewers
B46: DC12 Amathole | C46: EC EASTERN CAPE | AA46: Specialised vehicles - Conservancy | AB46: Toilet Facilities
B47: EC131 Inxuba Yethemba | C47: EC EASTERN CAPE | AA47: Specialised vehicles - Ambulances | AB47: Capital Spares
B48: EC135 Intsika Yethu | C48: EC EASTERN CAPE | AA48: Plant & equipment | AB48: Landfill Sites
B49: EC136 Emalahleni (Ec) | C49: EC EASTERN CAPE | AA49: Computers - hardware/equipment | AB49: Waste Transfer Stations
B50: EC137 Engcobo | C50: EC EASTERN CAPE | AA50: Furniture and other office equipment | AB50: Waste Processing Facilities
B51: EC138 Sakhisizwe | C51: EC EASTERN CAPE | AA51: Abattoirs | AB51: Waste Drop-off Points
B52: EC139 Enoch Mgijima | C52: EC EASTERN CAPE | AA52: Markets | AB52: Waste Separation Facilities
B53: DC13 Chris Hani | C53: EC EASTERN CAPE | AA53: Civic Land and Buildings | AB53: Electricity Generation Facilities
B54: EC141 Elundini | C54: EC EASTERN CAPE | AA54: Other Buildings | AB54: Capital Spares
B55: EC142 Senqu | C55: EC EASTERN CAPE | AA55: Other Land | AB55: Rail Lines
B56: EC145 Walter Sisulu | C56: EC EASTERN CAPE | AA56: Surplus Assets - (Investment or Inventory) | AB56: Rail Structures
B57: DC14 Joe Gqabi | C57: EC EASTERN CAPE | AA57: Computers - software & programming | AB57: Rail Furniture
B58: EC153 Ngquza Hills | C58: EC EASTERN CAPE | AA58: Other | AB58: Drainage Collection
B59: EC154 Port St Johns | C59: EC EASTERN CAPE | AB59: Storm water Conveyance
B60: EC155 Nyandeni | C60: EC EASTERN CAPE | Z60: SA16 - Investments | AB60: Attenuation
B61: EC156 Mhlontlo | C61: EC EASTERN CAPE | Z61: Security | AA61: Interest rate | AB61: MV Substations
B62: EC157 King Sabata Dalindyebo | C62: EC EASTERN CAPE | Z62: Yes | AA62: Fixed | AB62: LV Networks
B63: DC15 O .R. Tambo | C63: EC EASTERN CAPE | Z63: No | AA63: Variable | AB63: Capital Spares
B64: EC441 Matatiele | C64: EC EASTERN CAPE | AB64: Sand Pumps
B65: EC442 Umzimvubu | C65: EC EASTERN CAPE | AB65: Piers
B66: EC443 Winnie Madikizela Mandela | C66: EC EASTERN CAPE | Z66: SA36, SA37 - Capital projects | AB66: Revetments
B67: EC444 Ntabankulu | C67: EC EASTERN CAPE | Z67: Yes | AB67: Promenades
B68: DC44 Alfred Nzo | C68: EC EASTERN CAPE | Z68: No | AB68: Capital Spares
B69: MAN Mangaung | C69: FS FREE STATE | AB69: Data Centres
B70: FS161 Letsemeng | C70: FS FREE STATE | AB70: Core Layers
B71: FS162 Kopanong | C71: FS FREE STATE | AB71: Distribution Layers
B72: FS163 Mohokare | C72: FS FREE STATE | AB72: Capital Spares
B73: DC16 Xhariep | C73: FS FREE STATE | AB73: Halls
B74: FS181 Masilonyana | C74: FS FREE STATE | AB74: Centres
B75: FS182 Tokologo | C75: FS FREE STATE | AB75: Crèches
B76: FS183 Tswelopele | C76: FS FREE STATE | AB76: Clinics/Care Centres
B77: FS184 Matjhabeng | C77: FS FREE STATE | AB77: Fire/Ambulance Stations
B78: FS185 Nala | C78: FS FREE STATE | AB78: Testing Stations
B79: DC18 Lejweleputswa | C79: FS FREE STATE | AB79: Museums
B80: FS191 Setsoto | C80: FS FREE STATE | AB80: Galleries
B81: FS192 Dihlabeng | C81: FS FREE STATE | AB81: Theatres
B82: FS193 Nketoana | C82: FS FREE STATE | AB82: Libraries
B83: FS194 Maluti-a-Phofung | C83: FS FREE STATE | AB83: Cemeteries/Crematoria
B84: FS195 Phumelela | C84: FS FREE STATE | AB84: Police
B85: FS196 Mantsopa | C85: FS FREE STATE | AB85: Purls
B86: DC19 Thabo Mofutsanyana | C86: FS FREE STATE | AB86: Public Open Space
B87: FS201 Moqhaka | C87: FS FREE STATE | AB87: Nature Reserves
B88: FS203 Ngwathe | C88: FS FREE STATE | AB88: Public Ablution Facilities
B89: FS204 Metsimaholo | C89: FS FREE STATE | AB89: Markets
B90: FS205 Mafube | C90: FS FREE STATE | AB90: Stalls
B91: DC20 Fezile Dabi | C91: FS FREE STATE | AB91: Abattoirs
B92: EKU City of Ekurhuleni | C92: GT GAUTENG | AB92: Airports
B93: JHB City Of Johannesburg | C93: GT GAUTENG | AB93: Taxi Ranks/Bus Terminals
B94: TSH City Of Tshwane | C94: GT GAUTENG | AB94: Capital Spares
B95: GT421 Emfuleni | C95: GT GAUTENG | AB95: Indoor Facilities
B96: GT422 Midvaal | C96: GT GAUTENG | AB96: Outdoor Facilities
B97: GT423 Lesedi | C97: GT GAUTENG | AB97: Capital Spares
B98: DC42 Sedibeng | C98: GT GAUTENG | AB98: Monuments
B99: GT481 Mogale City | C99: GT GAUTENG | AB99: Historic Buildings
B100: GT484 Merafong City | C100: GT GAUTENG | AB100: Works of Art
B101: GT485 Rand West City | C101: GT GAUTENG | AB101: Conservation Areas
B102: DC48 West Rand | C102: GT GAUTENG | AB102: Other Heritage
B103: ETH eThekwini | C103: KZN KWAZULU-NATAL | AB103: Improved Property
B104: KZN212 Umdoni | C104: KZN KWAZULU-NATAL | AB104: Unimproved Property
B105: KZN213 Umzumbe | C105: KZN KWAZULU-NATAL | AB105: Municipal Offices
B106: KZN214 uMuziwabantu | C106: KZN KWAZULU-NATAL | AB106: Pay/Enquiry Points
B107: KZN216 Ray Nkonyeni | C107: KZN KWAZULU-NATAL | AB107: Building Plan Offices
B108: DC21 Ugu | C108: KZN KWAZULU-NATAL | AB108: Workshops
B109: KZN221 uMshwathi | C109: KZN KWAZULU-NATAL | AB109: Yards
B110: KZN222 uMngeni | C110: KZN KWAZULU-NATAL | AB110: Stores
B111: KZN223 Mpofana | C111: KZN KWAZULU-NATAL | AB111: Laboratories
B112: KZN224 Impendle | C112: KZN KWAZULU-NATAL | AB112: Training Centres
B113: KZN225 Msunduzi | C113: KZN KWAZULU-NATAL | AB113: Manufacturing Plant
B114: KZN226 Mkhambathini | C114: KZN KWAZULU-NATAL | AB114: Depots
B115: KZN227 Richmond | C115: KZN KWAZULU-NATAL | AB115: Capital Spares
B116: DC22 uMgungundlovu | C116: KZN KWAZULU-NATAL | AB116: Staff Housing
B117: KZN235 Okhahlamba | C117: KZN KWAZULU-NATAL | AB117: Social Housing
B118: KZN237 Inkosi Langalibalele | C118: KZN KWAZULU-NATAL | AB118: Capital Spares
B119: KZN238 Alfred Duma | C119: KZN KWAZULU-NATAL | AB119: Water Rights
B120: DC23 Uthukela | C120: KZN KWAZULU-NATAL | AB120: Effluent Licenses
B121: KZN241 Endumeni | C121: KZN KWAZULU-NATAL | AB121: Solid Waste Licenses
B122: KZN242 Nquthu | C122: KZN KWAZULU-NATAL | AB122: Computer Software and Applications
B123: KZN244 Msinga | C123: KZN KWAZULU-NATAL | AB123: Load Settlement Software Applications
B124: KZN245 Umvoti | C124: KZN KWAZULU-NATAL | AB124: Unspecified
B125: DC24 Umzinyathi | C125: KZN KWAZULU-NATAL
B126: KZN252 Newcastle | C126: KZN KWAZULU-NATAL
B127: KZN253 Emadlangeni | C127: KZN KWAZULU-NATAL
B128: KZN254 Dannhauser | C128: KZN KWAZULU-NATAL
B129: DC25 Amajuba | C129: KZN KWAZULU-NATAL
B130: KZN261 eDumbe | C130: KZN KWAZULU-NATAL
B131: KZN262 uPhongolo | C131: KZN KWAZULU-NATAL
B132: KZN263 Abaqulusi | C132: KZN KWAZULU-NATAL
B133: KZN265 Nongoma | C133: KZN KWAZULU-NATAL
B134: KZN266 Ulundi | C134: KZN KWAZULU-NATAL
B135: DC26 Zululand | C135: KZN KWAZULU-NATAL
B136: KZN271 Umhlabuyalingana | C136: KZN KWAZULU-NATAL
B137: KZN272 Jozini | C137: KZN KWAZULU-NATAL
B138: KZN275 Mtubatuba | C138: KZN KWAZULU-NATAL
B139: KZN276 Hlabisa Big Five | C139: KZN KWAZULU-NATAL
B140: DC27 Umkhanyakude | C140: KZN KWAZULU-NATAL
B141: KZN281 Mfolozi | C141: KZN KWAZULU-NATAL
B142: KZN282 uMhlathuze | C142: KZN KWAZULU-NATAL
B143: KZN284 uMlalazi | C143: KZN KWAZULU-NATAL
B144: KZN285 Mthonjaneni | C144: KZN KWAZULU-NATAL
B145: KZN286 Nkandla | C145: KZN KWAZULU-NATAL
B146: DC28 King Cetshwayo | C146: KZN KWAZULU-NATAL
B147: KZN291 Mandeni | C147: KZN KWAZULU-NATAL
B148: KZN292 KwaDukuza | C148: KZN KWAZULU-NATAL
B149: KZN293 Ndwedwe | C149: KZN KWAZULU-NATAL
B150: KZN294 Maphumulo | C150: KZN KWAZULU-NATAL
B151: DC29 iLembe | C151: KZN KWAZULU-NATAL
B152: KZN433 Greater Kokstad | C152: KZN KWAZULU-NATAL
B153: KZN434 Johannes Phumani Phungula | C153: KZN KWAZULU-NATAL
B154: KZN435 Umzimkhulu | C154: KZN KWAZULU-NATAL
B155: KZN436 Dr Nkosazana Dlamini Zuma | C155: KZN KWAZULU-NATAL
B156: DC43 Harry Gwala | C156: KZN KWAZULU-NATAL
B157: LIM331 Greater Giyani | C157: LIM LIMPOPO
B158: LIM332 Greater Letaba | C158: LIM LIMPOPO
B159: LIM333 Greater Tzaneen | C159: LIM LIMPOPO
B160: LIM334 Ba-Phalaborwa | C160: LIM LIMPOPO
B161: LIM335 Maruleng | C161: LIM LIMPOPO
B162: DC33 Mopani | C162: LIM LIMPOPO
B163: LIM341 Musina | C163: LIM LIMPOPO
B164: LIM343 Thulamela | C164: LIM LIMPOPO
B165: LIM344 Makhado | C165: LIM LIMPOPO
B166: LIM345 Collins Chabane | C166: LIM LIMPOPO
B167: DC34 Vhembe | C167: LIM LIMPOPO
B168: LIM351 Blouberg | C168: LIM LIMPOPO
B169: LIM353 Molemole | C169: LIM LIMPOPO
B170: LIM354 Polokwane | C170: LIM LIMPOPO
B171: LIM355 Lepelle-Nkumpi | C171: LIM LIMPOPO
B172: DC35 Capricorn | C172: LIM LIMPOPO
B173: LIM361 Thabazimbi | C173: LIM LIMPOPO
B174: LIM362 Lephalale | C174: LIM LIMPOPO
B175: LIM366 Bela Bela | C175: LIM LIMPOPO
B176: LIM367 Mogalakwena | C176: LIM LIMPOPO
B177: LIM368 Modimolle-Mookgopong | C177: LIM LIMPOPO
B178: DC36 Waterberg | C178: LIM LIMPOPO
B179: LIM471 Ephraim Mogale | C179: LIM LIMPOPO
B180: LIM472 Elias Motsoaledi | C180: LIM LIMPOPO
B181: LIM473 Makhuduthamaga | C181: LIM LIMPOPO
B182: LIM476 Tubatse Fetakgomo | C182: LIM LIMPOPO
B183: DC47 Sekhukhune | C183: LIM LIMPOPO
B184: MP301 Albert Luthuli | C184: MP MPUMALANGA
B185: MP302 Msukaligwa | C185: MP MPUMALANGA
B186: MP303 Mkhondo | C186: MP MPUMALANGA
B187: MP304 Pixley Ka Seme (MP) | C187: MP MPUMALANGA
B188: MP305 Lekwa | C188: MP MPUMALANGA
B189: MP306 Dipaleseng | C189: MP MPUMALANGA
B190: MP307 Govan Mbeki | C190: MP MPUMALANGA
B191: DC30 Gert Sibande | C191: MP MPUMALANGA
B192: MP311 Victor Khanye | C192: MP MPUMALANGA
B193: MP312 Emalahleni (Mp) | C193: MP MPUMALANGA
B194: MP313 Steve Tshwete | C194: MP MPUMALANGA
B195: MP314 Emakhazeni | C195: MP MPUMALANGA
B196: MP315 Thembisile Hani | C196: MP MPUMALANGA
B197: MP316 Dr J.S. Moroka | C197: MP MPUMALANGA
B198: DC31 Nkangala | C198: MP MPUMALANGA
B199: MP321 Thaba Chweu | C199: MP MPUMALANGA
B200: MP324 Nkomazi | C200: MP MPUMALANGA
... 87 more rows

Sheet Org structure
A1: Organisational Structure Votes | C1: Organisational Structure Sub-Votes | E1: Display Sub-Votes
A2: =B2&" - "&C2 -> Vote 1 - Office of Municipal Manager | B2: Vote 1 | C2: Office of Municipal Manager
A3: =B13&" - "& C13 -> Vote 2 - Budget and Treasury | B3: 1.1 | C3: [Name of sub-vote] | D3: =CONCATENATE(B3, " - ", C3) -> 1,1 - [Name of sub-vote] | E3: 1.1 - [Name of sub-vote]
A4: =B24&" - "&C24 -> Vote 3 - Corporate Services | B4: 1.2 | C4: [Name of sub-vote] | D4: 1.2 - [Name of sub-vote]
A5: =B35&" - "&C35 -> Vote 4 - Social Service | B5: 1.3 | C5: [Name of sub-vote] | D5: 1.3 - [Name of sub-vote]
A6: =B46&" - "&C46 -> Vote 5 - Technical and Engineering Services | B6: 1.4 | C6: [Name of sub-vote] | D6: 1.4 - [Name of sub-vote]
A7: =B57&" - "&C57 -> Vote 6 - Property, Planning & Development | B7: 1.5 | C7: [Name of sub-vote] | D7: 1.5 - [Name of sub-vote]
A8: =B68&" - "&C68 -> Vote 7 - Office of the Mayor/Strategic Office | B8: 1.6 | C8: [Name of sub-vote] | D8: 1.6 - [Name of sub-vote]
A9: =B79&" - "&C79 -> Vote 8 - COMMUNITY & SOCIAL SERVICES | B9: 1.7 | C9: [Name of sub-vote] | D9: 1.7 - [Name of sub-vote]
A10: =B90&" - "&C90 -> Vote 9 - [NAME OF VOTE 9] | B10: 1.8 | C10: [Name of sub-vote] | D10: 1.8 - [Name of sub-vote]
A11: =B101&" - "&C101 -> Vote 10 - [NAME OF VOTE 10] | B11: 1.9 | C11: [Name of sub-vote] | D11: 1.9 - [Name of sub-vote]
A12: =B112&" - "&C112 -> Vote 11 - [NAME OF VOTE 11] | B12: 1.10 | C12: [Name of sub-vote] | D12: 1.10 - [Name of sub-vote]
A13: =B123&" - "&C123 -> Vote 12 - [NAME OF VOTE 12] | B13: Vote 2 | C13: Budget and Treasury
A14: =B134&" - "&C134 -> Vote 13 - [NAME OF VOTE 13] | B14: 2.1 | C14: [Name of sub-vote] | D14: =CONCATENATE(B14, " - ", C14) -> 2.1 - [Name of sub-vote] | E14: 2.1 - [Name of sub-vote]
A15: =B145&" - "&C145 -> Vote 14 - [NAME OF VOTE 14] | B15: 2.2 | C15: [Name of sub-vote] | D15: 2.2 - [Name of sub-vote]
A16: =B156&" - "&C156 -> Vote 15 - [NAME OF VOTE 15] | B16: 2.3 | C16: [Name of sub-vote] | D16: 2.3 - [Name of sub-vote]
B17: 2.4 | C17: [Name of sub-vote] | D17: 2.4 - [Name of sub-vote]
B18: 2.5 | C18: [Name of sub-vote] | D18: 2.5 - [Name of sub-vote]
B19: 2.6 | C19: [Name of sub-vote] | D19: 2.6 - [Name of sub-vote]
B20: 2.7 | C20: [Name of sub-vote] | D20: 2.7 - [Name of sub-vote]
B21: 2.8 | C21: [Name of sub-vote] | D21: 2.8 - [Name of sub-vote]
B22: 2.9 | C22: [Name of sub-vote] | D22: 2.9 - [Name of sub-vote]
B23: 2.10 | C23: [Name of sub-vote] | D23: 2.10 - [Name of sub-vote]
B24: Vote 3 | C24: Corporate Services
B25: 3.1 | C25: [Name of sub-vote] | D25: =CONCATENATE(B25, " - ", C25) -> 3.1 - [Name of sub-vote] | E25: 3.1 - [Name of sub-vote]
B26: 3.2 | C26: [Name of sub-vote] | D26: 3.2 - [Name of sub-vote]
B27: 3.3 | C27: [Name of sub-vote] | D27: 3.3 - [Name of sub-vote]
B28: 3.4 | C28: [Name of sub-vote] | D28: 3.4 - [Name of sub-vote]
B29: 3.5 | C29: [Name of sub-vote] | D29: 3.5 - [Name of sub-vote]
B30: 3.6 | C30: [Name of sub-vote] | D30: 3.6 - [Name of sub-vote]
B31: 3.7 | C31: [Name of sub-vote] | D31: 3.7 - [Name of sub-vote]
B32: 3.8 | C32: [Name of sub-vote] | D32: 3.8 - [Name of sub-vote]
B33: 3.9 | C33: [Name of sub-vote] | D33: 3.9 - [Name of sub-vote]
B34: 3.10 | C34: [Name of sub-vote] | D34: 3.10 - [Name of sub-vote]
B35: Vote 4 | C35: Social Service
B36: 4.1 | C36: [Name of sub-vote] | D36: =CONCATENATE(B36, " - ", C36) -> 4.1 - [Name of sub-vote] | E36: 4.1 - [Name of sub-vote]
B37: 4.2 | C37: [Name of sub-vote] | D37: 4.2 - [Name of sub-vote]
B38: 4.3 | C38: [Name of sub-vote] | D38: 4.3 - [Name of sub-vote]
B39: 4.4 | C39: [Name of sub-vote] | D39: 4.4 - [Name of sub-vote]
B40: 4.5 | C40: [Name of sub-vote] | D40: 4.5 - [Name of sub-vote]
B41: 4.6 | C41: [Name of sub-vote] | D41: 4.6 - [Name of sub-vote]
B42: 4.7 | C42: [Name of sub-vote] | D42: 4.7 - [Name of sub-vote]
B43: 4.8 | C43: [Name of sub-vote] | D43: 4.8 - [Name of sub-vote]
B44: 4.9 | C44: [Name of sub-vote] | D44: 4.9 - [Name of sub-vote]
B45: 4.10 | C45: [Name of sub-vote] | D45: 4.10 - [Name of sub-vote]
B46: Vote 5 | C46: Technical and Engineering Services
B47: 5.1 | C47: [Name of sub-vote] | D47: =CONCATENATE(B47, " - ", C47) -> 5.1 - [Name of sub-vote] | E47: 5.1 - [Name of sub-vote]
B48: 5.2 | C48: [Name of sub-vote] | D48: 5.2 - [Name of sub-vote]
B49: 5.3 | C49: [Name of sub-vote] | D49: 5.3 - [Name of sub-vote]
B50: 5.4 | C50: [Name of sub-vote] | D50: 5.4 - [Name of sub-vote]
B51: 5.5 | C51: [Name of sub-vote] | D51: 5.5 - [Name of sub-vote]
B52: 5.6 | C52: [Name of sub-vote] | D52: 5.6 - [Name of sub-vote]
B53: 5.7 | C53: [Name of sub-vote] | D53: 5.7 - [Name of sub-vote]
B54: 5.8 | C54: [Name of sub-vote] | D54: 5.8 - [Name of sub-vote]
B55: 5.9 | C55: [Name of sub-vote] | D55: 5.9 - [Name of sub-vote]
B56: 5.10 | C56: [Name of sub-vote] | D56: 5.10 - [Name of sub-vote]
B57: Vote 6 | C57: Property, Planning & Development
B58: 6.1 | C58: [Name of sub-vote] | D58: =CONCATENATE(B58, " - ", C58) -> 6.1 - [Name of sub-vote] | E58: 6.1 - [Name of sub-vote]
B59: 6.2 | C59: [Name of sub-vote] | D59: 6.2 - [Name of sub-vote]
B60: 6.3 | C60: [Name of sub-vote] | D60: 6.3 - [Name of sub-vote]
B61: 6.4 | C61: [Name of sub-vote] | D61: 6.4 - [Name of sub-vote]
B62: 6.5 | C62: [Name of sub-vote] | D62: 6.5 - [Name of sub-vote]
B63: 6.6 | C63: [Name of sub-vote] | D63: 6.6 - [Name of sub-vote]
B64: 6.7 | C64: [Name of sub-vote] | D64: 6.7 - [Name of sub-vote]
B65: 6.8 | C65: [Name of sub-vote] | D65: 6.8 - [Name of sub-vote]
B66: 6.9 | C66: [Name of sub-vote] | D66: 6.9 - [Name of sub-vote]
B67: 6.10 | C67: [Name of sub-vote] | D67: 6.10 - [Name of sub-vote]
B68: Vote 7 | C68: Office of the Mayor/Strategic Office
B69: 7.1 | C69: [Name of sub-vote] | D69: =CONCATENATE(B69, " - ", C69) -> 7.1 - [Name of sub-vote] | E69: 7.1 - [Name of sub-vote]
B70: 7.2 | C70: [Name of sub-vote] | D70: 7.2 - [Name of sub-vote]
B71: 7.3 | C71: [Name of sub-vote] | D71: 7.3 - [Name of sub-vote]
B72: 7.4 | C72: [Name of sub-vote] | D72: 7.4 - [Name of sub-vote]
B73: 7.5 | C73: [Name of sub-vote] | D73: 7.5 - [Name of sub-vote]
B74: 7.6 | C74: [Name of sub-vote] | D74: 7.6 - [Name of sub-vote]
B75: 7.7 | C75: [Name of sub-vote] | D75: 7.7 - [Name of sub-vote]
B76: 7.8 | C76: [Name of sub-vote] | D76: 7.8 - [Name of sub-vote]
B77: 7.9 | C77: [Name of sub-vote] | D77: 7.9 - [Name of sub-vote]
B78: 7.10 | C78: [Name of sub-vote] | D78: 7.10 - [Name of sub-vote]
B79: Vote 8 | C79: COMMUNITY & SOCIAL SERVICES
B80: 8.1 | C80: [Name of sub-vote] | D80: =CONCATENATE(B80, " - ", C80) -> 8.1 - [Name of sub-vote] | E80: 8.1 - [Name of sub-vote]
B81: 8.2 | C81: [Name of sub-vote] | D81: 8.2 - [Name of sub-vote]
B82: 8.3 | C82: [Name of sub-vote] | D82: 8.3 - [Name of sub-vote]
B83: 8.4 | C83: [Name of sub-vote] | D83: 8.4 - [Name of sub-vote]
B84: 8.5 | C84: [Name of sub-vote] | D84: 8.5 - [Name of sub-vote]
B85: 8.6 | C85: [Name of sub-vote] | D85: 8.6 - [Name of sub-vote]
B86: 8.7 | C86: [Name of sub-vote] | D86: 8.7 - [Name of sub-vote]
B87: 8.8 | C87: [Name of sub-vote] | D87: 8.8 - [Name of sub-vote]
B88: 8.9 | C88: [Name of sub-vote] | D88: 8.9 - [Name of sub-vote]
B89: 8.10 | C89: [Name of sub-vote] | D89: 8.10 - [Name of sub-vote]
B90: Vote 9 | C90: [NAME OF VOTE 9]
B91: 9.1 | C91: [Name of sub-vote] | D91: =CONCATENATE(B91, " - ", C91) -> 9.1 - [Name of sub-vote] | E91: 9.1 - [Name of sub-vote]
B92: 9.2 | C92: [Name of sub-vote] | D92: 9.2 - [Name of sub-vote]
B93: 9.3 | C93: [Name of sub-vote] | D93: 9.3 - [Name of sub-vote]
B94: 9.4 | C94: [Name of sub-vote] | D94: 9.4 - [Name of sub-vote]
B95: 9.5 | C95: [Name of sub-vote] | D95: 9.5 - [Name of sub-vote]
B96: 9.6 | C96: [Name of sub-vote] | D96: 9.6 - [Name of sub-vote]
B97: 9.7 | C97: [Name of sub-vote] | D97: 9.7 - [Name of sub-vote]
B98: 9.8 | C98: [Name of sub-vote] | D98: 9.8 - [Name of sub-vote]
B99: 9.9 | C99: [Name of sub-vote] | D99: 9.9 - [Name of sub-vote]
B100: 9.10 | C100: [Name of sub-vote] | D100: 9.10 - [Name of sub-vote]
B101: Vote 10 | C101: [NAME OF VOTE 10]
B102: 10.1 | C102: [Name of sub-vote] | D102: =CONCATENATE(B102, " - ", C102) -> 10.1 - [Name of sub-vote] | E102: 10.1 - [Name of sub-vote]
B103: 10.2 | C103: [Name of sub-vote] | D103: 10.2 - [Name of sub-vote]
B104: 10.3 | C104: [Name of sub-vote] | D104: 10.3 - [Name of sub-vote]
B105: 10.4 | C105: [Name of sub-vote] | D105: 10.4 - [Name of sub-vote]
B106: 10.5 | C106: [Name of sub-vote] | D106: 10.5 - [Name of sub-vote]
B107: 10.6 | C107: [Name of sub-vote] | D107: 10.6 - [Name of sub-vote]
B108: 10.7 | C108: [Name of sub-vote] | D108: 10.7 - [Name of sub-vote]
B109: 10.8 | C109: [Name of sub-vote] | D109: 10.8 - [Name of sub-vote]
B110: 10.9 | C110: [Name of sub-vote] | D110: 10.9 - [Name of sub-vote]
B111: 10.10 | C111: [Name of sub-vote] | D111: 10.10 - [Name of sub-vote]
B112: Vote 11 | C112: [NAME OF VOTE 11]
B113: 11.1 | C113: [Name of sub-vote] | D113: =CONCATENATE(B113, " - ", C113) -> 11.1 - [Name of sub-vote] | E113: 11.1 - [Name of sub-vote]
B114: 11.2 | C114: [Name of sub-vote] | D114: 11.2 - [Name of sub-vote]
B115: 11.3 | C115: [Name of sub-vote] | D115: 11.3 - [Name of sub-vote]
B116: 11.4 | C116: [Name of sub-vote] | D116: 11.4 - [Name of sub-vote]
B117: 11.5 | C117: [Name of sub-vote] | D117: 11.5 - [Name of sub-vote]
B118: 11.6 | C118: [Name of sub-vote] | D118: 11.6 - [Name of sub-vote]
B119: 11.7 | C119: [Name of sub-vote] | D119: 11.7 - [Name of sub-vote]
B120: 11.8 | C120: [Name of sub-vote] | D120: 11.8 - [Name of sub-vote]
B121: 11.9 | C121: [Name of sub-vote] | D121: 11.9 - [Name of sub-vote]
B122: 11.10 | C122: [Name of sub-vote] | D122: 11.10 - [Name of sub-vote]
B123: Vote 12 | C123: [NAME OF VOTE 12]
B124: 12.1 | C124: [Name of sub-vote] | D124: =CONCATENATE(B124, " - ", C124) -> 12.1 - [Name of sub-vote] | E124: 12.1 - [Name of sub-vote]
B125: 12.2 | C125: [Name of sub-vote] | D125: 12.2 - [Name of sub-vote]
B126: 12.3 | C126: [Name of sub-vote] | D126: 12.3 - [Name of sub-vote]
B127: 12.4 | C127: [Name of sub-vote] | D127: 12.4 - [Name of sub-vote]
B128: 12.5 | C128: [Name of sub-vote] | D128: 12.5 - [Name of sub-vote]
B129: 12.6 | C129: [Name of sub-vote] | D129: 12.6 - [Name of sub-vote]
B130: 12.7 | C130: [Name of sub-vote] | D130: 12.7 - [Name of sub-vote]
B131: 12.8 | C131: [Name of sub-vote] | D131: 12.8 - [Name of sub-vote]
B132: 12.9 | C132: [Name of sub-vote] | D132: 12.9 - [Name of sub-vote]
B133: 12.10 | C133: [Name of sub-vote] | D133: 12.10 - [Name of sub-vote]
B134: Vote 13 | C134: [NAME OF VOTE 13]
B135: 13.1 | C135: [Name of sub-vote] | D135: =CONCATENATE(B135, " - ", C135) -> 13.1 - [Name of sub-vote] | E135: 13.1 - [Name of sub-vote]
B136: 13.2 | C136: [Name of sub-vote] | D136: 13.2 - [Name of sub-vote]
B137: 13.3 | C137: [Name of sub-vote] | D137: 13.3 - [Name of sub-vote]
B138: 13.4 | C138: [Name of sub-vote] | D138: 13.4 - [Name of sub-vote]
B139: 13.5 | C139: [Name of sub-vote] | D139: 13.5 - [Name of sub-vote]
B140: 13.6 | C140: [Name of sub-vote] | D140: 13.6 - [Name of sub-vote]
B141: 13.7 | C141: [Name of sub-vote] | D141: 13.7 - [Name of sub-vote]
B142: 13.8 | C142: [Name of sub-vote] | D142: 13.8 - [Name of sub-vote]
B143: 13.9 | C143: [Name of sub-vote] | D143: 13.9 - [Name of sub-vote]
B144: 13.10 | C144: [Name of sub-vote] | D144: 13.10 - [Name of sub-vote]
B145: Vote 14 | C145: [NAME OF VOTE 14]
B146: 14.1 | C146: [Name of sub-vote] | D146: =CONCATENATE(B146, " - ", C146) -> 14.1 - [Name of sub-vote] | E146: 14.1 - [Name of sub-vote]
B147: 14.2 | C147: [Name of sub-vote] | D147: 14.2 - [Name of sub-vote]
B148: 14.3 | C148: [Name of sub-vote] | D148: 14.3 - [Name of sub-vote]
B149: 14.4 | C149: [Name of sub-vote] | D149: 14.4 - [Name of sub-vote]
B150: 14.5 | C150: [Name of sub-vote] | D150: 14.5 - [Name of sub-vote]
B151: 14.6 | C151: [Name of sub-vote] | D151: 14.6 - [Name of sub-vote]
B152: 14.7 | C152: [Name of sub-vote] | D152: 14.7 - [Name of sub-vote]
B153: 14.8 | C153: [Name of sub-vote] | D153: 14.8 - [Name of sub-vote]
B154: 14.9 | C154: [Name of sub-vote] | D154: 14.9 - [Name of sub-vote]
B155: 14.10 | C155: [Name of sub-vote] | D155: 14.10 - [Name of sub-vote]
B156: Vote 15 | C156: [NAME OF VOTE 15]
B157: 15.1 | C157: [Name of sub-vote] | D157: =CONCATENATE(B157, " - ", C157) -> 15.1 - [Name of sub-vote] | E157: 15.1 - [Name of sub-vote]
B158: 15.2 | C158: [Name of sub-vote] | D158: 15.2 - [Name of sub-vote]
B159: 15.3 | C159: [Name of sub-vote] | D159: 15.3 - [Name of sub-vote]
B160: 15.4 | C160: [Name of sub-vote] | D160: 15.4 - [Name of sub-vote]
B161: 15.5 | C161: [Name of sub-vote] | D161: 15.5 - [Name of sub-vote]
B162: 15.6 | C162: [Name of sub-vote] | D162: 15.6 - [Name of sub-vote]
B163: 15.7 | C163: [Name of sub-vote] | D163: 15.7 - [Name of sub-vote]
B164: 15.8 | C164: [Name of sub-vote] | D164: 15.8 - [Name of sub-vote]
B165: 15.9 | C165: [Name of sub-vote] | D165: 15.9 - [Name of sub-vote]
B166: 15.10 | C166: [Name of sub-vote] | D166: 15.10 - [Name of sub-vote]

Sheet Contacts
A1: =muni&" - "&" Contact Information" -> Choose name from list - Contact Information
A3: A. GENERAL INFORMATION
A4: Municipality | B4: =muni -> Choose name from list | C4: =IF(B4="Choose name from List","Set name on 'Instructions' sheet", "") -> Set name on 'Instructions' sheet
A6: Grade | C6: 1 Grade in terms of the Remuneration of Public Office Bearers Act.
A8: Province | B8: =IF(B4>" ",VLOOKUP(B4,'Lookup and lists'!B29:C307,2, FALSE)," ") -> Set name on 'Instructions' sheet
A10: Web Address
A12: e-mail Address
A14: B. CONTACT INFORMATION
A15: Postal address:
A16: P.O. Box
A17: City / Town
A18: Postal Code
A20: Street address
A21: Building
A22: Street No. & Name
A23: City / Town
A24: Postal Code
A26: General Contacts
A27: Telephone number
A28: Fax number
A30: C. POLITICAL LEADERSHIP
A31: Speaker: | C31: Secretary/PA to the Speaker:
A32: ID Number | C32: ID Number
A33: Title | C33: Title
A34: Name | C34: Name
A35: Telephone number | C35: Telephone number
A36: Cell number | C36: Cell number
A37: Fax number | C37: Fax number
A38: E-mail address | C38: E-mail address
A40: Mayor/Executive Mayor: | C40: Secretary/PA to the Mayor/Executive Mayor:
A41: ID Number | C41: ID Number
A42: Title | C42: Title
A43: Name | C43: Name
A44: Telephone number | C44: Telephone number
A45: Cell number | C45: Cell number
A46: Fax number | C46: Fax number
A47: E-mail address | C47: E-mail address
A49: Deputy Mayor/Executive Mayor: | C49: Secretary/PA to the Deputy Mayor/Executive Mayor:
A50: ID Number | C50: ID Number
A51: Title | C51: Title
A52: Name | C52: Name
A53: Telephone number | C53: Telephone number
A54: Cell number | C54: Cell number
A55: Fax number | C55: Fax number
A56: E-mail address | C56: E-mail address
A58: D. MANAGEMENT LEADERSHIP
A59: Municipal Manager: | C59: Secretary/PA to the Municipal Manager:
A60: ID Number | C60: ID Number
A61: Title | C61: Title
A62: Name | C62: Name
A63: Telephone number | C63: Telephone number
A64: Cell number | C64: Cell number
A65: Fax number | C65: Fax number
A66: E-mail address | C66: E-mail address
A68: Chief Financial Officer | C68: Secretary/PA to the Chief Financial Officer
A69: ID Number | C69: ID Number
A70: Title | C70: Title
A71: Name | C71: Name
A72: Telephone number | C72: Telephone number
A73: Cell number | C73: Cell number
A74: Fax number | C74: Fax number
A75: E-mail address | C75: E-mail address
A77: Official responsible for submitting financial information | C77: Official responsible for submitting financial information
A78: ID Number | C78: ID Number
A79: Title | C79: Title
A80: Name | C80: Name
A81: Telephone number | C81: Telephone number
A82: Cell number | C82: Cell number
A83: Fax number | C83: Fax number
A84: E-mail address | C84: E-mail address
A85: Official responsible for submitting financial information | C85: Official responsible for submitting financial information
A86: ID Number | C86: ID Number
A87: Title | C87: Title
A88: Name | C88: Name
A89: Telephone number | C89: Telephone number
A90: Cell number | C90: Cell number
A91: Fax number | C91: Fax number
A92: E-mail address | C92: E-mail address
A93: Official responsible for submitting financial information | C93: Official responsible for submitting financial information
A94: ID Number | C94: ID Number
A95: Title | C95: Title
A96: Name | C96: Name
A97: Telephone number | C97: Telephone number
A98: Cell number | C98: Cell number
A99: Fax number | C99: Fax number
A100: E-mail address | C100: E-mail address
A101: Official responsible for submitting financial information | C101: Official responsible for submitting financial information
A102: ID Number | C102: ID Number
A103: Title | C103: Title
A104: Name | C104: Name
A105: Telephone number | C105: Telephone number
A106: Cell number | C106: Cell number
A107: Fax number | C107: Fax number
A108: E-mail address | C108: E-mail address
A109: Official responsible for submitting financial information | C109: Official responsible for submitting financial information
A110: ID Number | C110: ID Number
A111: Title | C111: Title
A112: Name | C112: Name
A113: Telephone number | C113: Telephone number
A114: Cell number | C114: Cell number
A115: Fax number | C115: Fax number
A116: E-mail address | C116: E-mail address
A117: Official responsible for submitting financial information | C117: Official responsible for submitting financial information
A118: ID Number | C118: ID Number
A119: Title | C119: Title
A120: Name | C120: Name
A121: Telephone number | C121: Telephone number
A122: Cell number | C122: Cell number
A123: Fax number | C123: Fax number
A124: E-mail address | C124: E-mail address
A125: Official responsible for submitting financial information | C125: Official responsible for submitting financial information
A126: ID Number | C126: ID Number
A127: Title | C127: Title
A128: Name | C128: Name
A129: Telephone number | C129: Telephone number
A130: Cell number | C130: Cell number
A131: Fax number | C131: Fax number
A132: E-mail address | C132: E-mail address
A133: Official responsible for submitting financial information
A134: ID Number
A135: Title
A136: Name
A137: Telephone number
A138: Cell number
A139: Fax number
A140: E-mail address

Sheet A1-Sum
A1: =muni&" - "&Approve1 -> Choose name from list - Table A1 Budget Summary
A2: =desc -> Description | B2: =head1b -> 2021/22 | C2: =head1A -> 2022/23 | D2: =Head1 -> 2023/24 | E2: =Head2 -> Current Year 2024/25 | I2: =Head3 -> 2025/26 Medium Term Revenue & Expenditure Framework
A3: R thousands | B3: =Head5 -> Audited Outcome | C3: =Head5 -> Audited Outcome | D3: =Head5 -> Audited Outcome | E3: =Head6 -> Original Budget | F3: =Head7 -> Adjusted Budget | G3: =Head8 -> Full Year Forecast | H3: =Head5b -> Pre-audit outcome | I3: =Head9 -> Budget Year 2025/26 | J3: =Head10 -> Budget Year +1 2026/27 | K3: =Head11 -> Budget Year +2 2027/28
A4: Financial Performance
A5: Property rates | B5: ='A4-FinPerf RE'!C22 -> 0 | C5: ='A4-FinPerf RE'!D22 -> -8243475.9 | D5: ='A4-FinPerf RE'!E22 -> 114403880 | E5: ='A4-FinPerf RE'!F22 -> 126113439 | F5: ='A4-FinPerf RE'!G22 -> 126113439 | G5: ='A4-FinPerf RE'!H22 -> 126113439 | H5: ='A4-FinPerf RE'!I22 -> 126113439 | I5: ='A4-FinPerf RE'!J22 -> 133680245 | J5: ='A4-FinPerf RE'!K22 -> 139829537 | K5: ='A4-FinPerf RE'!L22 -> 145982036
A6: Service charges | B6: =SUM('A4-FinPerf RE'!C6:C9) -> 215872172.5 | C6: =SUM('A4-FinPerf RE'!D6:D9) -> 286976147.2 | D6: =SUM('A4-FinPerf RE'!E6:E9) -> 304364114.8 | E6: =SUM('A4-FinPerf RE'!F6:F9) -> 389378920 | F6: =SUM('A4-FinPerf RE'!G6:G9) -> 360256443 | G6: =SUM('A4-FinPerf RE'!H6:H9) -> 360256443 | H6: =SUM('A4-FinPerf RE'!I6:I9) -> 382147870 | I6: =SUM('A4-FinPerf RE'!J6:J9) -> 403050833 | J6: =SUM('A4-FinPerf RE'!K6:K9) -> 421591171 | K6: =SUM('A4-FinPerf RE'!L6:L9) -> 440141188
A7: Investment revenue | B7: ='A4-FinPerf RE'!C14 -> 4193328.89 | C7: ='A4-FinPerf RE'!D14 -> 9010901.57 | D7: ='A4-FinPerf RE'!E14 -> 8679930.25 | E7: ='A4-FinPerf RE'!F14 -> 7162122 | F7: ='A4-FinPerf RE'!G14 -> 7162122 | G7: ='A4-FinPerf RE'!H14 -> 7162122 | H7: ='A4-FinPerf RE'!I14 -> 7162122 | I7: ='A4-FinPerf RE'!J14 -> 7591849 | J7: ='A4-FinPerf RE'!K14 -> 7941074 | K7: ='A4-FinPerf RE'!L14 -> 8290483
A8: Transfer and subsidies - Operational | B8: ='A4-FinPerf RE'!C26 -> 187503322.7 | C8: ='A4-FinPerf RE'!D26 -> 206836438.1 | D8: ='A4-FinPerf RE'!E26 -> 230565261.5 | E8: ='A4-FinPerf RE'!F26 -> 247286250 | F8: ='A4-FinPerf RE'!G26 -> 247286250 | G8: ='A4-FinPerf RE'!H26 -> 247286250 | H8: ='A4-FinPerf RE'!I26 -> 247286250 | I8: ='A4-FinPerf RE'!J26 -> 260209300 | J8: ='A4-FinPerf RE'!K26 -> 270519300 | K8: ='A4-FinPerf RE'!L26 -> 282880901
A9: Other own revenue | B9: ='A4-FinPerf RE'!C33-SUM(B5:B8) -> 63614787.12 | C9: ='A4-FinPerf RE'!D33-SUM(C5:C8) -> 89030413.49 | D9: ='A4-FinPerf RE'!E33-SUM(D5:D8) -> 91026975.69 | E9: ='A4-FinPerf RE'!F33-SUM(E5:E8) -> 68506480 | F9: ='A4-FinPerf RE'!G33-SUM(F5:F8) -> 94035232 | G9: ='A4-FinPerf RE'!H33-SUM(G5:G8) -> 94035232 | H9: ='A4-FinPerf RE'!I33-SUM(H5:H8) -> 94035232 | I9: ='A4-FinPerf RE'!J33-SUM(I5:I8) -> 99677339 | J9: ='A4-FinPerf RE'!K33-SUM(J5:J8) -> 104262497 | K9: ='A4-FinPerf RE'!L33-SUM(K5:K8) -> 108850051
A10: ='A4-FinPerf RE'!A33 -> Total Revenue (excluding capital transfers and contributions) | B10: =SUM(B5:B9) -> 471183611.2 | C10: =SUM(C5:C9) -> 583610424.4 | D10: 749040162.2 | E10: 838447211 | F10: 834853486 | G10: 834853486 | H10: 856744913 | I10: 904209566 | J10: 944143579 | K10: 986144659
A11: Employee costs | B11: ='A4-FinPerf RE'!C35 -> 206453565.3 | C11: ='A4-FinPerf RE'!D35 -> 208879531.7 | D11: ='A4-FinPerf RE'!E35 -> 233561213.4 | E11: ='A4-FinPerf RE'!F35 -> 265297876 | F11: ='A4-FinPerf RE'!G35 -> 255043194 | G11: ='A4-FinPerf RE'!H35 -> 255043194 | H11: ='A4-FinPerf RE'!I35 -> 255043194 | I11: ='A4-FinPerf RE'!J35 -> 273856903 | J11: ='A4-FinPerf RE'!K35 -> 286454318 | K11: ='A4-FinPerf RE'!L35 -> 299058309
A12: Remuneration of councillors | B12: ='A4-FinPerf RE'!C36 -> 12077627.94 | C12: ='A4-FinPerf RE'!D36 -> 13304794.01 | D12: ='A4-FinPerf RE'!E36 -> 14066021.14 | E12: ='A4-FinPerf RE'!F36 -> 15400984 | F12: ='A4-FinPerf RE'!G36 -> 15400984 | G12: ='A4-FinPerf RE'!H36 -> 15400984 | H12: ='A4-FinPerf RE'!I36 -> 15400984 | I12: ='A4-FinPerf RE'!J36 -> 16063226 | J12: ='A4-FinPerf RE'!K36 -> 16786070 | K12: ='A4-FinPerf RE'!L36 -> 17524658
A13: Depreciation and amortisation | B13: ='A4-FinPerf RE'!C40 -> 87197833.97 | C13: ='A4-FinPerf RE'!D40 -> 87737832.68 | D13: ='A4-FinPerf RE'!E40 -> 94711817.65 | E13: ='A4-FinPerf RE'!F40 -> 94726306 | F13: ='A4-FinPerf RE'!G40 -> 91726306 | G13: ='A4-FinPerf RE'!H40 -> 91726306 | H13: ='A4-FinPerf RE'!I40 -> 91726306 | I13: ='A4-FinPerf RE'!J40 -> 95670536 | J13: ='A4-FinPerf RE'!K40 -> 100089500 | K13: ='A4-FinPerf RE'!L40 -> 104492645
A14: Interest | B14: ='A4-FinPerf RE'!C41 -> 28468903.64 | C14: ='A4-FinPerf RE'!D41 -> 22435386.82 | D14: ='A4-FinPerf RE'!E41 -> 19716635.1 | E14: ='A4-FinPerf RE'!F41 -> 19600559 | F14: ='A4-FinPerf RE'!G41 -> 20603884 | G14: ='A4-FinPerf RE'!H41 -> 20603884 | H14: ='A4-FinPerf RE'!I41 -> 20603884 | I14: ='A4-FinPerf RE'!J41 -> 21489851 | J14: ='A4-FinPerf RE'!K41 -> 22478384 | K14: ='A4-FinPerf RE'!L41 -> 23467433
A15: Inventory consumed and bulk purchases | B15: ='A4-FinPerf RE'!C37+'A4-FinPerf RE'!C38 -> 168407539.9 | C15: ='A4-FinPerf RE'!D37+'A4-FinPerf RE'!D38 -> 185829758.8 | D15: ='A4-FinPerf RE'!E37+'A4-FinPerf RE'!E38 -> 209864590 | E15: ='A4-FinPerf RE'!F37+'A4-FinPerf RE'!F38 -> 246634216 | F15: ='A4-FinPerf RE'!G37+'A4-FinPerf RE'!G38 -> 239632001 | G15: ='A4-FinPerf RE'!H37+'A4-FinPerf RE'!H38 -> 239632001 | H15: ='A4-FinPerf RE'!I37+'A4-FinPerf RE'!I38 -> 239632001 | I15: ='A4-FinPerf RE'!J37+'A4-FinPerf RE'!J38 -> 263364655 | J15: ='A4-FinPerf RE'!K37+'A4-FinPerf RE'!K38 -> 275479430 | K15: ='A4-FinPerf RE'!L37+'A4-FinPerf RE'!L38 -> 287600525
A16: Transfers and subsidies | B16: ='A4-FinPerf RE'!C43 -> 553239.06 | C16: ='A4-FinPerf RE'!D43 -> 581154 | D16: ='A4-FinPerf RE'!E43 -> -1658973.04 | E16: ='A4-FinPerf RE'!F43 -> 1054137 | F16: ='A4-FinPerf RE'!G43 -> 2054137 | G16: ='A4-FinPerf RE'!H43 -> 2054137 | H16: ='A4-FinPerf RE'!I43 -> 2054137 | I16: ='A4-FinPerf RE'!J43 -> 2142467 | J16: ='A4-FinPerf RE'!K43 -> 2241018 | K16: ='A4-FinPerf RE'!L43 -> 2339622
A17: Other expenditure | B17: ='A4-FinPerf RE'!C48-SUM(B11:B16) -> 185085533.8 | C17: ='A4-FinPerf RE'!D48-SUM(C11:C16) -> 188172409.9 | D17: ='A4-FinPerf RE'!E48-SUM(D11:D16) -> 225880756.5 | E17: ='A4-FinPerf RE'!F48-SUM(E11:E16) -> 192920944 | F17: ='A4-FinPerf RE'!G48-SUM(F11:F16) -> 207606179 | G17: ='A4-FinPerf RE'!H48-SUM(G11:G16) -> 207606179 | H17: ='A4-FinPerf RE'!I48-SUM(H11:H16) -> 207606179 | I17: ='A4-FinPerf RE'!J48-SUM(I11:I16) -> 228817471 | J17: ='A4-FinPerf RE'!K48-SUM(J11:J16) -> 239101732 | K17: ='A4-FinPerf RE'!L48-SUM(K11:K16) -> 244511448
A18: ='A4-FinPerf RE'!A48 -> Total Expenditure | B18: =SUM(B11:B17) -> 688244243.6 | C18: =SUM(C11:C17) -> 706940867.8 | D18: 796142060.7 | E18: 835635022 | F18: 832066685 | G18: 832066685 | H18: 832066685 | I18: 901405109 | J18: 942630452 | K18: 978994640
A19: ='A4-FinPerf RE'!A49 -> Surplus/(Deficit) | B19: =B10-B18 -> -217060632.3 | C19: =C10-C18 -> -123330443.4 | D19: -47101898.52 | E19: 2812189 | F19: 2786801 | G19: 2786801 | H19: 24678228 | I19: 2804457 | J19: 1513127 | K19: 7150019
A20: ='A4-FinPerf RE'!A50 -> Transfers and subsidies - capital (monetary allocations) | B20: ='A4-FinPerf RE'!C50 -> 113640249 | C20: ='A4-FinPerf RE'!D50 -> 51369987.57 | D20: ='A4-FinPerf RE'!E50 -> 119891335.8 | E20: ='A4-FinPerf RE'!F50 -> 194004750 | F20: ='A4-FinPerf RE'!G50 -> 197604752 | G20: ='A4-FinPerf RE'!H50 -> 197604752 | H20: ='A4-FinPerf RE'!I50 -> 197604752 | I20: ='A4-FinPerf RE'!J50 -> 117237700 | J20: ='A4-FinPerf RE'!K50 -> 142940700 | K20: ='A4-FinPerf RE'!L50 -> 145253102
A21: ='A4-FinPerf RE'!A51 -> Transfers and subsidies - capital (in-kind) | B21: ='A4-FinPerf RE'!C51 -> 0 | C21: ='A4-FinPerf RE'!D51 -> 0 | D21: ='A4-FinPerf RE'!E51 -> 0 | E21: ='A4-FinPerf RE'!F51 -> 0 | F21: ='A4-FinPerf RE'!G51 -> 0 | G21: ='A4-FinPerf RE'!H51 -> 0 | H21: ='A4-FinPerf RE'!I51 -> 0 | I21: ='A4-FinPerf RE'!J51 -> 0 | J21: ='A4-FinPerf RE'!K51 -> 0 | K21: ='A4-FinPerf RE'!L51 -> 0
A22: ='A4-FinPerf RE'!A52 -> Surplus/(Deficit) after capital transfers & contributions | B22: =B19+SUM(B20:B21) -> -103420383.3 | C22: =C19+SUM(C20:C21) -> -71960455.81 | D22: 72789437.24 | E22: 196816939 | F22: 200391553 | G22: 200391553 | H22: 222282980 | I22: 120042157 | J22: 144453827 | K22: 152403121
A23: ='A4-FinPerf RE'!A58 -> Share of Surplus/Deficit attributable to Associate | B23: ='A4-FinPerf RE'!C58 -> 0 | C23: ='A4-FinPerf RE'!D58 -> 0 | D23: ='A4-FinPerf RE'!E58 -> 0 | E23: ='A4-FinPerf RE'!F58 -> 0 | F23: ='A4-FinPerf RE'!G58 -> 0 | G23: ='A4-FinPerf RE'!H58 -> 0 | H23: ='A4-FinPerf RE'!I58 -> 0 | I23: ='A4-FinPerf RE'!J58 -> 0 | J23: ='A4-FinPerf RE'!K58 -> 0 | K23: ='A4-FinPerf RE'!L58 -> 0
A24: ='A4-FinPerf RE'!A60 -> Surplus/(Deficit) for the year | B24: =B22+B23 -> -103420383.3 | C24: =C22+C23 -> -71960455.81 | D24: 72789437.24 | E24: 196816939 | F24: 200391553 | G24: 200391553 | H24: 222282980 | I24: 120042157 | J24: 144453827 | K24: 152403121
A25: Capital expenditure & funds sources
A26: Capital expenditure | B26: ='A5-Capex'!C63 -> 126699002.9 | C26: ='A5-Capex'!D63 -> 56455530.11 | D26: ='A5-Capex'!E63 -> 113962780.8 | E26: ='A5-Capex'!F63 -> 224093950 | F26: ='A5-Capex'!G63 -> 265641673 | G26: ='A5-Capex'!H63 -> 265641673 | H26: ='A5-Capex'!I63 -> 265641673 | I26: ='A5-Capex'!J63 -> 157914047 | J26: ='A5-Capex'!K63 -> 154040702 | K26: ='A5-Capex'!L63 -> 134334158
A27: Transfers recognised - capital | B27: ='A5-Capex'!C70 -> 101440103.8 | C27: ='A5-Capex'!D70 -> 46418809 | D27: ='A5-Capex'!E70 -> 96388604.88 | E27: ='A5-Capex'!F70 -> 194004750 | F27: ='A5-Capex'!G70 -> 221079752 | G27: ='A5-Capex'!H70 -> 221079752 | H27: ='A5-Capex'!I70 -> 221079752 | I27: ='A5-Capex'!J70 -> 117237700 | J27: ='A5-Capex'!K70 -> 142940700 | K27: ='A5-Capex'!L70 -> 133534118
A29: ='A5-Capex'!A72 -> Borrowing | B29: ='A5-Capex'!C72 -> 0 | C29: ='A5-Capex'!D72 -> 0 | D29: ='A5-Capex'!E72 -> 0 | E29: ='A5-Capex'!F72 -> 0 | F29: ='A5-Capex'!G72 -> 0 | G29: ='A5-Capex'!H72 -> 0 | H29: ='A5-Capex'!I72 -> 0 | I29: ='A5-Capex'!J72 -> 0 | J29: ='A5-Capex'!K72 -> 0 | K29: ='A5-Capex'!L72 -> 0
A30: ='A5-Capex'!A73 -> Internally generated funds | B30: ='A5-Capex'!C73 -> 21994213.52 | C30: ='A5-Capex'!D73 -> 10036721.11 | D30: ='A5-Capex'!E73 -> 17574175.92 | E30: ='A5-Capex'!F73 -> 30089200 | F30: ='A5-Capex'!G73 -> 44561921 | G30: ='A5-Capex'!H73 -> 44561921 | H30: ='A5-Capex'!I73 -> 44561921 | I30: ='A5-Capex'!J73 -> 40676347 | J30: ='A5-Capex'!K73 -> 11100002 | K30: ='A5-Capex'!L73 -> 800040
A31: Total sources of capital funds | B31: =+B27+B29+B30 -> 123434317.3 | C31: =+C27+C29+C30 -> 56455530.11 | D31: 113962780.8 | E31: 224093950 | F31: 265641673 | G31: 265641673 | H31: 265641673 | I31: 157914047 | J31: 154040702 | K31: 134334158
A32: Financial position
A33: ='A6-FinPos'!A13 -> Total current assets | B33: ='A6-FinPos'!C13 -> 185749311.9 | C33: ='A6-FinPos'!D13 -> 284684672.3 | D33: ='A6-FinPos'!E13 -> 360371269.3 | E33: ='A6-FinPos'!F13 -> 643742981 | F33: ='A6-FinPos'!G13 -> 337458763 | G33: ='A6-FinPos'!H13 -> 337458763 | H33: ='A6-FinPos'!I13 -> 337458763 | I33: ='A6-FinPos'!J13 -> 319883124 | J33: ='A6-FinPos'!K13 -> 353178583 | K33: ='A6-FinPos'!L13 -> 371726278
A34: ='A6-FinPos'!A25 -> Total non current assets | B34: ='A6-FinPos'!C25 -> 1480791223 | C34: ='A6-FinPos'!D25 -> 1424824534 | D34: ='A6-FinPos'!E25 -> 1457583220 | E34: ='A6-FinPos'!F25 -> 1670676655 | F34: ='A6-FinPos'!G25 -> 1729224380 | G34: ='A6-FinPos'!H25 -> 1729224380 | H34: ='A6-FinPos'!I25 -> 1729224380 | I34: ='A6-FinPos'!J25 -> 1590521337 | J34: ='A6-FinPos'!K25 -> 1582229048 | K34: ='A6-FinPos'!L25 -> 1558119301
A35: ='A6-FinPos'!A37 -> Total current liabilities | B35: ='A6-FinPos'!C37 -> 264570206.3 | C35: ='A6-FinPos'!D37 -> 190518254.5 | D35: ='A6-FinPos'!E37 -> 213524789.8 | E35: ='A6-FinPos'!F37 -> 300930299 | F35: ='A6-FinPos'!G37 -> 156333115 | G35: ='A6-FinPos'!H37 -> 156333115 | H35: ='A6-FinPos'!I37 -> 156333115 | I35: ='A6-FinPos'!J37 -> 184426772 | J35: ='A6-FinPos'!K37 -> 183594250 | K35: ='A6-FinPos'!L37 -> 182764289
A36: ='A6-FinPos'!A43 -> Total non current liabilities | B36: ='A6-FinPos'!C43 -> 174914068.1 | C36: ='A6-FinPos'!D43 -> 223514490.5 | D36: ='A6-FinPos'!E43 -> 191636633.3 | E36: ='A6-FinPos'!F43 -> 223514490 | F36: ='A6-FinPos'!G43 -> 223514490 | G36: ='A6-FinPos'!H43 -> 223514490 | H36: ='A6-FinPos'!I43 -> 223514490 | I36: ='A6-FinPos'!J43 -> 223514490 | J36: ='A6-FinPos'!K43 -> 223514502 | K36: ='A6-FinPos'!L43 -> 223514502
A37: Community wealth/Equity | B37: ='A6-FinPos'!C50 -> 1196402654 | C37: ='A6-FinPos'!D50 -> 1252503123 | D37: ='A6-FinPos'!E50 -> 1412793066 | E37: ='A6-FinPos'!F50 -> 1790606371 | F37: ='A6-FinPos'!G50 -> 1320954908 | G37: ='A6-FinPos'!H50 -> 1320954908 | H37: ='A6-FinPos'!I50 -> 1320954908 | I37: ='A6-FinPos'!J50 -> 649251079 | J37: ='A6-FinPos'!K50 -> 847656740 | K37: ='A6-FinPos'!L50 -> 855606034
A38: Cash flows
A39: Net cash from (used) operating | B39: ='A7-CFlow'!C17 -> -143615761.9 | C39: ='A7-CFlow'!D17 -> 381896339.5 | D39: ='A7-CFlow'!E17 -> 779506675.3 | E39: ='A7-CFlow'!F17 -> 437392562 | F39: ='A7-CFlow'!G17 -> 333282036 | G39: ='A7-CFlow'!H17 -> 333282036 | H39: ='A7-CFlow'!I17 -> 333282036 | I39: ='A7-CFlow'!J17 -> 156151455 | J39: ='A7-CFlow'!K17 -> 185812731 | K39: ='A7-CFlow'!L17 -> 182517968
A40: Net cash from (used) investing | B40: ='A7-CFlow'!C27 -> 0 | C40: ='A7-CFlow'!D27 -> 0 | D40: ='A7-CFlow'!E27 -> 0 | E40: ='A7-CFlow'!F27 -> 0 | F40: ='A7-CFlow'!G27 -> 0 | G40: ='A7-CFlow'!H27 -> 0 | H40: ='A7-CFlow'!I27 -> 0 | I40: ='A7-CFlow'!J27 -> -181601156 | J40: ='A7-CFlow'!K27 -> -177146807 | K40: ='A7-CFlow'!L27 -> -154484280
A41: Net cash from (used) financing | B41: ='A7-CFlow'!C36 -> 0 | C41: ='A7-CFlow'!D36 -> -7246029.79 | D41: ='A7-CFlow'!E36 -> 0 | E41: ='A7-CFlow'!F36 -> -9422400 | F41: ='A7-CFlow'!G36 -> 0 | G41: ='A7-CFlow'!H36 -> 0 | H41: ='A7-CFlow'!I36 -> 0 | I41: ='A7-CFlow'!J36 -> 0 | J41: ='A7-CFlow'!K36 -> 0 | K41: ='A7-CFlow'!L36 -> -2
A42: =LEFT('A7-CFlow'!A40,37) -> Cash/cash equivalents at the year end | B42: ='A7-CFlow'!C40 -> -48791120.94 | C42: ='A7-CFlow'!D40 -> 468705590.5 | D42: ='A7-CFlow'!E40 -> 870766847.3 | E42: ='A7-CFlow'!F40 -> 519237439 | F42: ='A7-CFlow'!G40 -> 424549313 | G42: ='A7-CFlow'!H40 -> 424549313 | H42: ='A7-CFlow'!I40 -> 424549313 | I42: ='A7-CFlow'!J40 -> 65824481 | J42: ='A7-CFlow'!K40 -> 74490405 | K42: ='A7-CFlow'!L40 -> 102524091
A44: Cash backing/surplus reconciliation
A45: ='A8-ResRecon'!A4 -> Cash and investments available | B45: ='A8-ResRecon'!C8 -> 47731681.23 | C45: ='A8-ResRecon'!D8 -> 92968112.38 | D45: ='A8-ResRecon'!E8 -> 60711469.06 | E45: ='A8-ResRecon'!F8 -> 57830112 | F45: ='A8-ResRecon'!G8 -> 26088140 | G45: ='A8-ResRecon'!H8 -> 26088140 | H45: ='A8-ResRecon'!I8 -> 26088140 | I45: ='A8-ResRecon'!J8 -> 65824481 | J45: ='A8-ResRecon'!K8 -> 99940115 | K45: ='A8-ResRecon'!L8 -> 119308001
A46: ='A8-ResRecon'!A10 -> Application of cash and investments | B46: ='A8-ResRecon'!C18 -> 221125341.5 | C46: ='A8-ResRecon'!D18 -> 106568317 | D46: ='A8-ResRecon'!E18 -> -264347205.2 | E46: ='A8-ResRecon'!F18 -> -56807765 | F46: ='A8-ResRecon'!G18 -> -24736276 | G46: ='A8-ResRecon'!H18 -> -24736276 | H46: ='A8-ResRecon'!I18 -> -22819276 | I46: ='A8-ResRecon'!J18 -> -136682791 | J46: ='A8-ResRecon'!K18 -> -136383073 | K46: ='A8-ResRecon'!L18 -> -135216226
A47: Balance - surplus (shortfall) | B47: =B45-B46 -> -173393660.2 | C47: =C45-C46 -> -13600204.66 | D47: 325058674.3 | E47: 114637877 | F47: 50824416 | G47: 50824416 | H47: 48907416 | I47: 202507272 | J47: 236323188 | K47: 254524227
A48: Asset management
A49: Asset register summary (WDV) | B49: ='A9-Asset'!C180 -> 1312931549 | C49: ='A9-Asset'!D180 -> 1201548978 | D49: ='A9-Asset'!E180 -> 1284600742 | E49: ='A9-Asset'!F180 -> 1441911155 | F49: ='A9-Asset'!G180 -> 1498200137 | G49: ='A9-Asset'!H180 -> 1498200137 | I49: ='A9-Asset'!I180 -> 1380174149 | J49: ='A9-Asset'!J180 -> 1371881861 | K49: ='A9-Asset'!K180 -> 1347772114
A50: ='A9-Asset'!A183 -> Depreciation | B50: ='A9-Asset'!C183 -> 87197833.97 | C50: ='A9-Asset'!D183 -> 87737832.68 | D50: ='A9-Asset'!E183 -> 94711817.65 | E50: ='A9-Asset'!F183 -> 94726306 | F50: ='A9-Asset'!G183 -> 91726306 | G50: ='A9-Asset'!H183 -> 91726306 | I50: ='A9-Asset'!I183 -> 95670536 | J50: ='A9-Asset'!J183 -> 100089486 | K50: ='A9-Asset'!K183 -> 104492631
A51: Renewal and Upgrading of Existing Assets | B51: ='A9-Asset'!C40+'A9-Asset'!C75 -> 0 | C51: ='A9-Asset'!D40+'A9-Asset'!D75 -> 491000 | D51: ='A9-Asset'!E40+'A9-Asset'!E75 -> 23921171.48 | E51: ='A9-Asset'!F40+'A9-Asset'!F75 -> 53345189 | F51: ='A9-Asset'!G40+'A9-Asset'!G75 -> 61070139 | G51: ='A9-Asset'!H40+'A9-Asset'!H75 -> 61070139 | I51: ='A9-Asset'!I40+'A9-Asset'!I75 -> 1493966 | J51: ='A9-Asset'!J40+'A9-Asset'!J75 -> 10000000 | K51: ='A9-Asset'!K40+'A9-Asset'!K75 -> 11770193
A52: Repairs and Maintenance | B52: ='A9-Asset'!C184 -> 9607592.61 | C52: ='A9-Asset'!D184 -> 12675247.33 | D52: ='A9-Asset'!E184 -> 18518706.79 | E52: ='A9-Asset'!F184 -> 15957507 | F52: ='A9-Asset'!G184 -> 20142807 | G52: ='A9-Asset'!H184 -> 20142807 | I52: ='A9-Asset'!I184 -> 15281337 | J52: ='A9-Asset'!J184 -> 15477563 | K52: ='A9-Asset'!K184 -> 15428849
A54: Free services
A55: Cost of Free Basic Services provided | B55: ='A10-SerDel'!C60 -> 0 | C55: ='A10-SerDel'!D60 -> 0 | D55: ='A10-SerDel'!E60 -> 0 | E55: ='A10-SerDel'!F60 -> 0 | F55: ='A10-SerDel'!G60 -> 0 | G55: ='A10-SerDel'!H60 -> 0 | I55: ='A10-SerDel'!I60 -> 0 | J55: ='A10-SerDel'!J60 -> 0 | K55: ='A10-SerDel'!K60 -> 0
A56: Revenue cost of free services provided | B56: ='A10-SerDel'!C79 -> 0 | C56: ='A10-SerDel'!D79 -> 0 | D56: ='A10-SerDel'!E79 -> 0 | E56: ='A10-SerDel'!F79 -> 0 | F56: ='A10-SerDel'!G79 -> 0 | G56: ='A10-SerDel'!H79 -> 0 | I56: ='A10-SerDel'!I79 -> 0 | J56: ='A10-SerDel'!J79 -> 0 | K56: ='A10-SerDel'!K79 -> 0
A57: Households below minimum service level
A58: ='A10-SerDel'!A5 -> Water: | B58: ='A10-SerDel'!C14 -> 0 | C58: ='A10-SerDel'!D14 -> 0 | D58: ='A10-SerDel'!E14 -> 0 | E58: ='A10-SerDel'!F14 -> 0 | F58: ='A10-SerDel'!G14 -> 0 | G58: ='A10-SerDel'!H14 -> 0 | I58: ='A10-SerDel'!I14 -> 0 | J58: ='A10-SerDel'!J14 -> 0 | K58: ='A10-SerDel'!K14 -> 0
A59: ='A10-SerDel'!A16 -> Sanitation/sewerage: | B59: ='A10-SerDel'!C26 -> 0 | C59: ='A10-SerDel'!D26 -> 0 | D59: ='A10-SerDel'!E26 -> 0 | E59: ='A10-SerDel'!F26 -> 0 | F59: ='A10-SerDel'!G26 -> 0 | G59: ='A10-SerDel'!H26 -> 0 | I59: ='A10-SerDel'!I26 -> 0 | J59: ='A10-SerDel'!J26 -> 0 | K59: ='A10-SerDel'!K26 -> 0
A60: ='A10-SerDel'!A28 -> Energy: | B60: ='A10-SerDel'!C35 -> 0 | C60: ='A10-SerDel'!D35 -> 0 | D60: ='A10-SerDel'!E35 -> 0 | E60: ='A10-SerDel'!F35 -> 0 | F60: ='A10-SerDel'!G35 -> 0 | G60: ='A10-SerDel'!H35 -> 0 | I60: ='A10-SerDel'!I35 -> 0 | J60: ='A10-SerDel'!J35 -> 0 | K60: ='A10-SerDel'!K35 -> 0
A61: ='A10-SerDel'!A37 -> Refuse: | B61: ='A10-SerDel'!C45 -> 0 | C61: ='A10-SerDel'!D45 -> 0 | D61: ='A10-SerDel'!E45 -> 0 | E61: ='A10-SerDel'!F45 -> 0 | F61: ='A10-SerDel'!G45 -> 0 | G61: ='A10-SerDel'!H45 -> 0 | I61: ='A10-SerDel'!I45 -> 0 | J61: ='A10-SerDel'!J45 -> 0 | K61: ='A10-SerDel'!K45 -> 0

Sheet A2-FinPerf SC
A1: =muni&" - "&Approve3 -> Choose name from list - Table A2 Budgeted Financial Performance (revenue and expenditure by functional classification)
A2: ="Functional Classification "&desc -> Functional Classification Description | B2: =head27 -> Ref | C2: =head1b -> 2021/22 | D2: =head1A -> 2022/23 | E2: =Head1 -> 2023/24 | F2: =Head2 -> Current Year 2024/25 | I2: =Head3 -> 2025/26 Medium Term Revenue & Expenditure Framework
A3: R thousand | B3: 1 | C3: =Head5 -> Audited Outcome | D3: =Head5 -> Audited Outcome | E3: =Head5 -> Audited Outcome | F3: =Head6 -> Original Budget | G3: =Head7 -> Adjusted Budget | H3: =Head8 -> Full Year Forecast | I3: =Head9 -> Budget Year 2025/26 | J3: =Head10 -> Budget Year +1 2026/27 | K3: =Head11 -> Budget Year +2 2027/28
A4: Revenue - Functional
A5: Governance and administration | C5: =SUM(C6:C8) -> 210987299.5 | D5: =SUM(D6:D8) -> 253375213.9 | E5: 381089387.7 | F5: 408879817 | G5: 420710370 | H5: 420710370 | I5: 425174063 | J5: 443073487 | K5: 462982598
A6: Executive and council | C6: =A2A!C6 -> 8950379.83 | D6: =A2A!D6 -> 3383174.84 | E6: =A2A!E6 -> 9763928.25 | F6: =A2A!F6 -> 9290567 | G6: =A2A!G6 -> 9290573 | H6: =A2A!H6 -> 9290573 | I6: =A2A!I6 -> 769885 | J6: =A2A!J6 -> 774991 | K6: =A2A!K6 -> 302260
A7: Finance and administration | C7: =A2A!C9 -> 202036919.7 | D7: =A2A!D9 -> 249992039.1 | E7: =A2A!E9 -> 371325459.5 | F7: =A2A!F9 -> 399589250 | G7: =A2A!G9 -> 411419797 | H7: =A2A!H9 -> 411419797 | I7: =A2A!I9 -> 424404178 | J7: =A2A!J9 -> 442298496 | K7: =A2A!K9 -> 462680338
A8: Internal audit | C8: =A2A!C23 -> 0 | D8: =A2A!D23 -> 0 | E8: =A2A!E23 -> 0 | F8: =A2A!F23 -> 0 | G8: =A2A!G23 -> 0 | H8: =A2A!H23 -> 0 | I8: =A2A!I23 -> 0 | J8: =A2A!J23 -> 0 | K8: =A2A!K23 -> 0
A9: Community and public safety | C9: =SUM(C10:C14) -> 10850549.7 | D9: =SUM(D10:D14) -> 27654928.9 | E9: 1127208.39 | F9: 866877 | G9: 3264951 | H9: 3264951 | I9: 6013087 | J9: 6287549 | K9: 6644815
A10: Community and social services | C10: =A2A!C26 -> -160364.56 | D10: =A2A!D26 -> 20717776.51 | E10: =A2A!E26 -> 483533.39 | F10: =A2A!F26 -> 201682 | G10: =A2A!G26 -> 201682 | H10: =A2A!H26 -> 201682 | I10: =A2A!I26 -> 219193 | J10: =A2A!J26 -> 226773 | K10: =A2A!K26 -> 300636
A11: Sport and recreation | C11: =A2A!C48 -> 0 | D11: =A2A!D48 -> 0 | E11: =A2A!E48 -> 0 | F11: =A2A!F48 -> 0 | G11: =A2A!G48 -> 0 | H11: =A2A!H48 -> 0 | I11: =A2A!I48 -> 0 | J11: =A2A!J48 -> 0 | K11: =A2A!K48 -> 0
A12: Public safety | C12: =A2A!C54 -> 10962299.75 | D12: =A2A!D54 -> 6371547.98 | E12: =A2A!E54 -> 643675 | F12: =A2A!F54 -> 665195 | G12: =A2A!G54 -> 3063269 | H12: =A2A!H54 -> 3063269 | I12: =A2A!I54 -> 5793894 | J12: =A2A!J54 -> 6060776 | K12: =A2A!K54 -> 6344179
A13: Housing | C13: =A2A!C63 -> 48614.51 | D13: =A2A!D63 -> 565604.41 | E13: =A2A!E63 -> 0 | F13: =A2A!F63 -> 0 | G13: =A2A!G63 -> 0 | H13: =A2A!H63 -> 0 | I13: =A2A!I63 -> 0 | J13: =A2A!J63 -> 0 | K13: =A2A!K63 -> 0
A14: Health | C14: =A2A!C66 -> 0 | D14: =A2A!D66 -> 0 | E14: =A2A!E66 -> 0 | F14: =A2A!F66 -> 0 | G14: =A2A!G66 -> 0 | H14: =A2A!H66 -> 0 | I14: =A2A!I66 -> 0 | J14: =A2A!J66 -> 0 | K14: =A2A!K66 -> 0
A15: Economic and environmental services | C15: =SUM(C16:C18) -> 45783783.1 | D15: =SUM(D16:D18) -> 6886481.06 | E15: 66349281.73 | F15: 50444601 | G15: 52842676 | H15: 52842676 | I15: 52617395 | J15: 56929312 | K15: 59456470
A16: Planning and development | C16: =A2A!C75 -> 1022346.52 | D16: =A2A!D75 -> 1264829.59 | E16: =A2A!E75 -> 918058.15 | F16: =A2A!F75 -> 1290897 | G16: =A2A!G75 -> 3688972 | H16: =A2A!H75 -> 3688972 | I16: =A2A!I75 -> 1337896 | J16: =A2A!J75 -> 1438502 | K16: =A2A!K75 -> 1525400
A17: Road transport | C17: =A2A!C86 -> 44761436.58 | D17: =A2A!D86 -> 5621651.47 | E17: =A2A!E86 -> 65431223.58 | F17: =A2A!F86 -> 49153704 | G17: =A2A!G86 -> 49153704 | H17: =A2A!H86 -> 49153704 | I17: =A2A!I86 -> 51279499 | J17: =A2A!J86 -> 55490810 | K17: =A2A!K86 -> 57931070
A18: Environmental protection | C18: =A2A!C91 -> 0 | D18: =A2A!D91 -> 0 | E18: =A2A!E91 -> 0 | F18: =A2A!F91 -> 0 | G18: =A2A!G91 -> 0 | H18: =A2A!H91 -> 0 | I18: =A2A!I91 -> 0 | J18: =A2A!J91 -> 0 | K18: =A2A!K91 -> 0
A19: Trading services | C19: =SUM(C20:C23) -> 317202228 | D19: =SUM(D20:D23) -> 352397136.6 | E19: 411311232.8 | F19: 562637878 | G19: 543480199 | H19: 543480199 | I19: 524753076 | J19: =SUM(J20:J23) -> 567311363 | K19: 588238076
A20: Energy sources | C20: =A2A!C99 -> 164880991 | D20: =A2A!D99 -> 184594819.1 | E20: =A2A!E99 -> 210037946.5 | F20: =A2A!F99 -> 283716948 | G20: =A2A!G99 -> 263681746 | H20: =A2A!H99 -> 263681746 | I20: =A2A!I99 -> 317041024 | J20: =A2A!J99 -> 338660144 | K20: =A2A!K99 -> 357980277
A21: Water management | C21: =A2A!C103 -> 100863110.2 | D21: =A2A!D103 -> 108439078 | E21: =A2A!E103 -> 135150794.7 | F21: =A2A!F103 -> 215575923 | G21: =A2A!G103 -> 213575923 | H21: =A2A!H103 -> 213575923 | I21: =A2A!I103 -> 139040465 | J21: =A2A!J103 -> 156832806 | K21: =A2A!K103 -> 154616671
A22: Waste water management | C22: =A2A!C107 -> 28318532.43 | D22: =A2A!D107 -> 30665950.55 | E22: =A2A!E107 -> 33436368.89 | F22: =A2A!F107 -> 34898848 | G22: =A2A!G107 -> 36032283 | H22: =A2A!H107 -> 36032283 | I22: =A2A!I107 -> 38113894 | J22: =A2A!J107 -> 39859123 | K22: =A2A!K107 -> 42462197
A23: Waste management | C23: =A2A!C112 -> 23139594.34 | D23: =A2A!D112 -> 28697288.97 | E23: =A2A!E112 -> 32686122.76 | F23: =A2A!F112 -> 28446159 | G23: =A2A!G112 -> 30190247 | H23: =A2A!H112 -> 30190247 | I23: =A2A!I112 -> 30557693 | J23: =A2A!J112 -> 31959290 | K23: =A2A!K112 -> 33178931
A24: Other | B24: 4 | C24: =A2A!C117 -> 0 | D24: =A2A!D117 -> 2910127.42 | E24: =A2A!E117 -> 9054387.37 | F24: =A2A!F117 -> 9622788 | G24: =A2A!G117 -> 12160042 | H24: =A2A!H117 -> 12160042 | I24: =A2A!I117 -> 12889645 | J24: =A2A!J117 -> 13482568 | K24: =A2A!K117 -> 14075802
A25: ="Total "&A4 -> Total Revenue - Functional | B25: 2 | C25: =C5+C9+C15+C19+C24 -> 584823860.3 | D25: =D5+D9+D15+D19+D24 -> 643223887.9 | E25: =E5+E9+E15+E19+E24 -> 868931498 | F25: 1032451961 | G25: 1032458238 | H25: 1032458238 | I25: =I5+I9+I15+I19+I24 -> 1021447266 | J25: 1087084279 | K25: 1131397761
A27: Expenditure - Functional
A28: Governance and administration | C28: =SUM(C29:C31) -> 328488658.3 | D28: =SUM(D29:D31) -> 311291838.4 | E28: 228773679.3 | F28: 262950489 | G28: 285417572 | H28: 285417572 | I28: 328405394 | J28: 332473494 | K28: 355322268
A29: Executive and council | C29: =A2A!C128 -> 197182964.8 | D29: =A2A!D128 -> 130033032.1 | E29: =A2A!E128 -> 44135856.51 | F29: =A2A!F128 -> 69366072 | G29: =A2A!G128 -> 78270302 | H29: =A2A!H128 -> 78270302 | I29: =A2A!I128 -> 68039607 | J29: =A2A!J128 -> 57280304 | K29: =A2A!K128 -> 58557856
A30: Finance and administration | C30: =A2A!C131 -> 129082090.2 | D30: =A2A!D131 -> 175025751 | E30: =A2A!E131 -> 181648899.5 | F30: =A2A!F131 -> 190613414 | G30: =A2A!G131 -> 204176267 | H30: =A2A!H131 -> 204176267 | I30: =A2A!I131 -> 256217033 | J30: =A2A!J131 -> 270853591 | K30: =A2A!K131 -> 292253773
A31: Internal audit | C31: =A2A!C145 -> 2223603.38 | D31: =A2A!D145 -> 6233055.26 | E31: =A2A!E145 -> 2988923.23 | F31: =A2A!F145 -> 2971003 | G31: =A2A!G145 -> 2971003 | H31: =A2A!H145 -> 2971003 | I31: =A2A!I145 -> 4148754 | J31: =A2A!J145 -> 4339599 | K31: =A2A!K145 -> 4510639
A32: Community and public safety | C32: =SUM(C33:C37) -> 52762824.57 | D32: =SUM(D33:D37) -> 40324286.81 | E32: 59999578.26 | F32: 61210286 | G32: 60909286 | H32: 60909286 | I32: 62558140 | J32: 64275927 | K32: 69517632
A33: Community and social services | C33: =A2A!C148 -> 29168667.9 | D33: =A2A!D148 -> 23047232.34 | E33: =A2A!E148 -> 33670880.37 | F33: =A2A!F148 -> 30941634 | G33: =A2A!G148 -> 31140634 | H33: =A2A!H148 -> 31140634 | I33: =A2A!I148 -> 33700335 | J33: =A2A!J148 -> 34776198 | K33: =A2A!K148 -> 39501525
A34: Sport and recreation | C34: =A2A!C170 -> 129064.58 | D34: =A2A!D170 -> 324744.72 | E34: =A2A!E170 -> 2471400.89 | F34: =A2A!F170 -> 505034 | G34: =A2A!G170 -> 505034 | H34: =A2A!H170 -> 505034 | I34: =A2A!I170 -> 531368 | J34: =A2A!J170 -> 552110 | K34: =A2A!K170 -> 551966
A35: Public safety | C35: =A2A!C176 -> 19680571 | D35: =A2A!D176 -> 13674779.69 | E35: =A2A!E176 -> 20141554.62 | F35: =A2A!F176 -> 25306341 | G35: =A2A!G176 -> 24806341 | H35: =A2A!H176 -> 24806341 | I35: =A2A!I176 -> 23573467 | J35: =A2A!J176 -> 24061809 | K35: =A2A!K176 -> 24455414
A36: Housing | C36: =A2A!C185 -> 3784521.09 | D36: =A2A!D185 -> 3277530.06 | E36: =A2A!E185 -> 3715742.38 | F36: =A2A!F185 -> 4457277 | G36: =A2A!G185 -> 4457277 | H36: =A2A!H185 -> 4457277 | I36: =A2A!I185 -> 4752970 | J36: =A2A!J185 -> 4885810 | K36: =A2A!K185 -> 5008727
A37: Health | C37: =A2A!C188 -> 0 | D37: =A2A!D188 -> 0 | E37: =A2A!E188 -> 0 | F37: =A2A!F188 -> 0 | G37: =A2A!G188 -> 0 | H37: =A2A!H188 -> 0 | I37: =A2A!I188 -> 0 | J37: =A2A!J188 -> 0 | K37: =A2A!K188 -> 0
A38: Economic and environmental services | C38: =SUM(C39:C41) -> 31041454.15 | D38: =SUM(D39:D41) -> 39815422.57 | E38: 33757302.3 | F38: 76824868 | G38: 75534903 | H38: 75534903 | I38: 77485056 | J38: 80806999 | K38: 82803017
A39: Planning and development | C39: =A2A!C197 -> 16365242.72 | D39: =A2A!D197 -> 16123735.44 | E39: =A2A!E197 -> 14435661.32 | F39: =A2A!F197 -> 20995599 | G39: =A2A!G197 -> 19435994 | H39: =A2A!H197 -> 19435994 | I39: =A2A!I197 -> 24360290 | J39: =A2A!J197 -> 25704003 | K39: =A2A!K197 -> 24959058
A40: Road transport | C40: =A2A!C208 -> 14676211.43 | D40: =A2A!D208 -> 23691687.13 | E40: =A2A!E208 -> 19321640.98 | F40: =A2A!F208 -> 55829269 | G40: =A2A!G208 -> 56098909 | H40: =A2A!H208 -> 56098909 | I40: =A2A!I208 -> 53124766 | J40: =A2A!J208 -> 55102996 | K40: =A2A!K208 -> 57843959
A41: Environmental protection | C41: =A2A!C213 -> 0 | D41: =A2A!D213 -> 0 | E41: =A2A!E213 -> 0 | F41: =A2A!F213 -> 0 | G41: =A2A!G213 -> 0 | H41: =A2A!H213 -> 0 | I41: =A2A!I213 -> 0 | J41: =A2A!J213 -> 0 | K41: =A2A!K213 -> 0
A42: Trading services | C42: =SUM(C43:C46) -> 275951306.6 | D42: =SUM(D43:D46) -> 315509320 | E42: 473611500.9 | F42: =SUM(F43:F46) -> 434649380 | G42: 410204925 | H42: 410204925 | I42: 432956519 | J42: 465074032 | K42: =SUM(K43:K46) -> 471351723
A43: Energy sources | C43: =A2A!C221 -> 149723065.2 | D43: =A2A!D221 -> 167221066.9 | E43: =A2A!E221 -> 214995149.3 | F43: =A2A!F221 -> 227118574 | G43: =A2A!G221 -> 224222166 | H43: =A2A!H221 -> 224222166 | I43: =A2A!I221 -> 241173071 | J43: =A2A!J221 -> 251683069 | K43: =A2A!K221 -> 260773065
A44: Water management | C44: =A2A!C225 -> 88928901.35 | D44: =A2A!D225 -> 94234505.83 | E44: =A2A!E225 -> 206902918.5 | F44: =A2A!F225 -> 147955510 | G44: =A2A!G225 -> 115559308 | H44: =A2A!H225 -> 115559308 | I44: =A2A!I225 -> 133548362 | J44: =A2A!J225 -> 152882869 | K44: =A2A!K225 -> 146481485
A45: Waste water management | C45: =A2A!C229 -> 13103503.57 | D45: =A2A!D229 -> 28639091.75 | E45: =A2A!E229 -> 29548603.86 | F45: =A2A!F229 -> 35675658 | G45: =A2A!G229 -> 39128999 | H45: =A2A!H229 -> 39128999 | I45: =A2A!I229 -> 34507422 | J45: =A2A!J229 -> 35813043 | K45: =A2A!K229 -> 37586563
A46: Waste management | C46: =A2A!C234 -> 24195836.48 | D46: =A2A!D234 -> 25414655.58 | E46: =A2A!E234 -> 22164829.22 | F46: =A2A!F234 -> 23899638 | G46: =A2A!G234 -> 31294452 | H46: =A2A!H234 -> 31294452 | I46: =A2A!I234 -> 23727664 | J46: =A2A!J234 -> 24695051 | K46: =A2A!K234 -> 26510610
A47: Other | B47: 4 | C47: =A2A!C239 -> 0 | D47: =A2A!D239 -> 0 | E47: =A2A!E239 -> 0 | F47: =A2A!F239 -> 0 | G47: =A2A!G239 -> 0 | H47: =A2A!H239 -> 0 | I47: =A2A!I239 -> 0 | J47: =A2A!J239 -> 0 | K47: =A2A!K239 -> 0
A48: ="Total "&A27 -> Total Expenditure - Functional | B48: 3 | C48: =C28+C32+C38+C42+C47 -> 688244243.6 | D48: =D28+D32+D38+D42+D47 -> 706940867.8 | E48: =E28+E32+E38+E42+E47 -> 796142060.7 | F48: =F28+F32+F38+F42+F47 -> 835635023 | G48: 832066686 | H48: 832066686 | I48: 901405109 | J48: 942630452 | K48: 978994640
A49: =result -> Surplus/(Deficit) for the year | C49: =C25-C48 -> -103420383.3 | D49: =D25-D48 -> -63716979.91 | E49: 72789437.24 | F49: 196816938 | G49: 200391552 | H49: 200391552 | I49: 120042157 | J49: 144453827 | K49: 152403121
A50: =head27a -> References
A51: 1. Government Finance Statistics Functions and Sub-functions are standardised to assist the compilation of national and international accounts for comparison purposes
A52: 2. Total Revenue by functional classification must reconcile to Total Operating Revenue shown in Budgeted Financial Performance (revenue and expenditure)
A53: 3. Total Expenditure by Functional Classification must reconcile to Total Operating Expenditure shown in Budgeted Financial Performance (revenue and expenditure)
A54: 4. All amounts must be classified under a functional classification . The GFS function 'Other' is only for Abbatoirs, Air Transport, Forestry, Licensing and Regulation, Markets and Tourism - and if used must be supported by footnotes. Nothing else may be placed under 'Other'. Assign associate share to relevant classification.

Sheet A2A
A1: =muni&" - "&Approve3 -> Choose name from list - Table A2 Budgeted Financial Performance (revenue and expenditure by functional classification)
A2: ="Functional Classification "&desc -> Functional Classification Description | B2: =head27 -> Ref | C2: =head1b -> 2021/22 | D2: =head1A -> 2022/23 | E2: =Head1 -> 2023/24 | F2: =Head2 -> Current Year 2024/25 | I2: =Head3 -> 2025/26 Medium Term Revenue & Expenditure Framework
A3: R thousand | B3: 1 | C3: =Head5 -> Audited Outcome | D3: =Head5 -> Audited Outcome | E3: =Head5 -> Audited Outcome | F3: =Head6 -> Original Budget | G3: =Head7 -> Adjusted Budget | H3: =Head8 -> Full Year Forecast | I3: =Head9 -> Budget Year 2025/26 | J3: =Head10 -> Budget Year +1 2026/27 | K3: =Head11 -> Budget Year +2 2027/28
A4: Revenue - Functional
A5: Municipal governance and administration | C5: =C6+C9+C23 -> 210987299.5 | D5: =D6+D9+D23 -> 253375213.9 | E5: 381089387.7 | F5: 408879817 | G5: 420710370 | H5: 420710370 | I5: 425174063 | J5: 443073487 | K5: 462982598
A6: Executive and council | C6: =SUM(C7:C8) -> 8950379.83 | D6: =SUM(D7:D8) -> 3383174.84 | E6: 9763928.25 | F6: 9290567 | G6: 9290573 | H6: 9290573 | I6: 769885 | J6: 774991 | K6: 302260
A7: Mayor and Council | C7: 534861.88 | D7: 555330.97 | E7: 414047.86 | F7: 708387 | G7: 708387 | H7: 708387 | I7: 769885 | J7: 774991 | K7: 302259
A8: Municipal Manager, Town Secretary and Chief Executive | C8: 8415517.95 | D8: 2827843.87 | E8: 9349880.39 | F8: 8582180 | G8: 8582186 | H8: 8582186 | I8: 0 | J8: 0 | K8: 1
A9: Finance and administration | C9: =SUM(C10:C22) -> 202036919.7 | D9: =SUM(D10:D22) -> 249992039.1 | E9: 371325459.5 | F9: 399589250 | G9: 411419797 | H9: 411419797 | I9: 424404178 | J9: 442298496 | K9: 462680338
A10: Administrative and Corporate Support | C10: 0 | D10: 0 | E10: 0 | F10: 0 | G10: 0 | H10: 0 | I10: 0 | J10: 0 | K10: 0
A11: Asset Management | C11: 0 | D11: 0 | E11: 0 | F11: 0 | G11: 0 | H11: 0 | I11: 0 | J11: 0 | K11: 0
A12: Finance | C12: 202036919.7 | D12: 249992039.1 | E12: 371325459.5 | F12: 399056604 | G12: 410887151 | H12: 410887151 | I12: 424404178 | J12: 442298496 | K12: 462680338
A13: Fleet Management | C13: 0 | D13: 0 | E13: 0 | F13: 0 | G13: 0 | H13: 0 | I13: 0 | J13: 0 | K13: 0
A14: Human Resources | C14: 0 | D14: 0 | E14: 0 | F14: 532646 | G14: 532646 | H14: 532646 | I14: 0 | J14: 0 | K14: 0
A15: Information Technology | C15: 0 | D15: 0 | E15: 0 | F15: 0 | G15: 0 | H15: 0 | I15: 0 | J15: 0 | K15: 0
A16: Legal Services | C16: 0 | D16: 0 | E16: 0 | F16: 0 | G16: 0 | H16: 0 | I16: 0 | J16: 0 | K16: 0
A17: Marketing, Customer Relations, Publicity and Media Co-ordination | C17: 0 | D17: 0 | E17: 0 | F17: 0 | G17: 0 | H17: 0 | I17: 0 | J17: 0 | K17: 0
A18: Property Services | C18: 0 | D18: 0 | E18: 0 | F18: 0 | G18: 0 | H18: 0 | I18: 0 | J18: 0 | K18: 0
A19: Risk Management | C19: 0 | D19: 0 | E19: 0 | F19: 0 | G19: 0 | H19: 0 | I19: 0 | J19: 0 | K19: 0
A20: Security Services | C20: 0 | D20: 0 | E20: 0 | F20: 0 | G20: 0 | H20: 0 | I20: 0 | J20: 0 | K20: 0
A21: Supply Chain Management | C21: 0 | D21: 0 | E21: 0 | F21: 0 | G21: 0 | H21: 0 | I21: 0 | J21: 0 | K21: 0
A22: Valuation Service | C22: 0 | D22: 0 | E22: 0 | F22: 0 | G22: 0 | H22: 0 | I22: 0 | J22: 0 | K22: 0
A23: Internal audit | C23: =SUM(C24:C24) -> 0 | D23: =SUM(D24:D24) -> 0 | E23: 0 | F23: 0 | G23: 0 | H23: 0 | I23: 0 | J23: 0 | K23: 0
A24: Governance Function | C24: 0 | D24: 0 | E24: 0 | F24: 0 | G24: 0 | H24: 0 | I24: 0 | J24: 0 | K24: 0
A25: Community and public safety | C25: =C26+C48+C54+C63+C66 -> 10850549.7 | D25: =D26+D48+D54+D63+D66 -> 27654928.9 | E25: 1127208.39 | F25: 866877 | G25: 3264951 | H25: 3264951 | I25: 6013087 | J25: 6287549 | K25: 6644815
A26: Community and social services | C26: =SUM(C27:C47) -> -160364.56 | D26: =SUM(D27:D47) -> 20717776.51 | E26: 483533.39 | F26: 201682 | G26: 201682 | H26: 201682 | I26: 219193 | J26: 226773 | K26: 300636
A27: Aged Care | C27: 0 | D27: 0 | E27: 0 | F27: 0 | G27: 0 | H27: 0 | I27: 0 | J27: 0 | K27: 0
A28: Agricultural | C28: 0 | D28: 0 | E28: 0 | F28: 0 | G28: 0 | H28: 0 | I28: 0 | J28: 0 | K28: 0
A29: Animal Care and Diseases | C29: 0 | D29: 0 | E29: 0 | F29: 0 | G29: 0 | H29: 0 | I29: 0 | J29: 0 | K29: 0
A30: Cemeteries, Funeral Parlours and Crematoriums | C30: 0 | D30: 0 | E30: 0 | F30: 0 | G30: 0 | H30: 0 | I30: 0 | J30: 0 | K30: 0
A31: Child Care Facilities | C31: 0 | D31: 0 | E31: 0 | F31: 0 | G31: 0 | H31: 0 | I31: 0 | J31: 0 | K31: 0
A32: Community Halls and Facilities | C32: 553815.47 | D32: 67242.54 | E32: 115367.78 | F32: 159944 | G32: 159944 | H32: 159944 | I32: 174495 | J32: 181127 | K32: 149567
A33: Consumer Protection | C33: 0 | D33: 0 | E33: 0 | F33: 0 | G33: 0 | H33: 0 | I33: 0 | J33: 0 | K33: 0
A34: Cultural Matters | C34: 0 | D34: 0 | E34: 0 | F34: 0 | G34: 0 | H34: 0 | I34: 0 | J34: 0 | K34: 0
A35: Disaster Management | C35: 0 | D35: 0 | E35: 0 | F35: 0 | G35: 0 | H35: 0 | I35: 0 | J35: 0 | K35: 0
A36: Education | C36: 0 | D36: 0 | E36: 0 | F36: 0 | G36: 0 | H36: 0 | I36: 0 | J36: 0 | K36: 0
A37: Indigenous and Customary Law | C37: 0 | D37: 0 | E37: 0 | F37: 0 | G37: 0 | H37: 0 | I37: 0 | J37: 0 | K37: 0
A38: Industrial Promotion | C38: 0 | D38: 0 | E38: 0 | F38: 0 | G38: 0 | H38: 0 | I38: 0 | J38: 0 | K38: 0
A39: Language Policy | C39: 0 | D39: 0 | E39: 0 | F39: 0 | G39: 0 | H39: 0 | I39: 0 | J39: 0 | K39: 0
A40: Libraries and Archives | C40: -714180.03 | D40: 20650533.97 | E40: 368165.61 | F40: 41738 | G40: 41738 | H40: 41738 | I40: 44698 | J40: 45646 | K40: 151069
A41: Literacy Programmes | C41: 0 | D41: 0 | E41: 0 | F41: 0 | G41: 0 | H41: 0 | I41: 0 | J41: 0 | K41: 0
A42: Media Services | C42: 0 | D42: 0 | E42: 0 | F42: 0 | G42: 0 | H42: 0 | I42: 0 | J42: 0 | K42: 0
A43: Museums and Art Galleries | C43: 0 | D43: 0 | E43: 0 | F43: 0 | G43: 0 | H43: 0 | I43: 0 | J43: 0 | K43: 0
A44: Population Development | C44: 0 | D44: 0 | E44: 0 | F44: 0 | G44: 0 | H44: 0 | I44: 0 | J44: 0 | K44: 0
A45: Provincial Cultural Matters | C45: 0 | D45: 0 | E45: 0 | F45: 0 | G45: 0 | H45: 0 | I45: 0 | J45: 0 | K45: 0
A46: Theatres | C46: 0 | D46: 0 | E46: 0 | F46: 0 | G46: 0 | H46: 0 | I46: 0 | J46: 0 | K46: 0
A47: Zoo's | C47: 0 | D47: 0 | E47: 0 | F47: 0 | G47: 0 | H47: 0 | I47: 0 | J47: 0 | K47: 0
A48: Sport and recreation | C48: =SUM(C49:C53) -> 0 | D48: =SUM(D49:D53) -> 0 | E48: 0 | F48: 0 | G48: 0 | H48: 0 | I48: 0 | J48: 0 | K48: 0
A49: Beaches and Jetties | C49: 0 | D49: 0 | E49: 0 | F49: 0 | G49: 0 | H49: 0 | I49: 0 | J49: 0 | K49: 0
A50: Casinos, Racing, Gambling, Wagering | C50: 0 | D50: 0 | E50: 0 | F50: 0 | G50: 0 | H50: 0 | I50: 0 | J50: 0 | K50: 0
A51: Community Parks (including Nurseries) | C51: 0 | D51: 0 | E51: 0 | F51: 0 | G51: 0 | H51: 0 | I51: 0 | J51: 0 | K51: 0
A52: Recreational Facilities | C52: 0 | D52: 0 | E52: 0 | F52: 0 | G52: 0 | H52: 0 | I52: 0 | J52: 0 | K52: 0
A53: Sports Grounds and Stadiums | C53: 0 | D53: 0 | E53: 0 | F53: 0 | G53: 0 | H53: 0 | I53: 0 | J53: 0 | K53: 0
A54: Public safety | C54: =SUM(C55:C62) -> 10962299.75 | D54: =SUM(D55:D62) -> 6371547.98 | E54: 643675 | F54: 665195 | G54: 3063269 | H54: 3063269 | I54: 5793894 | J54: 6060776 | K54: 6344179
A55: Civil Defence | C55: 0 | D55: 0 | E55: 0 | F55: 0 | G55: 0 | H55: 0 | I55: 0 | J55: 0 | K55: 0
A56: Cleansing | C56: 0 | D56: 0 | E56: 0 | F56: 0 | G56: 0 | H56: 0 | I56: 0 | J56: 0 | K56: 0
A57: Control of Public Nuisances | C57: 0 | D57: 0 | E57: 0 | F57: 0 | G57: 0 | H57: 0 | I57: 0 | J57: 0 | K57: 0
A58: Fencing and Fences | C58: 0 | D58: 0 | E58: 0 | F58: 0 | G58: 0 | H58: 0 | I58: 0 | J58: 0 | K58: 0
A59: Fire Fighting and Protection | C59: 0 | D59: 0 | E59: 0 | F59: 0 | G59: 0 | H59: 0 | I59: 0 | J59: 0 | K59: 0
A60: Licensing and Control of Animals | C60: 10372971.98 | D60: 5906347.66 | E60: 0 | F60: 0 | G60: 0 | H60: 0 | I60: 0 | J60: 0 | K60: 0
A61: Police Forces, Traffic and Street Parking Control | C61: 589327.77 | D61: 465200.32 | E61: 643675 | F61: 665195 | G61: 3063269 | H61: 3063269 | I61: 5793894 | J61: 6060776 | K61: 6344179
A62: Pounds | C62: 0 | D62: 0 | E62: 0 | F62: 0 | G62: 0 | H62: 0 | I62: 0 | J62: 0 | K62: 0
A63: Housing | C63: =SUM(C64:C65) -> 48614.51 | D63: =SUM(D64:D65) -> 565604.41 | E63: 0 | F63: 0 | G63: 0 | H63: 0 | I63: 0 | J63: 0 | K63: 0
A64: Housing | C64: 48614.51 | D64: 565604.41 | E64: 0 | F64: 0 | G64: 0 | H64: 0 | I64: 0 | J64: 0 | K64: 0
A65: Informal Settlements | C65: 0 | D65: 0 | E65: 0 | F65: 0 | G65: 0 | H65: 0 | I65: 0 | J65: 0 | K65: 0
A66: Health | C66: =SUM(C67:C73) -> 0 | D66: =SUM(D67:D73) -> 0 | E66: 0 | F66: 0 | G66: 0 | H66: 0 | I66: 0 | J66: 0 | K66: 0
A67: Ambulance | C67: 0 | D67: 0 | E67: 0 | F67: 0 | G67: 0 | H67: 0 | I67: 0 | J67: 0 | K67: 0
A68: Health Services | C68: 0 | D68: 0 | E68: 0 | F68: 0 | G68: 0 | H68: 0 | I68: 0 | J68: 0 | K68: 0
A69: Laboratory Services | C69: 0 | D69: 0 | E69: 0 | F69: 0 | G69: 0 | H69: 0 | I69: 0 | J69: 0 | K69: 0
A70: Food Control | C70: 0 | D70: 0 | E70: 0 | F70: 0 | G70: 0 | H70: 0 | I70: 0 | J70: 0 | K70: 0
A71: Health Surveillance and Prevention of Communicable Diseases including immunizations | C71: 0 | D71: 0 | E71: 0 | F71: 0 | G71: 0 | H71: 0 | I71: 0 | J71: 0 | K71: 0
A72: Vector Control | C72: 0 | D72: 0 | E72: 0 | F72: 0 | G72: 0 | H72: 0 | I72: 0 | J72: 0 | K72: 0
A73: Chemical Safety | C73: 0 | D73: 0 | E73: 0 | F73: 0 | G73: 0 | H73: 0 | I73: 0 | J73: 0 | K73: 0
A74: Economic and environmental services | C74: =C75+C86+C91 -> 45783783.1 | D74: =D75+D86+D91 -> 6886481.06 | E74: 66349281.73 | F74: 50444601 | G74: 52842676 | H74: 52842676 | I74: 52617395 | J74: 56929312 | K74: 59456470
A75: Planning and development | C75: =SUM(C76:C85) -> 1022346.52 | D75: =SUM(D76:D85) -> 1264829.59 | E75: 918058.15 | F75: 1290897 | G75: 3688972 | H75: 3688972 | I75: 1337896 | J75: 1438502 | K75: 1525400
A76: Billboards | C76: 0 | D76: 0 | E76: 0 | F76: 0 | G76: 0 | H76: 0 | I76: 0 | J76: 0 | K76: 0
A77: Corporate Wide Strategic Planning (IDPs, LEDs) | C77: 0 | D77: 0 | E77: 0 | F77: 0 | G77: 0 | H77: 0 | I77: 0 | J77: 0 | K77: 0
A78: Central City Improvement District | C78: 0 | D78: 0 | E78: 0 | F78: 0 | G78: 0 | H78: 0 | I78: 0 | J78: 0 | K78: 0
A79: Development Facilitation | C79: 0 | D79: 0 | E79: 0 | F79: 0 | G79: 0 | H79: 0 | I79: 0 | J79: 0 | K79: 0
A80: Economic Development/Planning | C80: 0 | D80: 0 | E80: 0 | F80: 0 | G80: 0 | H80: 0 | I80: 0 | J80: 0 | K80: 0
A81: Regional Planning and Development | C81: 0 | D81: 0 | E81: 0 | F81: 0 | G81: 0 | H81: 0 | I81: 0 | J81: 0 | K81: 0
A82: Town Planning, Building Regulations and Enforcement, and City Engineer | C82: 1022346.52 | D82: 1264829.59 | E82: 918058.15 | F82: 1290897 | G82: 3688972 | H82: 3688972 | I82: 1337896 | J82: 1438502 | K82: 1525400
A83: Project Management Unit | C83: 0 | D83: 0 | E83: 0 | F83: 0 | G83: 0 | H83: 0 | I83: 0 | J83: 0 | K83: 0
A84: Provincial Planning | C84: 0 | D84: 0 | E84: 0 | F84: 0 | G84: 0 | H84: 0 | I84: 0 | J84: 0 | K84: 0
A85: Support to Local Municipalities | C85: 0 | D85: 0 | E85: 0 | F85: 0 | G85: 0 | H85: 0 | I85: 0 | J85: 0 | K85: 0
A86: Road transport | C86: =SUM(C87:C90) -> 44761436.58 | D86: =SUM(D87:D90) -> 5621651.47 | E86: 65431223.58 | F86: 49153704 | G86: 49153704 | H86: 49153704 | I86: 51279499 | J86: 55490810 | K86: 57931070
A87: Public Transport | C87: 0 | D87: 0 | E87: 0 | F87: 0 | G87: 0 | H87: 0 | I87: 0 | J87: 0 | K87: 0
A88: Road and Traffic Regulation | C88: 0 | D88: 0 | E88: 0 | F88: 0 | G88: 0 | H88: 0 | I88: 0 | J88: 0 | K88: 0
A89: Roads | C89: 44761436.58 | D89: 5621651.47 | E89: 65431223.58 | F89: 49153704 | G89: 49153704 | H89: 49153704 | I89: 51279499 | J89: 55490810 | K89: 57931070
A90: Taxi Ranks | C90: 0 | D90: 0 | E90: 0 | F90: 0 | G90: 0 | H90: 0 | I90: 0 | J90: 0 | K90: 0
A91: Environmental protection | C91: =SUM(C92:C97) -> 0 | D91: =SUM(D92:D97) -> 0 | E91: 0 | F91: 0 | G91: 0 | H91: 0 | I91: 0 | J91: 0 | K91: 0
A92: Biodiversity and Landscape | C92: 0 | D92: 0 | E92: 0 | F92: 0 | G92: 0 | H92: 0 | I92: 0 | J92: 0 | K92: 0
A93: Coastal Protection | C93: 0 | D93: 0 | E93: 0 | F93: 0 | G93: 0 | H93: 0 | I93: 0 | J93: 0 | K93: 0
A94: Indigenous Forests | C94: 0 | D94: 0 | E94: 0 | F94: 0 | G94: 0 | H94: 0 | I94: 0 | J94: 0 | K94: 0
A95: Nature Conservation | C95: 0 | D95: 0 | E95: 0 | F95: 0 | G95: 0 | H95: 0 | I95: 0 | J95: 0 | K95: 0
A96: Pollution Control | C96: 0 | D96: 0 | E96: 0 | F96: 0 | G96: 0 | H96: 0 | I96: 0 | J96: 0 | K96: 0
A97: Soil Conservation | C97: 0 | D97: 0 | E97: 0 | F97: 0 | G97: 0 | H97: 0 | I97: 0 | J97: 0 | K97: 0
A98: Trading services | C98: =C99+C103+C107+C112 -> 317202228 | D98: =D99+D103+D107+D112 -> 352397136.6 | E98: 411311232.8 | F98: 562637878 | G98: 543480199 | H98: 543480199 | I98: 524753076 | J98: 567311363 | K98: =K99+K103+K107+K112 -> 588238076
A99: Energy sources | C99: =SUM(C100:C102) -> 164880991 | D99: =SUM(D100:D102) -> 184594819.1 | E99: 210037946.5 | F99: 283716948 | G99: 263681746 | H99: 263681746 | I99: 317041024 | J99: 338660144 | K99: 357980277
A100: Electricity | C100: 164880991 | D100: 184594819.1 | E100: 210037946.5 | F100: 283716948 | G100: 263681746 | H100: 263681746 | I100: 317041024 | J100: 338660144 | K100: 357980277
A101: Street Lighting and Signal Systems | C101: 0 | D101: 0 | E101: 0 | F101: 0 | G101: 0 | H101: 0 | I101: 0 | J101: 0 | K101: 0
A102: Nonelectric Energy | C102: 0 | D102: 0 | E102: 0 | F102: 0 | G102: 0 | H102: 0 | I102: 0 | J102: 0 | K102: 0
A103: Water management | C103: =SUM(C104:C106) -> 100863110.2 | D103: =SUM(D104:D106) -> 108439078 | E103: 135150794.7 | F103: 215575923 | G103: 213575923 | H103: 213575923 | I103: 139040465 | J103: 156832806 | K103: 154616671
A104: Water Treatment | C104: 271895 | D104: 204802.1 | E104: 0 | F104: 0 | G104: 0 | H104: 0 | I104: 0 | J104: 0 | K104: 0
A105: Water Distribution | C105: 100591215.2 | D105: 108234275.9 | E105: 135150794.7 | F105: 215575923 | G105: 213575923 | H105: 213575923 | I105: 139040465 | J105: 156832806 | K105: 154616671
A106: Water Storage | C106: 0 | D106: 0 | E106: 0 | F106: 0 | G106: 0 | H106: 0 | I106: 0 | J106: 0 | K106: 0
A107: Waste water management | C107: =SUM(C108:C111) -> 28318532.43 | D107: =SUM(D108:D111) -> 30665950.55 | E107: 33436368.89 | F107: 34898848 | G107: 36032283 | H107: 36032283 | I107: 38113894 | J107: 39859123 | K107: 42462197
A108: Public Toilets | C108: 0 | D108: 0 | E108: 0 | F108: 0 | G108: 0 | H108: 0 | I108: 0 | J108: 0 | K108: 0
A109: Sewerage | C109: 28318532.43 | D109: 30665950.55 | E109: 33436368.89 | F109: 34898848 | G109: 36032283 | H109: 36032283 | I109: 38113894 | J109: 39859123 | K109: 42462197
A110: Storm Water Management | C110: 0 | D110: 0 | E110: 0 | F110: 0 | G110: 0 | H110: 0 | I110: 0 | J110: 0 | K110: 0
A111: Waste Water Treatment | C111: 0 | D111: 0 | E111: 0 | F111: 0 | G111: 0 | H111: 0 | I111: 0 | J111: 0 | K111: 0
A112: Waste management | C112: =SUM(C113:C116) -> 23139594.34 | D112: =SUM(D113:D116) -> 28697288.97 | E112: 32686122.76 | F112: 28446159 | G112: 30190247 | H112: 30190247 | I112: 30557693 | J112: 31959290 | K112: 33178931
A113: Recycling | C113: 0 | D113: 0 | E113: 0 | F113: 0 | G113: 0 | H113: 0 | I113: 0 | J113: 0 | K113: 0
A114: Solid Waste Disposal (Landfill Sites) | C114: 0 | D114: 0 | E114: 0 | F114: 0 | G114: 0 | H114: 0 | I114: 0 | J114: 0 | K114: 0
A115: Solid Waste Removal | C115: 23139594.34 | D115: 28697288.97 | E115: 32686122.76 | F115: 28446159 | G115: 30190247 | H115: 30190247 | I115: 30557693 | J115: 31959290 | K115: 33178931
A116: Street Cleaning | C116: 0 | D116: 0 | E116: 0 | F116: 0 | G116: 0 | H116: 0 | I116: 0 | J116: 0 | K116: 0
A117: Other | C117: =SUM(C118:C123) -> 0 | D117: =SUM(D118:D123) -> 2910127.42 | E117: 9054387.37 | F117: 9622788 | G117: 12160042 | H117: 12160042 | I117: 12889645 | J117: 13482568 | K117: 14075802
A118: Abattoirs | C118: 0 | D118: 0 | E118: 0 | F118: 0 | G118: 0 | H118: 0 | I118: 0 | J118: 0 | K118: 0
A119: Air Transport | C119: 0 | D119: 0 | E119: 0 | F119: 0 | G119: 0 | H119: 0 | I119: 0 | J119: 0 | K119: 0
A120: Forestry | C120: 0 | D120: 0 | E120: 0 | F120: 0 | G120: 0 | H120: 0 | I120: 0 | J120: 0 | K120: 0
A121: Licensing and Regulation | C121: 0 | D121: 2910127.42 | E121: 9054387.37 | F121: 9622788 | G121: 12160042 | H121: 12160042 | I121: 12889645 | J121: 13482568 | K121: 14075802
A122: Markets | C122: 0 | D122: 0 | E122: 0 | F122: 0 | G122: 0 | H122: 0 | I122: 0 | J122: 0 | K122: 0
A123: Tourism | C123: 0 | D123: 0 | E123: 0 | F123: 0 | G123: 0 | H123: 0 | I123: 0 | J123: 0 | K123: 0
A124: ="Total "&A4 -> Total Revenue - Functional | B124: 2 | C124: =C5+C25+C74+C98+C117 -> 584823860.3 | D124: =D5+D25+D74+D98+D117 -> 643223887.9 | E124: 868931498 | F124: 1032451961 | G124: 1032458238 | H124: 1032458238 | I124: 1021447266 | J124: 1087084279 | K124: 1131397761
A126: Expenditure - Functional
A127: =A5 -> Municipal governance and administration | C127: =C128+C131+C145 -> 328488658.3 | D127: =D128+D131+D145 -> 311291838.4 | E127: 228773679.3 | F127: 262950489 | G127: 285417572 | H127: 285417572 | I127: 328405394 | J127: 332473494 | K127: 355322268
A128: Executive and council | C128: =SUM(C129:C130) -> 197182964.8 | D128: =SUM(D129:D130) -> 130033032.1 | E128: 44135856.51 | F128: 69366072 | G128: 78270302 | H128: 78270302 | I128: 68039607 | J128: 57280304 | K128: 58557856
A129: Mayor and Council | C129: 162213407.5 | D129: 101941917 | E129: 25746599.92 | F129: 44593972 | G129: 56213202 | H129: 56213202 | I129: 54738354 | J129: 44686883 | K129: 44997786
A130: Municipal Manager, Town Secretary and Chief Executive | C130: 34969557.21 | D130: 28091115.16 | E130: 18389256.59 | F130: 24772100 | G130: 22057100 | H130: 22057100 | I130: 13301253 | J130: 12593421 | K130: 13560070
A131: Finance and administration | C131: =SUM(C132:C144) -> 129082090.2 | D131: =SUM(D132:D144) -> 175025751 | E131: 181648899.5 | F131: 190613414 | G131: 204176267 | H131: 204176267 | I131: 256217033 | J131: 270853591 | K131: 292253773
A132: Administrative and Corporate Support | C132: 25873495.26 | D132: 20664555.71 | E132: 29198713.79 | F132: 33061677 | G132: 32711677 | H132: 32711677 | I132: 34212252 | J132: 35650784 | K132: 34044882
A133: Asset Management | C133: 0 | D133: 0 | E133: -1191953 | F133: 17929734 | G133: 17929734 | H133: 17929734 | I133: 11024025 | J133: 12387737 | K133: 13484309
A134: Finance | C134: 52001537.33 | D134: 89102519.77 | E134: 81575292.94 | F134: 48081396 | G134: 64116947 | H134: 64116947 | I134: 126974347 | J134: 134704241 | K134: 149621762
A135: Fleet Management | C135: 0 | D135: 0 | E135: 0 | F135: 11477529 | G135: 11437529 | H135: 11437529 | I135: 6645814 | J135: 7762951 | K135: 7999659
A136: Human Resources | C136: 9680266.29 | D136: 11756603.52 | E136: 10365799.71 | F136: 16323681 | G136: 16850681 | H136: 16850681 | I136: 17354133 | J136: 17652978 | K136: 21896444
A137: Information Technology | C137: 3968788.39 | D137: 19424655.3 | E137: 24500866.87 | F137: 24503147 | G137: 22427230 | H137: 22427230 | I137: 20841271 | J137: 23706627 | K137: 23602641
A138: Legal Services | C138: 15151194.92 | D138: 7025061.89 | E138: 6115998.83 | F138: 7496253 | G138: 9666253 | H138: 9666253 | I138: 7930430 | J138: 8954096 | K138: 9939846
A139: Marketing, Customer Relations, Publicity and Media Co-ordination | C139: 0 | D139: 0 | E139: 0 | F139: 0 | G139: 0 | H139: 0 | I139: 0 | J139: 0 | K139: 0
A140: Property Services | C140: 0 | D140: 0 | E140: 0 | F140: 600000 | G140: 1500000 | H140: 1500000 | I140: 825800 | J140: 854586 | K140: 883388
A141: Risk Management | C141: 852841.41 | D141: 2436010.23 | E141: 5118104.18 | F141: 1923617 | G141: 1923617 | H141: 1923617 | I141: 3783264 | J141: 2117091 | K141: 2138357
A142: Security Services | C142: 16627606.14 | D142: 19141423.42 | E142: 20242133.03 | F142: 21681112 | G142: 18097331 | H142: 18097331 | I142: 18328714 | J142: 18373278 | K142: 18337545
A143: Supply Chain Management | C143: 4926360.44 | D143: 5474921.19 | E143: 5723943.16 | F143: 7535268 | G143: 7515268 | H143: 7515268 | I143: 8296983 | J143: 8689222 | K143: 10304940
A144: Valuation Service | C144: 0 | D144: 0 | E144: 0 | F144: 0 | G144: 0 | H144: 0 | I144: 0 | J144: 0 | K144: 0
A145: Internal audit | C145: =SUM(C146:C146) -> 2223603.38 | D145: =SUM(D146:D146) -> 6233055.26 | E145: 2988923.23 | F145: 2971003 | G145: 2971003 | H145: 2971003 | I145: 4148754 | J145: 4339599 | K145: 4510639
A146: Governance Function | C146: 2223603.38 | D146: 6233055.26 | E146: 2988923.23 | F146: 2971003 | G146: 2971003 | H146: 2971003 | I146: 4148754 | J146: 4339599 | K146: 4510639
A147: Community and public safety | C147: =C148+C170+C176+C185+C188 -> 52762824.57 | D147: =D148+D170+D176+D185+D188 -> 40324286.81 | E147: 59999578.26 | F147: 61210286 | G147: 60909286 | H147: 60909286 | I147: 62558140 | J147: 64275927 | K147: 69517632
A148: Community and social services | C148: =SUM(C149:C169) -> 29168667.9 | D148: =SUM(D149:D169) -> 23047232.34 | E148: 33670880.37 | F148: 30941634 | G148: 31140634 | H148: 31140634 | I148: 33700335 | J148: 34776198 | K148: 39501525
A149: Aged Care | C149: 0 | D149: 0 | E149: 0 | F149: 0 | G149: 0 | H149: 0 | I149: 0 | J149: 0 | K149: 0
A150: Agricultural | C150: 0 | D150: 0 | E150: 0 | F150: 0 | G150: 0 | H150: 0 | I150: 0 | J150: 0 | K150: 0
A151: Animal Care and Diseases | C151: 0 | D151: 0 | E151: 0 | F151: 0 | G151: 0 | H151: 0 | I151: 0 | J151: 0 | K151: 0
A152: Cemeteries, Funeral Parlours and Crematoriums | C152: 17271079.39 | D152: 14252781.99 | E152: 15108288.32 | F152: 15824409 | G152: 15823409 | H152: 15823409 | I152: 16793896 | J152: 17357814 | K152: 19804427
A153: Child Care Facilities | C153: 0 | D153: 0 | E153: 0 | F153: 0 | G153: 0 | H153: 0 | I153: 0 | J153: 0 | K153: 0
A154: Community Halls and Facilities | C154: 590762.32 | D154: 550162.14 | E154: 9410833.19 | F154: 3939903 | G154: 4139903 | H154: 4139903 | I154: 5165943 | J154: 5313418 | K154: 5309237
A155: Consumer Protection | C155: 0 | D155: 0 | E155: 0 | F155: 0 | G155: 0 | H155: 0 | I155: 0 | J155: 0 | K155: 0
A156: Cultural Matters | C156: 0 | D156: 0 | E156: 0 | F156: 0 | G156: 0 | H156: 0 | I156: 0 | J156: 0 | K156: 0
A157: Disaster Management | C157: 187120 | D157: 0 | E157: 34383.2 | F157: 400000 | G157: 400000 | H157: 400000 | I157: 436391 | J157: 455638 | K157: 436810
A158: Education | C158: 0 | D158: 0 | E158: 0 | F158: 0 | G158: 0 | H158: 0 | I158: 0 | J158: 0 | K158: 0
A159: =A37 -> Indigenous and Customary Law | C159: 0 | D159: 0 | E159: 0 | F159: 0 | G159: 0 | H159: 0 | I159: 0 | J159: 0 | K159: 0
A160: Industrial Promotion | C160: 0 | D160: 0 | E160: 0 | F160: 0 | G160: 0 | H160: 0 | I160: 0 | J160: 0 | K160: 0
A161: Language Policy | C161: 0 | D161: 0 | E161: 0 | F161: 0 | G161: 0 | H161: 0 | I161: 0 | J161: 0 | K161: 0
A162: Libraries and Archives | C162: 11119706.19 | D162: 8244288.21 | E162: 9117375.66 | F162: 10777322 | G162: 10777322 | H162: 10777322 | I162: 11304105 | J162: 11649328 | K162: 13951051
A163: Literacy Programmes | C163: 0 | D163: 0 | E163: 0 | F163: 0 | G163: 0 | H163: 0 | I163: 0 | J163: 0 | K163: 0
A164: Media Services | C164: 0 | D164: 0 | E164: 0 | F164: 0 | G164: 0 | H164: 0 | I164: 0 | J164: 0 | K164: 0
A165: Museums and Art Galleries | C165: 0 | D165: 0 | E165: 0 | F165: 0 | G165: 0 | H165: 0 | I165: 0 | J165: 0 | K165: 0
A166: Population Development | C166: 0 | D166: 0 | E166: 0 | F166: 0 | G166: 0 | H166: 0 | I166: 0 | J166: 0 | K166: 0
A167: Provincial Cultural Matters | C167: 0 | D167: 0 | E167: 0 | F167: 0 | G167: 0 | H167: 0 | I167: 0 | J167: 0 | K167: 0
A168: Theatres | C168: 0 | D168: 0 | E168: 0 | F168: 0 | G168: 0 | H168: 0 | I168: 0 | J168: 0 | K168: 0
A169: Zoo's | C169: 0 | D169: 0 | E169: 0 | F169: 0 | G169: 0 | H169: 0 | I169: 0 | J169: 0 | K169: 0
A170: Sport and recreation | C170: =SUM(C171:C175) -> 129064.58 | D170: =SUM(D171:D175) -> 324744.72 | E170: 2471400.89 | F170: 505034 | G170: 505034 | H170: 505034 | I170: 531368 | J170: 552110 | K170: 551966
A171: Beaches and Jetties | C171: 0 | D171: 0 | E171: 0 | F171: 0 | G171: 0 | H171: 0 | I171: 0 | J171: 0 | K171: 0
A172: Casinos, Racing, Gambling, Wagering | C172: 0 | D172: 0 | E172: 0 | F172: 0 | G172: 0 | H172: 0 | I172: 0 | J172: 0 | K172: 0
A173: Community Parks (including Nurseries) | C173: 0 | D173: 0 | E173: 0 | F173: 0 | G173: 0 | H173: 0 | I173: 0 | J173: 0 | K173: 0
A174: Recreational Facilities | C174: 0 | D174: 0 | E174: 0 | F174: 436044 | G174: 436044 | H174: 436044 | I174: 456102 | J174: 476626 | K174: 476626
A175: Sports Grounds and Stadiums | C175: 129064.58 | D175: 324744.72 | E175: 2471400.89 | F175: 68990 | G175: 68990 | H175: 68990 | I175: 75266 | J175: 75484 | K175: 75340
A176: Public safety | C176: =SUM(C177:C184) -> 19680571 | D176: =SUM(D177:D184) -> 13674779.69 | E176: 20141554.62 | F176: 25306341 | G176: 24806341 | H176: 24806341 | I176: 23573467 | J176: 24061809 | K176: 24455414
A177: Civil Defence | C177: 0 | D177: 0 | E177: 0 | F177: 0 | G177: 0 | H177: 0 | I177: 0 | J177: 0 | K177: 0
A178: Cleansing | C178: 0 | D178: 0 | E178: 0 | F178: 0 | G178: 0 | H178: 0 | I178: 0 | J178: 0 | K178: 0
A179: =A57 -> Control of Public Nuisances | C179: 0 | D179: 0 | E179: 0 | F179: 0 | G179: 0 | H179: 0 | I179: 0 | J179: 0 | K179: 0
A180: Fencing and Fences | C180: 0 | D180: 0 | E180: 0 | F180: 0 | G180: 0 | H180: 0 | I180: 0 | J180: 0 | K180: 0
A181: Fire Fighting and Protection | C181: 0 | D181: 0 | E181: 0 | F181: 0 | G181: 0 | H181: 0 | I181: 0 | J181: 0 | K181: 0
A182: Licensing and Control of Animals | C182: 9738786.63 | D182: 4194706.08 | E182: 9005595.11 | F182: 12543020 | G182: 12483020 | H182: 12483020 | I182: 13214325 | J182: 13669887 | K182: 14085790
A183: Police Forces, Traffic and Street Parking Control | C183: 9941784.37 | D183: 9480073.61 | E183: 11135959.51 | F183: 12763321 | G183: 12323321 | H183: 12323321 | I183: 10359142 | J183: 10391922 | K183: 10369624
A184: Pounds | C184: 0 | D184: 0 | E184: 0 | F184: 0 | G184: 0 | H184: 0 | I184: 0 | J184: 0 | K184: 0
A185: =A63 -> Housing | C185: =SUM(C186:C187) -> 3784521.09 | D185: =SUM(D186:D187) -> 3277530.06 | E185: 3715742.38 | F185: 4457277 | G185: 4457277 | H185: 4457277 | I185: 4752970 | J185: 4885810 | K185: 5008727
A186: Housing | C186: 3784521.09 | D186: 3277530.06 | E186: 3715742.38 | F186: 4457277 | G186: 4457277 | H186: 4457277 | I186: 4752970 | J186: 4885810 | K186: 5008727
A187: Informal Settlements | C187: 0 | D187: 0 | E187: 0 | F187: 0 | G187: 0 | H187: 0 | I187: 0 | J187: 0 | K187: 0
A188: Health | C188: =SUM(C189:C195) -> 0 | D188: =SUM(D189:D195) -> 0 | E188: 0 | F188: 0 | G188: 0 | H188: 0 | I188: 0 | J188: 0 | K188: 0
A189: Ambulance | C189: 0 | D189: 0 | E189: 0 | F189: 0 | G189: 0 | H189: 0 | I189: 0 | J189: 0 | K189: 0
A190: Health Services | C190: 0 | D190: 0 | E190: 0 | F190: 0 | G190: 0 | H190: 0 | I190: 0 | J190: 0 | K190: 0
A191: Laboratory Services | C191: 0 | D191: 0 | E191: 0 | F191: 0 | G191: 0 | H191: 0 | I191: 0 | J191: 0 | K191: 0
A192: Food Control | C192: 0 | D192: 0 | E192: 0 | F192: 0 | G192: 0 | H192: 0 | I192: 0 | J192: 0 | K192: 0
A193: Health Surveillance and Prevention of Communicable Diseases including immunizations | C193: 0 | D193: 0 | E193: 0 | F193: 0 | G193: 0 | H193: 0 | I193: 0 | J193: 0 | K193: 0
A194: Vector Control | C194: 0 | D194: 0 | E194: 0 | F194: 0 | G194: 0 | H194: 0 | I194: 0 | J194: 0 | K194: 0
A195: Chemical Safety | C195: 0 | D195: 0 | E195: 0 | F195: 0 | G195: 0 | H195: 0 | I195: 0 | J195: 0 | K195: 0
A196: Economic and environmental services | C196: =C197+C208+C213 -> 31041454.15 | D196: =D197+D208+D213 -> 39815422.57 | E196: 33757302.3 | F196: 76824868 | G196: 75534903 | H196: 75534903 | I196: 77485056 | J196: 80806999 | K196: 82803017
A197: Planning and development | C197: =SUM(C198:C207) -> 16365242.72 | D197: =SUM(D198:D207) -> 16123735.44 | E197: 14435661.32 | F197: 20995599 | G197: 19435994 | H197: 19435994 | I197: 24360290 | J197: 25704003 | K197: 24959058
A198: Billboards | C198: 0 | D198: 0 | E198: 0 | F198: 0 | G198: 0 | H198: 0 | I198: 0 | J198: 0 | K198: 0
A199: Corporate Wide Strategic Planning (IDPs, LEDs) | C199: 0 | D199: 0 | E199: 0 | F199: 0 | G199: 0 | H199: 0 | I199: 0 | J199: 0 | K199: 0
A200: Central City Improvement District | C200: 0 | D200: 0 | E200: 0 | F200: 0 | G200: 0 | H200: 0 | I200: 0 | J200: 0 | K200: 0
A201: Development Facilitation | C201: 0 | D201: 0 | E201: 0 | F201: 0 | G201: 0 | H201: 0 | I201: 0 | J201: 0 | K201: 0
... 51 more rows

Sheet A3-FinPerf V
A1: =muni&" - "&Approve2 -> Choose name from list - Table A3 Budgeted Financial Performance (revenue and expenditure by municipal vote)
A2: =Vdesc -> Vote Description | B2: =head27 -> Ref | C2: =head1b -> 2021/22 | D2: =head1A -> 2022/23 | E2: =Head1 -> 2023/24 | F2: =Head2 -> Current Year 2024/25 | I2: =Head3 -> 2025/26 Medium Term Revenue & Expenditure Framework | L2: =Head4 -> LTFS
A3: R thousand | C3: =Head5 -> Audited Outcome | D3: =Head5 -> Audited Outcome | E3: =Head5 -> Audited Outcome | F3: =Head6 -> Original Budget | G3: =Head7 -> Adjusted Budget | H3: =Head8 -> Full Year Forecast | I3: =Head9 -> Budget Year 2025/26 | J3: =Head10 -> Budget Year +1 2026/27 | K3: =Head11 -> Budget Year +2 2027/28 | L3: =Head12 -> Forecast 2028/29 | M3: =Head13 -> Forecast 2029/30 | N3: =Head14 -> Forecast 2030/31 | O3: =Head15 -> Forecast 2031/32 | P3: =Head16 -> Forecast 2032/33 | Q3: =Head17 -> Forecast 2033/34 | R3: =Head18 -> Forecast 2034/35 | S3: =Head19 -> Forecast 2035/36 | T3: =Head20 -> Forecast 2036/37 | U3: =Head21 -> Forecast 2037/38 | V3: =Head22 -> Forecast 2038/39 | W3: =Head23 -> Forecast 2039/40
A4: Revenue by Vote | B4: 1
A5: =A3A!A5 -> Vote 1 - Office of Municipal Manager | C5: =A3A!C5 -> 2605227.44 | D5: =A3A!D5 -> 9265607.97 | E5: =A3A!E5 -> 414076.98 | F5: =A3A!F5 -> 708417 | G5: =A3A!G5 -> 708423 | H5: =A3A!H5 -> 708423 | I5: =A3A!I5 -> 769885 | J5: =A3A!J5 -> 774991 | K5: =A3A!K5 -> 302260
A6: =A3A!A16 -> Vote 2 - Budget and Treasury | C6: =A3A!C16 -> 204140720.8 | D6: =A3A!D16 -> 243263829.9 | E6: =A3A!E16 -> 379166916.3 | F6: =A3A!F16 -> 405650150 | G6: =A3A!G16 -> 409880696 | H6: =A3A!H16 -> 409880696 | I6: =A3A!I16 -> 421775878 | J6: =A3A!J16 -> 439437347 | K6: =A3A!K16 -> 459819187
A7: =A3A!A27 -> Vote 3 - Corporate Services | C7: =A3A!C27 -> 0 | D7: =A3A!D27 -> 0 | E7: =A3A!E27 -> 0 | F7: =A3A!F27 -> 0 | G7: =A3A!G27 -> 0 | H7: =A3A!H27 -> 0 | I7: =A3A!I27 -> 0 | J7: =A3A!J27 -> 0 | K7: =A3A!K27 -> 0
A8: =A3A!A38 -> Vote 4 - Social Service | C8: =A3A!C38 -> 33941529.53 | D8: =A3A!D38 -> 58696740.88 | E8: =A3A!E38 -> 42867718.52 | F8: =A3A!F38 -> 39033376 | G8: =A3A!G38 -> 45712792 | H8: =A3A!H38 -> 45712792 | I8: =A3A!I38 -> 49562464 | J8: =A3A!J38 -> 51836038 | K8: =A3A!K38 -> 54006179
A9: =A3A!A49 -> Vote 5 - Technical and Engineering Services | C9: =A3A!C49 -> 343114036 | D9: =A3A!D49 -> 330732879.6 | E9: =A3A!E49 -> 445564728.1 | F9: =A3A!F49 -> 585866673 | G9: =A3A!G49 -> 572564907 | H9: =A3A!H49 -> 572564907 | I9: =A3A!I49 -> 548103182 | J9: =A3A!J49 -> 593704032 | K9: =A3A!K49 -> 615851366
A10: =A3A!A60 -> Vote 6 - Property, Planning & Development | C10: =A3A!C60 -> 1022346.52 | D10: =A3A!D60 -> 1264829.59 | E10: =A3A!E60 -> 918058.15 | F10: =A3A!F60 -> 1290897 | G10: =A3A!G60 -> 3688972 | H10: =A3A!H60 -> 3688972 | I10: =A3A!I60 -> 1337896 | J10: =A3A!J60 -> 1438502 | K10: =A3A!K60 -> 1525400
A11: =A3A!A71 -> Vote 7 - Office of the Mayor/Strategic Office | C11: =A3A!C71 -> 0 | D11: =A3A!D71 -> 0 | E11: =A3A!E71 -> 0 | F11: =A3A!F71 -> 0 | G11: =A3A!G71 -> 0 | H11: =A3A!H71 -> 0 | I11: =A3A!I71 -> 0 | J11: =A3A!J71 -> 0 | K11: =A3A!K71 -> 0
A12: =A3A!A82 -> Vote 8 - COMMUNITY & SOCIAL SERVICES | C12: =A3A!C82 -> 0 | D12: =A3A!D82 -> 0 | E12: =A3A!E82 -> 0 | F12: =A3A!F82 -> -97552 | G12: =A3A!G82 -> -97552 | H12: =A3A!H82 -> -97552 | I12: =A3A!I82 -> -102039 | J12: =A3A!J82 -> -106631 | K12: =A3A!K82 -> -106631
A13: =A3A!A93 -> Vote 9 - [NAME OF VOTE 9] | C13: =A3A!C93 -> 0 | D13: =A3A!D93 -> 0 | E13: =A3A!E93 -> 0 | F13: =A3A!F93 -> 0 | G13: =A3A!G93 -> 0 | H13: =A3A!H93 -> 0 | I13: =A3A!I93 -> 0 | J13: =A3A!J93 -> 0 | K13: =A3A!K93 -> 0
A14: =A3A!A104 -> Vote 10 - [NAME OF VOTE 10] | C14: =A3A!C104 -> 0 | D14: =A3A!D104 -> 0 | E14: =A3A!E104 -> 0 | F14: =A3A!F104 -> 0 | G14: =A3A!G104 -> 0 | H14: =A3A!H104 -> 0 | I14: =A3A!I104 -> 0 | J14: =A3A!J104 -> 0 | K14: =A3A!K104 -> 0
A15: =A3A!A115 -> Vote 11 - [NAME OF VOTE 11] | C15: =A3A!C115 -> 0 | D15: =A3A!D115 -> 0 | E15: =A3A!E115 -> 0 | F15: =A3A!F115 -> 0 | G15: =A3A!G115 -> 0 | H15: =A3A!H115 -> 0 | I15: =A3A!I115 -> 0 | J15: =A3A!J115 -> 0 | K15: =A3A!K115 -> 0 | L15: =A5A!L115 -> 0
A16: =A3A!A126 -> Vote 12 - [NAME OF VOTE 12] | C16: =A3A!C126 -> 0 | D16: =A3A!D126 -> 0 | E16: =A3A!E126 -> 0 | F16: =A3A!F126 -> 0 | G16: =A3A!G126 -> 0 | H16: =A3A!H126 -> 0 | I16: =A3A!I126 -> 0 | J16: =A3A!J126 -> 0 | K16: =A3A!K126 -> 0 | L16: =A5A!L126 -> 0
A17: =A3A!A137 -> Vote 13 - [NAME OF VOTE 13] | C17: =A3A!C137 -> 0 | D17: =A3A!D137 -> 0 | E17: =A3A!E137 -> 0 | F17: =A3A!F137 -> 0 | G17: =A3A!G137 -> 0 | H17: =A3A!H137 -> 0 | I17: =A3A!I137 -> 0 | J17: =A3A!J137 -> 0 | K17: =A3A!K137 -> 0 | L17: =A5A!L137 -> 0
A18: =A3A!A148 -> Vote 14 - [NAME OF VOTE 14] | C18: =A3A!C148 -> 0 | D18: =A3A!D148 -> 0 | E18: =A3A!E148 -> 0 | F18: =A3A!F148 -> 0 | G18: =A3A!G148 -> 0 | H18: =A3A!H148 -> 0 | I18: =A3A!I148 -> 0 | J18: =A3A!J148 -> 0 | K18: =A3A!K148 -> 0 | L18: =A5A!L148 -> 0
A19: =A3A!A159 -> Vote 15 - [NAME OF VOTE 15] | C19: =A3A!C159 -> 0 | D19: =A3A!D159 -> 0 | E19: =A3A!E159 -> 0 | F19: =A3A!F159 -> 0 | G19: =A3A!G159 -> 0 | H19: =A3A!H159 -> 0 | I19: =A3A!I159 -> 0 | J19: =A3A!J159 -> 0 | K19: =A3A!K159 -> 0 | L19: =A5A!L159 -> 0
A20: Total Revenue by Vote | B20: 2 | C20: =SUM(C5:C19) -> 584823860.3 | D20: =SUM(D5:D19) -> 643223887.9 | E20: 868931498 | F20: 1032451961 | G20: 1032458238 | H20: 1032458238 | I20: 1021447266 | J20: 1087084279 | K20: 1131397761
A22: Expenditure by Vote to be appropriated | B22: 1
A23: =A3A!A173 -> Vote 1 - Office of Municipal Manager | C23: =A3A!C173 -> 202902576.1 | D23: =A3A!D173 -> 116606663.2 | E23: =A3A!E173 -> 37726476.52 | F23: =A3A!F173 -> 55062226 | G23: =A3A!G173 -> 65681456 | H23: =A3A!H173 -> 65681456 | I23: =A3A!I173 -> 63102902 | J23: =A3A!J173 -> 62242764 | K23: =A3A!K173 -> 63753452
A24: =A3A!A184 -> Vote 2 - Budget and Treasury | C24: =A3A!C184 -> 64161801.49 | D24: =A3A!D184 -> 117023702.7 | E24: =A3A!E184 -> 100922356.9 | F24: =A3A!F184 -> 79416307 | G24: =A3A!G184 -> 113785502 | H24: =A3A!H184 -> 113785502 | I24: =A3A!I184 -> 137185341 | J24: =A3A!J184 -> 145380590 | K24: =A3A!K184 -> 161942420
A25: =A3A!A195 -> Vote 3 - Corporate Services | C25: =A3A!C195 -> 40728746.29 | D25: =A3A!D195 -> 51482707.99 | E25: =A3A!E195 -> 57342665.88 | F25: =A3A!F195 -> 64471563 | G25: =A3A!G195 -> 64247646 | H25: =A3A!H195 -> 64247646 | I25: =A3A!I195 -> 59705104 | J25: =A3A!J195 -> 63970211 | K25: =A3A!K195 -> 69047889
A26: =A3A!A206 -> Vote 4 - Social Service | C26: =A3A!C206 -> 87597798.17 | D26: =A3A!D206 -> 78660506.4 | E26: =A3A!E206 -> 96468303.73 | F26: =A3A!F206 -> 99525421 | G26: =A3A!G206 -> 95840640 | H26: =A3A!H206 -> 95840640 | I26: =A3A!I206 -> 100036508 | J26: =A3A!J206 -> 102598511 | K26: =A3A!K206 -> 109496864
A27: =A3A!A217 -> Vote 5 - Technical and Engineering Services | C27: =A3A!C217 -> 271223381.4 | D27: =A3A!D217 -> 317484410.9 | E27: =A3A!E217 -> 474240077.2 | F27: =A3A!F217 -> 472156947 | G27: =A3A!G217 -> 429143491 | H27: =A3A!H217 -> 429143491 | I27: =A3A!I217 -> 468492679 | J27: =A3A!J217 -> 501641397 | K27: =A3A!K217 -> 508830671
A28: =A3A!A228 -> Vote 6 - Property, Planning & Development | C28: =A3A!C228 -> 14358075.31 | D28: =A3A!D228 -> 15330472.15 | E28: =A3A!E228 -> 13742649.55 | F28: =A3A!F228 -> 20000315 | G28: =A3A!G228 -> 18420707 | H28: =A3A!H228 -> 18420707 | I28: =A3A!I228 -> 20106210 | J28: =A3A!J228 -> 21484245 | K28: =A3A!K228 -> 20786708
A29: =A3A!A239 -> Vote 7 - Office of the Mayor/Strategic Office | C29: =A3A!C239 -> 7271864.75 | D29: =A3A!D239 -> 10352404.55 | E29: =A3A!E239 -> 15699530.95 | F29: =A3A!F239 -> 25066045 | G29: =A3A!G239 -> 25051045 | H29: =A3A!H239 -> 25051045 | I29: =A3A!I239 -> 36194737 | J29: =A3A!J239 -> 26294587 | K29: =A3A!K239 -> 24784998
A30: =A3A!A250 -> Vote 8 - COMMUNITY & SOCIAL SERVICES | C30: =A3A!C250 -> 0 | D30: =A3A!D250 -> 0 | E30: =A3A!E250 -> 0 | F30: =A3A!F250 -> 0 | G30: =A3A!G250 -> 0 | H30: =A3A!H250 -> 0 | I30: =A3A!I250 -> 0 | J30: =A3A!J250 -> 0 | K30: =A3A!K250 -> 0
A31: =A3A!A261 -> Vote 9 - [NAME OF VOTE 9] | C31: =A3A!C261 -> 0 | D31: =A3A!D261 -> 0 | E31: =A3A!E261 -> 0 | F31: =A3A!F261 -> 0 | G31: =A3A!G261 -> 0 | H31: =A3A!H261 -> 0 | I31: =A3A!I261 -> 0 | J31: =A3A!J261 -> 0 | K31: =A3A!K261 -> 0
A32: =A3A!A272 -> Vote 10 - [NAME OF VOTE 10] | C32: =A3A!C272 -> 0 | D32: =A3A!D272 -> 0 | E32: =A3A!E272 -> 0 | F32: =A3A!F272 -> 0 | G32: =A3A!G272 -> 0 | H32: =A3A!H272 -> 0 | I32: =A3A!I272 -> 0 | J32: =A3A!J272 -> 0 | K32: =A3A!K272 -> 0
A33: =A3A!A283 -> Vote 11 - [NAME OF VOTE 11] | C33: =A3A!C283 -> 0 | D33: =A3A!D283 -> 0 | E33: =A3A!E283 -> 0 | F33: =A3A!F283 -> 0 | G33: =A3A!G283 -> 0 | H33: =A3A!H283 -> 0 | I33: =A3A!I283 -> 0 | J33: =A3A!J283 -> 0 | K33: =A3A!K283 -> 0 | L33: =A3A!L284 -> 0
A34: =A3A!A294 -> Vote 12 - [NAME OF VOTE 12] | C34: =A3A!C294 -> 0 | D34: =A3A!D294 -> 0 | E34: =A3A!E294 -> 0 | F34: =A3A!F294 -> 0 | G34: =A3A!G294 -> 0 | H34: =A3A!H294 -> 0 | I34: =A3A!I294 -> 0 | J34: =A3A!J294 -> 0 | K34: =A3A!K294 -> 0 | L34: =A3A!L295 -> 0
A35: =A3A!A305 -> Vote 13 - [NAME OF VOTE 13] | C35: =A3A!C305 -> 0 | D35: =A3A!D305 -> 0 | E35: =A3A!E305 -> 0 | F35: =A3A!F305 -> 0 | G35: =A3A!G305 -> 0 | H35: =A3A!H305 -> 0 | I35: =A3A!I305 -> 0 | J35: =A3A!J305 -> 0 | K35: =A3A!K305 -> 0 | L35: =A3A!L306 -> 0
A36: =A3A!A316 -> Vote 14 - [NAME OF VOTE 14] | C36: =A3A!C316 -> 0 | D36: =A3A!D316 -> 0 | E36: =A3A!E316 -> 0 | F36: =A3A!F316 -> 0 | G36: =A3A!G316 -> 0 | H36: =A3A!H316 -> 0 | I36: =A3A!I316 -> 0 | J36: =A3A!J316 -> 0 | K36: =A3A!K316 -> 0 | L36: =A3A!L317 -> 0
A37: =A3A!A327 -> Vote 15 - [NAME OF VOTE 15] | C37: =A3A!C327 -> 0 | D37: =A3A!D327 -> 0 | E37: =A3A!E327 -> 0 | F37: =A3A!F327 -> 0 | G37: =A3A!G327 -> 0 | H37: =A3A!H327 -> 0 | I37: =A3A!I327 -> 0 | J37: =A3A!J327 -> 0 | K37: =A3A!K327 -> 0 | L37: =A3A!L328 -> 0
A38: Total Expenditure by Vote | B38: 2 | C38: =SUM(C23:C37) -> 688244243.6 | D38: =SUM(D23:D37) -> 706940867.8 | E38: =SUM(E23:E37) -> 796142060.7 | F38: 815698824 | G38: 812170487 | H38: 812170487 | I38: 884823481 | J38: 923612305 | K38: 958643002 | L38: =SUM(L23:L29) -> 0 | M38: 0 | N38: 0 | O38: 0 | P38: 0 | Q38: 0 | R38: 0 | S38: 0 | T38: 0 | U38: 0 | V38: 0 | W38: 0
A39: =result -> Surplus/(Deficit) for the year | B39: 2 | C39: =C20-C38 -> -103420383.3 | D39: =D20-D38 -> -63716979.91 | E39: 72789437.24 | F39: 216753137 | G39: 220287751 | H39: 220287751 | I39: 136623785 | J39: 163471974 | K39: 172754759 | L39: 0 | M39: 0 | N39: 0 | O39: 0 | P39: 0 | Q39: 0 | R39: 0 | S39: 0 | T39: 0 | U39: 0 | V39: 0 | W39: 0
A40: =head27a -> References
A41: 1. Insert 'Vote'; e.g. department, if different to functional classification structure
A42: 2. Must reconcile to Budgeted Financial Performance (revenue and expenditure)
A43: 3. Assign share in 'associate' to relevant Vote

Sheet A3A
A1: =muni&" - "&Approve2&"A" -> Choose name from list - Table A3 Budgeted Financial Performance (revenue and expenditure by municipal vote)A
A2: =Vdesc -> Vote Description | B2: =head27 -> Ref | C2: =head1b -> 2021/22 | D2: =head1A -> 2022/23 | E2: =Head1 -> 2023/24 | F2: =Head2 -> Current Year 2024/25 | I2: =Head3 -> 2025/26 Medium Term Revenue & Expenditure Framework | L2: =Head4 -> LTFS
A3: R thousand | C3: =Head5 -> Audited Outcome | D3: =Head5 -> Audited Outcome | E3: =Head5 -> Audited Outcome | F3: =Head6 -> Original Budget | G3: =Head7 -> Adjusted Budget | H3: =Head8 -> Full Year Forecast | I3: =Head9 -> Budget Year 2025/26 | J3: =Head10 -> Budget Year +1 2026/27 | K3: =Head11 -> Budget Year +2 2027/28 | L3: =Head12 -> Forecast 2028/29 | M3: =Head13 -> Forecast 2029/30 | N3: =Head14 -> Forecast 2030/31 | O3: =Head15 -> Forecast 2031/32 | P3: =Head16 -> Forecast 2032/33 | Q3: =Head17 -> Forecast 2033/34 | R3: =Head18 -> Forecast 2034/35 | S3: =Head19 -> Forecast 2035/36 | T3: =Head20 -> Forecast 2036/37 | U3: =Head21 -> Forecast 2037/38 | V3: =Head22 -> Forecast 2038/39 | W3: =Head23 -> Forecast 2039/40
A4: Revenue by Vote | B4: 1
A5: ='Org structure'!A2 -> Vote 1 - Office of Municipal Manager | C5: 2605227.44 | D5: 9265607.97 | E5: 414076.98 | F5: 708417 | G5: 708423 | H5: 708423 | I5: 769885 | J5: 774991 | K5: 302260
A6: ='Org structure'!E3 -> 1.1 - [Name of sub-vote]
A7: ='Org structure'!E4 -> 0
A8: ='Org structure'!E5 -> 0
A9: ='Org structure'!E6 -> 0
A10: ='Org structure'!E7 -> 0
A11: ='Org structure'!E8 -> 0
A12: ='Org structure'!E9 -> 0
A13: ='Org structure'!E10 -> 0
A14: ='Org structure'!E11 -> 0
A15: ='Org structure'!E12 -> 0
A16: ='Org structure'!A3 -> Vote 2 - Budget and Treasury | C16: 204140720.8 | D16: 243263829.9 | E16: 379166916.3 | F16: 405650150 | G16: 409880696 | H16: 409880696 | I16: 421775878 | J16: 439437347 | K16: 459819187
A17: ='Org structure'!E14 -> 2.1 - [Name of sub-vote]
A18: ='Org structure'!E15 -> 0
A19: ='Org structure'!E16 -> 0
A20: ='Org structure'!E17 -> 0
A21: ='Org structure'!E18 -> 0
A22: ='Org structure'!E19 -> 0
A23: ='Org structure'!E20 -> 0
A24: ='Org structure'!E21 -> 0
A25: ='Org structure'!E22 -> 0
A26: ='Org structure'!E23 -> 0
A27: ='Org structure'!A4 -> Vote 3 - Corporate Services | C27: 0 | D27: 0 | E27: 0 | F27: 0 | G27: 0 | H27: 0 | I27: 0 | J27: 0 | K27: 0
A28: ='Org structure'!E25 -> 3.1 - [Name of sub-vote]
A29: ='Org structure'!E26 -> 0
A30: ='Org structure'!E27 -> 0
A31: ='Org structure'!E28 -> 0
A32: ='Org structure'!E29 -> 0
A33: ='Org structure'!E30 -> 0
A34: ='Org structure'!E31 -> 0
A35: ='Org structure'!E32 -> 0
A36: ='Org structure'!E33 -> 0
A37: ='Org structure'!E34 -> 0
A38: ='Org structure'!A5 -> Vote 4 - Social Service | C38: 33941529.53 | D38: 58696740.88 | E38: 42867718.52 | F38: 39033376 | G38: 45712792 | H38: 45712792 | I38: 49562464 | J38: 51836038 | K38: 54006179
A39: ='Org structure'!E36 -> 4.1 - [Name of sub-vote]
A40: ='Org structure'!E37 -> 0
A41: ='Org structure'!E38 -> 0
A42: ='Org structure'!E39 -> 0
A43: ='Org structure'!E40 -> 0
A44: ='Org structure'!E41 -> 0
A45: ='Org structure'!E42 -> 0
A46: ='Org structure'!E43 -> 0
A47: ='Org structure'!E44 -> 0
A48: ='Org structure'!E45 -> 0
A49: ='Org structure'!A6 -> Vote 5 - Technical and Engineering Services | C49: 343114036 | D49: 330732879.6 | E49: 445564728.1 | F49: 585866673 | G49: 572564907 | H49: 572564907 | I49: 548103182 | J49: 593704032 | K49: 615851366
A50: ='Org structure'!E47 -> 5.1 - [Name of sub-vote]
A51: ='Org structure'!E48 -> 0
A52: ='Org structure'!E49 -> 0
A53: ='Org structure'!E50 -> 0
A54: ='Org structure'!E51 -> 0
A55: ='Org structure'!E52 -> 0
A56: ='Org structure'!E53 -> 0
A57: ='Org structure'!E54 -> 0
A58: ='Org structure'!E55 -> 0
A59: ='Org structure'!E56 -> 0
A60: ='Org structure'!A7 -> Vote 6 - Property, Planning & Development | C60: 1022346.52 | D60: 1264829.59 | E60: 918058.15 | F60: 1290897 | G60: 3688972 | H60: 3688972 | I60: 1337896 | J60: 1438502 | K60: 1525400
A61: ='Org structure'!E58 -> 6.1 - [Name of sub-vote]
A62: ='Org structure'!E59 -> 0
A63: ='Org structure'!E60 -> 0
A64: ='Org structure'!E61 -> 0
A65: ='Org structure'!E62 -> 0
A66: ='Org structure'!E63 -> 0
A67: ='Org structure'!E64 -> 0
A68: ='Org structure'!E65 -> 0
A69: ='Org structure'!E66 -> 0
A70: ='Org structure'!E67 -> 0
A71: ='Org structure'!A8 -> Vote 7 - Office of the Mayor/Strategic Office | C71: 0 | D71: 0 | E71: 0 | F71: 0 | G71: 0 | H71: 0 | I71: 0 | J71: 0 | K71: 0
A72: ='Org structure'!E69 -> 7.1 - [Name of sub-vote]
A73: ='Org structure'!E70 -> 0
A74: ='Org structure'!E71 -> 0
A75: ='Org structure'!E72 -> 0
A76: ='Org structure'!E73 -> 0
A77: ='Org structure'!E74 -> 0
A78: ='Org structure'!E75 -> 0
A79: ='Org structure'!E76 -> 0
A80: ='Org structure'!E77 -> 0
A81: ='Org structure'!E78 -> 0
A82: ='Org structure'!A9 -> Vote 8 - COMMUNITY & SOCIAL SERVICES | C82: 0 | D82: 0 | E82: 0 | F82: -97552 | G82: -97552 | H82: -97552 | I82: -102039 | J82: -106631 | K82: -106631
A83: ='Org structure'!E80 -> 8.1 - [Name of sub-vote]
A84: ='Org structure'!E81 -> 0
A85: ='Org structure'!E82 -> 0
A86: ='Org structure'!E83 -> 0
A87: ='Org structure'!E84 -> 0
A88: ='Org structure'!E85 -> 0
A89: ='Org structure'!E86 -> 0
A90: ='Org structure'!E87 -> 0
A91: ='Org structure'!E88 -> 0
A92: ='Org structure'!E89 -> 0
A93: ='Org structure'!A10 -> Vote 9 - [NAME OF VOTE 9] | C93: =SUM(C94:C103) -> 0 | D93: =SUM(D94:D103) -> 0 | E93: 0 | F93: 0 | G93: 0 | H93: 0 | I93: 0 | J93: 0 | K93: 0
A94: ='Org structure'!E91 -> 9.1 - [Name of sub-vote]
A95: ='Org structure'!E92 -> 0
A96: ='Org structure'!E93 -> 0
A97: ='Org structure'!E94 -> 0
A98: ='Org structure'!E95 -> 0
A99: ='Org structure'!E96 -> 0
A100: ='Org structure'!E97 -> 0
A101: ='Org structure'!E98 -> 0
A102: ='Org structure'!E99 -> 0
A103: ='Org structure'!E100 -> 0
A104: ='Org structure'!A11 -> Vote 10 - [NAME OF VOTE 10] | C104: =SUM(C105:C114) -> 0 | D104: =SUM(D105:D114) -> 0 | E104: 0 | F104: 0 | G104: 0 | H104: 0 | I104: 0 | J104: 0 | K104: 0
A105: ='Org structure'!E102 -> 10.1 - [Name of sub-vote]
A106: ='Org structure'!E103 -> 0
A107: ='Org structure'!E104 -> 0
A108: ='Org structure'!E105 -> 0
A109: ='Org structure'!E106 -> 0
A110: ='Org structure'!E107 -> 0
A111: ='Org structure'!E108 -> 0
A112: ='Org structure'!E109 -> 0
A113: ='Org structure'!E110 -> 0
A114: ='Org structure'!E111 -> 0
A115: ='Org structure'!A12 -> Vote 11 - [NAME OF VOTE 11] | C115: =SUM(C116:C125) -> 0 | D115: =SUM(D116:D125) -> 0 | E115: 0 | F115: 0 | G115: 0 | H115: 0 | I115: 0 | J115: 0 | K115: 0
A116: ='Org structure'!E113 -> 11.1 - [Name of sub-vote]
A117: ='Org structure'!E114 -> 0
A118: ='Org structure'!E115 -> 0
A119: ='Org structure'!E116 -> 0
A120: ='Org structure'!E117 -> 0
A121: ='Org structure'!E118 -> 0
A122: ='Org structure'!E119 -> 0
A123: ='Org structure'!E120 -> 0
A124: ='Org structure'!E121 -> 0
A125: ='Org structure'!E122 -> 0
A126: ='Org structure'!A13 -> Vote 12 - [NAME OF VOTE 12] | C126: =SUM(C127:C136) -> 0 | D126: =SUM(D127:D136) -> 0 | E126: 0 | F126: 0 | G126: 0 | H126: 0 | I126: 0 | J126: 0 | K126: 0
A127: ='Org structure'!E124 -> 12.1 - [Name of sub-vote]
A128: ='Org structure'!E125 -> 0
A129: ='Org structure'!E126 -> 0
A130: ='Org structure'!E127 -> 0
A131: ='Org structure'!E128 -> 0
A132: ='Org structure'!E129 -> 0
A133: ='Org structure'!E130 -> 0
A134: ='Org structure'!E131 -> 0
A135: ='Org structure'!E132 -> 0
A136: ='Org structure'!E133 -> 0
A137: ='Org structure'!A14 -> Vote 13 - [NAME OF VOTE 13] | C137: =SUM(C138:C147) -> 0 | D137: =SUM(D138:D147) -> 0 | E137: 0 | F137: 0 | G137: 0 | H137: 0 | I137: 0 | J137: 0 | K137: 0
A138: ='Org structure'!E135 -> 13.1 - [Name of sub-vote]
A139: ='Org structure'!E136 -> 0
A140: ='Org structure'!E137 -> 0
A141: ='Org structure'!E138 -> 0
A142: ='Org structure'!E139 -> 0
A143: ='Org structure'!E140 -> 0
A144: ='Org structure'!E141 -> 0
A145: ='Org structure'!E142 -> 0
A146: ='Org structure'!E143 -> 0
A147: ='Org structure'!E144 -> 0
A148: ='Org structure'!A15 -> Vote 14 - [NAME OF VOTE 14] | C148: =SUM(C149:C158) -> 0 | D148: =SUM(D149:D158) -> 0 | E148: 0 | F148: 0 | G148: 0 | H148: 0 | I148: 0 | J148: 0 | K148: 0
A149: ='Org structure'!E146 -> 14.1 - [Name of sub-vote]
A150: ='Org structure'!E147 -> 0
A151: ='Org structure'!E148 -> 0
A152: ='Org structure'!E149 -> 0
A153: ='Org structure'!E150 -> 0
A154: ='Org structure'!E151 -> 0
A155: ='Org structure'!E152 -> 0
A156: ='Org structure'!E153 -> 0
A157: ='Org structure'!E154 -> 0
A158: ='Org structure'!E155 -> 0
A159: ='Org structure'!A16 -> Vote 15 - [NAME OF VOTE 15] | C159: =SUM(C160:C169) -> 0 | D159: =SUM(D160:D169) -> 0 | E159: 0 | F159: 0 | G159: 0 | H159: 0 | I159: 0 | J159: 0 | K159: 0
A160: ='Org structure'!E157 -> 15.1 - [Name of sub-vote]
A161: ='Org structure'!E158 -> 0
A162: ='Org structure'!E159 -> 0
A163: ='Org structure'!E160 -> 0
A164: ='Org structure'!E161 -> 0
A165: ='Org structure'!E162 -> 0
A166: ='Org structure'!E163 -> 0
A167: ='Org structure'!E164 -> 0
A168: ='Org structure'!E165 -> 0
A169: ='Org structure'!E166 -> 0
A170: Total Revenue by Vote | B170: 2 | C170: =C5+C16+C27+C38+C49+C60+C71+C82+C93+C104+C115+C126+C137+C148+C159 -> 584823860.3 | D170: =D5+D16+D27+D38+D49+D60+D71+D82+D93+D104+D115+D126+D137+D148+D159 -> 643223887.9 | E170: =E5+E16+E27+E38+E49+E60+E71+E82+E93+E104+E115+E126+E137+E148+E159 -> 868931498 | F170: 1032451961 | G170: 1032458238 | H170: 1032458238 | I170: =I5+I16+I27+I38+I49+I60+I71+I82+I93+I104+I115+I126+I137+I148+I159 -> 1021447266 | J170: 1087084279 | K170: 1131397761 | L170: =SUM(L78:L81) -> 0 | M170: 0 | N170: 0 | O170: 0 | P170: 0 | Q170: 0 | R170: 0 | S170: 0 | T170: 0 | U170: 0 | V170: 0 | W170: 0
A172: Expenditure by Vote | B172: 1
A173: =A5 -> Vote 1 - Office of Municipal Manager | C173: 202902576.1 | D173: 116606663.2 | E173: 37726476.52 | F173: 55062226 | G173: 65681456 | H173: 65681456 | I173: 63102902 | J173: 62242764 | K173: 63753452
A174: =A6 -> 1.1 - [Name of sub-vote]
A175: 0
A176: 0
A177: 0
A178: 0
A179: 0
A180: 0
A181: 0
A182: 0
A183: 0
A184: =A16 -> Vote 2 - Budget and Treasury | C184: 64161801.49 | D184: 117023702.7 | E184: 100922356.9 | F184: 79416307 | G184: 113785502 | H184: 113785502 | I184: 137185341 | J184: 145380590 | K184: 161942420
A185: =A17 -> 2.1 - [Name of sub-vote]
A186: 0
A187: 0
A188: 0
A189: 0
A190: 0
A191: 0
A192: 0
A193: 0
A194: 0
A195: =A27 -> Vote 3 - Corporate Services | C195: 40728746.29 | D195: 51482707.99 | E195: 57342665.88 | F195: 64471563 | G195: 64247646 | H195: 64247646 | I195: 59705104 | J195: 63970211 | K195: 69047889
A196: 3.1 - [Name of sub-vote]
A197: 0
A198: 0
A199: 0
A200: 0
A201: 0
... 142 more rows

Sheet A4-FinPerf RE
A1: =muni&" - "&Approve4 -> Choose name from list - Table A4 Budgeted Financial Performance (revenue and expenditure)
A2: =desc -> Description | B2: =head27 -> Ref | C2: =head1b -> 2021/22 | D2: =head1A -> 2022/23 | E2: =Head1 -> 2023/24 | F2: =Head2 -> Current Year 2024/25 | J2: =Head3 -> 2025/26 Medium Term Revenue & Expenditure Framework | M2: =Head4 -> LTFS
A3: R thousand | B3: 1 | C3: =Head5 -> Audited Outcome | D3: =Head5 -> Audited Outcome | E3: =Head5 -> Audited Outcome | F3: =Head6 -> Original Budget | G3: =Head7 -> Adjusted Budget | H3: =Head8 -> Full Year Forecast | I3: =Head5b -> Pre-audit outcome | J3: =Head9 -> Budget Year 2025/26 | K3: =Head10 -> Budget Year +1 2026/27 | L3: =Head11 -> Budget Year +2 2027/28 | M3: =Head12 -> Forecast 2028/29 | N3: =Head13 -> Forecast 2029/30 | O3: =Head14 -> Forecast 2030/31 | P3: =Head15 -> Forecast 2031/32 | Q3: =Head16 -> Forecast 2032/33 | R3: =Head17 -> Forecast 2033/34 | S3: =Head18 -> Forecast 2034/35 | T3: =Head19 -> Forecast 2035/36 | U3: =Head20 -> Forecast 2036/37 | V3: =Head21 -> Forecast 2037/38 | W3: =Head22 -> Forecast 2038/39 | X3: =Head23 -> Forecast 2039/40
A4: Revenue
A5: Exchange Revenue
A6: Service charges - Electricity | B6: 2 | C6: ='SA1'!C17 -> 133509511.4 | D6: ='SA1'!D17 -> 190626203.6 | E6: ='SA1'!E17 -> 193634481.2 | F6: ='SA1'!F17 -> 265322302 | G6: ='SA1'!G17 -> 235322302 | H6: ='SA1'!H17 -> 235322302 | I6: ='SA1'!I17 -> 256960469 | J6: ='SA1'!J17 -> 270620645 | K6: ='SA1'!K17 -> 283069194 | L6: ='SA1'!L17 -> 295524243
A7: Service charges - Water | B7: 2 | C7: ='SA1'!C23 -> 44188577.86 | D7: ='SA1'!D23 -> 53500837.98 | E7: ='SA1'!E23 -> 64880991.45 | F7: ='SA1'!F23 -> 71769989 | G7: ='SA1'!G23 -> 69769989 | H7: ='SA1'!H23 -> 69769989 | I7: ='SA1'!I23 -> 69837688 | J7: ='SA1'!J23 -> 73956187 | K7: ='SA1'!K23 -> 77358172 | L7: ='SA1'!L23 -> 80761932
A8: Service charges - Waste Water Management | B8: 2 | C8: ='SA1'!C29 -> 22765552.48 | D8: ='SA1'!D29 -> 23728163.42 | E8: ='SA1'!E29 -> 25107941.6 | F8: ='SA1'!F29 -> 29030643 | G8: ='SA1'!G29 -> 30164078 | H8: ='SA1'!H29 -> 30164078 | I8: ='SA1'!I29 -> 30252087 | J8: ='SA1'!J29 -> 31973923 | K8: ='SA1'!K29 -> 33444723 | L8: ='SA1'!L29 -> 34916291
A9: Service charges - Waste Management | B9: 2 | C9: ='SA1'!C36 -> 15408530.8 | D9: ='SA1'!D36 -> 19120942.15 | E9: ='SA1'!E36 -> 20740700.61 | F9: ='SA1'!F36 -> 23255986 | G9: ='SA1'!G36 -> 25000074 | H9: ='SA1'!H36 -> 25000074 | I9: ='SA1'!I36 -> 25097626 | J9: ='SA1'!J36 -> 26500078 | K9: ='SA1'!K36 -> 27719082 | L9: ='SA1'!L36 -> 28938722
A10: Sale of Goods and Rendering of Services | C10: 1031623.77 | D10: 895671.84 | E10: 780693.75 | F10: 1806212 | G10: 1806212 | H10: 1806212 | I10: 1806212 | J10: 1914585 | K10: 2002656 | L10: 2090772
A11: Agency services | C11: 0 | D11: 2910127.42 | E11: 7643774.95 | F11: 9622787 | G11: 12160042 | H11: 12160042 | I11: 12160042 | J11: 12889645 | K11: 13482568 | L11: 14075801
A12: Interest | C12: 0 | D12: 0 | E12: 0 | F12: 0 | G12: 0 | H12: 0 | I12: 0 | J12: 0 | K12: 0 | L12: 0
A13: Interest earned from Receivables | C13: 37301456.14 | D13: 41910457.46 | E13: 51680315.85 | F13: 37192843 | G13: 51157646 | H13: 51157646 | I13: 51157646 | J13: 54227098 | K13: 56721545 | L13: 59217296
A14: Interest earned from Current and Non Current Assets | C14: 4193328.89 | D14: 9010901.57 | E14: 8679930.25 | F14: 7162122 | G14: 7162122 | H14: 7162122 | I14: 7162122 | J14: 7591849 | K14: 7941074 | L14: 8290483
A15: Dividends | C15: 0 | D15: 0 | E15: 0 | F15: 0 | G15: 0 | H15: 0 | I15: 0 | J15: 0 | K15: 0 | L15: 0
A16: Rent on Land | C16: 0 | D16: 0 | E16: 0 | F16: 0 | G16: 0 | H16: 0 | I16: 0 | J16: 0 | K16: 0 | L16: 0
A17: Rental from Fixed Assets | C17: 155910.82 | D17: 195487.32 | E17: 233380.25 | F17: 791056 | G17: 791056 | H17: 791056 | I17: 791056 | J17: 838519 | K17: 877091 | L17: 915683
A18: Licence and permits | C18: 10372971.98 | D18: 5906347.66 | E18: 1410612.42 | F18: 1 | G18: 0 | H18: 0 | I18: 0 | J18: 0 | K18: 0 | L18: 1
A19: Special rating levies | C19: 0 | D19: 0 | E19: 0 | F19: 0 | G19: 0 | H19: 0 | I19: 0 | J19: 0 | K19: 0 | L19: 0
A20: Operational Revenue | C20: 6278753.41 | D20: 2527525.96 | E20: 1031083.96 | F20: 2619024 | G20: 2619024 | H20: 2619024 | I20: 2619024 | J20: 2776165 | K20: 2903869 | L20: 3031639
A21: Non-Exchange Revenue
A22: Property rates | B22: 2 | C22: ='SA1'!C10 -> 0 | D22: ='SA1'!D10 -> -8243475.9 | E22: ='SA1'!E10 -> 114403880 | F22: ='SA1'!F10 -> 126113439 | G22: ='SA1'!G10 -> 126113439 | H22: ='SA1'!H10 -> 126113439 | I22: ='SA1'!I10 -> 126113439 | J22: ='SA1'!J10 -> 133680245 | K22: ='SA1'!K10 -> 139829537 | L22: ='SA1'!L10 -> 145982036
A23: Surcharges and Taxes | C23: 0 | D23: 0 | E23: 4750809 | F23: 1 | G23: 0 | H23: 0 | I23: 0 | J23: 0 | K23: 0 | L23: 1
A24: Fines, penalties and forfeits | C24: 513879.52 | D24: 22024918.51 | E24: 1615376.95 | F24: 1013035 | G24: 5809184 | H24: 5809184 | I24: 5809184 | J24: 6157735 | K24: 6440991 | L24: 6724394
A25: Licences or permits | C25: 0 | D25: 0 | E25: 0 | F25: 0 | G25: 0 | H25: 0 | I25: 0 | J25: 0 | K25: 0 | L25: 0
A26: Transfer and subsidies - Operational | C26: 187503322.7 | D26: 206836438.1 | E26: 230565261.5 | F26: 247286250 | G26: 247286250 | H26: 247286250 | I26: 247286250 | J26: 260209300 | K26: 270519300 | L26: 282880901
A27: Interest | C27: 7960191.48 | D27: 12659877.32 | E27: 21880928.56 | F27: 15461521 | G27: 19692068 | H27: 19692068 | I27: 19692068 | J27: 20873592 | K27: 21833777 | L27: 22794464
A28: Fuel Levy | C28: 0 | D28: 0 | E28: 0 | F28: 0 | G28: 0 | H28: 0 | I28: 0 | J28: 0 | K28: 0 | L28: 0
A29: Operational Revenue | C29: 0 | D29: 0 | E29: 0 | F29: 0 | G29: 0 | H29: 0 | I29: 0 | J29: 0 | K29: 0 | L29: 0
A30: Gains on disposal of Assets | C30: 0 | D30: 0 | E30: 0 | F30: 0 | G30: 0 | H30: 0 | I30: 0 | J30: 0 | K30: 0 | L30: 0
A31: Other Gains | C31: 0 | D31: 0 | E31: 0 | F31: 0 | G31: 0 | H31: 0 | I31: 0 | J31: 0 | K31: 0 | L31: 0
A32: Discontinued Operations | C32: 0 | D32: 0 | E32: 0 | F32: 0 | G32: 0 | H32: 0 | I32: 0 | J32: 0 | K32: 0 | L32: 0
A33: Total Revenue (excluding capital transfers and contributions) | C33: =SUM(C6:C20)+SUM(C22:C32) -> 471183611.2 | D33: =SUM(D6:D20)+SUM(D22:D32) -> 583610424.4 | E33: 749040162.2 | F33: 838447211 | G33: 834853486 | H33: 834853486 | I33: 856744913 | J33: 904209566 | K33: 944143579 | L33: 986144659
A34: Expenditure
A35: Employee related costs | B35: 2 | C35: ='SA1'!C71 -> 206453565.3 | D35: ='SA1'!D71 -> 208879531.7 | E35: ='SA1'!E71 -> 233561213.4 | F35: ='SA1'!F71 -> 265297876 | G35: ='SA1'!G71 -> 255043194 | H35: ='SA1'!H71 -> 255043194 | I35: ='SA1'!I71 -> 255043194 | J35: ='SA1'!J71 -> 273856903 | K35: ='SA1'!K71 -> 286454318 | L35: ='SA1'!L71 -> 299058309 | M35: ='SA1'!M71 -> 0 | N35: ='SA1'!N71 -> 0 | O35: ='SA1'!O71 -> 0 | P35: ='SA1'!P71 -> 0 | Q35: ='SA1'!Q71 -> 0 | R35: ='SA1'!R71 -> 0 | S35: ='SA1'!S71 -> 0 | T35: ='SA1'!T71 -> 0
A36: Remuneration of councillors | C36: 12077627.94 | D36: 13304794.01 | E36: 14066021.14 | F36: 15400984 | G36: 15400984 | H36: 15400984 | I36: 15400984 | J36: 16063226 | K36: 16786070 | L36: 17524658
A37: Bulk purchases - electricity | B37: 2 | C37: ='SA1'!C88 -> 124063032.9 | D37: ='SA1'!D88 -> 139206923.7 | E37: ='SA1'!E88 -> 161357687 | F37: ='SA1'!F88 -> 193203577 | G37: ='SA1'!G88 -> 184166362 | H37: ='SA1'!H88 -> 184166362 | I37: ='SA1'!I88 -> 184166362 | J37: ='SA1'!J88 -> 205013994 | K37: ='SA1'!K88 -> 214444638 | L37: ='SA1'!L88 -> 223880202
A38: Inventory consumed | B38: 8 | C38: ='SA1'!C169 -> 44344506.97 | D38: ='SA1'!D169 -> 46622835.11 | E38: ='SA1'!E169 -> 48506903.01 | F38: ='SA1'!F169 -> 53430639 | G38: ='SA1'!G169 -> 55465639 | H38: ='SA1'!H169 -> 55465639 | I38: ='SA1'!I169 -> 55465639 | J38: ='SA1'!J169 -> 58350661 | K38: ='SA1'!K169 -> 61034792 | L38: ='SA1'!L169 -> 63720323
A39: Debt impairment | B39: 3 | C39: 0 | D39: 0 | E39: 95127990.33 | F39: 33725773 | G39: 38725772 | H39: 38725772 | I39: 38725772 | J39: 52322826 | K39: 54488335 | L39: 51775049
A40: Depreciation and amortisation | C40: ='SA1'!C83 -> 87197833.97 | D40: ='SA1'!D83 -> 87737832.68 | E40: ='SA1'!E83 -> 94711817.65 | F40: ='SA1'!F83 -> 94726306 | G40: ='SA1'!G83 -> 91726306 | H40: ='SA1'!H83 -> 91726306 | I40: ='SA1'!I83 -> 91726306 | J40: ='SA1'!J83 -> 95670536 | K40: ='SA1'!K83 -> 100089500 | L40: ='SA1'!L83 -> 104492645
A41: Interest | C41: 28468903.64 | D41: 22435386.82 | E41: 19716635.1 | F41: 19600559 | G41: 20603884 | H41: 20603884 | I41: 20603884 | J41: 21489851 | K41: 22478384 | L41: 23467433
A42: Contracted services | C42: ='SA1'!C127 -> 45247554.59 | D42: ='SA1'!D127 -> 47486622.26 | E42: ='SA1'!E127 -> 52864548.26 | F42: ='SA1'!F127 -> 76103061 | G42: ='SA1'!G127 -> 78082003 | H42: ='SA1'!H127 -> 78082003 | I42: ='SA1'!I127 -> 78082003 | J42: ='SA1'!J127 -> 83589531 | K42: ='SA1'!K127 -> 87434648 | L42: ='SA1'!L127 -> 91281779
A43: Transfers and subsidies | C43: ='SA1'!C93 -> 553239.06 | D43: ='SA1'!D93 -> 581154 | E43: ='SA1'!E93 -> -1658973.04 | F43: ='SA1'!F93 -> 1054137 | G43: ='SA1'!G93 -> 2054137 | H43: ='SA1'!H93 -> 2054137 | I43: ='SA1'!I93 -> 2054137 | J43: ='SA1'!J93 -> 2142467 | K43: ='SA1'!K93 -> 2241018 | L43: ='SA1'!L93 -> 2339622
A44: Irrecoverable debts written off | C44: 60012220.35 | D44: 63070552.22 | E44: 6870116.52 | F44: 6000006 | G44: 16584488 | H44: 16584488 | I44: 16584488 | J44: 15500000 | K44: 16213000 | L44: 16926375
A45: Operational costs | C45: ='SA1'!C157 -> 79825758.82 | D45: ='SA1'!D157 -> 77615235.4 | E45: ='SA1'!E157 -> 71018101.41 | F45: ='SA1'!F157 -> 77092104 | G45: ='SA1'!G157 -> 74213916 | H45: ='SA1'!H157 -> 74213916 | I45: ='SA1'!I157 -> 74213916 | J45: ='SA1'!J157 -> 77405114 | K45: ='SA1'!K157 -> 80965749 | L45: ='SA1'!L157 -> 84528245
A46: Losses on disposal of Assets | C46: 0 | D46: 0 | E46: 0 | F46: 0 | G46: 0 | H46: 0 | I46: 0 | J46: 0 | K46: 0 | L46: 0
A47: Other Losses | C47: 0 | D47: 0 | E47: 0 | F47: 0 | G47: 0 | H47: 0 | I47: 0 | J47: 0 | K47: 0 | L47: 0
A48: Total Expenditure | C48: =SUM(C35:C47) -> 688244243.6 | D48: =SUM(D35:D47) -> 706940867.8 | E48: 796142060.7 | F48: 835635022 | G48: 832066685 | H48: 832066685 | I48: 832066685 | J48: 901405109 | K48: 942630452 | L48: 978994640 | M48: =SUM(M35:M47) -> 0 | N48: 0 | O48: 0 | P48: 0 | Q48: 0 | R48: 0 | S48: 0 | T48: 0 | U48: 0 | V48: 0 | W48: 0 | X48: 0
A49: Surplus/(Deficit) | C49: =C33-C48 -> -217060632.3 | D49: =D33-D48 -> -123330443.4 | E49: -47101898.52 | F49: 2812189 | G49: 2786801 | H49: 2786801 | I49: 24678228 | J49: 2804457 | K49: 1513127 | L49: 7150019 | M49: =M33+M48 -> 0 | N49: 0 | O49: 0 | P49: 0 | Q49: 0 | R49: 0 | S49: 0 | T49: 0 | U49: 0 | V49: 0 | W49: 0 | X49: 0
A50: Transfers and subsidies - capital (monetary allocations) | B50: 6 | C50: 113640249 | D50: 51369987.57 | E50: 119891335.8 | F50: 194004750 | G50: 197604752 | H50: 197604752 | I50: 197604752 | J50: 117237700 | K50: 142940700 | L50: 145253102
A51: Transfers and subsidies - capital (in-kind) | B51: 6 | C51: 0 | D51: 0 | E51: 0 | F51: 0 | G51: 0 | H51: 0 | I51: 0 | J51: 0 | K51: 0 | L51: 0
A52: Surplus/(Deficit) after capital transfers & contributions | C52: =SUM(C49:C51) -> -103420383.3 | D52: =SUM(D49:D51) -> -71960455.81 | E52: 72789437.24 | F52: 196816939 | G52: 200391553 | H52: 200391553 | I52: 222282980 | J52: 120042157 | K52: 144453827 | L52: 152403121
A53: Income Tax | C53: 0 | D53: 0 | E53: 0 | F53: 0 | G53: 0 | H53: 0 | I53: 0 | J53: 0 | K53: 0 | L53: 0
A54: Surplus/(Deficit) after income tax | C54: =+C52-C53 -> -103420383.3 | D54: =+D52-D53 -> -71960455.81 | E54: 72789437.24 | F54: 196816939 | G54: 200391553 | H54: 200391553 | I54: 222282980 | J54: 120042157 | K54: 144453827 | L54: 152403121 | M54: 0 | N54: 0 | O54: 0 | P54: 0 | Q54: 0
A55: Share of Surplus/Deficit attributable to Joint Venture | C55: 0 | D55: 0 | E55: 0 | F55: 0 | G55: 0 | H55: 0 | I55: 0 | J55: 0 | K55: 0 | L55: 0
A56: Share of Surplus/Deficit attributable to Minorities | C56: 0 | D56: 0 | E56: 0 | F56: 0 | G56: 0 | H56: 0 | I56: 0 | J56: 0 | K56: 0 | L56: 0
A57: Surplus/(Deficit) attributable to municipality | C57: =SUM(C54:C56) -> -103420383.3 | D57: =SUM(D54:D56) -> -71960455.81 | E57: 72789437.24 | F57: 196816939 | G57: 200391553 | H57: 200391553 | I57: 222282980 | J57: 120042157 | K57: 144453827 | L57: 152403121 | M57: 0 | N57: 0 | O57: 0 | P57: 0 | Q57: 0
A58: Share of Surplus/Deficit attributable to Associate | B58: 7 | C58: 0 | D58: 0 | E58: 0 | F58: 0 | G58: 0 | H58: 0 | I58: 0 | J58: 0 | K58: 0 | L58: 0
A59: Intercompany/Parent subsidiary transactions | C59: 0 | D59: 0 | E59: 0 | F59: 0 | G59: 0 | H59: 0 | I59: 0 | J59: 0 | K59: 0 | L59: 0
A60: =result -> Surplus/(Deficit) for the year | B60: 1 | C60: =SUM(C57:C59) -> -103420383.3 | D60: =SUM(D57:D59) -> -71960455.81 | E60: 72789437.24 | F60: 196816939 | G60: 200391553 | H60: 200391553 | I60: 222282980 | J60: 120042157 | K60: 144453827 | L60: 152403121 | M60: 0 | N60: 0 | O60: 0 | P60: 0 | Q60: 0 | R60: =R36+R59 -> 0 | S60: 0 | T60: 0 | U60: 0 | V60: 0 | W60: 0 | X60: 0
A61: References
A62: 1. Classifications are revenue sources and expenditure type
A63: 2. Detail to be provided in Table SA1 | O63: =O60-'A4-FinPerf RE'!J60 -> -120042157 | P63: =P60-'A4-FinPerf RE'!K60 -> -144453827 | Q63: =Q60-'A4-FinPerf RE'!L60 -> -152403121
A64: 3. Debt impairment includes Impairment and Reversal of Impairment Losses
A65: 4. Expenditure type components previously shown under repairs and maintenance should be allocated back to the originating expenditure group/item; e.g. employee costs
A66: 5. Repairs & maintenance detailed in Table A9 and Table SA34c
A67: 6. Contributions are funds provided by external organisations to assist with infrastructure development; e.g. developer contributions (detail to be provided in Table SA1)
A68: 7. Equity method ( Includes Joint Ventures)
A69: 8. All materials consumed including water consumed and materials used in operations.
A70: 9 Operational revenue is a summary of imatereial item that are on the chart not on the face of the A4 due to imateriality.

Sheet A4 Funding (hidden)
A1: Western Cape: Saldanha Bay (WC014) - Table A4 Funding Tool Summary for 4th Quarter ended 30 June 2024
A2: A4 Code | B2: A4 Description | C2: Type | D2: Classification | E2: =head1b -> 2021/22 | F2: =head1A -> 2022/23 | G2: =Head1 -> 2023/24 | H2: =Head2 -> Current Year 2024/25 | L2: =Head3 -> 2025/26 Medium Term Revenue & Expenditure Framework
A3: R thousands | E3: =Head5 -> Audited Outcome | F3: =Head5 -> Audited Outcome | G3: =Head5 -> Audited Outcome | H3: =Head6 -> Original Budget | I3: =Head7 -> Adjusted Budget | J3: =Head8 -> Full Year Forecast | K3: =Head5b -> Pre-audit outcome | L3: =Head9 -> Budget Year 2025/26 | M3: =Head10 -> Budget Year +1 2026/27 | N3: =Head11 -> Budget Year +2 2027/28
A4: 0300 | B4: Exchange Revenue / Service charges - Electricity | C4: Non-Cash | D4: Debtor accrual - service charges electricity accrued through exchange receivables | E4: ='SA3'!C8 -> 80398523.11 | F4: ='SA3'!D8 -> 114531052.5 | G4: ='SA3'!E8 -> 151394264 | H4: ='SA3'!F8 -> 383496725 | I4: ='SA3'!G8 -> 171533633 | J4: ='SA3'!H8 -> 171533633 | K4: ='SA3'!I8 -> 171533633 | L4: ='SA3'!J8 -> 172581256 | M4: ='SA3'!K8 -> 174533198 | N4: ='SA3'!L8 -> 175911756
D5: Non-Cash Total | E5: =SUM(E4) -> 80398523.11 | F5: =SUM(F4) -> 114531052.5 | G5: 151394264 | H5: 383496725 | I5: 171533633 | J5: 171533633 | K5: 171533633 | L5: 172581256 | M5: 174533198 | N5: 175911756
B6: Exchange Revenue / Service charges - Electricity Total
A7: 0400 | B7: Exchange Revenue / Service charges - Water | C7: Non-Cash | D7: Debtor accrual - service charges water accrued through exchange receivables | E7: ='SA3'!C9 -> 121180540.5 | F7: ='SA3'!D9 -> 148170872.2 | G7: ='SA3'!E9 -> 186561899.8 | H7: ='SA3'!F9 -> 208395849 | I7: ='SA3'!G9 -> 163608528 | J7: ='SA3'!H9 -> 163608528 | K7: ='SA3'!I9 -> 163608528 | L7: ='SA3'!J9 -> 163997071 | M7: ='SA3'!K9 -> 165355262 | N7: ='SA3'!L9 -> 166138125
D8: Non-Cash Total
B9: Exchange Revenue / Service charges - Water Total
A10: 0500 | B10: Exchange Revenue / Service charges - Waste Water Management | C10: Non-Cash | D10: Debtor accrual - service charges waste water management accrued through exchange receivables | E10: ='SA3'!C11 -> 60200154.04 | F10: ='SA3'!D11 -> 72962032.15 | G10: ='SA3'!E11 -> 92506814.07 | H10: ='SA3'!F11 -> 107397289 | I10: ='SA3'!G11 -> 79628983 | J10: ='SA3'!H11 -> 79628983 | K10: ='SA3'!I11 -> 79628983 | L10: ='SA3'!J11 -> 79816180 | M10: ='SA3'!K11 -> 80040417 | N10: ='SA3'!L11 -> 80263878
D11: Non-Cash Total
B12: Exchange Revenue / Service charges - Waste Water Management Total
A13: 0600 | B13: Exchange Revenue / Service charges - Waste Management | C13: Non-Cash | D13: Debtor accrual - service charges waste management accrued through exchange receivables | E13: ='SA3'!C10 -> 67230678.56 | F13: ='SA3'!D10 -> 94551630.12 | G13: ='SA3'!E10 -> 109882143.9 | H13: ='SA3'!F10 -> 124345724 | I13: ='SA3'!G10 -> 100193514 | J13: ='SA3'!H10 -> 100193514 | K13: ='SA3'!I10 -> 100193514 | L13: ='SA3'!J10 -> 99964547 | M13: ='SA3'!K10 -> 100130975 | N13: ='SA3'!L10 -> 100296491
D14: Non-Cash Total
B15: Exchange Revenue / Service charges - Waste Management Total
A16: 0700 | B16: Exchange Revenue / Sale of Goods and Rendering of Services | C16: Cash | D16: Cash sales of goods and rendering of services | E16: ='SA3'!C138 -> 1544594320 | F16: 0 | G16: 0 | H16: 0 | I16: 0 | J16: 0 | K16: 0 | L16: 0 | M16: 0 | N16: 0
D17: Proceeds sale of PPE | E17: 0 | F17: 0 | G17: 0 | H17: 0 | I17: 0 | J17: 0 | K17: 0 | L17: 0 | M17: 0 | N17: 0
D18: Cash Total | E18: 0 | F18: 0 | G18: 0 | H18: 0 | I18: 0 | J18: 0 | K18: 0 | L18: 0 | M18: 0 | N18: 0
B19: Exchange Revenue / Sale of Goods and Rendering of Services Total | E19: 0 | F19: 0 | G19: 0 | H19: 0 | I19: 0 | J19: 0 | K19: 0 | L19: 0 | M19: 0 | N19: 0
A20: 0800 | B20: Exchange Revenue / Agency services | C20: Cash | D20: Cash - agency services | E20: 0 | F20: 0 | G20: 0 | H20: 0 | I20: 0 | J20: 0 | K20: 0 | L20: 0 | M20: 0 | N20: 0
D21: Cash Total | E21: 0 | F21: 0 | G21: 0 | H21: 0 | I21: 0 | J21: 0 | K21: 0 | L21: 0 | M21: 0 | N21: 0
B22: Exchange Revenue / Agency services Total | E22: 0 | F22: 0 | G22: 0 | H22: 0 | I22: 0 | J22: 0 | K22: 0 | L22: 0 | M22: 0 | N22: 0
A23: 0900 | B23: Exchange Revenue / Interest | C23: Non-Cash | D23: Deemed interest | E23: 0 | F23: 0 | G23: 0 | H23: 0 | I23: 0 | J23: 0 | K23: 0 | L23: 0 | M23: 0 | N23: 0
D24: Non-Cash Total
B25: Exchange Revenue / Interest Total
A26: 1000 | B26: Exchange Revenue / Interest earned from Receivables | C26: Non-Cash | D26: Affiliates/related parties/associated companies | E26: 0 | F26: 0 | G26: 0 | H26: 0 | I26: 0 | J26: 0 | K26: 0 | L26: 0 | M26: 0 | N26: 0
D27: Debtor accrual - interest outstanding debtors accrued through exchange receivables | E27: 0 | F27: 0 | G27: 0 | H27: 0 | I27: 0 | J27: 0 | K27: 0 | L27: 0 | M27: 0 | N27: 0
D28: SARS | E28: 0 | F28: 0 | G28: 0 | H28: 0 | I28: 0 | J28: 0 | K28: 0 | L28: 0 | M28: 0 | N28: 0
D29: Non-Cash Total | E29: 0 | F29: 0 | G29: 0 | H29: 0 | I29: 0 | J29: 0 | K29: 0 | L29: 0 | M29: 0 | N29: 0
B30: Exchange Revenue / Interest earned from Receivables Total | E30: 0 | F30: 0 | G30: 0 | H30: 0 | I30: 0 | J30: 0 | K30: 0 | L30: 0 | M30: 0 | N30: 0
A31: 1100 | B31: Exchange Revenue / Interest earned from Current and Non Current Assets | C31: Cash | D31: Cash - interest external investments | E31: 0 | F31: 0 | G31: 0 | H31: 0 | I31: 0 | J31: 0 | K31: 0 | L31: 0 | M31: 0 | N31: 0
D32: Cash Total | E32: 0 | F32: 0 | G32: 0 | H32: 0 | I32: 0 | J32: 0 | K32: 0 | L32: 0 | M32: 0 | N32: 0
B33: Exchange Revenue / Interest earned from Current and Non Current Assets Total | E33: 0 | F33: 0 | G33: 0 | H33: 0 | I33: 0 | J33: 0 | K33: 0 | L33: 0 | M33: 0 | N33: 0
A34: 1200 | B34: Exchange Revenue / Dividends | C34: Cash | D34: Cash - dividends received | E34: 0 | F34: 0 | G34: 0 | H34: 0 | I34: 0 | J34: 0 | K34: 0 | L34: 0 | M34: 0 | N34: 0
D35: Cash Total | E35: 0 | F35: 0 | G35: 0 | H35: 0 | I35: 0 | J35: 0 | K35: 0 | L35: 0 | M35: 0 | N35: 0
B36: Exchange Revenue / Dividends Total | E36: 0 | F36: 0 | G36: 0 | H36: 0 | I36: 0 | J36: 0 | K36: 0 | L36: 0 | M36: 0 | N36: 0
A37: 1300 | B37: Exchange Revenue / Rent on Land | C37: Cash | D37: Cash - rent on land | E37: 0 | F37: 0 | G37: 0 | H37: 0 | I37: 0 | J37: 0 | K37: 0 | L37: 0 | M37: 0 | N37: 0
D38: Cash Total | E38: 0 | F38: 0 | G38: 0 | H38: 0 | I38: 0 | J38: 0 | K38: 0 | L38: 0 | M38: 0 | N38: 0
B39: Exchange Revenue / Rent on Land Total | E39: 0 | F39: 0 | G39: 0 | H39: 0 | I39: 0 | J39: 0 | K39: 0 | L39: 0 | M39: 0 | N39: 0
A40: 1400 | B40: Exchange Revenue / Rental from Fixed Assets | C40: Cash | D40: Cash - rental from fixed assets | E40: 0 | F40: 0 | G40: 0 | H40: 0 | I40: 0 | J40: 0 | K40: 0 | L40: 0 | M40: 0 | N40: 0
D41: Cash Total | E41: 0 | F41: 0 | G41: 0 | H41: 0 | I41: 0 | J41: 0 | K41: 0 | L41: 0 | M41: 0 | N41: 0
B42: Exchange Revenue / Rental from Fixed Assets Total | E42: 0 | F42: 0 | G42: 0 | H42: 0 | I42: 0 | J42: 0 | K42: 0 | L42: 0 | M42: 0 | N42: 0
A43: 1500 | B43: Exchange Revenue / Licence and permits | C43: Cash | D43: Cash - licence and permits | E43: 0 | F43: 0 | G43: 0 | H43: 0 | I43: 0 | J43: 0 | K43: 0 | L43: 0 | M43: 0 | N43: 0
D44: Cash Total | E44: 0 | F44: 0 | G44: 0 | H44: 0 | I44: 0 | J44: 0 | K44: 0 | L44: 0 | M44: 0 | N44: 0
B45: Exchange Revenue / Licence and permits Total | E45: 0 | F45: 0 | G45: 0 | H45: 0 | I45: 0 | J45: 0 | K45: 0 | L45: 0 | M45: 0 | N45: 0
A46: 1550 | B46: Exchange Revenue / Special rating levies | C46: Cash | D46: Cash - Special rating levies | E46: 0 | F46: 0 | G46: 0 | H46: 0 | I46: 0 | J46: 0 | K46: 0 | L46: 0 | M46: 0 | N46: 0
D47: Cash Total | E47: 0 | F47: 0 | G47: 0 | H47: 0 | I47: 0 | J47: 0 | K47: 0 | L47: 0 | M47: 0 | N47: 0
B48: Exchange Revenue / Special rating levies Total | E48: 0 | F48: 0 | G48: 0 | H48: 0 | I48: 0 | J48: 0 | K48: 0 | L48: 0 | M48: 0 | N48: 0
A49: 1600 | B49: Exchange Revenue / Operational Revenue | C49: Cash | D49: Cash - Operating revenue | E49: 0 | F49: 0 | G49: 0 | H49: 0 | I49: 0 | J49: 0 | K49: 0 | L49: 0 | M49: 0 | N49: 0
D50: Cash Total | E50: 0 | F50: 0 | G50: 0 | H50: 0 | I50: 0 | J50: 0 | K50: 0 | L50: 0 | M50: 0 | N50: 0
B51: Exchange Revenue / Operational Revenue Total | E51: 0 | F51: 0 | G51: 0 | H51: 0 | I51: 0 | J51: 0 | K51: 0 | L51: 0 | M51: 0 | N51: 0
A52: 1800 | B52: Non-Exchange Revenue / Property rates | C52: Non-Cash | D52: Debtor accrual - property rates accrued through non-exchange receivables | E52: 0 | F52: 0 | G52: 0 | H52: 0 | I52: 0 | J52: 0 | K52: 0 | L52: 0 | M52: 0 | N52: 0
D53: Non-Cash Total | E53: 0 | F53: 0 | G53: 0 | H53: 0 | I53: 0 | J53: 0 | K53: 0 | L53: 0 | M53: 0 | N53: 0
B54: Non-Exchange Revenue / Property rates Total | E54: 0 | F54: 0 | G54: 0 | H54: 0 | I54: 0 | J54: 0 | K54: 0 | L54: 0 | M54: 0 | N54: 0
A55: 1900 | B55: Non-Exchange Revenue / Surcharges and Taxes | C55: Non-Cash | D55: Debtor accrual - surcharges & taxes accrued through non-exchange receivables | E55: 0 | F55: 0 | G55: 0 | H55: 0 | I55: 0 | J55: 0 | K55: 0 | L55: 0 | M55: 0 | N55: 0
D56: Non-Cash Total | E56: 0 | F56: 0 | G56: 0 | H56: 0 | I56: 0 | J56: 0 | K56: 0 | L56: 0 | M56: 0 | N56: 0
B57: Non-Exchange Revenue / Surcharges and Taxes Total | E57: 0 | F57: 0 | G57: 0 | H57: 0 | I57: 0 | J57: 0 | K57: 0 | L57: 0 | M57: 0 | N57: 0
A58: 2000 | B58: Non-Exchange Revenue / Fines, penalties and forfeits | C58: Non-Cash | D58: Debtor accrual - Fines, penalties and forfeits revenue accrued through non-exchanges receivables | E58: 0 | F58: 0 | G58: 0 | H58: 0 | I58: 0 | J58: 0 | K58: 0 | L58: 0 | M58: 0 | N58: 0
D59: Non-Cash Total | E59: 0 | F59: 0 | G59: 0 | H59: 0 | I59: 0 | J59: 0 | K59: 0 | L59: 0 | M59: 0 | N59: 0
B60: Non-Exchange Revenue / Fines, penalties and forfeits Total | E60: 0 | F60: 0 | G60: 0 | H60: 0 | I60: 0 | J60: 0 | K60: 0 | L60: 0 | M60: 0 | N60: 0
A61: 2100 | B61: Non-Exchange Revenue / Licences or permits | C61: Cash | D61: Cash - licences or permits | E61: 0 | F61: 0 | G61: 0 | H61: 0 | I61: 0 | J61: 0 | K61: 0 | L61: 0 | M61: 0 | N61: 0
D62: Cash Total | E62: 0 | F62: 0 | G62: 0 | H62: 0 | I62: 0 | J62: 0 | K62: 0 | L62: 0 | M62: 0 | N62: 0
B63: Non-Exchange Revenue / Licences or permits Total | E63: 0 | F63: 0 | G63: 0 | H63: 0 | I63: 0 | J63: 0 | K63: 0 | L63: 0 | M63: 0 | N63: 0
A64: 2200 | B64: Non-Exchange Revenue / Transfer and subsidies - Operational | C64: Cash | D64: Cash - Operational transfers and subsidies | E64: 0 | F64: 0 | G64: 0 | H64: 0 | I64: 0 | J64: 0 | K64: 0 | L64: 0 | M64: 0 | N64: 0
D65: Cash Total | E65: 0 | F65: 0 | G65: 0 | H65: 0 | I65: 0 | J65: 0 | K65: 0 | L65: 0 | M65: 0 | N65: 0
C66: Non-Cash | D66: Operational allocation in-kind | E66: 0 | F66: 0 | G66: 0 | H66: 0 | I66: 0 | J66: 0 | K66: 0 | L66: 0 | M66: 0 | N66: 0
D67: Non-Cash Total | E67: 0 | F67: 0 | G67: 0 | H67: 0 | I67: 0 | J67: 0 | K67: 0 | L67: 0 | M67: 0 | N67: 0
B68: Non-Exchange Revenue / Transfer and subsidies - Operational Total | E68: 0 | F68: 0 | G68: 0 | H68: 0 | I68: 0 | J68: 0 | K68: 0 | L68: 0 | M68: 0 | N68: 0
A69: 2300 | B69: Non-Exchange Revenue / Interest | C69: Non-Cash | D69: Debtor accrual - interest outstanding property rates accrued through non-exchange receivables | E69: 0 | F69: 0 | G69: 0 | H69: 0 | I69: 0 | J69: 0 | K69: 0 | L69: 0 | M69: 0 | N69: 0
D70: Debtor accrual - interest outstanding service charges electricity accrued through exchange receivables | E70: 0 | F70: 0 | G70: 0 | H70: 0 | I70: 0 | J70: 0 | K70: 0 | L70: 0 | M70: 0 | N70: 0
D71: Debtor accrual - interest outstanding service charges waste management accrued through exchange receivables | E71: 0 | F71: 0 | G71: 0 | H71: 0 | I71: 0 | J71: 0 | K71: 0 | L71: 0 | M71: 0 | N71: 0
D72: Debtor accrual - interest outstanding service charges waste water management accrued through exchange receivables | E72: 0 | F72: 0 | G72: 0 | H72: 0 | I72: 0 | J72: 0 | K72: 0 | L72: 0 | M72: 0 | N72: 0
D73: Debtor accrual - interest outstanding service charges water accrued through exchange receivables | E73: 0 | F73: 0 | G73: 0 | H73: 0 | I73: 0 | J73: 0 | K73: 0 | L73: 0 | M73: 0 | N73: 0
D74: Non-Cash Total | E74: 0 | F74: 0 | G74: 0 | H74: 0 | I74: 0 | J74: 0 | K74: 0 | L74: 0 | M74: 0 | N74: 0
B75: Non-Exchange Revenue / Interest Total | E75: 0 | F75: 0 | G75: 0 | H75: 0 | I75: 0 | J75: 0 | K75: 0 | L75: 0 | M75: 0 | N75: 0
A76: 2400 | B76: Non-Exchange Revenue / Fuel Levy | C76: Cash | D76: Cash collection fuel levy | E76: 0 | F76: 0 | G76: 0 | H76: 0 | I76: 0 | J76: 0 | K76: 0 | L76: 0 | M76: 0 | N76: 0
D77: Cash Total | E77: 0 | F77: 0 | G77: 0 | H77: 0 | I77: 0 | J77: 0 | K77: 0 | L77: 0 | M77: 0 | N77: 0
B78: Non-Exchange Revenue / Fuel Levy Total | E78: 0 | F78: 0 | G78: 0 | H78: 0 | I78: 0 | J78: 0 | K78: 0 | L78: 0 | M78: 0 | N78: 0
A79: 2500 | B79: Non-Exchange Revenue / Operational Revenue | C79: Non-Cash | D79: Debtor accrual - availability charges electricity accrued through non-exchange receivables | E79: 0 | F79: 0 | G79: 0 | H79: 0 | I79: 0 | J79: 0 | K79: 0 | L79: 0 | M79: 0 | N79: 0
D80: Debtor accrual - availability charges waste management accrued through non-exchange receivables | E80: 0 | F80: 0 | G80: 0 | H80: 0 | I80: 0 | J80: 0 | K80: 0 | L80: 0 | M80: 0 | N80: 0
D81: Debtor accrual - availability charges waste water management accrued through non-exchange receivables | E81: 0 | F81: 0 | G81: 0 | H81: 0 | I81: 0 | J81: 0 | K81: 0 | L81: 0 | M81: 0 | N81: 0
D82: Debtor accrual - availability charges water accrued through non-exchange receivables | E82: 0 | F82: 0 | G82: 0 | H82: 0 | I82: 0 | J82: 0 | K82: 0 | L82: 0 | M82: 0 | N82: 0
D83: Non-Cash Total | E83: 0 | F83: 0 | G83: 0 | H83: 0 | I83: 0 | J83: 0 | K83: 0 | L83: 0 | M83: 0 | N83: 0
B84: Non-Exchange Revenue / Operational Revenue Total | E84: 0 | F84: 0 | G84: 0 | H84: 0 | I84: 0 | J84: 0 | K84: 0 | L84: 0 | M84: 0 | N84: 0
A85: 2600 | B85: Non-Exchange Revenue / Gains on disposal of Assets | C85: Non-Cash | D85: Biological assets | E85: 0 | F85: 0 | G85: 0 | H85: 0 | I85: 0 | J85: 0 | K85: 0 | L85: 0 | M85: 0 | N85: 0
D86: Discontinued operations | E86: 0 | F86: 0 | G86: 0 | H86: 0 | I86: 0 | J86: 0 | K86: 0 | L86: 0 | M86: 0 | N86: 0
D87: Heritage assets | E87: 0 | F87: 0 | G87: 0 | H87: 0 | I87: 0 | J87: 0 | K87: 0 | L87: 0 | M87: 0 | N87: 0
D88: Intangible assets | E88: 0 | F88: 0 | G88: 0 | H88: 0 | I88: 0 | J88: 0 | K88: 0 | L88: 0 | M88: 0 | N88: 0
D89: Investment property | E89: 0 | F89: 0 | G89: 0 | H89: 0 | I89: 0 | J89: 0 | K89: 0 | L89: 0 | M89: 0 | N89: 0
D90: Land | E90: 0 | F90: 0 | G90: 0 | H90: 0 | I90: 0 | J90: 0 | K90: 0 | L90: 0 | M90: 0 | N90: 0
D91: Living resources | E91: 0 | F91: 0 | G91: 0 | H91: 0 | I91: 0 | J91: 0 | K91: 0 | L91: 0 | M91: 0 | N91: 0
D92: Other assets | E92: 0 | F92: 0 | G92: 0 | H92: 0 | I92: 0 | J92: 0 | K92: 0 | L92: 0 | M92: 0 | N92: 0
D93: PPE | E93: 0 | F93: 0 | G93: 0 | H93: 0 | I93: 0 | J93: 0 | K93: 0 | L93: 0 | M93: 0 | N93: 0
D94: Non-Cash Total | E94: 0 | F94: 0 | G94: 0 | H94: 0 | I94: 0 | J94: 0 | K94: 0 | L94: 0 | M94: 0 | N94: 0
B95: Non-Exchange Revenue / Gains on disposal of Assets Total | E95: 0 | F95: 0 | G95: 0 | H95: 0 | I95: 0 | J95: 0 | K95: 0 | L95: 0 | M95: 0 | N95: 0
A96: 2700 | B96: Non-Exchange Revenue / Other Gains | C96: Non-Cash | D96: Fair value adjustment actuarial assesments - leave gratuity | E96: 0 | F96: 0 | G96: 0 | H96: 0 | I96: 0 | J96: 0 | K96: 0 | L96: 0 | M96: 0 | N96: 0
D97: Fair value adjustment actuarial assesments - long service awards | E97: 0 | F97: 0 | G97: 0 | H97: 0 | I97: 0 | J97: 0 | K97: 0 | L97: 0 | M97: 0 | N97: 0
D98: Fair value adjustment actuarial assesments - medical aid | E98: 0 | F98: 0 | G98: 0 | H98: 0 | I98: 0 | J98: 0 | K98: 0 | L98: 0 | M98: 0 | N98: 0
D99: Fair value adjustment actuarial assesments - pension funds | E99: 0 | F99: 0 | G99: 0 | H99: 0 | I99: 0 | J99: 0 | K99: 0 | L99: 0 | M99: 0 | N99: 0
D100: Fair value adjustment biological assets | E100: 0 | F100: 0 | G100: 0 | H100: 0 | I100: 0 | J100: 0 | K100: 0 | L100: 0 | M100: 0 | N100: 0
D101: Fair value adjustment heritage assets | E101: 0 | F101: 0 | G101: 0 | H101: 0 | I101: 0 | J101: 0 | K101: 0 | L101: 0 | M101: 0 | N101: 0
D102: Fair value adjustment interest rate swap | E102: 0 | F102: 0 | G102: 0 | H102: 0 | I102: 0 | J102: 0 | K102: 0 | L102: 0 | M102: 0 | N102: 0
D103: Fair value adjustment investment property | E103: 0 | F103: 0 | G103: 0 | H103: 0 | I103: 0 | J103: 0 | K103: 0 | L103: 0 | M103: 0 | N103: 0
D104: Fair value adjustment investments | E104: 0 | F104: 0 | G104: 0 | H104: 0 | I104: 0 | J104: 0 | K104: 0 | L104: 0 | M104: 0 | N104: 0
D105: Fair value adjustment living resources | E105: 0 | F105: 0 | G105: 0 | H105: 0 | I105: 0 | J105: 0 | K105: 0 | L105: 0 | M105: 0 | N105: 0
D106: Foreign exchange | E106: 0 | F106: 0 | G106: 0 | H106: 0 | I106: 0 | J106: 0 | K106: 0 | L106: 0 | M106: 0 | N106: 0
D107: Inventory - fair value assessment | E107: 0 | F107: 0 | G107: 0 | H107: 0 | I107: 0 | J107: 0 | K107: 0 | L107: 0 | M107: 0 | N107: 0
D108: Inventory - increase in net realisable value | E108: 0 | F108: 0 | G108: 0 | H108: 0 | I108: 0 | J108: 0 | K108: 0 | L108: 0 | M108: 0 | N108: 0
D109: Debt Waived | E109: 0 | F109: 0 | G109: 0 | H109: 0 | I109: 0 | J109: 0 | K109: 0 | L109: 0 | M109: 0 | N109: 0
D110: Non-Cash Total | E110: 0 | F110: 0 | G110: 0 | H110: 0 | I110: 0 | J110: 0 | K110: 0 | L110: 0 | M110: 0 | N110: 0
B111: Non-Exchange Revenue / Other Gains Total | E111: 0 | F111: 0 | G111: 0 | H111: 0 | I111: 0 | J111: 0 | K111: 0 | L111: 0 | M111: 0 | N111: 0
A112: 2800 | B112: Revenue / Discontinued Operations | C112: Non-Cash | D112: Discontinued operations | E112: 0 | F112: 0 | G112: 0 | H112: 0 | I112: 0 | J112: 0 | K112: 0 | L112: 0 | M112: 0 | N112: 0
D113: Non-Cash Total | E113: 0 | F113: 0 | G113: 0 | H113: 0 | I113: 0 | J113: 0 | K113: 0 | L113: 0 | M113: 0 | N113: 0
B114: Revenue / Discontinued Operations Total | E114: 0 | F114: 0 | G114: 0 | H114: 0 | I114: 0 | J114: 0 | K114: 0 | L114: 0 | M114: 0 | N114: 0
A115: 3100 | B115: Expenditure / Employee related costs | C115: Non-Cash | D115: Cost capitalised to PPE (credit account) | E115: 0 | F115: 0 | G115: 0 | H115: 0 | I115: 0 | J115: 0 | K115: 0 | L115: 0 | M115: 0 | N115: 0
D116: Creditor accrual - Employee related expenditure accrued through payables from non-exchange transactions | E116: 0 | F116: 0 | G116: 0 | H116: 0 | I116: 0 | J116: 0 | K116: 0 | L116: 0 | M116: 0 | N116: 0
D117: In-kind benefits | E117: 0 | F117: 0 | G117: 0 | H117: 0 | I117: 0 | J117: 0 | K117: 0 | L117: 0 | M117: 0 | N117: 0
D118: In-kind benefits - cost capitalised to PPE (credit account) | E118: 0 | F118: 0 | G118: 0 | H118: 0 | I118: 0 | J118: 0 | K118: 0 | L118: 0 | M118: 0 | N118: 0
D119: Post-retirement benefit: medical | E119: 0 | F119: 0 | G119: 0 | H119: 0 | I119: 0 | J119: 0 | K119: 0 | L119: 0 | M119: 0 | N119: 0
D120: Post-retirement benefit: pension | E120: 0 | F120: 0 | G120: 0 | H120: 0 | I120: 0 | J120: 0 | K120: 0 | L120: 0 | M120: 0 | N120: 0
D121: Non-Cash Total | E121: 0 | F121: 0 | G121: 0 | H121: 0 | I121: 0 | J121: 0 | K121: 0 | L121: 0 | M121: 0 | N121: 0
B122: Expenditure / Employee related costs Total | E122: 0 | F122: 0 | G122: 0 | H122: 0 | I122: 0 | J122: 0 | K122: 0 | L122: 0 | M122: 0 | N122: 0
A123: 3200 | B123: Expenditure / Remuneration of councillors | C123: Non-Cash | D123: Creditor Accrual - councillor remuneration accrued through payables from non-exchange transactions | E123: 0 | F123: 0 | G123: 0 | H123: 0 | I123: 0 | J123: 0 | K123: 0 | L123: 0 | M123: 0 | N123: 0
D124: In-kind benefits to councillors | E124: 0 | F124: 0 | G124: 0 | H124: 0 | I124: 0 | J124: 0 | K124: 0 | L124: 0 | M124: 0 | N124: 0
D125: Use of personal facilities | E125: 0 | F125: 0 | G125: 0 | H125: 0 | I125: 0 | J125: 0 | K125: 0 | L125: 0 | M125: 0 | N125: 0
D126: Non-Cash Total | E126: 0 | F126: 0 | G126: 0 | H126: 0 | I126: 0 | J126: 0 | K126: 0 | L126: 0 | M126: 0 | N126: 0
B127: Expenditure / Remuneration of councillors Total | E127: 0 | F127: 0 | G127: 0 | H127: 0 | I127: 0 | J127: 0 | K127: 0 | L127: 0 | M127: 0 | N127: 0
A128: 3300 | B128: Expenditure / Bulk purchases - electricity | C128: Non-Cash | D128: Creditor accrual - bulk purchases electricity accrued through payables from exchange transactions | E128: 0 | F128: 0 | G128: 0 | H128: 0 | I128: 0 | J128: 0 | K128: 0 | L128: 0 | M128: 0 | N128: 0
D129: Non-Cash Total | E129: 0 | F129: 0 | G129: 0 | H129: 0 | I129: 0 | J129: 0 | K129: 0 | L129: 0 | M129: 0 | N129: 0
B130: Expenditure / Bulk purchases - electricity Total | E130: 0 | F130: 0 | G130: 0 | H130: 0 | I130: 0 | J130: 0 | K130: 0 | L130: 0 | M130: 0 | N130: 0
A131: 3400 | B131: Expenditure / Inventory consumed | C131: Non-Cash | D131: Creditor accrual - bulk purchases water accrued through payables from exchange transactions | E131: 0 | F131: 0 | G131: 0 | H131: 0 | I131: 0 | J131: 0 | K131: 0 | L131: 0 | M131: 0 | N131: 0
D132: Inventory consumed - agricultural | E132: 0 | F132: 0 | G132: 0 | H132: 0 | I132: 0 | J132: 0 | K132: 0 | L132: 0 | M132: 0 | N132: 0
D133: Inventory consumed - capitalisation of inventory consumed | E133: 0 | F133: 0 | G133: 0 | H133: 0 | I133: 0 | J133: 0 | K133: 0 | L133: 0 | M133: 0 | N133: 0
D134: Inventory consumed - finished Goods | E134: 0 | F134: 0 | G134: 0 | H134: 0 | I134: 0 | J134: 0 | K134: 0 | L134: 0 | M134: 0 | N134: 0
D135: Inventory consumed - housing stock | E135: 0 | F135: 0 | G135: 0 | H135: 0 | I135: 0 | J135: 0 | K135: 0 | L135: 0 | M135: 0 | N135: 0
D136: Inventory consumed - land | E136: 0 | F136: 0 | G136: 0 | H136: 0 | I136: 0 | J136: 0 | K136: 0 | L136: 0 | M136: 0 | N136: 0
D137: Inventory consumed - materials and supplies | E137: 0 | F137: 0 | G137: 0 | H137: 0 | I137: 0 | J137: 0 | K137: 0 | L137: 0 | M137: 0 | N137: 0
D138: Inventory consumed - standard rated | E138: 0 | F138: 0 | G138: 0 | H138: 0 | I138: 0 | J138: 0 | K138: 0 | L138: 0 | M138: 0 | N138: 0
D139: Inventory consumed - water | E139: 0 | F139: 0 | G139: 0 | H139: 0 | I139: 0 | J139: 0 | K139: 0 | L139: 0 | M139: 0 | N139: 0
D140: Inventory consumed - zero rated | E140: 0 | F140: 0 | G140: 0 | H140: 0 | I140: 0 | J140: 0 | K140: 0 | L140: 0 | M140: 0 | N140: 0
D141: Non-Cash Total | E141: 0 | F141: 0 | G141: 0 | H141: 0 | I141: 0 | J141: 0 | K141: 0 | L141: 0 | M141: 0 | N141: 0
B142: Expenditure / Inventory consumed Total | E142: 0 | F142: 0 | G142: 0 | H142: 0 | I142: 0 | J142: 0 | K142: 0 | L142: 0 | M142: 0 | N142: 0
A143: 3500 | B143: Expenditure / Debt impairment | C143: Non-Cash | D143: Impairment loss - exchange revenue - electricity | E143: 0 | F143: 0 | G143: 0 | H143: 0 | I143: 0 | J143: 0 | K143: 0 | L143: 0 | M143: 0 | N143: 0
D144: Impairment loss - exchange revenue - other | E144: 0 | F144: 0 | G144: 0 | H144: 0 | I144: 0 | J144: 0 | K144: 0 | L144: 0 | M144: 0 | N144: 0
D145: Impairment loss - exchange revenue - waste management | E145: 0 | F145: 0 | G145: 0 | H145: 0 | I145: 0 | J145: 0 | K145: 0 | L145: 0 | M145: 0 | N145: 0
D146: Impairment loss - exchange revenue - waste water management | E146: 0 | F146: 0 | G146: 0 | H146: 0 | I146: 0 | J146: 0 | K146: 0 | L146: 0 | M146: 0 | N146: 0
D147: Impairment loss - exchange revenue - water | E147: 0 | F147: 0 | G147: 0 | H147: 0 | I147: 0 | J147: 0 | K147: 0 | L147: 0 | M147: 0 | N147: 0
D148: Impairment loss - non-exchange revenue - other | E148: 0 | F148: 0 | G148: 0 | H148: 0 | I148: 0 | J148: 0 | K148: 0 | L148: 0 | M148: 0 | N148: 0
D149: Impairment loss - non-exchange revenue - prop rates | E149: 0 | F149: 0 | G149: 0 | H149: 0 | I149: 0 | J149: 0 | K149: 0 | L149: 0 | M149: 0 | N149: 0
D150: Impairment loss - non-exchange revenue - serv charges | E150: 0 | F150: 0 | G150: 0 | H150: 0 | I150: 0 | J150: 0 | K150: 0 | L150: 0 | M150: 0 | N150: 0
D151: Impairment loss - non-exchange revenue - serv charges - electricity | E151: 0 | F151: 0 | G151: 0 | H151: 0 | I151: 0 | J151: 0 | K151: 0 | L151: 0 | M151: 0 | N151: 0
D152: Impairment loss - non-exchange revenue - serv charges - waste management | E152: 0 | F152: 0 | G152: 0 | H152: 0 | I152: 0 | J152: 0 | K152: 0 | L152: 0 | M152: 0 | N152: 0
D153: Impairment loss - non-exchange revenue - serv charges - waste water management | E153: 0 | F153: 0 | G153: 0 | H153: 0 | I153: 0 | J153: 0 | K153: 0 | L153: 0 | M153: 0 | N153: 0
D154: Impairment loss - non-exchange revenue - serv charges - water | E154: 0 | F154: 0 | G154: 0 | H154: 0 | I154: 0 | J154: 0 | K154: 0 | L154: 0 | M154: 0 | N154: 0
D155: Reversal of Impairment loss - exchange revenue - electricity | E155: 0 | F155: 0 | G155: 0 | H155: 0 | I155: 0 | J155: 0 | K155: 0 | L155: 0 | M155: 0 | N155: 0
D156: Reversal of Impairment loss - non-exchange revenue - other | E156: 0 | F156: 0 | G156: 0 | H156: 0 | I156: 0 | J156: 0 | K156: 0 | L156: 0 | M156: 0 | N156: 0
D157: Reversal of Impairment loss - non-exchange revenue - prop rates | E157: 0 | F157: 0 | G157: 0 | H157: 0 | I157: 0 | J157: 0 | K157: 0 | L157: 0 | M157: 0 | N157: 0
D158: Reversal of Impairment loss - non-exchange revenue - serv charges | E158: 0 | F158: 0 | G158: 0 | H158: 0 | I158: 0 | J158: 0 | K158: 0 | L158: 0 | M158: 0 | N158: 0
D159: Reversal of Impairment loss - non-exchange revenue - serv charges - electricity | E159: 0 | F159: 0 | G159: 0 | H159: 0 | I159: 0 | J159: 0 | K159: 0 | L159: 0 | M159: 0 | N159: 0
D160: Reversal of Impairment loss - non-exchange revenue - serv charges - waste management | E160: 0 | F160: 0 | G160: 0 | H160: 0 | I160: 0 | J160: 0 | K160: 0 | L160: 0 | M160: 0 | N160: 0
D161: Reversal of Impairment loss - non-exchange revenue - serv charges - waste water mangement | E161: 0 | F161: 0 | G161: 0 | H161: 0 | I161: 0 | J161: 0 | K161: 0 | L161: 0 | M161: 0 | N161: 0
D162: Reversal of Impairment loss - non-exchange revenue - serv charges - water | E162: 0 | F162: 0 | G162: 0 | H162: 0 | I162: 0 | J162: 0 | K162: 0 | L162: 0 | M162: 0 | N162: 0
D163: Reversal of Impairment loss - exchange revenue - waste management | E163: 0 | F163: 0 | G163: 0 | H163: 0 | I163: 0 | J163: 0 | K163: 0 | L163: 0 | M163: 0 | N163: 0
D164: Reversal of Impairment loss - exchange revenue - waste water management | E164: 0 | F164: 0 | G164: 0 | H164: 0 | I164: 0 | J164: 0 | K164: 0 | L164: 0 | M164: 0 | N164: 0
D165: Reversal of Impairment loss - exchange revenue - water | E165: 0 | F165: 0 | G165: 0 | H165: 0 | I165: 0 | J165: 0 | K165: 0 | L165: 0 | M165: 0 | N165: 0
D166: Reversal of Impairment loss - exchange revenue - other | E166: 0 | F166: 0 | G166: 0 | H166: 0 | I166: 0 | J166: 0 | K166: 0 | L166: 0 | M166: 0 | N166: 0
D167: Non-Cash Total | E167: 0 | F167: 0 | G167: 0 | H167: 0 | I167: 0 | J167: 0 | K167: 0 | L167: 0 | M167: 0 | N167: 0
B168: Expenditure / Debt impairment Total | E168: 0 | F168: 0 | G168: 0 | H168: 0 | I168: 0 | J168: 0 | K168: 0 | L168: 0 | M168: 0 | N168: 0
A169: 3600 | B169: Expenditure / Depreciation and amortisation | C169: Non-Cash | D169: Amortisation - intangible assets | E169: 0 | F169: 0 | G169: 0 | H169: 0 | I169: 0 | J169: 0 | K169: 0 | L169: 0 | M169: 0 | N169: 0
D170: Depreciation - biological or cultivated assets | E170: 0 | F170: 0 | G170: 0 | H170: 0 | I170: 0 | J170: 0 | K170: 0 | L170: 0 | M170: 0 | N170: 0
D171: Depreciation - heritage assets | E171: 0 | F171: 0 | G171: 0 | H171: 0 | I171: 0 | J171: 0 | K171: 0 | L171: 0 | M171: 0 | N171: 0
D172: Depreciation - intangible assets | E172: 0 | F172: 0 | G172: 0 | H172: 0 | I172: 0 | J172: 0 | K172: 0 | L172: 0 | M172: 0 | N172: 0
D173: Depreciation - investment property | E173: 0 | F173: 0 | G173: 0 | H173: 0 | I173: 0 | J173: 0 | K173: 0 | L173: 0 | M173: 0 | N173: 0
D174: Depreciation - living resources | E174: 0 | F174: 0 | G174: 0 | H174: 0 | I174: 0 | J174: 0 | K174: 0 | L174: 0 | M174: 0 | N174: 0
D175: Depreciation - PPE | E175: 0 | F175: 0 | G175: 0 | H175: 0 | I175: 0 | J175: 0 | K175: 0 | L175: 0 | M175: 0 | N175: 0
D176: Depreciation - Land | E176: 0 | F176: 0 | G176: 0 | H176: 0 | I176: 0 | J176: 0 | K176: 0 | L176: 0 | M176: 0 | N176: 0
D177: Impairment loss - biological or cultivated assets | E177: 0 | F177: 0 | G177: 0 | H177: 0 | I177: 0 | J177: 0 | K177: 0 | L177: 0 | M177: 0 | N177: 0
D178: Impairment loss - heritage assets | E178: 0 | F178: 0 | G178: 0 | H178: 0 | I178: 0 | J178: 0 | K178: 0 | L178: 0 | M178: 0 | N178: 0
D179: Impairment loss - intangible assets | E179: 0 | F179: 0 | G179: 0 | H179: 0 | I179: 0 | J179: 0 | K179: 0 | L179: 0 | M179: 0 | N179: 0
D180: Impairment loss - investment property | E180: 0 | F180: 0 | G180: 0 | H180: 0 | I180: 0 | J180: 0 | K180: 0 | L180: 0 | M180: 0 | N180: 0
D181: Impairment loss - living resources | E181: 0 | F181: 0 | G181: 0 | H181: 0 | I181: 0 | J181: 0 | K181: 0 | L181: 0 | M181: 0 | N181: 0
D182: Impairment loss - PPE | E182: 0 | F182: 0 | G182: 0 | H182: 0 | I182: 0 | J182: 0 | K182: 0 | L182: 0 | M182: 0 | N182: 0
D183: Impairment loss - PPE - construction WIP | E183: 0 | F183: 0 | G183: 0 | H183: 0 | I183: 0 | J183: 0 | K183: 0 | L183: 0 | M183: 0 | N183: 0
D184: Reversal impairment loss - biological or cultivated assets | E184: 0 | F184: 0 | G184: 0 | H184: 0 | I184: 0 | J184: 0 | K184: 0 | L184: 0 | M184: 0 | N184: 0
D185: Reversal impairment loss - investment property | E185: 0 | F185: 0 | G185: 0 | H185: 0 | I185: 0 | J185: 0 | K185: 0 | L185: 0 | M185: 0 | N185: 0
D186: Reversal impairment loss - living resources | E186: 0 | F186: 0 | G186: 0 | H186: 0 | I186: 0 | J186: 0 | K186: 0 | L186: 0 | M186: 0 | N186: 0
D187: Reversal impairment loss - PPE | E187: 0 | F187: 0 | G187: 0 | H187: 0 | I187: 0 | J187: 0 | K187: 0 | L187: 0 | M187: 0 | N187: 0
D188: Reversal impairment loss - PPE - construction WIP | E188: 0 | F188: 0 | G188: 0 | H188: 0 | I188: 0 | J188: 0 | K188: 0 | L188: 0 | M188: 0 | N188: 0
D189: Reversal of impairment loss - heritage assets | E189: 0 | F189: 0 | G189: 0 | H189: 0 | I189: 0 | J189: 0 | K189: 0 | L189: 0 | M189: 0 | N189: 0
D190: Reversal of impairment loss - intangible assets | E190: 0 | F190: 0 | G190: 0 | H190: 0 | I190: 0 | J190: 0 | K190: 0 | L190: 0 | M190: 0 | N190: 0
D191: Non-Cash Total | E191: 0 | F191: 0 | G191: 0 | H191: 0 | I191: 0 | J191: 0 | K191: 0 | L191: 0 | M191: 0 | N191: 0
B192: Expenditure / Depreciation and amortisation Total | E192: 0 | F192: 0 | G192: 0 | H192: 0 | I192: 0 | J192: 0 | K192: 0 | L192: 0 | M192: 0 | N192: 0
A193: 3700 | B193: Expenditure / Interest | C193: Cash | D193: Direct cash payment | E193: 0 | F193: 0 | G193: 0 | H193: 0 | I193: 0 | J193: 0 | K193: 0 | L193: 0 | M193: 0 | N193: 0
D194: Cash Total | E194: 0 | F194: 0 | G194: 0 | H194: 0 | I194: 0 | J194: 0 | K194: 0 | L194: 0 | M194: 0 | N194: 0
C195: Non-Cash | D195: Accrual of finance charges - discounting of financial instruments | E195: 0 | F195: 0 | G195: 0 | H195: 0 | I195: 0 | J195: 0 | K195: 0 | L195: 0 | M195: 0 | N195: 0
D196: Accrual of finance charges - interest costs intercompany/parentsubsidiary transactions | E196: 0 | F196: 0 | G196: 0 | H196: 0 | I196: 0 | J196: 0 | K196: 0 | L196: 0 | M196: 0 | N196: 0
D197: Accrual of finance charges - interest costs long service awards | E197: 0 | F197: 0 | G197: 0 | H197: 0 | I197: 0 | J197: 0 | K197: 0 | L197: 0 | M197: 0 | N197: 0
D198: Accrual of finance charges - interest costs non-current provisions | E198: 0 | F198: 0 | G198: 0 | H198: 0 | I198: 0 | J198: 0 | K198: 0 | L198: 0 | M198: 0 | N198: 0
D199: Non-Cash Total | E199: 0 | F199: 0 | G199: 0 | H199: 0 | I199: 0 | J199: 0 | K199: 0 | L199: 0 | M199: 0 | N199: 0
B200: Expenditure / Interest Total | E200: 0 | F200: 0 | G200: 0 | H200: 0 | I200: 0 | J200: 0 | K200: 0 | L200: 0 | M200: 0 | N200: 0
... 111 more rows

Sheet A5-Capex
A2: =Vdesc -> Vote Description | B2: =head27 -> Ref | C2: =head1b -> 2021/22 | D2: =head1A -> 2022/23 | E2: =Head1 -> 2023/24 | F2: =Head2 -> Current Year 2024/25 | J2: =Head3 -> 2025/26 Medium Term Revenue & Expenditure Framework
A3: R thousand | B3: 1 | C3: =Head5 -> Audited Outcome | D3: =Head5 -> Audited Outcome | E3: =Head5 -> Audited Outcome | F3: =Head6 -> Original Budget | G3: =Head7 -> Adjusted Budget | H3: =Head8 -> Full Year Forecast | I3: =Head5b -> Pre-audit outcome | J3: =Head9 -> Budget Year 2025/26 | K3: =Head10 -> Budget Year +1 2026/27 | L3: =Head11 -> Budget Year +2 2027/28
A4: Capital expenditure - Vote
A5: Multi-year expenditure to be appropriated | B5: 2
A6: =A5A!A6 -> Vote 1 - Office of Municipal Manager | C6: =A5A!C6 -> 0 | D6: =A5A!D6 -> 0 | E6: =A5A!E6 -> 0 | F6: =A5A!F6 -> 700000 | G6: =A5A!G6 -> 700000 | H6: =A5A!H6 -> 700000 | I6: =A5A!I6 -> 700000 | J6: =A5A!J6 -> 0 | K6: =A5A!K6 -> 0 | L6: =A5A!L6 -> 1
A7: =A5A!A17 -> Vote 2 - Budget and Treasury | C7: =A5A!C17 -> 0 | D7: =A5A!D17 -> 0 | E7: =A5A!E17 -> 0 | F7: =A5A!F17 -> 0 | G7: =A5A!G17 -> 0 | H7: =A5A!H17 -> 0 | I7: =A5A!I17 -> 0 | J7: =A5A!J17 -> 0 | K7: =A5A!K17 -> 0 | L7: =A5A!L17 -> 0
A8: =A5A!A28 -> Vote 3 - Corporate Services | C8: =A5A!C28 -> 18400.01 | D8: =A5A!D28 -> 0 | E8: =A5A!E28 -> 557840.75 | F8: =A5A!F28 -> 0 | G8: =A5A!G28 -> 0 | H8: =A5A!H28 -> 0 | I8: =A5A!I28 -> 0 | J8: =A5A!J28 -> 3500000 | K8: =A5A!K28 -> 3500000 | L8: =A5A!L28 -> 0
A9: =A5A!A39 -> Vote 4 - Social Service | C9: =A5A!C39 -> 1333821.48 | D9: =A5A!D39 -> 0 | E9: =A5A!E39 -> 30084940.79 | F9: =A5A!F39 -> 0 | G9: =A5A!G39 -> 0 | H9: =A5A!H39 -> 0 | I9: =A5A!I39 -> 0 | J9: =A5A!J39 -> 1000000 | K9: =A5A!K39 -> 0 | L9: =A5A!L39 -> 0
A10: =A5A!A50 -> Vote 5 - Technical and Engineering Services | C10: =A5A!C50 -> 22288994.58 | D10: =A5A!D50 -> 33911453.97 | E10: =A5A!E50 -> 62725172.68 | F10: =A5A!F50 -> 129730649 | G10: =A5A!G50 -> 128342851 | H10: =A5A!H50 -> 128342851 | I10: =A5A!I50 -> 128342851 | J10: =A5A!J50 -> 88778311 | K10: =A5A!K50 -> 111519785 | L10: =A5A!L50 -> 96114041
A11: =A5A!A61 -> Vote 6 - Property, Planning & Development | C11: =A5A!C61 -> 0 | D11: =A5A!D61 -> 0 | E11: =A5A!E61 -> 0 | F11: =A5A!F61 -> 0 | G11: =A5A!G61 -> 0 | H11: =A5A!H61 -> 0 | I11: =A5A!I61 -> 0 | J11: =A5A!J61 -> 2000000 | K11: =A5A!K61 -> 0 | L11: =A5A!L61 -> 0
A12: =A5A!A72 -> Vote 7 - Office of the Mayor/Strategic Office | C12: =A5A!C72 -> 0 | D12: =A5A!D72 -> 0 | E12: =A5A!E72 -> 0 | F12: =A5A!F72 -> 0 | G12: =A5A!G72 -> 0 | H12: =A5A!H72 -> 0 | I12: =A5A!I72 -> 0 | J12: =A5A!J72 -> 0 | K12: =A5A!K72 -> 0 | L12: =A5A!L72 -> 0
A13: =A5A!A83 -> Vote 8 - COMMUNITY & SOCIAL SERVICES | C13: =A5A!C83 -> 0 | D13: =A5A!D83 -> 0 | E13: =A5A!E83 -> 0 | F13: =A5A!F83 -> 0 | G13: =A5A!G83 -> 0 | H13: =A5A!H83 -> 0 | I13: =A5A!I83 -> 0 | J13: =A5A!J83 -> 0 | K13: =A5A!K83 -> 0 | L13: =A5A!L83 -> 0
A14: =A5A!A94 -> Vote 9 - [NAME OF VOTE 9] | C14: =A5A!C94 -> 0 | D14: =A5A!D94 -> 0 | E14: =A5A!E94 -> 0 | F14: =A5A!F94 -> 0 | G14: =A5A!G94 -> 0 | H14: =A5A!H94 -> 0 | I14: =A5A!I94 -> 0 | J14: =A5A!J94 -> 0 | K14: =A5A!K94 -> 0 | L14: =A5A!L94 -> 0
A15: =A5A!A105 -> Vote 10 - [NAME OF VOTE 10] | C15: =A5A!C105 -> 0 | D15: =A5A!D105 -> 0 | E15: =A5A!E105 -> 0 | F15: =A5A!F105 -> 0 | G15: =A5A!G105 -> 0 | H15: =A5A!H105 -> 0 | I15: =A5A!I105 -> 0 | J15: =A5A!J105 -> 0 | K15: =A5A!K105 -> 0 | L15: =A5A!L105 -> 0
A16: =A5A!A116 -> Vote 11 - [NAME OF VOTE 11] | C16: =A5A!C116 -> 0 | D16: =A5A!D116 -> 0 | E16: =A5A!E116 -> 0 | F16: =A5A!F116 -> 0 | G16: =A5A!G116 -> 0 | H16: =A5A!H116 -> 0 | I16: =A5A!I116 -> 0 | J16: =A5A!J116 -> 0 | K16: =A5A!K116 -> 0 | L16: =A5A!L116 -> 0
A17: =A5A!A127 -> Vote 12 - [NAME OF VOTE 12] | C17: =A5A!C127 -> 0 | D17: =A5A!D127 -> 0 | E17: =A5A!E127 -> 0 | F17: =A5A!F127 -> 0 | G17: =A5A!G127 -> 0 | H17: =A5A!H127 -> 0 | I17: =A5A!I127 -> 0 | J17: =A5A!J127 -> 0 | K17: =A5A!K127 -> 0 | L17: =A5A!L127 -> 0
A18: =A5A!A138 -> Vote 13 - [NAME OF VOTE 13] | C18: =A5A!C138 -> 0 | D18: =A5A!D138 -> 0 | E18: =A5A!E138 -> 0 | F18: =A5A!F138 -> 0 | G18: =A5A!G138 -> 0 | H18: =A5A!H138 -> 0 | I18: =A5A!I138 -> 0 | J18: =A5A!J138 -> 0 | K18: =A5A!K138 -> 0 | L18: =A5A!L138 -> 0
A19: =A5A!A149 -> Vote 14 - [NAME OF VOTE 14] | C19: =A5A!C149 -> 0 | D19: =A5A!D149 -> 0 | E19: =A5A!E149 -> 0 | F19: =A5A!F149 -> 0 | G19: =A5A!G149 -> 0 | H19: =A5A!H149 -> 0 | I19: =A5A!I149 -> 0 | J19: =A5A!J149 -> 0 | K19: =A5A!K149 -> 0 | L19: =A5A!L149 -> 0
A20: =A5A!A160 -> Vote 15 - [NAME OF VOTE 15] | C20: =A5A!C160 -> 0 | D20: =A5A!D160 -> 0 | E20: =A5A!E160 -> 0 | F20: =A5A!F160 -> 0 | G20: =A5A!G160 -> 0 | H20: =A5A!H160 -> 0 | I20: =A5A!I160 -> 0 | J20: =A5A!J160 -> 0 | K20: =A5A!K160 -> 0 | L20: =A5A!L160 -> 0
A21: Capital multi-year expenditure sub-total | B21: 7 | C21: =SUM(C6:C20) -> 23641216.07 | D21: =SUM(D6:D20) -> 33911453.97 | E21: 93367954.22 | F21: 130430649 | G21: 129042851 | H21: =SUM(H6:H20) -> 129042851 | I21: 129042851 | J21: 95278311 | K21: 115019785 | L21: 96114042
A23: Single-year expenditure to be appropriated | B23: 2
A24: =A6 -> Vote 1 - Office of Municipal Manager | C24: =A5A!C175 -> 0 | D24: =A5A!D175 -> 5060 | E24: =A5A!E175 -> 0 | F24: =A5A!F175 -> 200000 | G24: =A5A!G175 -> 458743 | H24: =A5A!H175 -> 458743 | I24: =A5A!I175 -> 458743 | J24: =A5A!J175 -> 0 | K24: =A5A!K175 -> 0 | L24: =A5A!L175 -> 2
A25: =A7 -> Vote 2 - Budget and Treasury | C25: =A5A!C186 -> 0 | D25: =A5A!D186 -> 0 | E25: =A5A!E186 -> 260030.84 | F25: =A5A!F186 -> 0 | G25: =A5A!G186 -> 0 | H25: =A5A!H186 -> 0 | I25: =A5A!I186 -> 0 | J25: =A5A!J186 -> 0 | K25: =A5A!K186 -> 0 | L25: =A5A!L186 -> 0
A26: Vote 3 - Corporate Services | C26: =A5A!C197 -> 682904 | D26: =A5A!D197 -> 910379.84 | E26: =A5A!E197 -> 1088127.33 | F26: =A5A!F197 -> 2100000 | G26: =A5A!G197 -> 3233399 | H26: =A5A!H197 -> 3233399 | I26: =A5A!I197 -> 3233399 | J26: =A5A!J197 -> 1020000 | K26: =A5A!K197 -> 800000 | L26: =A5A!L197 -> 800004
A27: Vote 4 - Social Service | C27: =A5A!C208 -> 7761101.11 | D27: =A5A!D208 -> 2294286.52 | E27: =A5A!E208 -> 6033059.45 | F27: =A5A!F208 -> 1908000 | G27: =A5A!G208 -> 2058000 | H27: =A5A!H208 -> 2058000 | I27: =A5A!I208 -> 2058000 | J27: =A5A!J208 -> 5446347 | K27: =A5A!K208 -> 0 | L27: =A5A!L208 -> 6
A28: Vote 5 - Technical and Engineering Services | C28: =A5A!C219 -> 80773781.75 | D28: =A5A!D219 -> 17876416 | E28: =A5A!E219 -> 11166023.46 | F28: =A5A!F219 -> 83030301 | G28: =A5A!G219 -> 122623680 | H28: =A5A!H219 -> 122623680 | I28: =A5A!I219 -> 122623680 | J28: =A5A!J219 -> 50459389 | K28: =A5A!K219 -> 38220917 | L28: =A5A!L219 -> 37420100
A29: Vote 6 - Property, Planning & Development | C29: =A5A!C230 -> 0 | D29: =A5A!D230 -> 1457933.78 | E29: =A5A!E230 -> 1685341.5 | F29: =A5A!F230 -> 6425000 | G29: =A5A!G230 -> 8225000 | H29: =A5A!H230 -> 8225000 | I29: =A5A!I230 -> 8225000 | J29: =A5A!J230 -> 0 | K29: =A5A!K230 -> 0 | L29: =A5A!L230 -> 4
A30: Vote 7 - Office of the Mayor/Strategic Office | C30: =A5A!C241 -> 0 | D30: =A5A!D241 -> 0 | E30: =A5A!E241 -> 362244 | F30: =A5A!F241 -> 0 | G30: =A5A!G241 -> 0 | H30: =A5A!H241 -> 0 | I30: =A5A!I241 -> 0 | J30: =A5A!J241 -> 100000 | K30: =A5A!K241 -> 0 | L30: =A5A!L241 -> 0
A31: Vote 8 - COMMUNITY & SOCIAL SERVICES | C31: =A5A!C252 -> 0 | D31: =A5A!D252 -> 0 | E31: =A5A!E252 -> 0 | F31: =A5A!F252 -> 0 | G31: =A5A!G252 -> 0 | H31: =A5A!H252 -> 0 | I31: =A5A!I252 -> 0 | J31: =A5A!J252 -> 0 | K31: =A5A!K252 -> 0 | L31: =A5A!L252 -> 0
A32: Vote 9 - [NAME OF VOTE 9] | C32: =A5A!C263 -> 0 | D32: =A5A!D263 -> 0 | E32: =A5A!E263 -> 0 | F32: =A5A!F263 -> 0 | G32: =A5A!G263 -> 0 | H32: =A5A!H263 -> 0 | I32: =A5A!I263 -> 0 | J32: =A5A!J263 -> 0 | K32: =A5A!K263 -> 0 | L32: =A5A!L263 -> 0
A33: Vote 10 - [NAME OF VOTE 10] | C33: =A5A!C274 -> 0 | D33: =A5A!D274 -> 0 | E33: =A5A!E274 -> 0 | F33: =A5A!F274 -> 0 | G33: =A5A!G274 -> 0 | H33: =A5A!H274 -> 0 | I33: =A5A!I274 -> 0 | J33: =A5A!J274 -> 0 | K33: =A5A!K274 -> 0 | L33: =A5A!L274 -> 0
A34: Vote 11 - [NAME OF VOTE 11] | C34: =A5A!C285 -> 0 | D34: =A5A!D285 -> 0 | E34: =A5A!E285 -> 0 | F34: =A5A!F285 -> 0 | G34: =A5A!G285 -> 0 | H34: =A5A!H285 -> 0 | I34: =A5A!I285 -> 0 | J34: =A5A!J285 -> 0 | K34: =A5A!K285 -> 0 | L34: =A5A!L285 -> 0
A35: Vote 12 - [NAME OF VOTE 12] | C35: =A5A!C296 -> 0 | D35: =A5A!D296 -> 0 | E35: =A5A!E296 -> 0 | F35: =A5A!F296 -> 0 | G35: =A5A!G296 -> 0 | H35: =A5A!H296 -> 0 | I35: =A5A!I296 -> 0 | J35: =A5A!J296 -> 0 | K35: =A5A!K296 -> 0 | L35: =A5A!L296 -> 0
A36: Vote 13 - [NAME OF VOTE 13] | C36: =A5A!C307 -> 0 | D36: =A5A!D307 -> 0 | E36: =A5A!E307 -> 0 | F36: =A5A!F307 -> 0 | G36: =A5A!G307 -> 0 | H36: =A5A!H307 -> 0 | I36: =A5A!I307 -> 0 | J36: =A5A!J307 -> 0 | K36: =A5A!K307 -> 0 | L36: =A5A!L307 -> 0
A37: Vote 14 - [NAME OF VOTE 14] | C37: =A5A!C318 -> 0 | D37: =A5A!D318 -> 0 | E37: =A5A!E318 -> 0 | F37: =A5A!F318 -> 0 | G37: =A5A!G318 -> 0 | H37: =A5A!H318 -> 0 | I37: =A5A!I318 -> 0 | J37: =A5A!J318 -> 0 | K37: =A5A!K318 -> 0 | L37: =A5A!L318 -> 0
A38: =A20 -> Vote 15 - [NAME OF VOTE 15] | C38: =A5A!C329 -> 0 | D38: =A5A!D329 -> 0 | E38: =A5A!E329 -> 0 | F38: =A5A!F329 -> 0 | G38: =A5A!G329 -> 0 | H38: =A5A!H329 -> 0 | I38: =A5A!I329 -> 0 | J38: =A5A!J329 -> 0 | K38: =A5A!K329 -> 0 | L38: =A5A!L329 -> 0
A39: Capital single-year expenditure sub-total | C39: =SUM(C24:C38) -> 89217786.86 | D39: =SUM(D24:D38) -> 22544076.14 | E39: 20594826.58 | F39: 93663301 | G39: 136598822 | H39: 136598822 | I39: 136598822 | J39: 57025736 | K39: 39020917 | L39: 38220116
A40: Total Capital Expenditure - Vote | C40: =C39+C21 -> 112859002.9 | D40: =D39+D21 -> 56455530.11 | E40: 113962780.8 | F40: 224093950 | G40: 265641673 | H40: 265641673 | I40: 265641673 | J40: 152304047 | K40: 154040702 | L40: 134334158
A42: Capital Expenditure - Functional
A43: Governance and administration | C43: =SUM(C44:C46) -> 14541304.01 | D43: =SUM(D44:D46) -> 915439.84 | E43: 1905998.92 | F43: 3000000 | G43: 4392142 | H43: 4392142 | I43: 4392142 | J43: 6790000 | K43: 4300000 | L43: 800007
A44: Executive and council | C44: 0 | D44: 0 | E44: 1645968.08 | F44: 1250000 | G44: 1250000 | H44: 1250000 | I44: 1250000 | J44: 0 | K44: 0 | L44: 3
A45: Finance and administration | C45: 14541304.01 | D45: 915439.84 | E45: 260030.84 | F45: 1750000 | G45: 3142142 | H45: 3142142 | I45: 3142142 | J45: 6790000 | K45: 4300000 | L45: 800004
A46: Internal audit | C46: 0 | D46: 0 | E46: 0 | F46: 0 | G46: 0 | H46: 0 | I46: 0 | J46: 0 | K46: 0 | L46: 0
A47: Community and public safety | C47: =SUM(C48:C52) -> 2926851.45 | D47: =SUM(D48:D52) -> 1585930 | E47: 294894 | F47: 10408000 | G47: 10558000 | H47: 10558000 | I47: 10558000 | J47: 2386347 | K47: 8137689 | L47: 14755856
A48: Community and social services | C48: 2926851.45 | D48: 1585930 | E48: 294894 | F48: 0 | G48: 0 | H48: 0 | I48: 0 | J48: 1586347 | K48: 0 | L48: 0
A49: Sport and recreation | C49: 0 | D49: 0 | E49: 0 | F49: 10378000 | G49: 10528000 | H49: 10528000 | I49: 10528000 | J49: 0 | K49: 8137689 | L49: 14755855
A50: Public safety | C50: 0 | D50: 0 | E50: 0 | F50: 30000 | G50: 30000 | H50: 30000 | I50: 30000 | J50: 800000 | K50: 0 | L50: 1
A51: Housing | C51: 0 | D51: 0 | E51: 0 | F51: 0 | G51: 0 | H51: 0 | I51: 0 | J51: 0 | K51: 0 | L51: 0
A52: Health | C52: 0 | D52: 0 | E52: 0 | F52: 0 | G52: 0 | H52: 0 | I52: 0 | J52: 0 | K52: 0 | L52: 0
A53: Economic and environmental services | C53: =SUM(C54:C56) -> 2573995.62 | D53: =SUM(D54:D56) -> 2417318.67 | E53: 10903987.45 | F53: 29128750 | G53: 63084467 | H53: 63084467 | I53: 63084467 | J53: 55157838 | K53: 26930305 | L53: 23132061
A54: Planning and development | C54: 0 | D54: 1457933.78 | E54: 2047585.5 | F54: 6425000 | G54: 8225000 | H54: 8225000 | I54: 8225000 | J54: 2000000 | K54: 0 | L54: 4
A55: Road transport | C55: 2573995.62 | D55: 959384.89 | E55: 8713180.67 | F55: 22703750 | G55: 54859467 | H55: 54859467 | I55: 54859467 | J55: 53157838 | K55: 26930305 | L55: 23132057
A56: Environmental protection | C56: 0 | D56: 0 | E56: 143221.28 | F56: 0 | G56: 0 | H56: 0 | I56: 0 | J56: 0 | K56: 0 | L56: 0
A57: Trading services | C57: =SUM(C58:C61) -> 106656851.9 | D57: =SUM(D58:D61) -> 51319485.08 | E57: 100857900.4 | F57: 181557200 | G57: 187607064 | H57: 187607064 | I57: 187607064 | J57: 93579862 | K57: 114672708 | L57: 95646234
A58: Energy sources | C58: 30826398.99 | D58: 10291289.37 | E58: 10772936.94 | F58: 26206200 | G58: 20306855 | H58: 20306855 | I58: 20306855 | J58: 9503017 | K58: 26755333 | L58: 18000006
A59: Water management | C59: 40564137.01 | D59: 33075620.19 | E59: 58386022.7 | F59: 137340440 | G59: 126172039 | H59: 126172039 | I59: 126172039 | J59: 68583075 | K59: 72883075 | L59: 58300012
A60: Waste water management | C60: 29098244.71 | D60: 7461575.52 | E60: 1064000 | F60: 16510560 | G60: 39628170 | H60: 39628170 | I60: 39628170 | J60: 12993770 | K60: 15034300 | L60: 19346216
A61: Waste management | C61: 6168071.14 | D61: 491000 | E61: 30634940.79 | F61: 1500000 | G61: 1500000 | H61: 1500000 | I61: 1500000 | J61: 2500000 | K61: 0 | L61: 0
A62: Other | C62: 0 | D62: 217356.52 | E62: 0 | F62: 0 | G62: 0 | H62: 0 | I62: 0 | J62: 0 | K62: 0 | L62: 0
A63: Total Capital Expenditure - Functional | B63: 3 | C63: =C43+C47+C53+C57+C62 -> 126699002.9 | D63: =D43+D47+D53+D57+D62 -> 56455530.11 | E63: 113962780.8 | F63: 224093950 | G63: 265641673 | H63: 265641673 | I63: 265641673 | J63: 157914047 | K63: 154040702 | L63: =L43+L47+L53+L57+L62 -> 134334158
A65: Funded by:
A66: National Government | C66: 101440103.8 | D66: 46418809 | E66: 96388604.88 | F66: 194004750 | G66: 221079752 | H66: 221079752 | I66: 221079752 | J66: 117237700 | K66: 142940700 | L66: 133534118
A67: Provincial Government | C67: 0 | D67: 0 | E67: 0 | F67: 0 | G67: 0 | H67: 0 | I67: 0 | J67: 0 | K67: 0 | L67: 0
A68: District Municipality | C68: 0 | D68: 0 | E68: 0 | F68: 0 | G68: 0 | H68: 0 | I68: 0 | J68: 0 | K68: 0 | L68: 0
A69: Transfers and subsidies - capital (monetary allocations) (Nat / Prov Departm Agencies, Households, Non-profit Institutions, Private Enterprises, Public Corporatons, Higher Educ Institutions) | C69: 0 | D69: 0 | E69: 0 | F69: 0 | G69: 0 | H69: 0 | I69: 0 | J69: 0 | K69: 0 | L69: 0
A70: Transfers recognised - capital | B70: 4 | C70: =SUM(C66:C69) -> 101440103.8 | D70: 46418809 | E70: 96388604.88 | F70: 194004750 | G70: 221079752 | H70: 221079752 | I70: 221079752 | J70: 117237700 | K70: 142940700 | L70: 133534118
A72: Borrowing | B72: 6 | C72: 0 | D72: 0 | E72: 0 | F72: 0 | G72: 0 | H72: 0 | I72: 0 | J72: 0 | K72: 0 | L72: 0
A73: Internally generated funds | C73: 21994213.52 | D73: 10036721.11 | E73: 17574175.92 | F73: 30089200 | G73: 44561921 | H73: 44561921 | I73: 44561921 | J73: 40676347 | K73: 11100002 | L73: 800040
A74: Total Capital Funding | B74: 7 | C74: =+C70+C72+C73 -> 123434317.3 | D74: =+D70+D72+D73 -> 56455530.11 | E74: 113962780.8 | F74: 224093950 | G74: 265641673 | H74: 265641673 | I74: 265641673 | J74: 157914047 | K74: 154040702 | L74: 134334158
A75: =head27a -> References
A76: 1. Municipalities may choose to appropriate for capital expenditure for three years or for one year (if one year appropriation projected expenditure required for yr2 and yr3).
A77: 2. Include capital component of PPP unitary payment. Note that capital transfers are only appropriated to municipalities for the budget year
A78: 3. Capital expenditure by functional classification must reconcile to the appropriations by vote
A79: 4. Must reconcile to supporting table SA20 and to Budgeted Financial Performance (revenue and expenditure)
A81: 6. Include finance leases and PPP capital funding component of unitary payment - total borrowing/repayments to reconcile to changes in Table SA17
A82: 7. Total Capital Funding must balance with Total Capital Expenditure
A83: 8. Include any capitalised interest (MFMA section 46) as part of relevant capital budget

Sheet A5A
A1: =muni&" - "&Approve5 -> Choose name from list - Table A5 Budgeted Capital Expenditure by vote, functional classification and funding
A2: =Vdesc -> Vote Description | B2: =head27 -> Ref | C2: =head1b -> 2021/22 | D2: =head1A -> 2022/23 | E2: =Head1 -> 2023/24 | F2: =Head2 -> Current Year 2024/25 | J2: =Head3 -> 2025/26 Medium Term Revenue & Expenditure Framework | N2: ="Multi-year appropriation for "&Head9& " in the "&Head2A&" Annual Budget" -> Multi-year appropriation for Budget Year 2025/26 in the 2024/25 Annual Budget | R2: ="Multi-year appropriation for "&RIGHT(Head10,7)& " in the "&Head2A&" Annual Budget" -> Multi-year appropriation for 2026/27 in the 2024/25 Annual Budget | V2: New multi-year appropriations (funds for new and existing projects)
A3: R thousand | B3: 1 | C3: =Head5 -> Audited Outcome | D3: =Head5 -> Audited Outcome | E3: =Head5 -> Audited Outcome | F3: =Head6 -> Original Budget | G3: =Head7 -> Adjusted Budget | H3: =Head8 -> Full Year Forecast | I3: =Head5b -> Pre-audit outcome | J3: =Head9 -> Budget Year 2025/26 | K3: =Head10 -> Budget Year +1 2026/27 | L3: =Head11 -> Budget Year +2 2027/28 | N3: ="Appropriation for "&RIGHT(Head9,7) -> Appropriation for 2025/26 | O3: ="Adjustments in "&Head2A -> Adjustments in 2024/25 | P3: ="Downward adjustments for "&RIGHT(Head9,7) -> Downward adjustments for 2025/26 | Q3: Appropriation carried forward | R3: ="Appropriation for "&RIGHT(Head9,7) -> Appropriation for 2025/26 | S3: ="Adjustments in "&Head2A -> Adjustments in 2024/25 | T3: ="Downward adjustments for "&RIGHT(Head9,7) -> Downward adjustments for 2025/26 | U3: Appropriation carried forward | V3: =Head9 -> Budget Year 2025/26 | W3: =Head10 -> Budget Year +1 2026/27 | X3: =Head11 -> Budget Year +2 2027/28
A4: Capital expenditure - Municipal Vote
A5: Multi-year expenditure appropriation | B5: 2
A6: ='Org structure'!A2 -> Vote 1 - Office of Municipal Manager | C6: 0 | D6: 0 | E6: 0 | F6: 700000 | G6: 700000 | H6: 700000 | I6: 700000 | J6: 0 | K6: 0 | L6: 1 | N6: =SUM(N7:N16) -> 0 | O6: 0 | P6: 0 | Q6: 0 | R6: 0 | S6: 0 | T6: 0 | U6: 0 | V6: =SUM(V7:V16) -> 0 | W6: =SUM(W7:W16) -> 0 | X6: =SUM(X7:X16) -> 0
A7: ='Org structure'!E3 -> 1.1 - [Name of sub-vote] | J7: =Q7+V7 -> 0 | K7: =U7+W7 -> 0 | L7: =X7 -> 0 | Q7: =SUM(N7:P7) -> 0 | U7: =SUM(R7:T7) -> 0
A8: ='Org structure'!E4 -> 0 | J8: =Q8+V8 -> 0 | K8: =U8+W8 -> 0 | L8: =X8 -> 0 | Q8: =SUM(N8:P8) -> 0 | U8: =SUM(R8:T8) -> 0
A9: ='Org structure'!E5 -> 0 | J9: =Q9+V9 -> 0 | K9: =U9+W9 -> 0 | L9: 0 | Q9: 0 | U9: 0
A10: ='Org structure'!E6 -> 0 | J10: 0 | K10: 0 | L10: 0 | Q10: 0 | U10: 0
A11: ='Org structure'!E7 -> 0 | J11: 0 | K11: 0 | L11: =X11 -> 0 | Q11: 0 | U11: 0
A12: ='Org structure'!E8 -> 0 | J12: 0 | K12: 0 | L12: 0 | Q12: 0 | U12: 0
A13: ='Org structure'!E9 -> 0 | J13: 0 | K13: 0 | L13: 0 | Q13: 0 | U13: 0
A14: ='Org structure'!E10 -> 0 | J14: 0 | K14: 0 | L14: 0 | Q14: 0 | U14: 0
A15: ='Org structure'!E11 -> 0 | J15: 0 | K15: 0 | L15: 0 | Q15: 0 | U15: 0
A16: ='Org structure'!E12 -> 0 | J16: 0 | K16: 0 | L16: 0 | Q16: 0 | U16: 0
A17: ='Org structure'!A3 -> Vote 2 - Budget and Treasury | C17: 0 | D17: 0 | E17: 0 | F17: 0 | G17: 0 | H17: 0 | I17: 0 | J17: 0 | K17: 0 | L17: 0 | N17: =SUM(N18:N27) -> 0 | O17: 0 | P17: 0 | Q17: 0 | R17: 0 | S17: 0 | T17: 0 | U17: 0 | V17: 0 | W17: 0 | X17: 0
A18: ='Org structure'!E14 -> 2.1 - [Name of sub-vote] | J18: =Q18+V18 -> 0 | K18: =U18+W18 -> 0 | L18: =X18 -> 0 | Q18: =SUM(N18:P18) -> 0 | U18: 0
A19: ='Org structure'!E15 -> 0 | J19: =Q19+V19 -> 0 | K19: =U19+W19 -> 0 | L19: 0 | Q19: 0 | U19: 0
A20: ='Org structure'!E16 -> 0 | J20: 0 | K20: 0 | L20: 0 | Q20: 0 | U20: 0
A21: ='Org structure'!E17 -> 0 | J21: 0 | K21: =U21+W21 -> 0 | L21: 0 | Q21: 0 | U21: 0
A22: ='Org structure'!E18 -> 0 | J22: 0 | K22: 0 | L22: 0 | Q22: 0 | U22: 0
A23: ='Org structure'!E19 -> 0 | J23: 0 | K23: 0 | L23: 0 | Q23: 0 | U23: 0
A24: ='Org structure'!E20 -> 0 | J24: 0 | K24: 0 | L24: 0 | Q24: 0 | U24: 0
A25: ='Org structure'!E21 -> 0 | J25: 0 | K25: 0 | L25: 0 | Q25: 0 | U25: 0
A26: ='Org structure'!E22 -> 0 | J26: 0 | K26: 0 | L26: 0 | Q26: 0 | U26: 0
A27: ='Org structure'!E23 -> 0 | J27: 0 | K27: 0 | L27: 0 | Q27: 0 | U27: 0
A28: ='Org structure'!A4 -> Vote 3 - Corporate Services | C28: 18400.01 | D28: 0 | E28: 557840.75 | F28: 0 | G28: 0 | H28: 0 | I28: 0 | J28: 3500000 | K28: 3500000 | L28: 0 | N28: =SUM(N29:N38) -> 0 | O28: 0 | P28: 0 | Q28: 0 | R28: 0 | S28: 0 | T28: 0 | U28: 0 | V28: 0 | W28: 0 | X28: 0
A29: ='Org structure'!E25 -> 3.1 - [Name of sub-vote] | J29: =Q29+V29 -> 0 | K29: =U29+W29 -> 0 | L29: =X29 -> 0 | Q29: =SUM(N29:P29) -> 0 | U29: 0
A30: ='Org structure'!E26 -> 0 | J30: 0 | K30: 0 | L30: 0 | Q30: 0 | U30: 0
A31: ='Org structure'!E27 -> 0 | J31: 0 | K31: 0 | L31: 0 | Q31: 0 | U31: =SUM(R31:T31) -> 0
A32: ='Org structure'!E28 -> 0 | J32: 0 | K32: =U32+W32 -> 0 | L32: 0 | Q32: 0 | U32: 0
A33: ='Org structure'!E29 -> 0 | J33: =Q33+V33 -> 0 | K33: 0 | L33: 0 | Q33: 0 | U33: 0
A34: ='Org structure'!E30 -> 0 | J34: 0 | K34: 0 | L34: 0 | Q34: 0 | U34: 0
A35: ='Org structure'!E31 -> 0 | J35: 0 | K35: 0 | L35: 0 | Q35: 0 | U35: 0
A36: ='Org structure'!E32 -> 0 | J36: 0 | K36: 0 | L36: 0 | Q36: 0 | U36: 0
A37: ='Org structure'!E33 -> 0 | J37: 0 | K37: 0 | L37: 0 | Q37: 0 | U37: 0
A38: ='Org structure'!E34 -> 0 | J38: 0 | K38: 0 | L38: 0 | Q38: 0 | U38: 0
A39: ='Org structure'!A5 -> Vote 4 - Social Service | C39: 1333821.48 | D39: 0 | E39: 30084940.79 | F39: 0 | G39: 0 | H39: 0 | I39: 0 | J39: 1000000 | K39: 0 | L39: 0 | N39: =SUM(N40:N49) -> 0 | O39: 0 | P39: 0 | Q39: 0 | R39: 0 | S39: 0 | T39: 0 | U39: 0 | V39: 0 | W39: 0 | X39: 0
A40: ='Org structure'!E36 -> 4.1 - [Name of sub-vote] | J40: =Q40+V40 -> 0 | K40: =U40+W40 -> 0 | L40: =X40 -> 0 | Q40: =SUM(N40:P40) -> 0 | U40: 0
A41: ='Org structure'!E37 -> 0 | J41: 0 | K41: 0 | L41: 0 | Q41: 0 | U41: 0
A42: ='Org structure'!E38 -> 0 | J42: 0 | K42: 0 | L42: 0 | Q42: 0 | U42: 0
A43: ='Org structure'!E39 -> 0 | J43: 0 | K43: 0 | L43: 0 | Q43: 0 | U43: 0
A44: ='Org structure'!E40 -> 0 | J44: 0 | K44: 0 | L44: 0 | Q44: 0 | U44: 0
A45: ='Org structure'!E41 -> 0 | J45: 0 | K45: 0 | L45: 0 | Q45: 0 | U45: 0
A46: ='Org structure'!E42 -> 0 | J46: 0 | K46: 0 | L46: 0 | Q46: 0 | U46: 0
A47: ='Org structure'!E43 -> 0 | J47: 0 | K47: 0 | L47: 0 | Q47: 0 | U47: 0
A48: ='Org structure'!E44 -> 0 | J48: 0 | K48: 0 | L48: 0 | Q48: 0 | U48: 0
A49: ='Org structure'!E45 -> 0 | J49: 0 | K49: 0 | L49: 0 | Q49: 0 | U49: 0
A50: ='Org structure'!A6 -> Vote 5 - Technical and Engineering Services | C50: 22288994.58 | D50: 33911453.97 | E50: 62725172.68 | F50: 129730649 | G50: 128342851 | H50: 128342851 | I50: 128342851 | J50: 88778311 | K50: 111519785 | L50: 96114041 | N50: =SUM(N51:N60) -> 0 | O50: 0 | P50: 0 | Q50: 0 | R50: 0 | S50: 0 | T50: 0 | U50: 0 | V50: 0 | W50: 0 | X50: 0
A51: ='Org structure'!E47 -> 5.1 - [Name of sub-vote] | J51: =Q51+V51 -> 0 | K51: =U51+W51 -> 0 | L51: =X51 -> 0 | Q51: =SUM(N51:P51) -> 0 | U51: 0
A52: ='Org structure'!E48 -> 0 | J52: 0 | K52: 0 | L52: 0 | Q52: 0 | U52: 0
A53: ='Org structure'!E49 -> 0 | J53: 0 | K53: 0 | L53: 0 | Q53: 0 | U53: 0
A54: ='Org structure'!E50 -> 0 | J54: 0 | K54: 0 | L54: 0 | Q54: 0 | U54: 0
A55: ='Org structure'!E51 -> 0 | J55: 0 | K55: 0 | L55: 0 | Q55: 0 | U55: 0
A56: ='Org structure'!E52 -> 0 | J56: 0 | K56: 0 | L56: 0 | Q56: 0 | U56: 0
A57: ='Org structure'!E53 -> 0 | J57: 0 | K57: 0 | L57: 0 | Q57: 0 | U57: 0
A58: ='Org structure'!E54 -> 0 | J58: 0 | K58: 0 | L58: 0 | Q58: 0 | U58: 0
A59: ='Org structure'!E55 -> 0 | J59: 0 | K59: 0 | L59: 0 | Q59: 0 | U59: 0
A60: ='Org structure'!E56 -> 0 | J60: 0 | K60: 0 | L60: 0 | Q60: 0 | U60: 0
A61: ='Org structure'!A7 -> Vote 6 - Property, Planning & Development | C61: 0 | D61: 0 | E61: 0 | F61: 0 | G61: 0 | H61: 0 | I61: 0 | J61: 2000000 | K61: 0 | L61: 0 | N61: =SUM(N62:N71) -> 0 | O61: 0 | P61: 0 | Q61: 0 | R61: 0 | S61: 0 | T61: 0 | U61: 0 | V61: 0 | W61: 0 | X61: 0
A62: ='Org structure'!E58 -> 6.1 - [Name of sub-vote] | J62: =Q62+V62 -> 0 | K62: =U62+W62 -> 0 | L62: =X62 -> 0 | Q62: =SUM(N62:P62) -> 0 | U62: 0
A63: ='Org structure'!E59 -> 0 | J63: 0 | K63: 0 | L63: 0 | Q63: 0 | U63: 0
A64: ='Org structure'!E60 -> 0 | J64: 0 | K64: 0 | L64: 0 | Q64: 0 | U64: 0
A65: ='Org structure'!E61 -> 0 | J65: 0 | K65: 0 | L65: 0 | Q65: 0 | U65: 0
A66: ='Org structure'!E62 -> 0 | J66: 0 | K66: 0 | L66: 0 | Q66: 0 | U66: 0
A67: ='Org structure'!E63 -> 0 | J67: 0 | K67: 0 | L67: 0 | Q67: 0 | U67: 0
A68: ='Org structure'!E64 -> 0 | J68: 0 | K68: 0 | L68: 0 | Q68: 0 | U68: 0
A69: ='Org structure'!E65 -> 0 | J69: 0 | K69: 0 | L69: 0 | Q69: 0 | U69: 0
A70: ='Org structure'!E66 -> 0 | J70: 0 | K70: 0 | L70: 0 | Q70: 0 | U70: 0
A71: ='Org structure'!E67 -> 0 | J71: 0 | K71: 0 | L71: 0 | Q71: 0 | U71: 0
A72: ='Org structure'!A8 -> Vote 7 - Office of the Mayor/Strategic Office | C72: 0 | D72: 0 | E72: 0 | F72: 0 | G72: 0 | H72: 0 | I72: 0 | J72: 0 | K72: 0 | L72: 0 | N72: =SUM(N73:N82) -> 0 | O72: 0 | P72: 0 | Q72: 0 | R72: 0 | S72: 0 | T72: 0 | U72: 0 | V72: 0 | W72: 0 | X72: 0
A73: ='Org structure'!E69 -> 7.1 - [Name of sub-vote] | J73: =Q73+V73 -> 0 | K73: =U73+W73 -> 0 | L73: =X73 -> 0 | Q73: =SUM(N73:P73) -> 0 | U73: =SUM(R73:T73) -> 0
A74: ='Org structure'!E70 -> 0 | J74: 0 | K74: 0 | L74: 0 | Q74: 0 | U74: 0
A75: ='Org structure'!E71 -> 0 | J75: 0 | K75: 0 | L75: 0 | Q75: 0 | U75: 0
A76: ='Org structure'!E72 -> 0 | J76: 0 | K76: 0 | L76: 0 | Q76: 0 | U76: 0
A77: ='Org structure'!E73 -> 0 | J77: 0 | K77: 0 | L77: 0 | Q77: 0 | U77: 0
A78: ='Org structure'!E74 -> 0 | J78: 0 | K78: 0 | L78: 0 | Q78: 0 | U78: 0
A79: ='Org structure'!E75 -> 0 | J79: 0 | K79: 0 | L79: 0 | Q79: 0 | U79: 0
A80: ='Org structure'!E76 -> 0 | J80: 0 | K80: 0 | L80: 0 | Q80: 0 | U80: 0
A81: ='Org structure'!E77 -> 0 | J81: 0 | K81: 0 | L81: 0 | Q81: 0 | U81: 0
A82: ='Org structure'!E78 -> 0 | J82: 0 | K82: 0 | L82: 0 | Q82: 0 | U82: 0
A83: ='Org structure'!A9 -> Vote 8 - COMMUNITY & SOCIAL SERVICES | C83: 0 | D83: 0 | E83: 0 | F83: 0 | G83: 0 | H83: 0 | I83: 0 | J83: 0 | K83: 0 | L83: 0 | N83: =SUM(N84:N93) -> 0 | O83: 0 | P83: 0 | Q83: 0 | R83: 0 | S83: 0 | T83: 0 | U83: 0 | V83: 0 | W83: 0 | X83: 0
A84: ='Org structure'!E80 -> 8.1 - [Name of sub-vote] | J84: =Q84+V84 -> 0 | K84: =U84+W84 -> 0 | L84: =X84 -> 0 | Q84: =SUM(N84:P84) -> 0 | U84: 0
A85: ='Org structure'!E81 -> 0 | J85: 0 | K85: 0 | L85: 0 | Q85: 0 | U85: 0
A86: ='Org structure'!E82 -> 0 | J86: 0 | K86: 0 | L86: 0 | Q86: 0 | U86: 0
A87: ='Org structure'!E83 -> 0 | J87: 0 | K87: 0 | L87: 0 | Q87: 0 | U87: 0
A88: ='Org structure'!E84 -> 0 | J88: 0 | K88: 0 | L88: 0 | Q88: 0 | U88: 0
A89: ='Org structure'!E85 -> 0 | J89: 0 | K89: 0 | L89: 0 | Q89: 0 | U89: 0
A90: ='Org structure'!E86 -> 0 | J90: 0 | K90: 0 | L90: 0 | Q90: 0 | U90: 0
A91: ='Org structure'!E87 -> 0 | J91: 0 | K91: 0 | L91: 0 | Q91: 0 | U91: 0
A92: ='Org structure'!E88 -> 0 | J92: 0 | K92: 0 | L92: 0 | Q92: 0 | U92: 0
A93: ='Org structure'!E89 -> 0 | J93: 0 | K93: 0 | L93: 0 | Q93: 0 | U93: 0
A94: ='Org structure'!A10 -> Vote 9 - [NAME OF VOTE 9] | C94: =SUM(C95:C104) -> 0 | D94: =SUM(D95:D104) -> 0 | E94: 0 | F94: 0 | G94: 0 | H94: 0 | I94: 0 | J94: 0 | K94: 0 | L94: 0 | N94: =SUM(N95:N104) -> 0 | O94: 0 | P94: 0 | Q94: 0 | R94: 0 | S94: 0 | T94: 0 | U94: 0 | V94: 0 | W94: 0 | X94: 0
A95: ='Org structure'!E91 -> 9.1 - [Name of sub-vote] | J95: =Q95+V95 -> 0 | K95: =U95+W95 -> 0 | L95: =X95 -> 0 | Q95: =SUM(N95:P95) -> 0 | U95: 0
A96: ='Org structure'!E92 -> 0 | J96: 0 | K96: 0 | L96: 0 | Q96: 0 | U96: 0
A97: ='Org structure'!E93 -> 0 | J97: 0 | K97: 0 | L97: 0 | Q97: 0 | U97: 0
A98: ='Org structure'!E94 -> 0 | J98: 0 | K98: 0 | L98: 0 | Q98: 0 | U98: 0
A99: ='Org structure'!E95 -> 0 | J99: 0 | K99: 0 | L99: 0 | Q99: 0 | U99: 0
A100: ='Org structure'!E96 -> 0 | J100: 0 | K100: 0 | L100: 0 | Q100: 0 | U100: 0
A101: ='Org structure'!E97 -> 0 | J101: 0 | K101: 0 | L101: 0 | Q101: 0 | U101: 0
A102: ='Org structure'!E98 -> 0 | J102: 0 | K102: 0 | L102: 0 | Q102: 0 | U102: 0
A103: ='Org structure'!E99 -> 0 | J103: 0 | K103: 0 | L103: 0 | Q103: 0 | U103: 0
A104: ='Org structure'!E100 -> 0 | J104: 0 | K104: 0 | L104: 0 | Q104: 0 | U104: 0
A105: ='Org structure'!A11 -> Vote 10 - [NAME OF VOTE 10] | C105: =SUM(C106:C115) -> 0 | D105: =SUM(D106:D115) -> 0 | E105: 0 | F105: 0 | G105: 0 | H105: 0 | I105: 0 | J105: 0 | K105: 0 | L105: 0 | N105: =SUM(N106:N115) -> 0 | O105: 0 | P105: 0 | Q105: 0 | R105: 0 | S105: 0 | T105: 0 | U105: 0 | V105: 0 | W105: 0 | X105: 0
A106: ='Org structure'!E102 -> 10.1 - [Name of sub-vote] | J106: =Q106+V106 -> 0 | K106: =U106+W106 -> 0 | L106: =X106 -> 0 | Q106: =SUM(N106:P106) -> 0 | U106: 0
A107: ='Org structure'!E103 -> 0 | J107: 0 | K107: 0 | L107: 0 | Q107: 0 | U107: 0
A108: ='Org structure'!E104 -> 0 | J108: 0 | K108: 0 | L108: 0 | Q108: 0 | U108: 0
A109: ='Org structure'!E105 -> 0 | J109: 0 | K109: 0 | L109: 0 | Q109: 0 | U109: 0
A110: ='Org structure'!E106 -> 0 | J110: 0 | K110: 0 | L110: 0 | Q110: 0 | U110: 0
A111: ='Org structure'!E107 -> 0 | J111: 0 | K111: 0 | L111: 0 | Q111: 0 | U111: 0
A112: ='Org structure'!E108 -> 0 | J112: 0 | K112: 0 | L112: 0 | Q112: 0 | U112: 0
A113: ='Org structure'!E109 -> 0 | J113: 0 | K113: 0 | L113: 0 | Q113: 0 | U113: 0
A114: ='Org structure'!E110 -> 0 | J114: 0 | K114: 0 | L114: 0 | Q114: 0 | U114: 0
A115: ='Org structure'!E111 -> 0 | J115: 0 | K115: 0 | L115: 0 | Q115: 0 | U115: 0
A116: ='Org structure'!A12 -> Vote 11 - [NAME OF VOTE 11] | C116: =SUM(C117:C126) -> 0 | D116: 0 | E116: 0 | F116: 0 | G116: 0 | H116: 0 | I116: 0 | J116: 0 | K116: 0 | L116: 0 | N116: =SUM(N117:N126) -> 0 | O116: 0 | P116: 0 | Q116: 0 | R116: 0 | S116: 0 | T116: 0 | U116: 0 | V116: 0 | W116: 0 | X116: 0
A117: ='Org structure'!E113 -> 11.1 - [Name of sub-vote] | J117: =Q117+V117 -> 0 | K117: =U117+W117 -> 0 | L117: =X117 -> 0 | Q117: =SUM(N117:P117) -> 0 | U117: 0
A118: ='Org structure'!E114 -> 0 | J118: 0 | K118: 0 | L118: 0 | Q118: 0 | U118: 0
A119: ='Org structure'!E115 -> 0 | J119: 0 | K119: 0 | L119: 0 | Q119: 0 | U119: 0
A120: ='Org structure'!E116 -> 0 | J120: 0 | K120: 0 | L120: 0 | Q120: 0 | U120: 0
A121: ='Org structure'!E117 -> 0 | J121: 0 | K121: 0 | L121: 0 | Q121: 0 | U121: 0
A122: ='Org structure'!E118 -> 0 | J122: 0 | K122: 0 | L122: 0 | Q122: 0 | U122: 0
A123: ='Org structure'!E119 -> 0 | J123: 0 | K123: 0 | L123: 0 | Q123: 0 | U123: 0
A124: ='Org structure'!E120 -> 0 | J124: 0 | K124: 0 | L124: 0 | Q124: 0 | U124: 0
A125: ='Org structure'!E121 -> 0 | J125: 0 | K125: 0 | L125: 0 | Q125: 0 | U125: 0
A126: ='Org structure'!E122 -> 0 | J126: 0 | K126: 0 | L126: 0 | Q126: 0 | U126: 0
A127: ='Org structure'!A13 -> Vote 12 - [NAME OF VOTE 12] | C127: =SUM(C128:C137) -> 0 | D127: 0 | E127: 0 | F127: 0 | G127: 0 | H127: 0 | I127: 0 | J127: 0 | K127: 0 | L127: 0 | N127: =SUM(N128:N137) -> 0 | O127: 0 | P127: 0 | Q127: 0 | R127: 0 | S127: 0 | T127: 0 | U127: 0 | V127: 0 | W127: 0 | X127: 0
A128: ='Org structure'!E124 -> 12.1 - [Name of sub-vote] | J128: =Q128+V128 -> 0 | K128: =U128+W128 -> 0 | L128: =X128 -> 0 | Q128: =SUM(N128:P128) -> 0 | U128: 0
A129: ='Org structure'!E125 -> 0 | J129: 0 | K129: 0 | L129: 0 | Q129: 0 | U129: 0
A130: ='Org structure'!E126 -> 0 | J130: 0 | K130: 0 | L130: 0 | Q130: 0 | U130: 0
A131: ='Org structure'!E127 -> 0 | J131: 0 | K131: 0 | L131: 0 | Q131: 0 | U131: 0
A132: ='Org structure'!E128 -> 0 | J132: 0 | K132: 0 | L132: 0 | Q132: 0 | U132: 0
A133: ='Org structure'!E129 -> 0 | J133: =Q133+V133 -> 0 | K133: 0 | L133: 0 | Q133: 0 | U133: 0
A134: ='Org structure'!E130 -> 0 | J134: 0 | K134: 0 | L134: 0 | Q134: 0 | U134: 0
A135: ='Org structure'!E131 -> 0 | J135: 0 | K135: 0 | L135: 0 | Q135: 0 | U135: 0
A136: ='Org structure'!E132 -> 0 | J136: 0 | K136: 0 | L136: 0 | Q136: 0 | U136: =SUM(R136:T136) -> 0
A137: ='Org structure'!E133 -> 0 | J137: 0 | K137: 0 | L137: 0 | Q137: 0 | U137: 0
A138: ='Org structure'!A14 -> Vote 13 - [NAME OF VOTE 13] | C138: =SUM(C139:C148) -> 0 | D138: 0 | E138: 0 | F138: 0 | G138: 0 | H138: 0 | I138: 0 | J138: 0 | K138: 0 | L138: 0 | N138: =SUM(N139:N148) -> 0 | O138: 0 | P138: 0 | Q138: 0 | R138: 0 | S138: 0 | T138: 0 | U138: 0 | V138: 0 | W138: 0 | X138: 0
A139: ='Org structure'!E135 -> 13.1 - [Name of sub-vote] | J139: =Q139+V139 -> 0 | K139: =U139+W139 -> 0 | L139: =X139 -> 0 | Q139: =SUM(N139:P139) -> 0 | U139: 0
A140: ='Org structure'!E136 -> 0 | J140: 0 | K140: 0 | L140: 0 | Q140: 0 | U140: 0
A141: ='Org structure'!E137 -> 0 | J141: 0 | K141: 0 | L141: 0 | Q141: 0 | U141: 0
A142: ='Org structure'!E138 -> 0 | J142: 0 | K142: 0 | L142: 0 | Q142: 0 | U142: 0
A143: ='Org structure'!E139 -> 0 | J143: 0 | K143: 0 | L143: 0 | Q143: 0 | U143: 0
A144: ='Org structure'!E140 -> 0 | J144: 0 | K144: 0 | L144: 0 | Q144: 0 | U144: 0
A145: ='Org structure'!E141 -> 0 | J145: 0 | K145: 0 | L145: 0 | Q145: 0 | U145: 0
A146: ='Org structure'!E142 -> 0 | J146: 0 | K146: 0 | L146: 0 | Q146: 0 | U146: 0
A147: ='Org structure'!E143 -> 0 | J147: 0 | K147: 0 | L147: 0 | Q147: 0 | U147: 0
A148: ='Org structure'!E144 -> 0 | J148: 0 | K148: 0 | L148: 0 | Q148: 0 | U148: 0
A149: ='Org structure'!A15 -> Vote 14 - [NAME OF VOTE 14] | C149: =SUM(C150:C159) -> 0 | D149: 0 | E149: 0 | F149: 0 | G149: 0 | H149: 0 | I149: 0 | J149: 0 | K149: 0 | L149: 0 | N149: =SUM(N150:N159) -> 0 | O149: 0 | P149: 0 | Q149: 0 | R149: 0 | S149: 0 | T149: 0 | U149: 0 | V149: 0 | W149: 0 | X149: 0
A150: ='Org structure'!E146 -> 14.1 - [Name of sub-vote] | J150: =Q150+V150 -> 0 | K150: =U150+W150 -> 0 | L150: =X150 -> 0 | Q150: =SUM(N150:P150) -> 0 | U150: 0
A151: ='Org structure'!E147 -> 0 | J151: 0 | K151: 0 | L151: 0 | Q151: 0 | U151: 0
A152: ='Org structure'!E148 -> 0 | J152: 0 | K152: 0 | L152: 0 | Q152: 0 | U152: 0
A153: ='Org structure'!E149 -> 0 | J153: 0 | K153: 0 | L153: 0 | Q153: 0 | U153: 0
A154: ='Org structure'!E150 -> 0 | J154: 0 | K154: 0 | L154: 0 | Q154: 0 | U154: 0
A155: ='Org structure'!E151 -> 0 | J155: 0 | K155: 0 | L155: 0 | Q155: 0 | U155: 0
A156: ='Org structure'!E152 -> 0 | J156: 0 | K156: 0 | L156: 0 | Q156: 0 | U156: 0
A157: ='Org structure'!E153 -> 0 | J157: 0 | K157: 0 | L157: 0 | Q157: 0 | U157: 0
A158: ='Org structure'!E154 -> 0 | J158: 0 | K158: 0 | L158: 0 | Q158: 0 | U158: 0
A159: ='Org structure'!E155 -> 0 | J159: 0 | K159: 0 | L159: 0 | Q159: 0 | U159: 0
A160: ='Org structure'!A16 -> Vote 15 - [NAME OF VOTE 15] | C160: =SUM(C161:C170) -> 0 | D160: 0 | E160: 0 | F160: 0 | G160: 0 | H160: 0 | I160: 0 | J160: 0 | K160: 0 | L160: 0 | N160: =SUM(N161:N170) -> 0 | O160: 0 | P160: 0 | Q160: 0 | R160: 0 | S160: 0 | T160: 0 | U160: 0 | V160: 0 | W160: 0 | X160: 0
A161: ='Org structure'!E157 -> 15.1 - [Name of sub-vote] | J161: =Q161+V161 -> 0 | K161: =U161+W161 -> 0 | L161: =X161 -> 0 | Q161: =SUM(N161:P161) -> 0 | U161: 0
A162: ='Org structure'!E158 -> 0 | J162: 0 | K162: 0 | L162: 0 | Q162: 0 | U162: 0
A163: ='Org structure'!E159 -> 0 | J163: 0 | K163: 0 | L163: 0 | Q163: 0 | U163: 0
A164: ='Org structure'!E160 -> 0 | J164: 0 | K164: 0 | L164: 0 | Q164: 0 | U164: 0
A165: ='Org structure'!E161 -> 0 | J165: 0 | K165: 0 | L165: 0 | Q165: 0 | U165: 0
A166: ='Org structure'!E162 -> 0 | J166: 0 | K166: 0 | L166: 0 | Q166: 0 | U166: 0
A167: ='Org structure'!E163 -> 0 | J167: 0 | K167: 0 | L167: 0 | Q167: 0 | U167: 0
A168: ='Org structure'!E164 -> 0 | J168: 0 | K168: 0 | L168: 0 | Q168: 0 | U168: 0
A169: ='Org structure'!E165 -> 0 | J169: 0 | K169: 0 | L169: 0 | Q169: 0 | U169: 0
A170: ='Org structure'!E166 -> 0 | J170: 0 | K170: 0 | L170: 0 | Q170: 0 | U170: 0
A171: Capital multi-year expenditure sub-total | C171: =C6+C17+C28+C39+C50+C61+C72+C83+C94+C105+C116+C127+C138+C149+C160 -> 23641216.07 | D171: =D6+D17+D28+D39+D50+D61+D72+D83+D94+D105+D116+D127+D138+D149+D160 -> 33911453.97 | E171: 93367954.22 | F171: 130430649 | G171: 129042851 | H171: 129042851 | I171: 129042851 | J171: 95278311 | K171: 115019785 | L171: 96114042 | N171: =N6+N17+N28+N39+N50+N61+N72+N83+N94+N105+N116+N127+N138+N149+N160 -> 0 | O171: 0 | P171: 0 | Q171: 0 | R171: 0 | S171: 0 | T171: 0 | U171: 0 | V171: =V6+V17+V28+V39+V50+V61+V72+V83+V94+V105+V116+V127+V138+V149+V160 -> 0 | W171: =W6+W17+W28+W39+W50+W61+W72+W83+W94+W105+W116+W127+W138+W149+W160 -> 0 | X171: =X6+X17+X28+X39+X50+X61+X72+X83+X94+X105+X116+X127+X138+X149+X160 -> 0
A173: Capital expenditure - Municipal Vote
A174: Single-year expenditure appropriation | B174: 2
A175: =A6 -> Vote 1 - Office of Municipal Manager | C175: 0 | D175: 5060 | E175: 0 | F175: 200000 | G175: 458743 | H175: 458743 | I175: 458743 | J175: 0 | K175: 0 | L175: 2
A176: =A7 -> 1.1 - [Name of sub-vote]
A177: 0
A178: 0
A179: 0
A180: 0
A181: 0
A182: 0
A183: 0
A184: 0
A185: 0
A186: Vote 2 - Budget and Treasury | C186: 0 | D186: 0 | E186: 260030.84 | F186: 0 | G186: 0 | H186: 0 | I186: 0 | J186: 0 | K186: 0 | L186: 0
A187: 2.1 - [Name of sub-vote]
A188: 0
A189: 0
A190: 0
A191: 0
A192: 0
A193: 0
A194: 0
A195: 0
A196: 0
A197: Vote 3 - Corporate Services | C197: 682904 | D197: 910379.84 | E197: 1088127.33 | F197: 2100000 | G197: 3233399 | H197: 3233399 | I197: 3233399 | J197: 1020000 | K197: 800000 | L197: 800004
A198: 3.1 - [Name of sub-vote]
A199: 0
A200: 0
A201: 0
... 140 more rows

Sheet A6-FinPos
A1: =muni&" - "&Approve6 -> Choose name from list - Table A6 Budgeted Financial Position
A2: =desc -> Description | B2: =head27 -> Ref | C2: =head1b -> 2021/22 | D2: =head1A -> 2022/23 | E2: =Head1 -> 2023/24 | F2: =Head2 -> Current Year 2024/25 | J2: =Head3 -> 2025/26 Medium Term Revenue & Expenditure Framework
A3: R thousand | C3: =Head5 -> Audited Outcome | D3: =Head5 -> Audited Outcome | E3: =Head5 -> Audited Outcome | F3: =Head6 -> Original Budget | G3: =Head7 -> Adjusted Budget | H3: =Head8 -> Full Year Forecast | I3: =Head5b -> Pre-audit outcome | J3: =Head9 -> Budget Year 2025/26 | K3: =Head10 -> Budget Year +1 2026/27 | L3: =Head11 -> Budget Year +2 2027/28
A4: ASSETS
A5: Current assets
A6: Cash and cash equivalents | C6: 47731681.23 | D6: 92968112.38 | E6: 60711469.06 | F6: 57830112 | G6: 26088140 | H6: 26088140 | I6: 26088140 | J6: 65824481 | K6: 99940115 | L6: 119308001
A7: Trade and other receivables from exchange transactions | B7: 1 | C7: ='SA3'!C20 -> 94465041.95 | D7: ='SA3'!D20 -> 141638030.3 | E7: ='SA3'!E20 -> 175842210.1 | F7: ='SA3'!F20 -> 518517738 | G7: ='SA3'!G20 -> 139253806 | H7: ='SA3'!H20 -> 139253806 | I7: ='SA3'!I20 -> 139253806 | J7: ='SA3'!J20 -> 129823812 | K7: ='SA3'!K20 -> 129018815 | L7: ='SA3'!L20 -> 127063802
A8: Receivables from non-exchange transactions | B8: 1 | C8: ='SA3'!C29 -> 11376776.69 | D8: ='SA3'!D29 -> 6108085.5 | E8: ='SA3'!E29 -> 112873896.9 | F8: ='SA3'!F29 -> 22098534 | G8: ='SA3'!G29 -> 78784016 | H8: ='SA3'!H29 -> 78784016 | I8: ='SA3'!I29 -> 78784016 | J8: ='SA3'!J29 -> 89461171 | K8: ='SA3'!K29 -> 89446228 | L8: ='SA3'!L29 -> 90580838
A9: Current portion of non-current receivables | C9: 0 | D9: 0 | E9: 0 | F9: 0 | G9: 0 | H9: 0 | I9: 0 | J9: 0 | K9: 0 | L9: 0
A10: Inventory | B10: 2 | C10: 7870601.68 | D10: 9178302.84 | E10: 5482418.93 | F10: 9000000 | G10: 58508980 | H10: 58508980 | I10: 58508980 | J10: 0 | K10: 2 | L10: 19
A11: VAT | C11: 24168049.15 | D11: 34820523.62 | E11: 6014541.2 | F11: 34820524 | G11: 34820534 | H11: 34820534 | I11: 34820534 | J11: 34738706 | K11: 34738469 | L11: 34738657
A12: Other current assets | C12: 137161.22 | D12: -28382.33 | E12: -553266.89 | F12: 1476073 | G12: 3287 | H12: 3287 | I12: 3287 | J12: 34954 | K12: 34954 | L12: 34961
A13: Total current assets | C13: =SUM(C6:C12) -> 185749311.9 | D13: =SUM(D6:D12) -> 284684672.3 | E13: 360371269.3 | F13: 643742981 | G13: 337458763 | H13: 337458763 | I13: 337458763 | J13: 319883124 | K13: 353178583 | L13: 371726278
A14: Non current assets
A15: Investments | C15: 0 | D15: 0 | E15: 0 | F15: 0 | G15: 0 | H15: 0 | I15: 0 | J15: 0 | K15: 0 | L15: 0
A16: Investment property | C16: 0 | D16: 17631000 | E16: 17870867 | F16: 17631000 | G16: 17631000 | H16: 17631000 | I16: 17631000 | J16: 17631000 | K16: 17631000 | L16: 17631000
A17: Property, plant and equipment | B17: 3 | C17: ='SA3'!C138 -> 1544594320 | D17: ='SA3'!D138 -> 1405417326 | E17: ='SA3'!E138 -> 1437855176 | F17: ='SA3'!F138 -> 1650968655 | G17: ='SA3'!G138 -> 1709516381 | H17: ='SA3'!H138 -> 1709516381 | I17: ='SA3'!I138 -> 1709516381 | J17: ='SA3'!J138 -> 1570898177 | K17: ='SA3'!K138 -> 1562692702 | L17: ='SA3'!L138 -> 1538582958
A18: Biological assets | C18: 0 | D18: 0 | E18: 0 | F18: 0 | G18: 0 | H18: 0 | I18: 0 | J18: 0 | K18: 0 | L18: 0
A19: Living and non-living resources | C19: 0 | D19: 0 | E19: 0 | F19: 0 | G19: 0 | H19: 0 | I19: 0 | J19: 0 | K19: 0 | L19: 0
A20: Heritage assets | C20: 77000 | D20: 77000 | E20: 77000 | F20: 77000 | G20: 77000 | H20: 77000 | I20: 77000 | J20: 77000 | K20: 77000 | L20: 76999
A21: Intangible assets | C21: -63880096.61 | D21: 1699207.58 | E21: 1780177.56 | F21: 2000000 | G21: 1999999 | H21: 1999999 | I21: 1999999 | J21: 1915160 | K21: 1828346 | L21: 1828344
A22: Trade and other receivables from exchange transactions | C22: 0 | D22: 0 | E22: 0 | F22: 0 | G22: 0 | H22: 0 | I22: 0 | J22: 0 | K22: 0 | L22: 0
A23: Non-current receivables from non-exchange transactions | C23: 0 | D23: 0 | E23: 0 | F23: 0 | G23: 0 | H23: 0 | I23: 0 | J23: 0 | K23: 0 | L23: 0
A24: Other non-current assets | C24: 0 | D24: 0 | E24: 0 | F24: 0 | G24: 0 | H24: 0 | I24: 0 | J24: 0 | K24: 0 | L24: 0
A25: Total non current assets | C25: =SUM(C15:C24) -> 1480791223 | D25: =SUM(D15:D24) -> 1424824534 | E25: 1457583220 | F25: 1670676655 | G25: 1729224380 | H25: 1729224380 | I25: 1729224380 | J25: 1590521337 | K25: 1582229048 | L25: 1558119301
A26: TOTAL ASSETS | C26: =C13+C25 -> 1666540535 | D26: =D13+D25 -> 1709509206 | E26: =E13+E25 -> 1817954489 | F26: =F13+F25 -> 2314419636 | G26: 2066683143 | H26: 2066683143 | I26: 2066683143 | J26: 1910404461 | K26: 1935407631 | L26: 1929845579
A27: LIABILITIES
A28: Current liabilities
A29: Bank overdraft | C29: 0 | D29: 0 | E29: 0 | F29: 0 | G29: 0 | H29: 0 | I29: 0 | J29: 0 | K29: 0 | L29: 0
A30: Financial liabilities | C30: ='SA3'!C144 -> 8884605.87 | D30: ='SA3'!D144 -> 29966770.56 | E30: ='SA3'!E144 -> 40809562.64 | F30: ='SA3'!F144 -> 42694371 | G30: ='SA3'!G144 -> 29966771 | H30: ='SA3'!H144 -> 29966771 | I30: ='SA3'!I144 -> 29966771 | J30: ='SA3'!J144 -> 29966771 | K30: ='SA3'!K144 -> 29966769 | L30: ='SA3'!L144 -> 29966770
A31: Consumer deposits | C31: 10392209.77 | D31: 12194643.24 | E31: 12011891.18 | F31: 10949088 | G31: 10949086 | H31: 10949086 | I31: 10949086 | J31: 10949086 | K31: 10949085 | L31: 10949087
A32: Trade and other payables from exchange transactions | B32: 4 | C32: 242656645.8 | D32: 118324770.7 | E32: 137702439.6 | F32: 218734923 | G32: 92615176 | H32: 92615176 | I32: 92615176 | J32: 120718344 | K32: 120218851 | L32: 119718527
A33: Trade and other payables from non-exchange transactions | B33: 5 | C33: 2653838 | D33: 21249999.57 | E33: 12907487.35 | F33: 19769738 | G33: 21251000 | H33: 21251000 | I33: 21251000 | J33: 21252000 | K33: 21251996 | L33: 21251990
A34: Provision | C34: 3362000 | D34: 4249000 | E34: 4497000 | F34: 4249000 | G34: 4249000 | H34: 4249000 | I34: 4249000 | J34: 4249000 | K34: 4249000 | L34: 4249000
A35: VAT | C35: -3379093.19 | D35: 4533070.37 | E35: 5596409.02 | F35: 4533179 | G35: -2697918 | H35: -2697918 | I35: -2697918 | J35: -2708429 | K35: -3041451 | L35: -3371085
A36: Other current liabilities | C36: 0 | D36: 0 | E36: 0 | F36: 0 | G36: 0 | H36: 0 | I36: 0 | J36: 0 | K36: 0 | L36: 0
A37: Total current liabilities | C37: =SUM(C29:C36) -> 264570206.3 | D37: =SUM(D29:D36) -> 190518254.5 | E37: 213524789.8 | F37: 300930299 | G37: 156333115 | H37: 156333115 | I37: 156333115 | J37: 184426772 | K37: 183594250 | L37: 182764289
A38: Non current liabilities
A39: Financial liabilities | B39: 6 | C39: ='SA3'!C156 -> 45963232.12 | D39: ='SA3'!D156 -> 118618328.5 | E39: ='SA3'!E156 -> 77818465.34 | F39: ='SA3'!F156 -> 118618328 | G39: ='SA3'!G156 -> 118618328 | H39: ='SA3'!H156 -> 118618328 | I39: ='SA3'!I156 -> 118618328 | J39: ='SA3'!J156 -> 118618328 | K39: ='SA3'!K156 -> 118618328 | L39: ='SA3'!L156 -> 118618328
A40: Provision | B40: 7 | C40: 128950836 | D40: 104896162 | E40: 113818168 | F40: 104896162 | G40: 104896162 | H40: 104896162 | I40: 104896162 | J40: 104896162 | K40: 104896174 | L40: 104896174
A41: Long term portion of trade payables | C41: 0 | D41: 0 | E41: 0 | F41: 0 | G41: 0 | H41: 0 | I41: 0 | J41: 0 | K41: 0 | L41: 0
A42: Other non-current liabilities | C42: 0 | D42: 0 | E42: 0 | F42: 0 | G42: 0 | H42: 0 | I42: 0 | J42: 0 | K42: 0 | L42: 0
A43: Total non current liabilities | C43: =SUM(C39:C42) -> 174914068.1 | D43: =SUM(D39:D42) -> 223514490.5 | E43: 191636633.3 | F43: 223514490 | G43: 223514490 | H43: 223514490 | I43: 223514490 | J43: 223514490 | K43: 223514502 | L43: 223514502
A44: TOTAL LIABILITIES | C44: =C37+C43 -> 439484274.4 | D44: =D37+D43 -> 414032744.9 | E44: =E37+E43 -> 405161423.2 | F44: =F37+F43 -> 524444789 | G44: 379847605 | H44: 379847605 | I44: 379847605 | J44: 407941262 | K44: =K37+K43 -> 407108752 | L44: 406278791
A45: NET ASSETS | C45: =C26-C44 -> 1227056261 | D45: 1295476461 | E45: 1412793066 | F45: 1789974847 | G45: 1686835538 | H45: 1686835538 | I45: 1686835538 | J45: 1502463199 | K45: 1528298879 | L45: 1523566788
A46: COMMUNITY WEALTH/EQUITY
A47: Accumulated surplus/(deficit) | B47: 8 | C47: 1196402654 | D47: 1252503123 | E47: 1412793066 | F47: 1815606371 | G47: 1320954908 | H47: 1320954908 | I47: 1320954908 | J47: 649251079 | K47: 847656740 | L47: 855606035
A48: Reserves and funds | B48: 9 | C48: ='SA3'!C189 -> 0 | D48: ='SA3'!D189 -> 0 | E48: ='SA3'!E189 -> 0 | F48: ='SA3'!F189 -> -25000000 | G48: ='SA3'!G189 -> 0 | H48: ='SA3'!H189 -> 0 | I48: ='SA3'!I189 -> 0 | J48: ='SA3'!J189 -> 0 | K48: ='SA3'!K189 -> 0 | L48: ='SA3'!L189 -> -1
A49: Other
A50: TOTAL COMMUNITY WEALTH/EQUITY | B50: 10 | C50: =SUM(C47:C49) -> 1196402654 | D50: =SUM(D47:D49) -> 1252503123 | E50: 1412793066 | F50: 1790606371 | G50: 1320954908 | H50: 1320954908 | I50: 1320954908 | J50: 649251079 | K50: 847656740 | L50: 855606034
A51: =head27a -> References
A52: 1. Detail breakdown in Table SA3 for Trade receivables from Exchange and Non-exchange transactions
A53: 2. Include completed low cost housing to be transferred to beneficiaries within 12 months detail provided in Table SA3
A54: 3. Include 'Construction-work-in-progress' (disclosed separately in annual financial statements) detail in SA3
A55: 4. Detail breakdown in Table SA3.
A56: 5. Detail breakdown in Table SA3.
A57: 6. Detail breakdown in Table SA3.
A58: 7 Detail breakdown in Table SA3.
A59: 8. Detail breakdown in Table SA3.
A60: 9. Detail breakdown in Table SA3. Includes reserves to be funded by statute.
A61: 10. Net assets must balance with Total Community Wealth/Equity

Sheet A6 Inventory
A2: Store Type | B2: Classification | C2: =head1b -> 2021/22 | D2: =head1A -> 2022/23 | E2: =Head1 -> 2023/24 | F2: =Head2 -> Current Year 2024/25 | J2: =Head3 -> 2025/26 Medium Term Revenue & Expenditure Framework
A3: R thousands | C3: =Head5 -> Audited Outcome | D3: =Head5 -> Audited Outcome | E3: =Head5 -> Audited Outcome | F3: =Head6 -> Original Budget | G3: =Head7 -> Adjusted Budget | H3: =Head8 -> Full Year Forecast | I3: =Head5b -> Pre-audit outcome | J3: =Head9 -> Budget Year 2025/26 | K3: =Head10 -> Budget Year +1 2026/27 | L3: =Head11 -> Budget Year +2 2027/28
A4: Agricultural | B4: Opening balance - Agricultural | C4: ='SA3'!C66 -> 0 | D4: ='SA3'!D66 -> 0 | E4: ='SA3'!E66 -> 736282.89 | F4: ='SA3'!F66 -> 736283 | G4: ='SA3'!G66 -> 736283 | H4: ='SA3'!H66 -> 736283 | I4: ='SA3'!I66 -> 736283 | J4: ='SA3'!J66 -> 0 | K4: ='SA3'!K66 -> 0 | L4: ='SA3'!L66 -> 1
B5: Acquisitions - Agricultural | C5: ='SA3'!C67 -> 485410 | D5: ='SA3'!D67 -> 736282.89 | E5: ='SA3'!E67 -> 0 | F5: ='SA3'!F67 -> 0 | G5: ='SA3'!G67 -> 0 | H5: ='SA3'!H67 -> 0 | I5: ='SA3'!I67 -> 0 | J5: ='SA3'!J67 -> 0 | K5: ='SA3'!K67 -> 0 | L5: ='SA3'!L67 -> 1
B6: Adjustments - Agricultural | C6: ='SA3'!C68 -> 0 | D6: ='SA3'!D68 -> 0 | E6: ='SA3'!E68 -> 0 | F6: ='SA3'!F68 -> 0 | G6: ='SA3'!G68 -> 736283 | H6: ='SA3'!H68 -> 736283 | I6: ='SA3'!I68 -> 736283 | J6: ='SA3'!J68 -> 0 | K6: ='SA3'!K68 -> 0 | L6: ='SA3'!L68 -> 1
B7: Issues - Agricultural | C7: ='SA3'!C69 -> 0 | D7: ='SA3'!D69 -> 0 | E7: ='SA3'!E69 -> 0 | F7: ='SA3'!F69 -> 0 | G7: ='SA3'!G69 -> 0 | H7: ='SA3'!H69 -> 0 | I7: ='SA3'!I69 -> 0 | J7: ='SA3'!J69 -> 0 | K7: ='SA3'!K69 -> 0 | L7: ='SA3'!L69 -> 0
B8: Write Off - Agricultural | C8: ='SA3'!C70 -> 0 | D8: ='SA3'!D70 -> 0 | E8: ='SA3'!E70 -> 0 | F8: ='SA3'!F70 -> 0 | G8: ='SA3'!G70 -> 0 | H8: ='SA3'!H70 -> 0 | I8: ='SA3'!I70 -> 0 | J8: ='SA3'!J70 -> 0 | K8: ='SA3'!K70 -> 0 | L8: ='SA3'!L70 -> 0
B9: Correction of Prior period errors - Agricultural | C9: ='SA3'!C71 -> 0 | D9: ='SA3'!D71 -> 0 | E9: ='SA3'!E71 -> 0 | F9: ='SA3'!F71 -> 0 | G9: ='SA3'!G71 -> 0 | H9: ='SA3'!H71 -> 0 | I9: ='SA3'!I71 -> 0 | J9: ='SA3'!J71 -> 0 | K9: ='SA3'!K71 -> 0 | L9: ='SA3'!L71 -> 0
A10: Agricultural Total | C10: =SUM(C4:C9) -> 485410 | D10: =SUM(D4:D9) -> 736282.89 | E10: 736282.89 | F10: 736283 | G10: 1472566 | H10: 1472566 | I10: 1472566 | J10: 0 | K10: 0 | L10: 3
A11: Consumables Standard Rated | B11: Opening balance - Consumables Standard Rated | C11: ='SA3'!C76 -> 0 | D11: ='SA3'!D76 -> 517206 | E11: ='SA3'!E76 -> 576780.54 | F11: ='SA3'!F76 -> 0 | G11: ='SA3'!G76 -> 0 | H11: ='SA3'!H76 -> 0 | I11: ='SA3'!I76 -> 0 | J11: ='SA3'!J76 -> 0 | K11: ='SA3'!K76 -> 1 | L11: ='SA3'!L76 -> 1
B12: Acquisitions - Consumables Standard Rated | C12: ='SA3'!C77 -> -212987.12 | D12: ='SA3'!D77 -> 1059413.76 | E12: ='SA3'!E77 -> 1435900.27 | F12: ='SA3'!F77 -> 0 | G12: ='SA3'!G77 -> 5477015 | H12: ='SA3'!H77 -> 5477015 | I12: ='SA3'!I77 -> 5477015 | J12: ='SA3'!J77 -> 5921806 | K12: ='SA3'!K77 -> 6113340 | L12: ='SA3'!L77 -> 5866168
B13: Adjustments - Consumables Standard Rated | C13: ='SA3'!C78 -> 0 | D13: ='SA3'!D78 -> -999501.51 | E13: ='SA3'!E78 -> -1299535.34 | F13: ='SA3'!F78 -> -950000 | G13: ='SA3'!G78 -> -3890732 | H13: ='SA3'!H78 -> -3890732 | I13: ='SA3'!I78 -> -3890732 | J13: ='SA3'!J78 -> -5921806 | K13: ='SA3'!K78 -> -6113340 | L13: ='SA3'!L78 -> -5866167
B14: Issues - Consumables Standard Rated | C14: ='SA3'!C79 -> 256.95 | D14: ='SA3'!D79 -> -337.71 | E14: ='SA3'!E79 -> 0 | F14: ='SA3'!F79 -> 0 | G14: ='SA3'!G79 -> 0 | H14: ='SA3'!H79 -> 0 | I14: ='SA3'!I79 -> 0 | J14: ='SA3'!J79 -> 0 | K14: ='SA3'!K79 -> 0 | L14: ='SA3'!L79 -> 0
B15: Write Off - Consumables Standard Rated | C15: ='SA3'!C80 -> 0 | D15: ='SA3'!D80 -> 0 | E15: ='SA3'!E80 -> 0 | F15: ='SA3'!F80 -> 0 | G15: ='SA3'!G80 -> 0 | H15: ='SA3'!H80 -> 0 | I15: ='SA3'!I80 -> 0 | J15: ='SA3'!J80 -> 0 | K15: ='SA3'!K80 -> 0 | L15: ='SA3'!L80 -> 0
B16: Correction of Prior period errors - Consumables Standard Rated | C16: ='SA3'!C81 -> 0 | D16: ='SA3'!D81 -> 0 | E16: ='SA3'!E81 -> 0 | F16: ='SA3'!F81 -> 0 | G16: ='SA3'!G81 -> 0 | H16: ='SA3'!H81 -> 0 | I16: ='SA3'!I81 -> 0 | J16: ='SA3'!J81 -> 0 | K16: ='SA3'!K81 -> 0 | L16: ='SA3'!L81 -> 0
A17: Consumables Standard Rated Total | C17: =SUM(C11:C16) -> -212730.17 | D17: =SUM(D11:D16) -> 576780.54 | E17: 713145.47 | F17: -950000 | G17: 1586283 | H17: 1586283 | I17: 1586283 | J17: 0 | K17: 1 | L17: 2
A18: Consumables Zero Rated | B18: Opening balance - Consumables Zero Rated | C18: ='SA3'!C84 -> 0 | D18: ='SA3'!D84 -> 0 | E18: ='SA3'!E84 -> 0 | F18: ='SA3'!F84 -> 0 | G18: ='SA3'!G84 -> 0 | H18: ='SA3'!H84 -> 0 | I18: ='SA3'!I84 -> 0 | J18: ='SA3'!J84 -> 0 | K18: ='SA3'!K84 -> 0 | L18: ='SA3'!L84 -> 0
B19: Acquisitions - Consumables Zero Rated | C19: ='SA3'!C85 -> 0 | D19: ='SA3'!D85 -> 0 | E19: ='SA3'!E85 -> 0 | F19: ='SA3'!F85 -> 0 | G19: ='SA3'!G85 -> 45731 | H19: ='SA3'!H85 -> 45731 | I19: ='SA3'!I85 -> 45731 | J19: ='SA3'!J85 -> 49891 | K19: ='SA3'!K85 -> 52091 | L19: ='SA3'!L85 -> 49940
B20: Adjustments - Consumables Zero Rated | C20: ='SA3'!C86 -> 0 | D20: ='SA3'!D86 -> 0 | E20: ='SA3'!E86 -> 0 | F20: ='SA3'!F86 -> 0 | G20: ='SA3'!G86 -> 690552 | H20: ='SA3'!H86 -> 690552 | I20: ='SA3'!I86 -> 690552 | J20: ='SA3'!J86 -> -49891 | K20: ='SA3'!K86 -> -52091 | L20: ='SA3'!L86 -> -49938
B21: Issues - Consumables Zero Rated | C21: ='SA3'!C87 -> 0 | D21: ='SA3'!D87 -> 0 | E21: ='SA3'!E87 -> 0 | F21: ='SA3'!F87 -> 0 | G21: ='SA3'!G87 -> 0 | H21: ='SA3'!H87 -> 0 | I21: ='SA3'!I87 -> 0 | J21: ='SA3'!J87 -> 0 | K21: ='SA3'!K87 -> 0 | L21: ='SA3'!L87 -> 0
B22: Write Off - Consumables Zero Rated | C22: ='SA3'!C88 -> 0 | D22: ='SA3'!D88 -> 0 | E22: ='SA3'!E88 -> 0 | F22: ='SA3'!F88 -> 0 | G22: ='SA3'!G88 -> 0 | H22: ='SA3'!H88 -> 0 | I22: ='SA3'!I88 -> 0 | J22: ='SA3'!J88 -> 0 | K22: ='SA3'!K88 -> 0 | L22: ='SA3'!L88 -> 0
B23: Correction of Prior period errors - Consumables Zero Rated | C23: ='SA3'!C89 -> 0 | D23: ='SA3'!D89 -> 0 | E23: ='SA3'!E89 -> 0 | F23: ='SA3'!F89 -> 0 | G23: ='SA3'!G89 -> 0 | H23: ='SA3'!H89 -> 0 | I23: ='SA3'!I89 -> 0 | J23: ='SA3'!J89 -> 0 | K23: ='SA3'!K89 -> 0 | L23: ='SA3'!L89 -> 0
A24: Consumables Zero Rated Total | C24: =SUM(C18:C23) -> 0 | D24: =SUM(D18:D23) -> 0 | E24: 0 | F24: 0 | G24: 736283 | H24: 736283 | I24: 736283 | J24: 0 | K24: 0 | L24: 2
A25: Finished Goods | B25: Opening balance - Finished Goods | C25: ='SA3'!C102 -> 2149236 | D25: ='SA3'!D102 -> 7836220.04 | E25: ='SA3'!E102 -> 7359585.68 | F25: ='SA3'!F102 -> 0 | G25: ='SA3'!G102 -> 0 | H25: ='SA3'!H102 -> 0 | I25: ='SA3'!I102 -> 0 | J25: ='SA3'!J102 -> 0 | K25: ='SA3'!K102 -> 1 | L25: ='SA3'!L102 -> 1
B26: Acquisitions - Finished Goods | C26: ='SA3'!C103 -> 0 | D26: ='SA3'!D103 -> 5360451.22 | E26: ='SA3'!E103 -> 5296794.06 | F26: ='SA3'!F103 -> 23508063 | G26: ='SA3'!G103 -> 15240890 | H26: ='SA3'!H103 -> 15240890 | I26: ='SA3'!I103 -> 15240890 | J26: ='SA3'!J103 -> 13592337 | K26: ='SA3'!K103 -> 14084303 | L26: ='SA3'!L103 -> 14648864
B27: Adjustments - Finished Goods | C27: ='SA3'!C104 -> 5445591.11 | D27: ='SA3'!D104 -> 0 | E27: ='SA3'!E104 -> 0 | F27: ='SA3'!F104 -> 0 | G27: ='SA3'!G104 -> 0 | H27: ='SA3'!H104 -> 0 | I27: ='SA3'!I104 -> 0 | J27: ='SA3'!J104 -> 0 | K27: ='SA3'!K104 -> 0 | L27: ='SA3'!L104 -> 0
B28: Issues -Finished Goods | C28: ='SA3'!C105 -> 0 | D28: ='SA3'!D105 -> 0 | E28: ='SA3'!E105 -> 0 | F28: ='SA3'!F105 -> 0 | G28: ='SA3'!G105 -> 0 | H28: ='SA3'!H105 -> 0 | I28: ='SA3'!I105 -> 0 | J28: ='SA3'!J105 -> 0 | K28: ='SA3'!K105 -> 0 | L28: ='SA3'!L105 -> 0
B29: Write Off - Finished Goods | C29: ='SA3'!C106 -> 0 | D29: ='SA3'!D106 -> 0 | E29: ='SA3'!E106 -> 0 | F29: ='SA3'!F106 -> 0 | G29: ='SA3'!G106 -> 0 | H29: ='SA3'!H106 -> 0 | I29: ='SA3'!I106 -> 0 | J29: ='SA3'!J106 -> 0 | K29: ='SA3'!K106 -> 0 | L29: ='SA3'!L106 -> 0
B30: Correction of Prior period errors - Finished Goods | C30: ='SA3'!C98 -> 0 | D30: ='SA3'!D98 -> 0 | E30: ='SA3'!E98 -> 0 | F30: ='SA3'!F98 -> 0 | G30: ='SA3'!G98 -> 0 | H30: ='SA3'!H98 -> 0 | I30: ='SA3'!I98 -> 0 | J30: ='SA3'!J98 -> 0 | K30: ='SA3'!K98 -> 0 | L30: ='SA3'!L98 -> 0
A31: Finished Goods Total | C31: =SUM(C25:C30) -> 7594827.11 | D31: =SUM(D25:D30) -> 13196671.26 | E31: 12656379.74 | F31: 23508063 | G31: 15240890 | H31: 15240890 | I31: 15240890 | J31: 13592337 | K31: 14084304 | L31: 14648865
A32: Housing Stock | B32: Opening balance - Housing Stock | C32: ='SA3'!C117 -> 0 | D32: ='SA3'!D117 -> 0 | E32: ='SA3'!E117 -> 0 | F32: ='SA3'!F117 -> 0 | G32: ='SA3'!G117 -> 0 | H32: ='SA3'!H117 -> 0 | I32: ='SA3'!I117 -> 0 | J32: ='SA3'!J117 -> 736283 | K32: ='SA3'!K117 -> 736283 | L32: ='SA3'!L117 -> 736283
B33: Acquisitions - Housing Stock | C33: ='SA3'!C118 -> 0 | D33: ='SA3'!D118 -> 0 | E33: ='SA3'!E118 -> 0 | F33: ='SA3'!F118 -> 0 | G33: ='SA3'!G118 -> 0 | H33: ='SA3'!H118 -> 0 | I33: ='SA3'!I118 -> 0 | J33: ='SA3'!J118 -> 0 | K33: ='SA3'!K118 -> 0 | L33: ='SA3'!L118 -> 1
B34: Sales - Housing Stock | C34: ='SA3'!C119 -> 0 | D34: ='SA3'!D119 -> 0 | E34: ='SA3'!E119 -> 0 | F34: ='SA3'!F119 -> 0 | G34: ='SA3'!G119 -> 0 | H34: ='SA3'!H119 -> 0 | I34: ='SA3'!I119 -> 0 | J34: ='SA3'!J119 -> 0 | K34: ='SA3'!K119 -> 0 | L34: ='SA3'!L119 -> 0
B35: Transfer - Housing stock | C35: ='SA3'!C120 -> 0 | D35: ='SA3'!D120 -> 0 | E35: ='SA3'!E120 -> 0 | F35: ='SA3'!F120 -> 0 | G35: ='SA3'!G120 -> 736283 | H35: ='SA3'!H120 -> 736283 | I35: ='SA3'!I120 -> 736283 | J35: ='SA3'!J120 -> 0 | K35: ='SA3'!K120 -> 0 | L35: ='SA3'!L120 -> 1
B36: Correction of Prior period errors - Housing stock | C36: ='SA3'!C121 -> 0 | D36: ='SA3'!D121 -> 0 | E36: ='SA3'!E121 -> 0 | F36: ='SA3'!F121 -> 0 | G36: ='SA3'!G121 -> 0 | H36: ='SA3'!H121 -> 0 | I36: ='SA3'!I121 -> 0 | J36: ='SA3'!J121 -> 0 | K36: ='SA3'!K121 -> 0 | L36: ='SA3'!L121 -> 0
A37: Housing Stock Total | C37: =SUM(C32:C36) -> 0 | D37: =SUM(D32:D36) -> 0 | E37: 0 | F37: 0 | G37: 736283 | H37: 736283 | I37: 736283 | J37: 736283 | K37: 736283 | L37: 736285
A38: Land | B38: Opening balance - Land | C38: ='SA3'!C125 -> 0 | D38: ='SA3'!D125 -> 0 | E38: ='SA3'!E125 -> 0 | F38: ='SA3'!F125 -> 0 | G38: ='SA3'!G125 -> 0 | H38: ='SA3'!H125 -> 0 | I38: ='SA3'!I125 -> 0 | J38: ='SA3'!J125 -> 0 | K38: ='SA3'!K125 -> 0 | L38: ='SA3'!L125 -> 0
B39: Acquisitions - Land | C39: ='SA3'!C126 -> 3094.74 | D39: ='SA3'!D126 -> 0 | E39: ='SA3'!E126 -> 0 | F39: ='SA3'!F126 -> 0 | G39: ='SA3'!G126 -> 0 | H39: ='SA3'!H126 -> 0 | I39: ='SA3'!I126 -> 0 | J39: ='SA3'!J126 -> 0 | K39: ='SA3'!K126 -> 0 | L39: ='SA3'!L126 -> 1
B40: Sales - land | C40: ='SA3'!C127 -> 0 | D40: ='SA3'!D127 -> 0 | E40: ='SA3'!E127 -> 0 | F40: ='SA3'!F127 -> 0 | G40: ='SA3'!G127 -> 736283 | H40: ='SA3'!H127 -> 736283 | I40: ='SA3'!I127 -> 736283 | J40: ='SA3'!J127 -> 0 | K40: ='SA3'!K127 -> 0 | L40: ='SA3'!L127 -> 1
B41: Adjustments - Land | C41: ='SA3'!C128 -> 0 | D41: ='SA3'!D128 -> 0 | E41: ='SA3'!E128 -> 0 | F41: ='SA3'!F128 -> 0 | G41: ='SA3'!G128 -> 0 | H41: ='SA3'!H128 -> 0 | I41: ='SA3'!I128 -> 0 | J41: ='SA3'!J128 -> 0 | K41: ='SA3'!K128 -> 0 | L41: ='SA3'!L128 -> 0
B42: Correction of Prior period errors - Land | C42: ='SA3'!C129 -> 0 | D42: ='SA3'!D129 -> 0 | E42: ='SA3'!E129 -> 0 | F42: ='SA3'!F129 -> 0 | G42: ='SA3'!G129 -> 0 | H42: ='SA3'!H129 -> 0 | I42: ='SA3'!I129 -> 0 | J42: ='SA3'!J129 -> 0 | K42: ='SA3'!K129 -> 0 | L42: ='SA3'!L129 -> 0
B43: Transfers - Land | C43: ='SA3'!C130 -> 0 | D43: ='SA3'!D130 -> 0 | E43: ='SA3'!E130 -> 0 | F43: ='SA3'!F130 -> 0 | G43: ='SA3'!G130 -> 0 | H43: ='SA3'!H130 -> 0 | I43: ='SA3'!I130 -> 0 | J43: ='SA3'!J130 -> 0 | K43: ='SA3'!K130 -> 0 | L43: ='SA3'!L130 -> 0
A44: Land Total | C44: =SUM(C38:C43) -> 3094.74 | D44: =SUM(D38:D43) -> 0 | E44: 0 | F44: 0 | G44: 736283 | H44: 736283 | I44: 736283 | J44: 0 | K44: 0 | L44: 2
A45: Materials and Supplies | B45: Opening balance - Materials and Supplies | C45: ='SA3'!C102 -> 2149236 | D45: ='SA3'!D102 -> 7836220.04 | E45: ='SA3'!E102 -> 7359585.68 | F45: ='SA3'!F102 -> 0 | G45: ='SA3'!G102 -> 0 | H45: ='SA3'!H102 -> 0 | I45: ='SA3'!I102 -> 0 | J45: ='SA3'!J102 -> 0 | K45: ='SA3'!K102 -> 1 | L45: ='SA3'!L102 -> 1
B46: Acquisitions - Materials and Supplies | C46: ='SA3'!C103 -> 0 | D46: ='SA3'!D103 -> 5360451.22 | E46: ='SA3'!E103 -> 5296794.06 | F46: ='SA3'!F103 -> 23508063 | G46: ='SA3'!G103 -> 15240890 | H46: ='SA3'!H103 -> 15240890 | I46: ='SA3'!I103 -> 15240890 | J46: ='SA3'!J103 -> 13592337 | K46: ='SA3'!K103 -> 14084303 | L46: ='SA3'!L103 -> 14648864
B47: Adjustments - Materials and Supplies | C47: ='SA3'!C104 -> 5445591.11 | D47: ='SA3'!D104 -> 0 | E47: ='SA3'!E104 -> 0 | F47: ='SA3'!F104 -> 0 | G47: ='SA3'!G104 -> 0 | H47: ='SA3'!H104 -> 0 | I47: ='SA3'!I104 -> 0 | J47: ='SA3'!J104 -> 0 | K47: ='SA3'!K104 -> 0 | L47: ='SA3'!L104 -> 0
B48: Issues - Materials and Supplies | C48: ='SA3'!C105 -> 0 | D48: ='SA3'!D105 -> 0 | E48: ='SA3'!E105 -> 0 | F48: ='SA3'!F105 -> 0 | G48: ='SA3'!G105 -> 0 | H48: ='SA3'!H105 -> 0 | I48: ='SA3'!I105 -> 0 | J48: ='SA3'!J105 -> 0 | K48: ='SA3'!K105 -> 0 | L48: ='SA3'!L105 -> 0
B49: Write Off - Materials and Supplies | C49: ='SA3'!C106 -> 0 | D49: ='SA3'!D106 -> 0 | E49: ='SA3'!E106 -> 0 | F49: ='SA3'!F106 -> 0 | G49: ='SA3'!G106 -> 0 | H49: ='SA3'!H106 -> 0 | I49: ='SA3'!I106 -> 0 | J49: ='SA3'!J106 -> 0 | K49: ='SA3'!K106 -> 0 | L49: ='SA3'!L106 -> 0
B50: Correction of Prior period errors - Materials and Supplies | C50: ='SA3'!C107 -> 0 | D50: ='SA3'!D107 -> 0 | E50: ='SA3'!E107 -> 0 | F50: ='SA3'!F107 -> 0 | G50: ='SA3'!G107 -> 0 | H50: ='SA3'!H107 -> 0 | I50: ='SA3'!I107 -> 0 | J50: ='SA3'!J107 -> 0 | K50: ='SA3'!K107 -> 0 | L50: ='SA3'!L107 -> 0
A51: Materials and Supplies Total | C51: =SUM(C45:C50) -> 7594827.11 | D51: =SUM(D45:D50) -> 13196671.26 | E51: 12656379.74 | F51: 23508063 | G51: 15240890 | H51: 15240890 | I51: 15240890 | J51: 13592337 | K51: 14084304 | L51: 14648865
A52: Water | B52: Opening balance - Water | C52: ='SA3'!C33 -> 0 | D52: ='SA3'!D33 -> 90850 | E52: ='SA3'!E33 -> 93810.73 | F52: ='SA3'!F33 -> 168629 | G52: ='SA3'!G33 -> 168629 | H52: ='SA3'!H33 -> 168629 | I52: ='SA3'!I33 -> 168629 | J52: ='SA3'!J33 -> 0 | K52: ='SA3'!K33 -> 0 | L52: ='SA3'!L33 -> 1
B53: Acquisitions - Water bulk purchases | C53: ='SA3'!C36 -> 18505725.97 | D53: ='SA3'!D36 -> 13582003.84 | E53: ='SA3'!E36 -> 36092255.75 | F53: ='SA3'!F36 -> 35000000 | G53: ='SA3'!G36 -> 51263062 | H53: ='SA3'!H36 -> 51263062 | I53: ='SA3'!I36 -> 51263062 | J53: ='SA3'!J36 -> 0 | K53: ='SA3'!K36 -> 0 | L53: ='SA3'!L36 -> 1
B54: Acquisitions - Water natural sources | C54: ='SA3'!C37 -> 0 | D54: ='SA3'!D37 -> 0 | E54: ='SA3'!E37 -> 0 | F54: ='SA3'!F37 -> 0 | G54: ='SA3'!G37 -> 0 | H54: ='SA3'!H37 -> 0 | I54: ='SA3'!I37 -> 0 | J54: ='SA3'!J37 -> 0 | K54: ='SA3'!K37 -> 0 | L54: ='SA3'!L37 -> 0
B55: Acquisitions - Water treatment works | C55: ='SA3'!C35 -> 0 | D55: ='SA3'!D35 -> 0 | E55: ='SA3'!E35 -> 0 | F55: ='SA3'!F35 -> 0 | G55: ='SA3'!G35 -> 0 | H55: ='SA3'!H35 -> 0 | I55: ='SA3'!I35 -> 0 | J55: ='SA3'!J35 -> 0 | K55: ='SA3'!K35 -> 0 | L55: ='SA3'!L35 -> 0
B56: Billed Authorised Consumption:Billed Metered Consumption:Free Basic Water | C56: ='SA3'!C41 -> 0 | D56: ='SA3'!D41 -> 0 | E56: ='SA3'!E41 -> 0 | F56: ='SA3'!F41 -> 0 | G56: ='SA3'!G41 -> 0 | H56: ='SA3'!H41 -> 0 | I56: ='SA3'!I41 -> 0 | J56: ='SA3'!J41 -> 0 | K56: ='SA3'!K41 -> 0 | L56: ='SA3'!L41 -> 0
B57: Billed Authorised Consumption:Billed Metered Consumption:Revenue Water | C57: ='SA3'!C43 -> -18505725.97 | D57: ='SA3'!D43 -> -13504225.11 | E57: ='SA3'!E43 -> -38125497.18 | F57: ='SA3'!F43 -> -34800000 | G57: ='SA3'!G43 -> 0 | H57: ='SA3'!H43 -> 0 | I57: ='SA3'!I43 -> 0 | J57: ='SA3'!J43 -> 0 | K57: ='SA3'!K43 -> 0 | L57: ='SA3'!L43 -> -1
B58: Billed Authorised Consumption:Billed Metered Consumption:Subsidised Water | C58: ='SA3'!C42 -> 0 | D58: ='SA3'!D42 -> 0 | E58: ='SA3'!E42 -> 2033242.47 | F58: ='SA3'!F42 -> 0 | G58: ='SA3'!G42 -> 0 | H58: ='SA3'!H42 -> 0 | I58: ='SA3'!I42 -> 0 | J58: ='SA3'!J42 -> 0 | K58: ='SA3'!K42 -> 0 | L58: ='SA3'!L42 -> 0
B59: Billed Authorised Consumption:Billed Unmetered Consumption:Free Basic Water | C59: ='SA3'!C45 -> 0 | D59: ='SA3'!D45 -> 0 | E59: ='SA3'!E45 -> 0 | F59: ='SA3'!F45 -> 0 | G59: ='SA3'!G45 -> 0 | H59: ='SA3'!H45 -> 0 | I59: ='SA3'!I45 -> 0 | J59: ='SA3'!J45 -> 0 | K59: ='SA3'!K45 -> 0 | L59: ='SA3'!L45 -> 0
B60: Billed Authorised Consumption:Billed Unmetered Consumption:Revenue Water | C60: ='SA3'!C47 -> 0 | D60: ='SA3'!D47 -> 0 | E60: ='SA3'!E47 -> 0 | F60: ='SA3'!F47 -> 0 | G60: ='SA3'!G47 -> 0 | H60: ='SA3'!H47 -> 0 | I60: ='SA3'!I47 -> 0 | J60: ='SA3'!J47 -> 0 | K60: ='SA3'!K47 -> 0 | L60: ='SA3'!L47 -> 1
B61: Billed Authorised Consumption:Billed Unmetered Consumption:Subsidised Water | C61: ='SA3'!C46 -> 0 | D61: ='SA3'!D46 -> 0 | E61: ='SA3'!E46 -> 0 | F61: ='SA3'!F46 -> 0 | G61: ='SA3'!G46 -> 0 | H61: ='SA3'!H46 -> 0 | I61: ='SA3'!I46 -> 0 | J61: ='SA3'!J46 -> 0 | K61: ='SA3'!K46 -> 0 | L61: ='SA3'!L46 -> 0
B62: Data Transfer and Management Errors | C62: ='SA3'!C59 -> 0 | D62: ='SA3'!D59 -> 0 | E62: ='SA3'!E59 -> 0 | F62: ='SA3'!F59 -> 0 | G62: ='SA3'!G59 -> 0 | H62: ='SA3'!H59 -> 0 | I62: ='SA3'!I59 -> 0 | J62: ='SA3'!J59 -> 0 | K62: ='SA3'!K59 -> 0 | L62: ='SA3'!L59 -> 0
B63: Non-revenue Water | C63: ='SA3'!C61 -> 0 | D63: ='SA3'!D61 -> 0 | E63: ='SA3'!E61 -> 0 | F63: ='SA3'!F61 -> 0 | G63: ='SA3'!G61 -> 0 | H63: ='SA3'!H61 -> 0 | I63: ='SA3'!I61 -> 0 | J63: ='SA3'!J61 -> 0 | K63: ='SA3'!K61 -> 0 | L63: ='SA3'!L61 -> 0
B64: Unavoidable Annual Real Losses | C64: ='SA3'!C60 -> 0 | D64: ='SA3'!D60 -> 0 | E64: ='SA3'!E60 -> 0 | F64: ='SA3'!F60 -> 0 | G64: ='SA3'!G60 -> 0 | H64: ='SA3'!H60 -> 0 | I64: ='SA3'!I60 -> 0 | J64: ='SA3'!J60 -> 0 | K64: ='SA3'!K60 -> 0 | L64: ='SA3'!L60 -> 0
B65: Unbilled Authorised Consumption:Unbilled Metered Consumption | C65: ='SA3'!C49 -> 0 | D65: ='SA3'!D49 -> 0 | E65: ='SA3'!E49 -> 0 | F65: ='SA3'!F49 -> 0 | G65: ='SA3'!G49 -> 0 | H65: ='SA3'!H49 -> 0 | I65: ='SA3'!I49 -> 0 | J65: ='SA3'!J49 -> 0 | K65: ='SA3'!K49 -> 0 | L65: ='SA3'!L49 -> 0
B66: Unbilled Authorised Consumption:Unbilled Unmetered Consumption | C66: ='SA3'!C50 -> 0 | D66: ='SA3'!D50 -> 0 | E66: ='SA3'!E50 -> 0 | F66: ='SA3'!F50 -> 0 | G66: ='SA3'!G50 -> 0 | H66: ='SA3'!H50 -> 0 | I66: ='SA3'!I50 -> 0 | J66: ='SA3'!J50 -> 0 | K66: ='SA3'!K50 -> 0 | L66: ='SA3'!L50 -> 0
B67: Water Losses:Apparent Losses:Customer Meter Inaccuracies | C67: ='SA3'!C54 -> 0 | D67: ='SA3'!D54 -> 0 | E67: ='SA3'!E54 -> 0 | F67: ='SA3'!F54 -> 0 | G67: ='SA3'!G54 -> 0 | H67: ='SA3'!H54 -> 0 | I67: ='SA3'!I54 -> 0 | J67: ='SA3'!J54 -> 0 | K67: ='SA3'!K54 -> 0 | L67: ='SA3'!L54 -> 0
B68: Water Losses:Apparent Losses:Unauthorised Consumption | C68: ='SA3'!C53 -> 0 | D68: ='SA3'!D53 -> 0 | E68: ='SA3'!E53 -> 0 | F68: ='SA3'!F53 -> 0 | G68: ='SA3'!G53 -> 0 | H68: ='SA3'!H53 -> 0 | I68: ='SA3'!I53 -> 0 | J68: ='SA3'!J53 -> 0 | K68: ='SA3'!K53 -> 0 | L68: ='SA3'!L53 -> 0
B69: Water Losses:Real Losses:Leakage and Overflows at Storage Tanks/Reservoirs | C69: ='SA3'!C57 -> 0 | D69: ='SA3'!D57 -> 0 | E69: ='SA3'!E57 -> 0 | F69: ='SA3'!F57 -> 0 | G69: ='SA3'!G57 -> 0 | H69: ='SA3'!H57 -> 0 | I69: ='SA3'!I57 -> 0 | J69: ='SA3'!J57 -> 0 | K69: ='SA3'!K57 -> 0 | L69: ='SA3'!L57 -> 0
B70: Water Losses:Real Losses:Leakage on Service Connections up to the point of Customer Meter | C70: ='SA3'!C58 -> 0 | D70: ='SA3'!D58 -> 0 | E70: ='SA3'!E58 -> 0 | F70: ='SA3'!F58 -> 0 | G70: ='SA3'!G58 -> 0 | H70: ='SA3'!H58 -> 0 | I70: ='SA3'!I58 -> 0 | J70: ='SA3'!J58 -> 0 | K70: ='SA3'!K58 -> 0 | L70: ='SA3'!L58 -> 0
B71: Water Losses:Real Losses:Leakage on Transmission and Distribution Mains | C71: ='SA3'!C56 -> 0 | D71: ='SA3'!D56 -> 0 | E71: ='SA3'!E56 -> 0 | F71: ='SA3'!F56 -> 0 | G71: ='SA3'!G56 -> 0 | H71: ='SA3'!H56 -> 0 | I71: ='SA3'!I56 -> 0 | J71: ='SA3'!J56 -> 0 | K71: ='SA3'!K56 -> 0 | L71: ='SA3'!L56 -> 0
B72: Correction of Prior period errors - Water | C72: ='SA3'!C62 -> 0 | D72: ='SA3'!D62 -> 0 | E72: ='SA3'!E62 -> 0 | F72: ='SA3'!F62 -> 0 | G72: ='SA3'!G62 -> 0 | H72: ='SA3'!H62 -> 0 | I72: ='SA3'!I62 -> 0 | J72: ='SA3'!J62 -> 0 | K72: ='SA3'!K62 -> 0 | L72: ='SA3'!L62 -> 0
A73: Water Total | C73: =SUM(C52:C72) -> 0 | D73: =SUM(D52:D72) -> 168628.73 | E73: 93811.77 | F73: 368629 | G73: 51431691 | H73: 51431691 | I73: 51431691 | J73: 0 | K73: 0 | L73: 2
A74: Work-in-progress | B74: Opening balance - WIP | C74: ='SA3'!C111 -> 0 | D74: ='SA3'!D111 -> 0 | E74: ='SA3'!E111 -> 0 | F74: ='SA3'!F111 -> 337025 | G74: ='SA3'!G111 -> 337025 | H74: ='SA3'!H111 -> 337025 | I74: ='SA3'!I111 -> 337025 | J74: ='SA3'!J111 -> 0 | K74: ='SA3'!K111 -> 0 | L74: ='SA3'!L111 -> 1
B75: Materials - WIP | C75: ='SA3'!C112 -> 0 | D75: 0 | E75: 0 | F75: 0 | G75: 0 | H75: 0 | I75: 0 | J75: 0 | K75: 0 | L75: 0
B76: Transfer - WIP | C76: ='SA3'!C113 -> 0 | D76: ='SA3'!D113 -> 0 | E76: ='SA3'!E113 -> 0 | F76: ='SA3'!F113 -> 0 | G76: ='SA3'!G113 -> 0 | H76: ='SA3'!H113 -> 0 | I76: ='SA3'!I113 -> 0 | J76: ='SA3'!J113 -> 0 | K76: ='SA3'!K113 -> 0 | L76: ='SA3'!L113 -> 0
A77: Work-in-progress Total | C77: =SUM(C74:C76) -> 0 | D77: =SUM(D74:D76) -> 0 | E77: 0 | F77: 337025 | G77: 337025 | H77: 337025 | I77: 337025 | J77: 0 | K77: 0 | L77: 1
A78: Grand Total | C78: =+C73+C51+C44+C37+C31+C24+C17+C10 -> 15465428.79 | D78: =+D73+D51+D44+D37+D31+D24+D17+D10 -> 27875034.68 | E78: 26855999.61 | F78: 47171038 | G78: 87181169 | H78: 87181169 | I78: 87181169 | J78: 27920957 | K78: 28904892 | L78: 30034026

Sheet A7-CFlow
A1: =muni&" - "&Approve7 -> Choose name from list - Table A7 Budgeted Cash Flows
A2: =desc -> Description | B2: =head27 -> Ref | C2: =head1b -> 2021/22 | D2: =head1A -> 2022/23 | E2: =Head1 -> 2023/24 | F2: =Head2 -> Current Year 2024/25 | J2: =Head3 -> 2025/26 Medium Term Revenue & Expenditure Framework
A3: R thousand | C3: =Head5 -> Audited Outcome | D3: =Head5 -> Audited Outcome | E3: =Head5 -> Audited Outcome | F3: =Head6 -> Original Budget | G3: =Head7 -> Adjusted Budget | H3: =Head8 -> Full Year Forecast | I3: =Head5b -> Pre-audit outcome | J3: =Head9 -> Budget Year 2025/26 | K3: =Head10 -> Budget Year +1 2026/27 | L3: =Head11 -> Budget Year +2 2027/28
A4: CASH FLOW FROM OPERATING ACTIVITIES
A5: Receipts
A6: Property rates | C6: 0 | D6: 0 | E6: 0 | F6: 101128701 | G6: 86734809 | H6: 86734809 | I6: 86734809 | J6: ='SA30'!N5 -> 96081677 | K6: ='SA30'!O5 -> 101780198 | L6: ='SA30'!P5 -> 107253549
A7: Service charges | C7: 0 | D7: 0 | E7: 0 | F7: 353600684 | G7: 363087035 | H7: 363087035 | I7: 363087035 | J7: ='SA30'!N6+'SA30'!N7+'SA30'!N8+'SA30'!N9 -> 419890727 | K7: ='SA30'!O6+'SA30'!O7+'SA30'!O8+'SA30'!O9 -> 439201079 | L7: ='SA30'!P6+'SA30'!P7+'SA30'!P8+'SA30'!P9 -> 458519576
A8: Other revenue | C8: 0 | D8: 20000000 | E8: 1526934124 | F8: 78448743 | G8: 120939319 | H8: 120939319 | I8: 120939319 | J8: ='SA30'!N11+'SA30'!N15+'SA30'!N16+'SA30'!N17+'SA30'!N19+'SA30'!N29 -> 111384527 | K8: ='SA30'!O11+'SA30'!O15+'SA30'!O16+'SA30'!O17+'SA30'!O19+'SA30'!O29 -> 114658187 | L8: ='SA30'!P11+'SA30'!P15+'SA30'!P16+'SA30'!P17+'SA30'!P19+'SA30'!P29 -> 115679335
A9: Transfers and Subsidies - Operational | B9: 1 | C9: 0 | D9: 649898044.4 | E9: 0 | F9: 247286250 | G9: 247286250 | H9: 247286250 | I9: 247286250 | J9: ='SA30'!N18 -> 260209300 | K9: ='SA30'!O18 -> 270519300 | L9: ='SA30'!P18 -> 282880915
A10: Transfers and Subsidies - Capital | B10: 1 | C10: 0 | D10: 0 | E10: 0 | F10: 190004750 | G10: 190004750 | H10: 190004750 | I10: 190004750 | J10: ='SA30'!N23+'SA30'!N24 -> 113237700 | K10: ='SA30'!O23+'SA30'!O24 -> 142940700 | L10: ='SA30'!P23+'SA30'!P24 -> 140253106
A11: Interest | C11: 0 | D11: 0 | E11: 0 | F11: 0 | G11: 0 | H11: 0 | I11: 0 | J11: ='SA30'!N12+'SA30'!N13 -> 7591849 | K11: ='SA30'!O12+'SA30'!O13 -> 7941074 | L11: ='SA30'!P12+'SA30'!P13 -> 8290489
A12: Dividends | C12: 0 | D12: 0 | E12: 0 | F12: 0 | G12: 0 | H12: 0 | I12: 0 | J12: ='SA30'!N14 -> 0 | K12: ='SA30'!O14 -> 0 | L12: ='SA30'!P14 -> 0
A13: Payments
A14: Suppliers and employees | C14: -143615761.9 | D14: -288001704.9 | E14: -747427448.6 | F14: -513313208 | G14: -654040554 | H14: -654040554 | I14: -654040554 | J14: =('SA30'!N35+'SA30'!N36+'SA30'!N38+'SA30'!N39+'SA30'!N40+'SA30'!N41+'SA30'!N44+'SA30'!N50) -> -830623380 | K14: =('SA30'!O35+'SA30'!O36+'SA30'!O38+'SA30'!O39+'SA30'!O40+'SA30'!O41+'SA30'!O44+'SA30'!O50) -> -868612299 | L14: =('SA30'!P35+'SA30'!P36+'SA30'!P38+'SA30'!P39+'SA30'!P40+'SA30'!P41+'SA30'!P44+'SA30'!P50) -> -906748408
A15: Interest | C15: 0 | D15: 0 | E15: 0 | F15: -18684994 | G15: -20603884 | H15: -20603884 | I15: -20603884 | J15: =('SA30'!N37) -> -21489851 | K15: =('SA30'!O37) -> -22478384 | L15: =('SA30'!P37) -> -23467435
A16: Transfers and Subsidies | B16: 1 | C16: 0 | D16: 0 | E16: 0 | F16: -1078364 | G16: -125689 | H16: -125689 | I16: -125689 | J16: =('SA30'!N42+'SA30'!N43) -> -131094 | K16: =('SA30'!O42+'SA30'!O43) -> -137124 | L16: =('SA30'!P42+'SA30'!P43) -> -143159
A17: NET CASH FROM/(USED) OPERATING ACTIVITIES | C17: =SUM(C6:C12)+SUM(C14:C16) -> -143615761.9 | D17: =SUM(D6:D12)+SUM(D14:D16) -> 381896339.5 | E17: 779506675.3 | F17: 437392562 | G17: 333282036 | H17: 333282036 | I17: =SUM(I6:I12)+SUM(I14:I16) -> 333282036 | J17: 156151455 | K17: 185812731 | L17: 182517968
A19: CASH FLOWS FROM INVESTING ACTIVITIES
A20: Receipts
A21: Proceeds on disposal of PPE | C21: 0 | D21: 0 | E21: 0 | F21: 0 | G21: 0 | H21: 0 | I21: 0 | J21: ='SA30'!N25 -> 0 | K21: ='SA30'!O25 -> 0 | L21: ='SA30'!P25 -> 0
A23: Decrease (increase) in non-current receivables | C23: 0 | D23: 0 | E23: 0 | F23: 0 | G23: 0 | H23: 0 | I23: 0 | J23: ='SA30'!N30 -> 0 | K23: ='SA30'!O30 -> 0 | L23: ='SA30'!P30 -> 0
A24: Decrease (increase) in non-current investments | C24: 0 | D24: 0 | E24: 0 | F24: 0 | G24: 0 | H24: 0 | I24: 0 | J24: ='SA30'!N31 -> 0 | K24: ='SA30'!O31 -> 0 | L24: ='SA30'!P31 -> 0
A25: Payments
A26: Capital assets | C26: 0 | D26: 0 | E26: 0 | F26: 0 | G26: 0 | H26: 0 | I26: 0 | J26: =('SA30'!N48) -> -181601156 | K26: =('SA30'!O48) -> -177146807 | L26: =('SA30'!P48) -> -154484280
A27: NET CASH FROM/(USED) INVESTING ACTIVITIES | C27: =+C21+C23+C24+C26 -> 0 | D27: =+D21+D23+D24+D26 -> 0 | E27: 0 | F27: 0 | G27: 0 | H27: 0 | I27: 0 | J27: -181601156 | K27: -177146807 | L27: -154484280
A29: CASH FLOWS FROM FINANCING ACTIVITIES
A30: Receipts
A31: Short term loans | C31: 0 | D31: 0 | E31: 0 | F31: 0 | G31: 0 | H31: 0 | I31: 0 | J31: ='SA30'!N26 -> 0 | K31: ='SA30'!O26 -> 0 | L31: ='SA30'!P26 -> 0
A32: Borrowing long term/refinancing | C32: 0 | D32: 0 | E32: 0 | F32: 0 | G32: 0 | H32: 0 | I32: 0 | J32: ='SA30'!N27 -> 0 | K32: ='SA30'!O27 -> 0 | L32: ='SA30'!P27 -> 0
A33: Increase (decrease) in consumer deposits | C33: 0 | D33: 0 | E33: 0 | F33: 0 | G33: 0 | H33: 0 | I33: 0 | J33: ='SA30'!N28 -> 0 | K33: ='SA30'!O28 -> 0 | L33: ='SA30'!P28 -> 0
A34: Payments
A35: Repayment of borrowing | C35: 0 | D35: -7246029.79 | E35: 0 | F35: -9422400 | G35: 0 | H35: 0 | I35: 0 | J35: =('SA30'!N49) -> 0 | K35: =('SA30'!O49) -> 0 | L35: =('SA30'!P49) -> -2
A36: NET CASH FROM/(USED) FINANCING ACTIVITIES | C36: =SUM(C31:C33)+C35 -> 0 | D36: =SUM(D31:D33)+D35 -> -7246029.79 | E36: 0 | F36: -9422400 | G36: 0 | H36: 0 | I36: 0 | J36: 0 | K36: 0 | L36: -2
A38: NET INCREASE/ (DECREASE) IN CASH HELD | C38: =C17+C27+C36 -> -143615761.9 | D38: 374650309.8 | E38: 779506675.3 | F38: 427970162 | G38: 333282036 | H38: 333282036 | I38: 333282036 | J38: -25449701 | K38: 8665924 | L38: 28033686
A39: Cash/cash equivalents at the year begin: | B39: 2 | C39: 94824641 | D39: 94055280.72 | E39: 91260172 | F39: 91267277 | G39: 91267277 | H39: 91267277 | I39: 91267277 | J39: ='SA30'!N54 -> 91274182 | K39: =J40 -> 65824481 | L39: =K40 -> 74490405
A40: Cash/cash equivalents at the year end: | B40: 2 | C40: =C38+C39 -> -48791120.94 | D40: =D38+D39 -> 468705590.5 | E40: =E38+E39 -> 870766847.3 | F40: =F38+F39 -> 519237439 | G40: 424549313 | H40: 424549313 | I40: 424549313 | J40: 65824481 | K40: 74490405 | L40: 102524091
A41: =head27a -> References
A42: 1. Local/District municipalities to include transfers from/to District/Local Municipalities
A43: 2. Cash equivalents includes investments with maturities of 3 months or less
A44: 3. The MTREF is populated directly from SA30.
A45: Total receipts | C45: =SUM(C6:C12)+SUM(C21:C23) -> 0 | D45: 669898044.4 | E45: 1526934124 | F45: 970469128 | G45: 1008052163 | H45: 1008052163 | I45: 1008052163 | J45: 1008395780 | K45: 1077040538 | L45: 1112876970
A46: Total payments | C46: =SUM(C14:C16)+C26 -> -143615761.9 | D46: -288001704.9 | E46: -747427448.6 | F46: -533076566 | G46: -674770127 | H46: -674770127 | I46: -674770127 | J46: -1033845481 | K46: -1068374614 | L46: -1084843282
C47: =C45+C46 -> -143615761.9 | D47: =D45+D46 -> 381896339.5 | E47: 779506675.3 | F47: 437392562 | G47: 333282036 | H47: 333282036 | I47: 333282036 | J47: -25449701 | K47: 8665924 | L47: 28033688
A48: Borrowings & investments & c.deposits | C48: =C24+C32+C33 -> 0 | D48: =D24+D32+D33 -> 0 | E48: 0 | F48: 0 | G48: 0 | H48: 0 | I48: 0 | J48: 0 | K48: 0 | L48: 0
A49: =A35 -> Repayment of borrowing | C49: =C35 -> 0 | D49: =D35 -> -7246029.79 | E49: 0 | F49: -9422400 | G49: 0 | H49: 0 | I49: =I35 -> 0 | J49: 0 | K49: 0 | L49: -2
C50: =C47+C48+C49 -> -143615761.9 | D50: =D47+D48+D49 -> 374650309.8 | E50: 779506675.3 | F50: 427970162 | G50: 333282036 | H50: 333282036 | I50: 333282036 | J50: -25449701 | K50: 8665924 | L50: 28033686
C51: =C38-C50 -> 0 | D51: 0 | E51: 0 | F51: 0 | G51: 0 | H51: 0 | I51: 0 | J51: 0 | K51: 0 | L51: 0

Sheet A8-ResRecon
A1: =muni&" - "&Approve8 -> Choose name from list - Table A8 Cash backed reserves/accumulated surplus reconciliation
A2: =desc -> Description | B2: =head27 -> Ref | C2: =head1b -> 2021/22 | D2: =head1A -> 2022/23 | E2: =Head1 -> 2023/24 | F2: =Head2 -> Current Year 2024/25 | J2: =Head3 -> 2025/26 Medium Term Revenue & Expenditure Framework
A3: R thousand | C3: =Head5 -> Audited Outcome | D3: =Head5 -> Audited Outcome | E3: =Head5 -> Audited Outcome | F3: =Head6 -> Original Budget | G3: =Head7 -> Adjusted Budget | H3: =Head8 -> Full Year Forecast | I3: =Head5b -> Pre-audit outcome | J3: =Head9 -> Budget Year 2025/26 | K3: =Head10 -> Budget Year +1 2026/27 | L3: =Head11 -> Budget Year +2 2027/28
A4: Cash and investments available
A5: =LEFT('A7-CFlow'!A40,37) -> Cash/cash equivalents at the year end | B5: 1 | C5: ='A7-CFlow'!C40 -> -48791120.94 | D5: ='A7-CFlow'!D40 -> 468705590.5 | E5: ='A7-CFlow'!E40 -> 870766847.3 | F5: ='A7-CFlow'!F40 -> 519237439 | G5: ='A7-CFlow'!G40 -> 424549313 | H5: ='A7-CFlow'!H40 -> 424549313 | I5: ='A7-CFlow'!I40 -> 424549313 | J5: ='A7-CFlow'!J40 -> 65824481 | K5: ='A7-CFlow'!K40 -> 74490405 | L5: ='A7-CFlow'!L40 -> 102524091
A6: Other current investments > 90 days | C6: ='A6-FinPos'!C6-'A6-FinPos'!C29-'A8-ResRecon'!C5 -> 96522802.17 | D6: ='A6-FinPos'!D6-'A6-FinPos'!D29-'A8-ResRecon'!D5 -> -375737478.1 | E6: ='A6-FinPos'!E6-'A6-FinPos'!E29-'A8-ResRecon'!E5 -> -810055378.2 | F6: ='A6-FinPos'!F6-'A6-FinPos'!F29-'A8-ResRecon'!F5 -> -461407327 | G6: ='A6-FinPos'!G6-'A6-FinPos'!G29-'A8-ResRecon'!G5 -> -398461173 | H6: ='A6-FinPos'!H6-'A6-FinPos'!H29-'A8-ResRecon'!H5 -> -398461173 | I6: ='A6-FinPos'!I6-'A6-FinPos'!I29-'A8-ResRecon'!I5 -> -398461173 | J6: ='A6-FinPos'!J6-'A6-FinPos'!J29-'A8-ResRecon'!J5 -> 0 | K6: ='A6-FinPos'!K6-'A6-FinPos'!K29-'A8-ResRecon'!K5 -> 25449710 | L6: ='A6-FinPos'!L6-'A6-FinPos'!L29-'A8-ResRecon'!L5 -> 16783910
A7: Non current Investments | B7: 1 | C7: ='A6-FinPos'!C15 -> 0 | D7: ='A6-FinPos'!D15 -> 0 | E7: ='A6-FinPos'!E15 -> 0 | F7: ='A6-FinPos'!F15 -> 0 | G7: ='A6-FinPos'!G15 -> 0 | H7: ='A6-FinPos'!H15 -> 0 | I7: ='A6-FinPos'!I15 -> 0 | J7: ='A6-FinPos'!J15 -> 0 | K7: ='A6-FinPos'!K15 -> 0 | L7: ='A6-FinPos'!L15 -> 0
A8: Cash and investments available: | C8: =SUM(C5:C7) -> 47731681.23 | D8: =SUM(D5:D7) -> 92968112.38 | E8: 60711469.06 | F8: 57830112 | G8: 26088140 | H8: 26088140 | I8: 26088140 | J8: 65824481 | K8: 99940115 | L8: 119308001
A10: Application of cash and investments
A11: Unspent conditional transfers | C11: ='SA3'!C149 -> 2653838 | D11: ='SA3'!D149 -> 21249999.57 | E11: ='SA3'!E149 -> 12907487.35 | F11: ='SA3'!F149 -> 19919657 | G11: ='SA3'!G149 -> 21251000 | H11: ='SA3'!H149 -> 21251000 | I11: ='SA3'!I149 -> 21251000 | J11: ='SA3'!J149 -> 21252000 | K11: ='SA3'!K149 -> 21251996 | L11: ='SA3'!L149 -> 21251990
A12: Unspent borrowing | C12: 0 | D12: 0 | E12: 0 | F12: 0 | G12: 0 | H12: 0 | I12: 0 | J12: 0 | K12: 0 | L12: 0
A13: Statutory requirements | B13: 2 | C13: -27547142.34 | D13: -30287453.25 | E13: -418132.18 | F13: -30287345 | G13: -37518452 | H13: -37518452 | I13: -37518452 | J13: -37447135 | K13: -37779920 | L13: -38109742
A14: Other working capital requirements | B14: 3 | C14: =-C34 -> 242656645.8 | D14: =-D34 -> 111356770.7 | E14: -281333560.4 | F14: =-F34 -> -25689077 | G14: -12717824 | H14: -12717824 | I14: -10800824 | J14: -124736656 | K14: -124104149 | L14: -122607473
A15: Other provisions | C15: 3362000 | D15: 4249000 | E15: 4497000 | F15: 4249000 | G15: 4249000 | H15: 4249000 | I15: 4249000 | J15: 4249000 | K15: 4249000 | L15: 4249000
A16: Long term investments committed | B16: 4 | C16: =C54 -> 0 | D16: =D54 -> 0 | E16: 0 | F16: 0 | G16: 0 | H16: 0 | I16: 0 | J16: 0 | K16: 0 | L16: 0
A17: Reserves to be backed by cash/investments | B17: 5 | C17: 0 | D17: 0 | E17: 0 | F17: -25000000 | G17: 0 | H17: 0 | I17: 0 | J17: 0 | K17: 0 | L17: -1
A18: Total Application of cash and investments: | C18: =SUM(C11:C17) -> 221125341.5 | D18: =SUM(D11:D17) -> 106568317 | E18: -264347205.2 | F18: -56807765 | G18: -24736276 | H18: -24736276 | I18: -22819276 | J18: -136682791 | K18: -136383073 | L18: -135216226
A19: Surplus(shortfall) - Excluding Non-Current Creditors Trf to Debt Relief Benefits | C19: =C8-C18 -> -173393660.2 | D19: =D8-D18 -> -13600204.66 | E19: 325058674.3 | F19: 114637877 | G19: 50824416 | H19: 50824416 | I19: 48907416 | J19: 202507272 | K19: 236323188 | L19: 254524227
A20: Creditors transferred to Debt Relief - Non-Current portion | C20: ='SA3'!C162 -> 0 | D20: ='SA3'!D162 -> 0 | E20: ='SA3'!E162 -> 0 | F20: ='SA3'!F162 -> 0 | G20: ='SA3'!G162 -> 0 | H20: ='SA3'!H162 -> 0 | I20: ='SA3'!I162 -> 0 | J20: ='SA3'!J162 -> 0 | K20: ='SA3'!K162 -> 0 | L20: ='SA3'!L162 -> 0
A21: Surplus(shortfall) - Including Non-Current Creditors Trf to Debt Relief Benefits | C21: =SUM(C19:C20) -> -173393660.2 | D21: =SUM(D19:D20) -> -13600204.66 | E21: 325058674.3 | F21: 114637877 | G21: 50824416 | H21: 50824416 | I21: 48907416 | J21: 202507272 | K21: 236323188 | L21: 254524227
A22: =head27a -> References
A23: 1. Must reconcile with Budgeted Cash Flows
A24: 2. For example: VAT, taxation
A25: 3. Council approval for policy required - include sufficient working capital (e.g. allowing for a % of current debtors > 90 days as uncollectable)
A26: 4. For example: sinking fund requirements for borrowing
A27: 5. Council approval required for each reserve created and basis of cash backing of reserves - Total Reserves to be backed by cash/investments excl Valuation reserve
A30: Other working capital requirements
A31: Debtors | C31: =IF(ISERROR(ROUND(C37*C38,-3)),0,(ROUND(C37*C38,-3))) -> 0 | D31: =IF(ISERROR(ROUND(D37*D38,-3)),0,(ROUND(D37*D38,-3))) -> 6968000 | E31: 419036000 | F31: 244424000 | G31: 105333000 | H31: 105333000 | I31: 103416000 | J31: 245455000 | K31: 244323000 | L31: 242326000
A33: Creditors due | C33: ='SA3'!C147+'SA3'!C148 -> 242656645.8 | D33: ='SA3'!D147+'SA3'!D148 -> 118324770.7 | E33: ='SA3'!E147+'SA3'!E148 -> 137702439.6 | F33: ='SA3'!F147+'SA3'!F148 -> 218734923 | G33: ='SA3'!G147+'SA3'!G148 -> 92615176 | H33: ='SA3'!H147+'SA3'!H148 -> 92615176 | I33: ='SA3'!I147+'SA3'!I148 -> 92615176 | J33: ='SA3'!J147+'SA3'!J148 -> 120718344 | K33: ='SA3'!K147+'SA3'!K148 -> 120218851 | L33: ='SA3'!L147+'SA3'!L148 -> 119718527
A34: Total | C34: =C31-C33 -> -242656645.8 | D34: =D31-D33 -> -111356770.7 | E34: 281333560.4 | F34: 25689077 | G34: 12717824 | H34: 12717824 | I34: 10800824 | J34: 124736656 | K34: 124104149 | L34: 122607473
A36: Debtors collection assumptions
A37: Balance outstanding - debtors | C37: ='A6-FinPos'!C7+'A6-FinPos'!C8+'A6-FinPos'!C9+'A6-FinPos'!C22+'A6-FinPos'!C23 -> 105841818.6 | D37: ='A6-FinPos'!D7+'A6-FinPos'!D8+'A6-FinPos'!D9+'A6-FinPos'!D22+'A6-FinPos'!D23 -> 147746115.8 | E37: ='A6-FinPos'!E7+'A6-FinPos'!E8+'A6-FinPos'!E9+'A6-FinPos'!E22+'A6-FinPos'!E23 -> 288716107 | F37: ='A6-FinPos'!F7+'A6-FinPos'!F8+'A6-FinPos'!F9+'A6-FinPos'!F22+'A6-FinPos'!F23 -> 540616272 | G37: ='A6-FinPos'!G7+'A6-FinPos'!G8+'A6-FinPos'!G9+'A6-FinPos'!G22+'A6-FinPos'!G23 -> 218037822 | H37: ='A6-FinPos'!H7+'A6-FinPos'!H8+'A6-FinPos'!H9+'A6-FinPos'!H22+'A6-FinPos'!H23 -> 218037822 | I37: ='A6-FinPos'!I7+'A6-FinPos'!I8+'A6-FinPos'!I9+'A6-FinPos'!I22+'A6-FinPos'!I23 -> 218037822 | J37: ='A6-FinPos'!J7+'A6-FinPos'!J8+'A6-FinPos'!J9+'A6-FinPos'!J22+'A6-FinPos'!J23 -> 219284983 | K37: ='A6-FinPos'!K7+'A6-FinPos'!K8+'A6-FinPos'!K9+'A6-FinPos'!K22+'A6-FinPos'!K23 -> 218465043 | L37: ='A6-FinPos'!L7+'A6-FinPos'!L8+'A6-FinPos'!L9+'A6-FinPos'!L22+'A6-FinPos'!L23 -> 217644640
A38: Estimate of debtors collection rate | C38: =IF(ISERROR('SA10'!D10),0,('SA10'!D10)) -> 0 | D38: =IF(ISERROR('SA10'!E10),0,('SA10'!E10)) -> 0.04716159766 | E38: =IF(ISERROR('SA10'!F10),0,('SA10'!F10)) -> 1.451376677 | F38: =IF(ISERROR('SA10'!G10),0,('SA10'!G10)) -> 0.4521213897 | G38: =IF(ISERROR('SA10'!H10),0,('SA10'!H10)) -> 0.4830930257 | H38: =IF(ISERROR('SA10'!I10),0,('SA10'!I10)) -> 0.4830930257 | I38: =IF(ISERROR('SA10'!J10),0,('SA10'!J10)) -> 0.474304666 | J38: =IF(ISERROR('SA10'!K10),0,('SA10'!K10)) -> 1.119342369 | K38: =IF(ISERROR('SA10'!L10),0,('SA10'!L10)) -> 1.118360048 | L38: =IF(ISERROR('SA10'!M10),0,('SA10'!M10)) -> 1.11340103
K41: `
A42: =A16 -> Long term investments committed
A43: Balance (Insert description; eg sinking fund) | C43: 0 | D43: 0 | E43: 0 | F43: 0 | G43: 0 | H43: 0 | I43: 0 | J43: 0 | K43: 0 | L43: 0
C54: =SUM(C43:C53) -> 0 | D54: =SUM(D43:D53) -> 0 | E54: 0 | F54: 0 | G54: 0 | H54: 0 | I54: 0 | J54: 0 | K54: 0 | L54: 0
A55: =A17 -> Reserves to be backed by cash/investments
A56: Housing Development Fund | C56: ='SA3'!C184 -> 0 | D56: ='SA3'!D184 -> 0 | E56: ='SA3'!E184 -> 0 | F56: ='SA3'!F184 -> 0 | G56: ='SA3'!G184 -> 0 | H56: ='SA3'!H184 -> 0 | I56: ='SA3'!I184 -> 0 | J56: ='SA3'!J184 -> 0 | K56: ='SA3'!K184 -> 0 | L56: ='SA3'!L184 -> 0
A57: Capital replacement | C57: ='SA3'!C185 -> 0 | D57: ='SA3'!D185 -> 0 | E57: ='SA3'!E185 -> 0 | F57: ='SA3'!F185 -> -25000000 | G57: ='SA3'!G185 -> 0 | H57: ='SA3'!H185 -> 0 | I57: ='SA3'!I185 -> 0 | J57: ='SA3'!J185 -> 0 | K57: ='SA3'!K185 -> 0 | L57: ='SA3'!L185 -> -1
A58: Self-insurance | C58: ='SA3'!C186 -> 0 | D58: ='SA3'!D186 -> 0 | E58: ='SA3'!E186 -> 0 | F58: ='SA3'!F186 -> 0 | G58: ='SA3'!G186 -> 0 | H58: ='SA3'!H186 -> 0 | I58: ='SA3'!I186 -> 0 | J58: ='SA3'!J186 -> 0 | K58: ='SA3'!K186 -> 0 | L58: ='SA3'!L186 -> 0
A59: Compensation for Occupational Injuries and Diseases
A60: Employee Benefit reserve
A61: Non-current Provisions reserve
A62: Valuation roll reserve
A63: Investment in associate account
A64: Capitalisation
B65: 6 | C65: =SUM(C56:C64) -> 0 | D65: =SUM(D56:D64) -> 0 | E65: 0 | F65: -25000000 | G65: 0 | H65: 0 | I65: 0 | J65: 0 | K65: 0 | L65: -1
A66: Note:
A67: 6. Above reserves do not include Revaluation reserve. Revaluation reserve not required to be cash backed

Sheet A9-Asset
A1: =muni&" - "&Approve9 -> Choose name from list - Table A9 Asset Management
A2: =desc -> Description | B2: =head27 -> Ref | C2: =head1b -> 2021/22 | D2: =head1A -> 2022/23 | E2: =Head1 -> 2023/24 | F2: =Head2 -> Current Year 2024/25 | I2: =Head3 -> 2025/26 Medium Term Revenue & Expenditure Framework
A3: R thousand | C3: =Head5 -> Audited Outcome | D3: =Head5 -> Audited Outcome | E3: =Head5 -> Audited Outcome | F3: =Head6 -> Original Budget | G3: =Head7 -> Adjusted Budget | H3: =Head8 -> Full Year Forecast | I3: =Head9 -> Budget Year 2025/26 | J3: =Head10 -> Budget Year +1 2026/27 | K3: =Head11 -> Budget Year +2 2027/28
A4: CAPITAL EXPENDITURE
A5: Total New Assets | B5: 1 | C5: =C15+C18+C19+C22+C25+C26+SUM(C29:C35)+C38 -> 112859002.9 | D5: =D15+D18+D19+D22+D25+D26+SUM(D29:D35)+D38 -> 55964530.11 | E5: 90041609.32 | F5: 170748761 | G5: 204571534 | H5: 204571534 | I5: 156420081 | J5: 144040702 | K5: 122563965
A6: Roads Infrastructure | C6: =SA34a!C7 -> 1677962.37 | D6: =SA34a!D7 -> 871384.89 | E6: =SA34a!E7 -> 3365336.5 | F6: =SA34a!F7 -> 22353750 | G6: =SA34a!G7 -> 54373673 | H6: =SA34a!H7 -> 54373673 | I6: =SA34a!I7 -> 34863872 | J6: =SA34a!J7 -> 16930305 | K6: =SA34a!K7 -> 11361865
A7: Storm water Infrastructure | C7: =SA34a!C12 -> 0 | D7: =SA34a!D12 -> 0 | E7: =SA34a!E12 -> 0 | F7: =SA34a!F12 -> 0 | G7: =SA34a!G12 -> 0 | H7: =SA34a!H12 -> 0 | I7: =SA34a!I12 -> 0 | J7: =SA34a!J12 -> 0 | K7: =SA34a!K12 -> 0
A8: Electrical Infrastructure | C8: =SA34a!C16 -> 28077070.94 | D8: =SA34a!D16 -> 9565217.41 | E8: =SA34a!E16 -> 10778537.13 | F8: =SA34a!F16 -> 24806200 | G8: =SA34a!G16 -> 18906855 | H8: =SA34a!H16 -> 18906855 | I8: =SA34a!I16 -> 10703017 | J8: =SA34a!J16 -> 24955333 | K8: =SA34a!K16 -> 18000005
A9: Water Supply Infrastructure | C9: =SA34a!C26 -> 40687190.72 | D9: =SA34a!D26 -> 32917641.02 | E9: =SA34a!E26 -> 34205765.24 | F9: =SA34a!F26 -> 83995251 | G9: =SA34a!G26 -> 65237694 | H9: =SA34a!H26 -> 65237694 | I9: =SA34a!I26 -> 66883075 | J9: =SA34a!J26 -> 72883075 | K9: =SA34a!K26 -> 58300009
A10: Sanitation Infrastructure | C10: =SA34a!C37 -> 28975191 | D10: =SA34a!D37 -> 7461575.52 | E10: =SA34a!E37 -> 0 | F10: =SA34a!F37 -> 15960560 | G10: =SA34a!G37 -> 39078170 | H10: =SA34a!H37 -> 39078170 | I10: =SA34a!I37 -> 11493770 | J10: =SA34a!J37 -> 15034300 | K10: =SA34a!K37 -> 19346213
A11: Solid Waste Infrastructure | C11: =SA34a!C44 -> 1681647.55 | D11: =SA34a!D44 -> 0 | E11: =SA34a!E44 -> -0.4 | F11: =SA34a!F44 -> 0 | G11: =SA34a!G44 -> 0 | H11: =SA34a!H44 -> 0 | I11: =SA34a!I44 -> 0 | J11: =SA34a!J44 -> 0 | K11: =SA34a!K44 -> 0
A12: Rail Infrastructure | C12: =SA34a!C52 -> 0 | D12: =SA34a!D52 -> 0 | E12: =SA34a!E52 -> 0 | F12: =SA34a!F52 -> 0 | G12: =SA34a!G52 -> 0 | H12: =SA34a!H52 -> 0 | I12: =SA34a!I52 -> 0 | J12: =SA34a!J52 -> 0 | K12: =SA34a!K52 -> 0
A13: Coastal Infrastructure | C13: =SA34a!C62 -> 0 | D13: =SA34a!D62 -> 0 | E13: =SA34a!E62 -> 0 | F13: =SA34a!F62 -> 0 | G13: =SA34a!G62 -> 0 | H13: =SA34a!H62 -> 0 | I13: =SA34a!I62 -> 0 | J13: =SA34a!J62 -> 0 | K13: =SA34a!K62 -> 0
A14: Information and Communication Infrastructure | C14: =SA34a!C68 -> 0 | D14: =SA34a!D68 -> 0 | E14: =SA34a!E68 -> 622274.84 | F14: =SA34a!F68 -> 0 | G14: =SA34a!G68 -> 1292142 | H14: =SA34a!H68 -> 1292142 | I14: =SA34a!I68 -> 4060000 | J14: =SA34a!J68 -> 3500000 | K14: =SA34a!K68 -> 2
A15: Infrastructure | C15: =SUM(C6:C14) -> 101099062.6 | D15: =SUM(D6:D14) -> 50815818.84 | E15: 48971913.31 | F15: 147115761 | G15: 178888534 | H15: 178888534 | I15: 128003734 | J15: 133303013 | K15: 107008094
A16: Community Facilities | C16: =SA34a!C75 -> 2926851.45 | D16: =SA34a!D75 -> 1395930 | E16: =SA34a!E75 -> 294894 | F16: =SA34a!F75 -> 0 | G16: =SA34a!G75 -> 0 | H16: =SA34a!H75 -> 0 | I16: =SA34a!I75 -> 0 | J16: =SA34a!J75 -> 0 | K16: =SA34a!K75 -> 0
A17: Sport and Recreation Facilities | C17: =SA34a!C98 -> 0 | D17: =SA34a!D98 -> 0 | E17: =SA34a!E98 -> 0 | F17: =SA34a!F98 -> 10000000 | G17: =SA34a!G98 -> 10000000 | H17: =SA34a!H98 -> 10000000 | I17: =SA34a!I98 -> 500000 | J17: =SA34a!J98 -> 8137689 | K17: =SA34a!K98 -> 14755850
A18: Community Assets | C18: =SUM(C16:C17) -> 2926851.45 | D18: =SUM(D16:D17) -> 1395930 | E18: 294894 | F18: 10000000 | G18: 10000000 | H18: 10000000 | I18: 500000 | J18: 8137689 | K18: 14755850
A19: Heritage Assets | C19: =SA34a!C103 -> 0 | D19: =SA34a!D103 -> 0 | E19: =SA34a!E103 -> 0 | F19: =SA34a!F103 -> 0 | G19: =SA34a!G103 -> 0 | H19: =SA34a!H103 -> 0 | I19: =SA34a!I103 -> 0 | J19: =SA34a!J103 -> 0 | K19: =SA34a!K103 -> 0
A20: Revenue Generating | C20: =SA34a!C111 -> 0 | D20: =SA34a!D111 -> 0 | E20: =SA34a!E111 -> 0 | F20: =SA34a!F111 -> 0 | G20: =SA34a!G111 -> 0 | H20: =SA34a!H111 -> 0 | I20: =SA34a!I111 -> 0 | J20: =SA34a!J111 -> 0 | K20: =SA34a!K111 -> 0
A21: Non-revenue Generating | C21: =SA34a!C114 -> 0 | D21: =SA34a!D114 -> 0 | E21: =SA34a!E114 -> 0 | F21: =SA34a!F114 -> 0 | G21: =SA34a!G114 -> 0 | H21: =SA34a!H114 -> 0 | I21: =SA34a!I114 -> 0 | J21: =SA34a!J114 -> 0 | K21: =SA34a!K114 -> 0
A22: Investment properties | C22: =SUM(C20:C21) -> 0 | D22: =SUM(D20:D21) -> 0 | E22: 0 | F22: 0 | G22: 0 | H22: 0 | I22: 0 | J22: 0 | K22: 0
A23: Operational Buildings | C23: =SA34a!C119 -> 0 | D23: =SA34a!D119 -> 157979.17 | E23: =SA34a!E119 -> 104439.98 | F23: =SA34a!F119 -> 1000000 | G23: =SA34a!G119 -> 2200000 | H23: =SA34a!H119 -> 2200000 | I23: =SA34a!I119 -> 500000 | J23: =SA34a!J119 -> 0 | K23: =SA34a!K119 -> 2
A24: Housing | C24: =SA34a!C131 -> 0 | D24: =SA34a!D131 -> 0 | E24: =SA34a!E131 -> 0 | F24: =SA34a!F131 -> 0 | G24: =SA34a!G131 -> 0 | H24: =SA34a!H131 -> 0 | I24: =SA34a!I131 -> 0 | J24: =SA34a!J131 -> 0 | K24: =SA34a!K131 -> 0
A25: Other Assets | C25: =SUM(C23:C24) -> 0 | D25: =SUM(D23:D24) -> 157979.17 | E25: 104439.98 | F25: 1000000 | G25: 2200000 | H25: 2200000 | I25: 500000 | J25: 0 | K25: 2
A26: Biological or Cultivated Assets | C26: =SA34a!C136 -> 0 | D26: =SA34a!D136 -> 0 | E26: =SA34a!E136 -> 0 | F26: =SA34a!F136 -> 0 | G26: =SA34a!G136 -> 0 | H26: =SA34a!H136 -> 0 | I26: =SA34a!I136 -> 0 | J26: =SA34a!J136 -> 0 | K26: =SA34a!K136 -> 0
A27: Servitudes | C27: =SA34a!C140 -> 0 | D27: =SA34a!D140 -> 0 | E27: =SA34a!E140 -> 0 | F27: =SA34a!F140 -> 0 | G27: =SA34a!G140 -> 0 | H27: =SA34a!H140 -> 0 | I27: =SA34a!I140 -> 0 | J27: =SA34a!J140 -> 0 | K27: =SA34a!K140 -> 0
A28: Licences and Rights | C28: =SA34a!C141 -> 0 | D28: =SA34a!D141 -> 1457933.78 | E28: =SA34a!E141 -> 1685341.5 | F28: =SA34a!F141 -> 0 | G28: =SA34a!G141 -> 0 | H28: =SA34a!H141 -> 0 | I28: =SA34a!I141 -> 0 | J28: =SA34a!J141 -> 0 | K28: =SA34a!K141 -> 0
A29: Intangible Assets | C29: =SUM(C27:C28) -> 0 | D29: =SUM(D27:D28) -> 1457933.78 | E29: 1685341.5 | F29: 0 | G29: 0 | H29: 0 | I29: 0 | J29: 0 | K29: 0
A30: Computer Equipment | C30: =SA34a!C149 -> 528400.01 | D30: =SA34a!D149 -> 891710.04 | E30: =SA34a!E149 -> 472072 | F30: =SA34a!F149 -> 1000000 | G30: =SA34a!G149 -> 1300000 | H30: =SA34a!H149 -> 1300000 | I30: =SA34a!I149 -> 1000000 | J30: =SA34a!J149 -> 500000 | K30: =SA34a!K149 -> 500000
A31: Furniture and Office Equipment | C31: =SA34a!C152 -> 172904 | D31: =SA34a!D152 -> 18669.8 | E31: =SA34a!E152 -> 1173896.08 | F31: =SA34a!F152 -> 1100000 | G31: =SA34a!G152 -> 1100000 | H31: =SA34a!H152 -> 1100000 | I31: =SA34a!I152 -> 300000 | J31: =SA34a!J152 -> 300000 | K31: =SA34a!K152 -> 300003
A32: Machinery and Equipment | C32: =SA34a!C155 -> 48000 | D32: =SA34a!D155 -> 500416.52 | E32: =SA34a!E155 -> 2065945.81 | F32: =SA34a!F155 -> 3708000 | G32: =SA34a!G155 -> 3658000 | H32: =SA34a!H155 -> 3658000 | I32: =SA34a!I155 -> 10255147 | J32: =SA34a!J155 -> 1800000 | K32: =SA34a!K155 -> 11
A33: Transport Assets | C33: =SA34a!C158 -> 8083784.89 | D33: =SA34a!D158 -> 726071.96 | E33: =SA34a!E158 -> 35273106.64 | F33: =SA34a!F158 -> 1400000 | G33: =SA34a!G158 -> 1400000 | H33: =SA34a!H158 -> 1400000 | I33: =SA34a!I158 -> 13861200 | J33: =SA34a!J158 -> 0 | K33: =SA34a!K158 -> 3
A34: Land | C34: =SA34a!C161 -> 0 | D34: =SA34a!D161 -> 0 | E34: =SA34a!E161 -> 0 | F34: =SA34a!F161 -> 5425000 | G34: =SA34a!G161 -> 6025000 | H34: =SA34a!H161 -> 6025000 | I34: =SA34a!I161 -> 2000000 | J34: =SA34a!J161 -> 0 | K34: =SA34a!K161 -> 2
A35: Zoo's, Marine and Non-biological Animals | C35: =SA34a!C164 -> 0 | D35: =SA34a!D164 -> 0 | E35: =SA34a!E164 -> 0 | F35: =SA34a!F164 -> 0 | G35: =SA34a!G164 -> 0 | H35: =SA34a!H164 -> 0 | I35: =SA34a!I164 -> 0 | J35: =SA34a!J164 -> 0 | K35: =SA34a!K164 -> 0
A36: Mature | C36: =SA34a!C168 -> 0 | D36: =SA34a!D168 -> 0 | E36: =SA34a!E168 -> 0 | F36: =SA34a!F168 -> 0 | G36: =SA34a!G168 -> 0 | H36: =SA34a!H168 -> 0 | I36: =SA34a!I168 -> 0 | J36: =SA34a!J168 -> 0 | K36: =SA34a!K168 -> 0
A37: Immature | C37: =SA34a!C171 -> 0 | D37: =SA34a!D171 -> 0 | E37: =SA34a!E171 -> 0 | F37: =SA34a!F171 -> 0 | G37: =SA34a!G171 -> 0 | H37: =SA34a!H171 -> 0 | I37: =SA34a!I171 -> 0 | J37: =SA34a!J171 -> 0 | K37: =SA34a!K171 -> 0
A38: Living Resources | C38: =SUM(C36:C37) -> 0 | D38: =SUM(D36:D37) -> 0 | E38: 0 | F38: 0 | G38: 0 | H38: 0 | I38: 0 | J38: 0 | K38: 0
A40: Total Renewal of Existing Assets | B40: 2 | C40: =C50+C53+C54+C57+C60+C61+SUM(C64:C70)+C73 -> 0 | D40: =D50+D53+D54+D57+D60+D61+SUM(D64:D70)+D73 -> 491000 | E40: 23921171.48 | F40: 45445189 | G40: 53170139 | H40: 53170139 | I40: 493966 | J40: 10000000 | K40: 11770192
A41: Roads Infrastructure | C41: =SA34b!C7 -> 0 | D41: =SA34b!D7 -> 0 | E41: =SA34b!E7 -> 0 | F41: =SA34b!F7 -> 0 | G41: =SA34b!G7 -> 135794 | H41: =SA34b!H7 -> 135794 | I41: =SA34b!I7 -> 493966 | J41: =SA34b!J7 -> 10000000 | K41: =SA34b!K7 -> 11770190
A42: Storm water Infrastructure | C42: =SA34b!C12 -> 0 | D42: =SA34b!D12 -> 0 | E42: =SA34b!E12 -> 0 | F42: =SA34b!F12 -> 0 | G42: =SA34b!G12 -> 0 | H42: =SA34b!H12 -> 0 | I42: =SA34b!I12 -> 0 | J42: =SA34b!J12 -> 0 | K42: =SA34b!K12 -> 0
A43: Electrical Infrastructure | C43: =SA34b!C16 -> 0 | D43: =SA34b!D16 -> 0 | E43: =SA34b!E16 -> 0 | F43: =SA34b!F16 -> 0 | G43: =SA34b!G16 -> 0 | H43: =SA34b!H16 -> 0 | I43: =SA34b!I16 -> 0 | J43: =SA34b!J16 -> 0 | K43: =SA34b!K16 -> 0
A44: Water Supply Infrastructure | C44: =SA34b!C26 -> 0 | D44: =SA34b!D26 -> 0 | E44: =SA34b!E26 -> 23921171.48 | F44: =SA34b!F26 -> 45445189 | G44: =SA34b!G26 -> 53034345 | H44: =SA34b!H26 -> 53034345 | I44: =SA34b!I26 -> 0 | J44: =SA34b!J26 -> 0 | K44: =SA34b!K26 -> 2
A45: Sanitation Infrastructure | C45: =SA34b!C37 -> 0 | D45: =SA34b!D37 -> 0 | E45: =SA34b!E37 -> 0 | F45: =SA34b!F37 -> 0 | G45: =SA34b!G37 -> 0 | H45: =SA34b!H37 -> 0 | I45: =SA34b!I37 -> 0 | J45: =SA34b!J37 -> 0 | K45: =SA34b!K37 -> 0
A46: Solid Waste Infrastructure | C46: =SA34b!C44 -> 0 | D46: =SA34b!D44 -> 0 | E46: =SA34b!E44 -> 0 | F46: =SA34b!F44 -> 0 | G46: =SA34b!G44 -> 0 | H46: =SA34b!H44 -> 0 | I46: =SA34b!I44 -> 0 | J46: =SA34b!J44 -> 0 | K46: =SA34b!K44 -> 0
A47: Rail Infrastructure | C47: =SA34b!C52 -> 0 | D47: =SA34b!D52 -> 0 | E47: =SA34b!E52 -> 0 | F47: =SA34b!F52 -> 0 | G47: =SA34b!G52 -> 0 | H47: =SA34b!H52 -> 0 | I47: =SA34b!I52 -> 0 | J47: =SA34b!J52 -> 0 | K47: =SA34b!K52 -> 0
A48: Coastal Infrastructure | C48: =SA34b!C62 -> 0 | D48: =SA34b!D62 -> 0 | E48: =SA34b!E62 -> 0 | F48: =SA34b!F62 -> 0 | G48: =SA34b!G62 -> 0 | H48: =SA34b!H62 -> 0 | I48: =SA34b!I62 -> 0 | J48: =SA34b!J62 -> 0 | K48: =SA34b!K62 -> 0
A49: Information and Communication Infrastructure | C49: =SA34b!C68 -> 0 | D49: =SA34b!D68 -> 0 | E49: =SA34b!E68 -> 0 | F49: =SA34b!F68 -> 0 | G49: =SA34b!G68 -> 0 | H49: =SA34b!H68 -> 0 | I49: =SA34b!I68 -> 0 | J49: =SA34b!J68 -> 0 | K49: =SA34b!K68 -> 0
A50: Infrastructure | C50: =SUM(C41:C49) -> 0 | D50: =SUM(D41:D49) -> 0 | E50: 23921171.48 | F50: 45445189 | G50: 53170139 | H50: 53170139 | I50: 493966 | J50: 10000000 | K50: 11770192
A51: Community Facilities | C51: =SA34b!C75 -> 0 | D51: =SA34b!D75 -> 0 | E51: =SA34b!E75 -> 0 | F51: =SA34b!F75 -> 0 | G51: =SA34b!G75 -> 0 | H51: =SA34b!H75 -> 0 | I51: =SA34b!I75 -> 0 | J51: =SA34b!J75 -> 0 | K51: =SA34b!K75 -> 0
A52: Sport and Recreation Facilities | C52: =SA34b!C98 -> 0 | D52: =SA34b!D98 -> 0 | E52: =SA34b!E98 -> 0 | F52: =SA34b!F98 -> 0 | G52: =SA34b!G98 -> 0 | H52: =SA34b!H98 -> 0 | I52: =SA34b!I98 -> 0 | J52: =SA34b!J98 -> 0 | K52: =SA34b!K98 -> 0
A53: Community Assets | C53: =SUM(C51:C52) -> 0 | D53: =SUM(D51:D52) -> 0 | E53: 0 | F53: 0 | G53: 0 | H53: 0 | I53: 0 | J53: 0 | K53: 0
A54: Heritage Assets | C54: =SA34b!C103 -> 0 | D54: =SA34b!D103 -> 0 | E54: =SA34b!E103 -> 0 | F54: =SA34b!F103 -> 0 | G54: =SA34b!G103 -> 0 | H54: =SA34b!H103 -> 0 | I54: =SA34b!I103 -> 0 | J54: =SA34b!J103 -> 0 | K54: =SA34b!K103 -> 0
A55: Revenue Generating | C55: =SA34b!C111 -> 0 | D55: =SA34b!D111 -> 0 | E55: =SA34b!E111 -> 0 | F55: =SA34b!F111 -> 0 | G55: =SA34b!G111 -> 0 | H55: =SA34b!H111 -> 0 | I55: =SA34b!I111 -> 0 | J55: =SA34b!J111 -> 0 | K55: =SA34b!K111 -> 0
A56: Non-revenue Generating | C56: =SA34b!C114 -> 0 | D56: =SA34b!D114 -> 0 | E56: =SA34b!E114 -> 0 | F56: =SA34b!F114 -> 0 | G56: =SA34b!G114 -> 0 | H56: =SA34b!H114 -> 0 | I56: =SA34b!I114 -> 0 | J56: =SA34b!J114 -> 0 | K56: =SA34b!K114 -> 0
A57: Investment properties | C57: =SUM(C55:C56) -> 0 | D57: =SUM(D55:D56) -> 0 | E57: 0 | F57: 0 | G57: 0 | H57: 0 | I57: 0 | J57: 0 | K57: 0
A58: Operational Buildings | C58: =SA34b!C119 -> 0 | D58: =SA34b!D119 -> 0 | E58: =SA34b!E119 -> 0 | F58: =SA34b!F119 -> 0 | G58: =SA34b!G119 -> 0 | H58: =SA34b!H119 -> 0 | I58: =SA34b!I119 -> 0 | J58: =SA34b!J119 -> 0 | K58: =SA34b!K119 -> 0
A59: Housing | C59: =SA34b!C131 -> 0 | D59: =SA34b!D131 -> 0 | E59: =SA34b!E131 -> 0 | F59: =SA34b!F131 -> 0 | G59: =SA34b!G131 -> 0 | H59: =SA34b!H131 -> 0 | I59: =SA34b!I131 -> 0 | J59: =SA34b!J131 -> 0 | K59: =SA34b!K131 -> 0
A60: Other Assets | C60: =SUM(C58:C59) -> 0 | D60: =SUM(D58:D59) -> 0 | E60: 0 | F60: 0 | G60: 0 | H60: 0 | I60: 0 | J60: 0 | K60: 0
A61: Biological or Cultivated Assets | C61: =SA34b!C136 -> 0 | D61: =SA34b!D136 -> 0 | E61: =SA34b!E136 -> 0 | F61: =SA34b!F136 -> 0 | G61: =SA34b!G136 -> 0 | H61: =SA34b!H136 -> 0 | I61: =SA34b!I136 -> 0 | J61: =SA34b!J136 -> 0 | K61: =SA34b!K136 -> 0
A62: Servitudes | C62: =SA34b!C140 -> 0 | D62: =SA34b!D140 -> 0 | E62: =SA34b!E140 -> 0 | F62: =SA34b!F140 -> 0 | G62: =SA34b!G140 -> 0 | H62: =SA34b!H140 -> 0 | I62: =SA34b!I140 -> 0 | J62: =SA34b!J140 -> 0 | K62: =SA34b!K140 -> 0
A63: Licences and Rights | C63: =SA34b!C141 -> 0 | D63: =SA34b!D141 -> 0 | E63: =SA34b!E141 -> 0 | F63: =SA34b!F141 -> 0 | G63: =SA34b!G141 -> 0 | H63: =SA34b!H141 -> 0 | I63: =SA34b!I141 -> 0 | J63: =SA34b!J141 -> 0 | K63: =SA34b!K141 -> 0
A64: Intangible Assets | C64: =SUM(C62:C63) -> 0 | D64: =SUM(D62:D63) -> 0 | E64: 0 | F64: 0 | G64: 0 | H64: 0 | I64: 0 | J64: 0 | K64: 0
A65: Computer Equipment | C65: =SA34b!C149 -> 0 | D65: =SA34b!D149 -> 0 | E65: =SA34b!E149 -> 0 | F65: =SA34b!F149 -> 0 | G65: =SA34b!G149 -> 0 | H65: =SA34b!H149 -> 0 | I65: =SA34b!I149 -> 0 | J65: =SA34b!J149 -> 0 | K65: =SA34b!K149 -> 0
A66: Furniture and Office Equipment | C66: =SA34b!C152 -> 0 | D66: =SA34b!D152 -> 0 | E66: =SA34b!E152 -> 0 | F66: =SA34b!F152 -> 0 | G66: =SA34b!G152 -> 0 | H66: =SA34b!H152 -> 0 | I66: =SA34b!I152 -> 0 | J66: =SA34b!J152 -> 0 | K66: =SA34b!K152 -> 0
A67: Machinery and Equipment | C67: =SA34b!C155 -> 0 | D67: =SA34b!D155 -> 491000 | E67: =SA34b!E155 -> 0 | F67: =SA34b!F155 -> 0 | G67: =SA34b!G155 -> 0 | H67: =SA34b!H155 -> 0 | I67: =SA34b!I155 -> 0 | J67: =SA34b!J155 -> 0 | K67: =SA34b!K155 -> 0
A68: Transport Assets | C68: =SA34b!C158 -> 0 | D68: =SA34b!D158 -> 0 | E68: =SA34b!E158 -> 0 | F68: =SA34b!F158 -> 0 | G68: =SA34b!G158 -> 0 | H68: =SA34b!H158 -> 0 | I68: =SA34b!I158 -> 0 | J68: =SA34b!J158 -> 0 | K68: =SA34b!K158 -> 0
A69: Land | C69: =SA34b!C161 -> 0 | D69: =SA34b!D161 -> 0 | E69: =SA34b!E161 -> 0 | F69: =SA34b!F161 -> 0 | G69: =SA34b!G161 -> 0 | H69: =SA34b!H161 -> 0 | I69: =SA34b!I161 -> 0 | J69: =SA34b!J161 -> 0 | K69: =SA34b!K161 -> 0
